{"text_format":"1","workbook":"xlsx","n_sheets":3,"sheets":["EXCEL2.RU (2)","Хайрварин","Реестр инцидентов"],"not_rendered":{"charts":0,"images":0,"macros":1,"external_links":0,"defined_names":13,"comments":0,"pivot_tables":0},"unopened":[],"bounds":{"document_bytes":16777216,"sheet_cells":100000,"rows_first":2000,"rows_last":500,"rows_between":2000,"halvings":0,"cell_chars":16384,"cell_head_chars":4096},"cells_cut":0,"cells_raw":0,"read":"whole","date_system":"1900"}

{"sheet":"EXCEL2.RU (2)","index":0,"n_rows":3,"n_cols":1,"rows_kept":3,"cut":false,"hidden":true,"merged":[[0,0,0,6]]}
["EXCEL2.RU - профессиональные приемы для всех >>>"]
["Хорошая новость! Большинство задач, которые Вы хотите решить с помощью MS EXCEL – уже давно решены! \nНа нашем сайте Вы найдете решения множества из наиболее часто встречающихся задач. Сайт содержит более 500 качественно оформленных статей с файлами примеров."]
["Миссия нашего сайта - превратить Вашу работу в MS EXCEL в приятное времяпрепровождение и ускорить решение Ваших задач. Мы постоянно работаем над содержанием и оформлением нашего сайта и благодарим активных пользователей за поддержку и неоценимую помощь в нашей работе."]

{"sheet":"Хайрварин","index":1,"n_rows":265,"n_cols":14,"rows_kept":265,"cut":false,"hidden":false,"merged":[]}
["Создатель","Номер инцидента","Дата создания","Состояние","Ошибка регистрации","Ошибка подтверждена?","Работа РГ","Апелляция",null,"№","Состав группы из представления","Состав группы","Ошибки","Да"]
[{"$f":"IFERROR(INDEX($L$2:$L$23,ROUNDDOWN((ROW(B3)-3)/12,0)+1),\"\")","v":"Баженова Анастасия Станиславовна"},null,null,null,null,null,null,null,null,1,{"$f":"IFERROR(IF(LEN(L2)-LEN(SUBSTITUTE(L2,\" \",\"\"))=2,MID(TRIM(L2),SEARCH(\" \",TRIM(L2))+1,SEARCH(\" \",TRIM(L2),SEARCH(\" \",TRIM(L2))+1)-SEARCH(\" \",TRIM(L2))-1)&\" \"&MID(TRIM(L2),1,SEARCH(\" \",TRIM(L2))-1),MID(TRIM(L2),SEARCH(\" \",TRIM(L2))+1,LEN(TRIM(L2))-SEARCH(\" \",TRIM(L2)))&\" \"&MID(TRIM(L2),1,SEARCH(\" \",TRIM(L2))-1)),0)","v":"Анастасия Баженова"},"Баженова Анастасия Станиславовна",{"$f":"COUNTIF(A:A,K2)","v":1},"Нет"]
[{"$f":"IFERROR(INDEX('Реестр инцидентов'!$A$4:$P$171,MATCH(INDEX($K$2:$K$24,ROUNDDOWN((ROW(B3)-3)/12,0)+1)&1,'Реестр инцидентов'!$Q$4:$Q$171,0),MATCH(A$1,'Реестр инцидентов'!$A$3:$Q$3,0)),\"\")","v":"Анастасия Баженова"},{"$f":"IFERROR(INDEX('Реестр инцидентов'!$A$4:$P$171,MATCH(INDEX($K$2:$K$24,ROUNDDOWN((ROW(C3)-3)/12,0)+1)&1,'Реестр инцидентов'!$Q$4:$Q$171,0),MATCH(B$1,'Реестр инцидентов'!$A$3:$Q$3,0)),\"\")","v":"150701/3.1"},{"$f":"IFERROR(INDEX('Реестр инцидентов'!$A$4:$P$171,MATCH(INDEX($K$2:$K$24,ROUNDDOWN((ROW(D3)-3)/12,0)+1)&1,'Реестр инцидентов'!$Q$4:$Q$171,0),MATCH(C$1,'Реестр инцидентов'!$A$3:$Q$3,0)),\"\")","v":"2015-07-01T01:11:36"},{"$f":"IFERROR(INDEX('Реестр инцидентов'!$A$4:$P$171,MATCH(INDEX($K$2:$K$24,ROUNDDOWN((ROW(E3)-3)/12,0)+1)&1,'Реестр инцидентов'!$Q$4:$Q$171,0),MATCH(D$1,'Реестр инцидентов'!$A$3:$Q$3,0)),\"\")","v":"Разрешено"},{"$f":"IFERROR(INDEX('Реестр инцидентов'!$A$4:$P$171,MATCH(INDEX($K$2:$K$24,ROUNDDOWN((ROW(F3)-3)/12,0)+1)&1,'Реестр инцидентов'!$Q$4:$Q$171,0),MATCH(E$1,'Реестр инцидентов'!$A$3:$Q$3,0)),\"\")","v":"Некорректный контакт"},null,null,null,null,2,{"$f":"IFERROR(IF(LEN(L3)-LEN(SUBSTITUTE(L3,\" \",\"\"))=2,MID(TRIM(L3),SEARCH(\" \",TRIM(L3))+1,SEARCH(\" \",TRIM(L3),SEARCH(\" \",TRIM(L3))+1)-SEARCH(\" \",TRIM(L3))-1)&\" \"&MID(TRIM(L3),1,SEARCH(\" \",TRIM(L3))-1),MID(TRIM(L3),SEARCH(\" \",TRIM(L3))+1,LEN(TRIM(L3))-SEARCH(\" \",TRIM(L3)))&\" \"&MID(TRIM(L3),1,SEARCH(\" \",TRIM(L3))-1)),0)","v":"Александр Балабанов"},"Балабанов Александр Леонидович",{"$f":"COUNTIF(A:A,K3)","v":1},"Проработано"]
[{"$f":"IFERROR(INDEX('Реестр инцидентов'!$A$4:$P$171,MATCH(INDEX($K$2:$K$24,ROUNDDOWN((ROW(B4)-3)/12,0)+1)&2,'Реестр инцидентов'!$Q$4:$Q$171,0),MATCH(A$1,'Реестр инцидентов'!$A$3:$Q$3,0)),\"\")","v":""},{"$f":"IFERROR(INDEX('Реестр инцидентов'!$A$4:$P$171,MATCH(INDEX($K$2:$K$24,ROUNDDOWN((ROW(C4)-3)/12,0)+1)&2,'Реестр инцидентов'!$Q$4:$Q$171,0),MATCH(B$1,'Реестр инцидентов'!$A$3:$Q$3,0)),\"\")","v":""},{"$f":"IFERROR(INDEX('Реестр инцидентов'!$A$4:$P$171,MATCH(INDEX($K$2:$K$24,ROUNDDOWN((ROW(D4)-3)/12,0)+1)&2,'Реестр инцидентов'!$Q$4:$Q$171,0),MATCH(C$1,'Реестр инцидентов'!$A$3:$Q$3,0)),\"\")","v":""},{"$f":"IFERROR(INDEX('Реестр инцидентов'!$A$4:$P$171,MATCH(INDEX($K$2:$K$24,ROUNDDOWN((ROW(E4)-3)/12,0)+1)&2,'Реестр инцидентов'!$Q$4:$Q$171,0),MATCH(D$1,'Реестр инцидентов'!$A$3:$Q$3,0)),\"\")","v":""},{"$f":"IFERROR(INDEX('Реестр инцидентов'!$A$4:$P$171,MATCH(INDEX($K$2:$K$24,ROUNDDOWN((ROW(F4)-3)/12,0)+1)&2,'Реестр инцидентов'!$Q$4:$Q$171,0),MATCH(E$1,'Реестр инцидентов'!$A$3:$Q$3,0)),\"\")","v":""},null,null,null,null,3,"Дмитрий Балабанов","Балабанов Дмитрий Сергеевич",{"$f":"COUNTIF(A:A,K4)","v":0},"Не проработано"]
[{"$f":"IFERROR(INDEX('Реестр инцидентов'!$A$4:$P$171,MATCH(INDEX($K$2:$K$24,ROUNDDOWN((ROW(B5)-3)/12,0)+1)&3,'Реестр инцидентов'!$Q$4:$Q$171,0),MATCH(A$1,'Реестр инцидентов'!$A$3:$Q$3,0)),\"\")","v":""},{"$f":"IFERROR(INDEX('Реестр инцидентов'!$A$4:$P$171,MATCH(INDEX($K$2:$K$24,ROUNDDOWN((ROW(C5)-3)/12,0)+1)&3,'Реестр инцидентов'!$Q$4:$Q$171,0),MATCH(B$1,'Реестр инцидентов'!$A$3:$Q$3,0)),\"\")","v":""},{"$f":"IFERROR(INDEX('Реестр инцидентов'!$A$4:$P$171,MATCH(INDEX($K$2:$K$24,ROUNDDOWN((ROW(D5)-3)/12,0)+1)&3,'Реестр инцидентов'!$Q$4:$Q$171,0),MATCH(C$1,'Реестр инцидентов'!$A$3:$Q$3,0)),\"\")","v":""},{"$f":"IFERROR(INDEX('Реестр инцидентов'!$A$4:$P$171,MATCH(INDEX($K$2:$K$24,ROUNDDOWN((ROW(E5)-3)/12,0)+1)&3,'Реестр инцидентов'!$Q$4:$Q$171,0),MATCH(D$1,'Реестр инцидентов'!$A$3:$Q$3,0)),\"\")","v":""},{"$f":"IFERROR(INDEX('Реестр инцидентов'!$A$4:$P$171,MATCH(INDEX($K$2:$K$24,ROUNDDOWN((ROW(F5)-3)/12,0)+1)&3,'Реестр инцидентов'!$Q$4:$Q$171,0),MATCH(E$1,'Реестр инцидентов'!$A$3:$Q$3,0)),\"\")","v":""},null,null,null,null,4,"Алексей Василевский","Василевский Алексей Вадимович",{"$f":"COUNTIF(A:A,K5)","v":0}]
[{"$f":"IFERROR(INDEX('Реестр инцидентов'!$A$4:$P$171,MATCH(INDEX($K$2:$K$24,ROUNDDOWN((ROW(B6)-3)/12,0)+1)&4,'Реестр инцидентов'!$Q$4:$Q$171,0),MATCH(A$1,'Реестр инцидентов'!$A$3:$Q$3,0)),\"\")","v":""},{"$f":"IFERROR(INDEX('Реестр инцидентов'!$A$4:$P$171,MATCH(INDEX($K$2:$K$24,ROUNDDOWN((ROW(C6)-3)/12,0)+1)&4,'Реестр инцидентов'!$Q$4:$Q$171,0),MATCH(B$1,'Реестр инцидентов'!$A$3:$Q$3,0)),\"\")","v":""},{"$f":"IFERROR(INDEX('Реестр инцидентов'!$A$4:$P$171,MATCH(INDEX($K$2:$K$24,ROUNDDOWN((ROW(D6)-3)/12,0)+1)&4,'Реестр инцидентов'!$Q$4:$Q$171,0),MATCH(C$1,'Реестр инцидентов'!$A$3:$Q$3,0)),\"\")","v":""},{"$f":"IFERROR(INDEX('Реестр инцидентов'!$A$4:$P$171,MATCH(INDEX($K$2:$K$24,ROUNDDOWN((ROW(E6)-3)/12,0)+1)&4,'Реестр инцидентов'!$Q$4:$Q$171,0),MATCH(D$1,'Реестр инцидентов'!$A$3:$Q$3,0)),\"\")","v":""},{"$f":"IFERROR(INDEX('Реестр инцидентов'!$A$4:$P$171,MATCH(INDEX($K$2:$K$24,ROUNDDOWN((ROW(F6)-3)/12,0)+1)&4,'Реестр инцидентов'!$Q$4:$Q$171,0),MATCH(E$1,'Реестр инцидентов'!$A$3:$Q$3,0)),\"\")","v":""},null,null,null,null,5,"Дмитрий Галузо","Галузо Дмитрий Игоревич",{"$f":"COUNTIF(A:A,K6)","v":1}]
[{"$f":"IFERROR(INDEX('Реестр инцидентов'!$A$4:$P$171,MATCH(INDEX($K$2:$K$24,ROUNDDOWN((ROW(B7)-3)/12,0)+1)&5,'Реестр инцидентов'!$Q$4:$Q$171,0),MATCH(A$1,'Реестр инцидентов'!$A$3:$Q$3,0)),\"\")","v":""},{"$f":"IFERROR(INDEX('Реестр инцидентов'!$A$4:$P$171,MATCH(INDEX($K$2:$K$24,ROUNDDOWN((ROW(C7)-3)/12,0)+1)&5,'Реестр инцидентов'!$Q$4:$Q$171,0),MATCH(B$1,'Реестр инцидентов'!$A$3:$Q$3,0)),\"\")","v":""},{"$f":"IFERROR(INDEX('Реестр инцидентов'!$A$4:$P$171,MATCH(INDEX($K$2:$K$24,ROUNDDOWN((ROW(D7)-3)/12,0)+1)&5,'Реестр инцидентов'!$Q$4:$Q$171,0),MATCH(C$1,'Реестр инцидентов'!$A$3:$Q$3,0)),\"\")","v":""},{"$f":"IFERROR(INDEX('Реестр инцидентов'!$A$4:$P$171,MATCH(INDEX($K$2:$K$24,ROUNDDOWN((ROW(E7)-3)/12,0)+1)&5,'Реестр инцидентов'!$Q$4:$Q$171,0),MATCH(D$1,'Реестр инцидентов'!$A$3:$Q$3,0)),\"\")","v":""},{"$f":"IFERROR(INDEX('Реестр инцидентов'!$A$4:$P$171,MATCH(INDEX($K$2:$K$24,ROUNDDOWN((ROW(F7)-3)/12,0)+1)&5,'Реестр инцидентов'!$Q$4:$Q$171,0),MATCH(E$1,'Реестр инцидентов'!$A$3:$Q$3,0)),\"\")","v":""},null,null,null,null,6,"Динара Гериева","Гериева Динара Барасбиевна",{"$f":"COUNTIF(A:A,K7)","v":0}]
[{"$f":"IFERROR(INDEX('Реестр инцидентов'!$A$4:$P$171,MATCH(INDEX($K$2:$K$24,ROUNDDOWN((ROW(B8)-3)/12,0)+1)&6,'Реестр инцидентов'!$Q$4:$Q$171,0),MATCH(A$1,'Реестр инцидентов'!$A$3:$Q$3,0)),\"\")","v":""},{"$f":"IFERROR(INDEX('Реестр инцидентов'!$A$4:$P$171,MATCH(INDEX($K$2:$K$24,ROUNDDOWN((ROW(C8)-3)/12,0)+1)&6,'Реестр инцидентов'!$Q$4:$Q$171,0),MATCH(B$1,'Реестр инцидентов'!$A$3:$Q$3,0)),\"\")","v":""},{"$f":"IFERROR(INDEX('Реестр инцидентов'!$A$4:$P$171,MATCH(INDEX($K$2:$K$24,ROUNDDOWN((ROW(D8)-3)/12,0)+1)&6,'Реестр инцидентов'!$Q$4:$Q$171,0),MATCH(C$1,'Реестр инцидентов'!$A$3:$Q$3,0)),\"\")","v":""},{"$f":"IFERROR(INDEX('Реестр инцидентов'!$A$4:$P$171,MATCH(INDEX($K$2:$K$24,ROUNDDOWN((ROW(E8)-3)/12,0)+1)&6,'Реестр инцидентов'!$Q$4:$Q$171,0),MATCH(D$1,'Реестр инцидентов'!$A$3:$Q$3,0)),\"\")","v":""},{"$f":"IFERROR(INDEX('Реестр инцидентов'!$A$4:$P$171,MATCH(INDEX($K$2:$K$24,ROUNDDOWN((ROW(F8)-3)/12,0)+1)&6,'Реестр инцидентов'!$Q$4:$Q$171,0),MATCH(E$1,'Реестр инцидентов'!$A$3:$Q$3,0)),\"\")","v":""},null,null,null,null,7,"Зульфия Гериева","Гериева Зульфия Барасбиевна",{"$f":"COUNTIF(A:A,K8)","v":0}]
[{"$f":"IFERROR(INDEX('Реестр инцидентов'!$A$4:$P$171,MATCH(INDEX($K$2:$K$24,ROUNDDOWN((ROW(B9)-3)/12,0)+1)&7,'Реестр инцидентов'!$Q$4:$Q$171,0),MATCH(A$1,'Реестр инцидентов'!$A$3:$Q$3,0)),\"\")","v":""},{"$f":"IFERROR(INDEX('Реестр инцидентов'!$A$4:$P$171,MATCH(INDEX($K$2:$K$24,ROUNDDOWN((ROW(C9)-3)/12,0)+1)&7,'Реестр инцидентов'!$Q$4:$Q$171,0),MATCH(B$1,'Реестр инцидентов'!$A$3:$Q$3,0)),\"\")","v":""},{"$f":"IFERROR(INDEX('Реестр инцидентов'!$A$4:$P$171,MATCH(INDEX($K$2:$K$24,ROUNDDOWN((ROW(D9)-3)/12,0)+1)&7,'Реестр инцидентов'!$Q$4:$Q$171,0),MATCH(C$1,'Реестр инцидентов'!$A$3:$Q$3,0)),\"\")","v":""},{"$f":"IFERROR(INDEX('Реестр инцидентов'!$A$4:$P$171,MATCH(INDEX($K$2:$K$24,ROUNDDOWN((ROW(E9)-3)/12,0)+1)&7,'Реестр инцидентов'!$Q$4:$Q$171,0),MATCH(D$1,'Реестр инцидентов'!$A$3:$Q$3,0)),\"\")","v":""},{"$f":"IFERROR(INDEX('Реестр инцидентов'!$A$4:$P$171,MATCH(INDEX($K$2:$K$24,ROUNDDOWN((ROW(F9)-3)/12,0)+1)&7,'Реестр инцидентов'!$Q$4:$Q$171,0),MATCH(E$1,'Реестр инцидентов'!$A$3:$Q$3,0)),\"\")","v":""},null,null,null,null,8,"Владислав Гончаров","Гончаров Владислав Андреевич",{"$f":"COUNTIF(A:A,K9)","v":3}]
[{"$f":"IFERROR(INDEX('Реестр инцидентов'!$A$4:$P$171,MATCH(INDEX($K$2:$K$24,ROUNDDOWN((ROW(B10)-3)/12,0)+1)&8,'Реестр инцидентов'!$Q$4:$Q$171,0),MATCH(A$1,'Реестр инцидентов'!$A$3:$Q$3,0)),\"\")","v":""},{"$f":"IFERROR(INDEX('Реестр инцидентов'!$A$4:$P$171,MATCH(INDEX($K$2:$K$24,ROUNDDOWN((ROW(C10)-3)/12,0)+1)&8,'Реестр инцидентов'!$Q$4:$Q$171,0),MATCH(B$1,'Реестр инцидентов'!$A$3:$Q$3,0)),\"\")","v":""},{"$f":"IFERROR(INDEX('Реестр инцидентов'!$A$4:$P$171,MATCH(INDEX($K$2:$K$24,ROUNDDOWN((ROW(D10)-3)/12,0)+1)&8,'Реестр инцидентов'!$Q$4:$Q$171,0),MATCH(C$1,'Реестр инцидентов'!$A$3:$Q$3,0)),\"\")","v":""},{"$f":"IFERROR(INDEX('Реестр инцидентов'!$A$4:$P$171,MATCH(INDEX($K$2:$K$24,ROUNDDOWN((ROW(E10)-3)/12,0)+1)&8,'Реестр инцидентов'!$Q$4:$Q$171,0),MATCH(D$1,'Реестр инцидентов'!$A$3:$Q$3,0)),\"\")","v":""},{"$f":"IFERROR(INDEX('Реестр инцидентов'!$A$4:$P$171,MATCH(INDEX($K$2:$K$24,ROUNDDOWN((ROW(F10)-3)/12,0)+1)&8,'Реестр инцидентов'!$Q$4:$Q$171,0),MATCH(E$1,'Реестр инцидентов'!$A$3:$Q$3,0)),\"\")","v":""},null,null,null,null,9,"Андрей Демченко","Демченко Андрей Олегович",{"$f":"COUNTIF(A:A,K10)","v":0}]
[{"$f":"IFERROR(INDEX('Реестр инцидентов'!$A$4:$P$171,MATCH(INDEX($K$2:$K$24,ROUNDDOWN((ROW(B11)-3)/12,0)+1)&9,'Реестр инцидентов'!$Q$4:$Q$171,0),MATCH(A$1,'Реестр инцидентов'!$A$3:$Q$3,0)),\"\")","v":""},{"$f":"IFERROR(INDEX('Реестр инцидентов'!$A$4:$P$171,MATCH(INDEX($K$2:$K$24,ROUNDDOWN((ROW(C11)-3)/12,0)+1)&9,'Реестр инцидентов'!$Q$4:$Q$171,0),MATCH(B$1,'Реестр инцидентов'!$A$3:$Q$3,0)),\"\")","v":""},{"$f":"IFERROR(INDEX('Реестр инцидентов'!$A$4:$P$171,MATCH(INDEX($K$2:$K$24,ROUNDDOWN((ROW(D11)-3)/12,0)+1)&9,'Реестр инцидентов'!$Q$4:$Q$171,0),MATCH(C$1,'Реестр инцидентов'!$A$3:$Q$3,0)),\"\")","v":""},{"$f":"IFERROR(INDEX('Реестр инцидентов'!$A$4:$P$171,MATCH(INDEX($K$2:$K$24,ROUNDDOWN((ROW(E11)-3)/12,0)+1)&9,'Реестр инцидентов'!$Q$4:$Q$171,0),MATCH(D$1,'Реестр инцидентов'!$A$3:$Q$3,0)),\"\")","v":""},{"$f":"IFERROR(INDEX('Реестр инцидентов'!$A$4:$P$171,MATCH(INDEX($K$2:$K$24,ROUNDDOWN((ROW(F11)-3)/12,0)+1)&9,'Реестр инцидентов'!$Q$4:$Q$171,0),MATCH(E$1,'Реестр инцидентов'!$A$3:$Q$3,0)),\"\")","v":""},null,null,null,null,10,"Иван Долгов","Долгов Иван Андреевич",{"$f":"COUNTIF(A:A,K11)","v":1}]
[{"$f":"IFERROR(INDEX('Реестр инцидентов'!$A$4:$P$171,MATCH(INDEX($K$2:$K$24,ROUNDDOWN((ROW(B12)-3)/12,0)+1)&10,'Реестр инцидентов'!$Q$4:$Q$171,0),MATCH(A$1,'Реестр инцидентов'!$A$3:$Q$3,0)),\"\")","v":""},{"$f":"IFERROR(INDEX('Реестр инцидентов'!$A$4:$P$171,MATCH(INDEX($K$2:$K$24,ROUNDDOWN((ROW(C12)-3)/12,0)+1)&10,'Реестр инцидентов'!$Q$4:$Q$171,0),MATCH(B$1,'Реестр инцидентов'!$A$3:$Q$3,0)),\"\")","v":""},{"$f":"IFERROR(INDEX('Реестр инцидентов'!$A$4:$P$171,MATCH(INDEX($K$2:$K$24,ROUNDDOWN((ROW(D12)-3)/12,0)+1)&10,'Реестр инцидентов'!$Q$4:$Q$171,0),MATCH(C$1,'Реестр инцидентов'!$A$3:$Q$3,0)),\"\")","v":""},{"$f":"IFERROR(INDEX('Реестр инцидентов'!$A$4:$P$171,MATCH(INDEX($K$2:$K$24,ROUNDDOWN((ROW(E12)-3)/12,0)+1)&10,'Реестр инцидентов'!$Q$4:$Q$171,0),MATCH(D$1,'Реестр инцидентов'!$A$3:$Q$3,0)),\"\")","v":""},{"$f":"IFERROR(INDEX('Реестр инцидентов'!$A$4:$P$171,MATCH(INDEX($K$2:$K$24,ROUNDDOWN((ROW(F12)-3)/12,0)+1)&10,'Реестр инцидентов'!$Q$4:$Q$171,0),MATCH(E$1,'Реестр инцидентов'!$A$3:$Q$3,0)),\"\")","v":""},null,null,null,null,11,"Вячеслав Иванов","Иванов Вячеслав Алексеевич",{"$f":"COUNTIF(A:A,K12)","v":1}]
[{"$f":"IFERROR(INDEX('Реестр инцидентов'!$A$4:$P$171,MATCH(INDEX($K$2:$K$24,ROUNDDOWN((ROW(B13)-3)/12,0)+1)&11,'Реестр инцидентов'!$Q$4:$Q$171,0),MATCH(A$1,'Реестр инцидентов'!$A$3:$Q$3,0)),\"\")","v":""},{"$f":"IFERROR(INDEX('Реестр инцидентов'!$A$4:$P$171,MATCH(INDEX($K$2:$K$24,ROUNDDOWN((ROW(C13)-3)/12,0)+1)&11,'Реестр инцидентов'!$Q$4:$Q$171,0),MATCH(B$1,'Реестр инцидентов'!$A$3:$Q$3,0)),\"\")","v":""},{"$f":"IFERROR(INDEX('Реестр инцидентов'!$A$4:$P$171,MATCH(INDEX($K$2:$K$24,ROUNDDOWN((ROW(D13)-3)/12,0)+1)&11,'Реестр инцидентов'!$Q$4:$Q$171,0),MATCH(C$1,'Реестр инцидентов'!$A$3:$Q$3,0)),\"\")","v":""},{"$f":"IFERROR(INDEX('Реестр инцидентов'!$A$4:$P$171,MATCH(INDEX($K$2:$K$24,ROUNDDOWN((ROW(E13)-3)/12,0)+1)&11,'Реестр инцидентов'!$Q$4:$Q$171,0),MATCH(D$1,'Реестр инцидентов'!$A$3:$Q$3,0)),\"\")","v":""},{"$f":"IFERROR(INDEX('Реестр инцидентов'!$A$4:$P$171,MATCH(INDEX($K$2:$K$24,ROUNDDOWN((ROW(F13)-3)/12,0)+1)&11,'Реестр инцидентов'!$Q$4:$Q$171,0),MATCH(E$1,'Реестр инцидентов'!$A$3:$Q$3,0)),\"\")","v":""},null,null,null,null,12,"Михаил Иванов","Иванов Михаил Алексеевич",{"$f":"COUNTIF(A:A,K13)","v":0}]
[{"$f":"IFERROR(INDEX($L$2:$L$23,ROUNDDOWN((ROW(B15)-3)/12,0)+1),\"\")","v":"Балабанов Александр Леонидович"},null,null,null,null,null,null,null,null,13,"Никита Иванюк","Иванюк Никита Романович",{"$f":"COUNTIF(A:A,K14)","v":2}]
[{"$f":"IFERROR(INDEX('Реестр инцидентов'!$A$4:$P$171,MATCH(INDEX($K$2:$K$24,ROUNDDOWN((ROW(B15)-3)/12,0)+1)&1,'Реестр инцидентов'!$Q$4:$Q$171,0),MATCH(A$1,'Реестр инцидентов'!$A$3:$Q$3,0)),\"\")","v":"Александр Балабанов"},{"$f":"IFERROR(INDEX('Реестр инцидентов'!$A$4:$P$171,MATCH(INDEX($K$2:$K$24,ROUNDDOWN((ROW(C15)-3)/12,0)+1)&1,'Реестр инцидентов'!$Q$4:$Q$171,0),MATCH(B$1,'Реестр инцидентов'!$A$3:$Q$3,0)),\"\")","v":"150715/3752.1"},{"$f":"IFERROR(INDEX('Реестр инцидентов'!$A$4:$P$171,MATCH(INDEX($K$2:$K$24,ROUNDDOWN((ROW(D15)-3)/12,0)+1)&1,'Реестр инцидентов'!$Q$4:$Q$171,0),MATCH(C$1,'Реестр инцидентов'!$A$3:$Q$3,0)),\"\")","v":"2015-07-15T18:06:31"},{"$f":"IFERROR(INDEX('Реестр инцидентов'!$A$4:$P$171,MATCH(INDEX($K$2:$K$24,ROUNDDOWN((ROW(E15)-3)/12,0)+1)&1,'Реестр инцидентов'!$Q$4:$Q$171,0),MATCH(D$1,'Реестр инцидентов'!$A$3:$Q$3,0)),\"\")","v":"Разрешено"},{"$f":"IFERROR(INDEX('Реестр инцидентов'!$A$4:$P$171,MATCH(INDEX($K$2:$K$24,ROUNDDOWN((ROW(F15)-3)/12,0)+1)&1,'Реестр инцидентов'!$Q$4:$Q$171,0),MATCH(E$1,'Реестр инцидентов'!$A$3:$Q$3,0)),\"\")","v":"Некорректное описание"},null,null,null,null,14,"Александр Карев","Карев Александр Витальевич",{"$f":"COUNTIF(A:A,K15)","v":2}]
[{"$f":"IFERROR(INDEX('Реестр инцидентов'!$A$4:$P$171,MATCH(INDEX($K$2:$K$24,ROUNDDOWN((ROW(B16)-3)/12,0)+1)&2,'Реестр инцидентов'!$Q$4:$Q$171,0),MATCH(A$1,'Реестр инцидентов'!$A$3:$Q$3,0)),\"\")","v":""},{"$f":"IFERROR(INDEX('Реестр инцидентов'!$A$4:$P$171,MATCH(INDEX($K$2:$K$24,ROUNDDOWN((ROW(C16)-3)/12,0)+1)&2,'Реестр инцидентов'!$Q$4:$Q$171,0),MATCH(B$1,'Реестр инцидентов'!$A$3:$Q$3,0)),\"\")","v":""},{"$f":"IFERROR(INDEX('Реестр инцидентов'!$A$4:$P$171,MATCH(INDEX($K$2:$K$24,ROUNDDOWN((ROW(D16)-3)/12,0)+1)&2,'Реестр инцидентов'!$Q$4:$Q$171,0),MATCH(C$1,'Реестр инцидентов'!$A$3:$Q$3,0)),\"\")","v":""},{"$f":"IFERROR(INDEX('Реестр инцидентов'!$A$4:$P$171,MATCH(INDEX($K$2:$K$24,ROUNDDOWN((ROW(E16)-3)/12,0)+1)&2,'Реестр инцидентов'!$Q$4:$Q$171,0),MATCH(D$1,'Реестр инцидентов'!$A$3:$Q$3,0)),\"\")","v":""},{"$f":"IFERROR(INDEX('Реестр инцидентов'!$A$4:$P$171,MATCH(INDEX($K$2:$K$24,ROUNDDOWN((ROW(F16)-3)/12,0)+1)&2,'Реестр инцидентов'!$Q$4:$Q$171,0),MATCH(E$1,'Реестр инцидентов'!$A$3:$Q$3,0)),\"\")","v":""},null,null,null,null,15,"Виктор Колесниченко","Колесниченко Виктор Ильич",{"$f":"COUNTIF(A:A,K16)","v":0}]
[{"$f":"IFERROR(INDEX('Реестр инцидентов'!$A$4:$P$171,MATCH(INDEX($K$2:$K$24,ROUNDDOWN((ROW(B17)-3)/12,0)+1)&3,'Реестр инцидентов'!$Q$4:$Q$171,0),MATCH(A$1,'Реестр инцидентов'!$A$3:$Q$3,0)),\"\")","v":""},{"$f":"IFERROR(INDEX('Реестр инцидентов'!$A$4:$P$171,MATCH(INDEX($K$2:$K$24,ROUNDDOWN((ROW(C17)-3)/12,0)+1)&3,'Реестр инцидентов'!$Q$4:$Q$171,0),MATCH(B$1,'Реестр инцидентов'!$A$3:$Q$3,0)),\"\")","v":""},{"$f":"IFERROR(INDEX('Реестр инцидентов'!$A$4:$P$171,MATCH(INDEX($K$2:$K$24,ROUNDDOWN((ROW(D17)-3)/12,0)+1)&3,'Реестр инцидентов'!$Q$4:$Q$171,0),MATCH(C$1,'Реестр инцидентов'!$A$3:$Q$3,0)),\"\")","v":""},{"$f":"IFERROR(INDEX('Реестр инцидентов'!$A$4:$P$171,MATCH(INDEX($K$2:$K$24,ROUNDDOWN((ROW(E17)-3)/12,0)+1)&3,'Реестр инцидентов'!$Q$4:$Q$171,0),MATCH(D$1,'Реестр инцидентов'!$A$3:$Q$3,0)),\"\")","v":""},{"$f":"IFERROR(INDEX('Реестр инцидентов'!$A$4:$P$171,MATCH(INDEX($K$2:$K$24,ROUNDDOWN((ROW(F17)-3)/12,0)+1)&3,'Реестр инцидентов'!$Q$4:$Q$171,0),MATCH(E$1,'Реестр инцидентов'!$A$3:$Q$3,0)),\"\")","v":""},null,null,null,null,16,"Вадим Леонтьев","Леонтьев Вадим Вадимович",{"$f":"COUNTIF(A:A,K17)","v":0}]
[{"$f":"IFERROR(INDEX('Реестр инцидентов'!$A$4:$P$171,MATCH(INDEX($K$2:$K$24,ROUNDDOWN((ROW(B18)-3)/12,0)+1)&4,'Реестр инцидентов'!$Q$4:$Q$171,0),MATCH(A$1,'Реестр инцидентов'!$A$3:$Q$3,0)),\"\")","v":""},{"$f":"IFERROR(INDEX('Реестр инцидентов'!$A$4:$P$171,MATCH(INDEX($K$2:$K$24,ROUNDDOWN((ROW(C18)-3)/12,0)+1)&4,'Реестр инцидентов'!$Q$4:$Q$171,0),MATCH(B$1,'Реестр инцидентов'!$A$3:$Q$3,0)),\"\")","v":""},{"$f":"IFERROR(INDEX('Реестр инцидентов'!$A$4:$P$171,MATCH(INDEX($K$2:$K$24,ROUNDDOWN((ROW(D18)-3)/12,0)+1)&4,'Реестр инцидентов'!$Q$4:$Q$171,0),MATCH(C$1,'Реестр инцидентов'!$A$3:$Q$3,0)),\"\")","v":""},{"$f":"IFERROR(INDEX('Реестр инцидентов'!$A$4:$P$171,MATCH(INDEX($K$2:$K$24,ROUNDDOWN((ROW(E18)-3)/12,0)+1)&4,'Реестр инцидентов'!$Q$4:$Q$171,0),MATCH(D$1,'Реестр инцидентов'!$A$3:$Q$3,0)),\"\")","v":""},{"$f":"IFERROR(INDEX('Реестр инцидентов'!$A$4:$P$171,MATCH(INDEX($K$2:$K$24,ROUNDDOWN((ROW(F18)-3)/12,0)+1)&4,'Реестр инцидентов'!$Q$4:$Q$171,0),MATCH(E$1,'Реестр инцидентов'!$A$3:$Q$3,0)),\"\")","v":""},null,null,null,null,17,"Надежда Маркушова","Маркушова Надежда Юрьевна",{"$f":"COUNTIF(A:A,K18)","v":0}]
[{"$f":"IFERROR(INDEX('Реестр инцидентов'!$A$4:$P$171,MATCH(INDEX($K$2:$K$24,ROUNDDOWN((ROW(B19)-3)/12,0)+1)&5,'Реестр инцидентов'!$Q$4:$Q$171,0),MATCH(A$1,'Реестр инцидентов'!$A$3:$Q$3,0)),\"\")","v":""},{"$f":"IFERROR(INDEX('Реестр инцидентов'!$A$4:$P$171,MATCH(INDEX($K$2:$K$24,ROUNDDOWN((ROW(C19)-3)/12,0)+1)&5,'Реестр инцидентов'!$Q$4:$Q$171,0),MATCH(B$1,'Реестр инцидентов'!$A$3:$Q$3,0)),\"\")","v":""},{"$f":"IFERROR(INDEX('Реестр инцидентов'!$A$4:$P$171,MATCH(INDEX($K$2:$K$24,ROUNDDOWN((ROW(D19)-3)/12,0)+1)&5,'Реестр инцидентов'!$Q$4:$Q$171,0),MATCH(C$1,'Реестр инцидентов'!$A$3:$Q$3,0)),\"\")","v":""},{"$f":"IFERROR(INDEX('Реестр инцидентов'!$A$4:$P$171,MATCH(INDEX($K$2:$K$24,ROUNDDOWN((ROW(E19)-3)/12,0)+1)&5,'Реестр инцидентов'!$Q$4:$Q$171,0),MATCH(D$1,'Реестр инцидентов'!$A$3:$Q$3,0)),\"\")","v":""},{"$f":"IFERROR(INDEX('Реестр инцидентов'!$A$4:$P$171,MATCH(INDEX($K$2:$K$24,ROUNDDOWN((ROW(F19)-3)/12,0)+1)&5,'Реестр инцидентов'!$Q$4:$Q$171,0),MATCH(E$1,'Реестр инцидентов'!$A$3:$Q$3,0)),\"\")","v":""},null,null,null,null,18,"Татьяна Метлова","Метлова Татьяна Анатольевна",{"$f":"COUNTIF(A:A,K19)","v":0}]
[{"$f":"IFERROR(INDEX('Реестр инцидентов'!$A$4:$P$171,MATCH(INDEX($K$2:$K$24,ROUNDDOWN((ROW(B20)-3)/12,0)+1)&6,'Реестр инцидентов'!$Q$4:$Q$171,0),MATCH(A$1,'Реестр инцидентов'!$A$3:$Q$3,0)),\"\")","v":""},{"$f":"IFERROR(INDEX('Реестр инцидентов'!$A$4:$P$171,MATCH(INDEX($K$2:$K$24,ROUNDDOWN((ROW(C20)-3)/12,0)+1)&6,'Реестр инцидентов'!$Q$4:$Q$171,0),MATCH(B$1,'Реестр инцидентов'!$A$3:$Q$3,0)),\"\")","v":""},{"$f":"IFERROR(INDEX('Реестр инцидентов'!$A$4:$P$171,MATCH(INDEX($K$2:$K$24,ROUNDDOWN((ROW(D20)-3)/12,0)+1)&6,'Реестр инцидентов'!$Q$4:$Q$171,0),MATCH(C$1,'Реестр инцидентов'!$A$3:$Q$3,0)),\"\")","v":""},{"$f":"IFERROR(INDEX('Реестр инцидентов'!$A$4:$P$171,MATCH(INDEX($K$2:$K$24,ROUNDDOWN((ROW(E20)-3)/12,0)+1)&6,'Реестр инцидентов'!$Q$4:$Q$171,0),MATCH(D$1,'Реестр инцидентов'!$A$3:$Q$3,0)),\"\")","v":""},{"$f":"IFERROR(INDEX('Реестр инцидентов'!$A$4:$P$171,MATCH(INDEX($K$2:$K$24,ROUNDDOWN((ROW(F20)-3)/12,0)+1)&6,'Реестр инцидентов'!$Q$4:$Q$171,0),MATCH(E$1,'Реестр инцидентов'!$A$3:$Q$3,0)),\"\")","v":""},null,null,null,null,19,"Сергей Скляр","Скляр Сергей Александрович",{"$f":"COUNTIF(A:A,K20)","v":0}]
[{"$f":"IFERROR(INDEX('Реестр инцидентов'!$A$4:$P$171,MATCH(INDEX($K$2:$K$24,ROUNDDOWN((ROW(B21)-3)/12,0)+1)&7,'Реестр инцидентов'!$Q$4:$Q$171,0),MATCH(A$1,'Реестр инцидентов'!$A$3:$Q$3,0)),\"\")","v":""},{"$f":"IFERROR(INDEX('Реестр инцидентов'!$A$4:$P$171,MATCH(INDEX($K$2:$K$24,ROUNDDOWN((ROW(C21)-3)/12,0)+1)&7,'Реестр инцидентов'!$Q$4:$Q$171,0),MATCH(B$1,'Реестр инцидентов'!$A$3:$Q$3,0)),\"\")","v":""},{"$f":"IFERROR(INDEX('Реестр инцидентов'!$A$4:$P$171,MATCH(INDEX($K$2:$K$24,ROUNDDOWN((ROW(D21)-3)/12,0)+1)&7,'Реестр инцидентов'!$Q$4:$Q$171,0),MATCH(C$1,'Реестр инцидентов'!$A$3:$Q$3,0)),\"\")","v":""},{"$f":"IFERROR(INDEX('Реестр инцидентов'!$A$4:$P$171,MATCH(INDEX($K$2:$K$24,ROUNDDOWN((ROW(E21)-3)/12,0)+1)&7,'Реестр инцидентов'!$Q$4:$Q$171,0),MATCH(D$1,'Реестр инцидентов'!$A$3:$Q$3,0)),\"\")","v":""},{"$f":"IFERROR(INDEX('Реестр инцидентов'!$A$4:$P$171,MATCH(INDEX($K$2:$K$24,ROUNDDOWN((ROW(F21)-3)/12,0)+1)&7,'Реестр инцидентов'!$Q$4:$Q$171,0),MATCH(E$1,'Реестр инцидентов'!$A$3:$Q$3,0)),\"\")","v":""},null,null,null,null,20,"Алексей Смирнов","Смирнов Алексей Дмитриевич",{"$f":"COUNTIF(A:A,K21)","v":0}]
[{"$f":"IFERROR(INDEX('Реестр инцидентов'!$A$4:$P$171,MATCH(INDEX($K$2:$K$24,ROUNDDOWN((ROW(B22)-3)/12,0)+1)&8,'Реестр инцидентов'!$Q$4:$Q$171,0),MATCH(A$1,'Реестр инцидентов'!$A$3:$Q$3,0)),\"\")","v":""},{"$f":"IFERROR(INDEX('Реестр инцидентов'!$A$4:$P$171,MATCH(INDEX($K$2:$K$24,ROUNDDOWN((ROW(C22)-3)/12,0)+1)&8,'Реестр инцидентов'!$Q$4:$Q$171,0),MATCH(B$1,'Реестр инцидентов'!$A$3:$Q$3,0)),\"\")","v":""},{"$f":"IFERROR(INDEX('Реестр инцидентов'!$A$4:$P$171,MATCH(INDEX($K$2:$K$24,ROUNDDOWN((ROW(D22)-3)/12,0)+1)&8,'Реестр инцидентов'!$Q$4:$Q$171,0),MATCH(C$1,'Реестр инцидентов'!$A$3:$Q$3,0)),\"\")","v":""},{"$f":"IFERROR(INDEX('Реестр инцидентов'!$A$4:$P$171,MATCH(INDEX($K$2:$K$24,ROUNDDOWN((ROW(E22)-3)/12,0)+1)&8,'Реестр инцидентов'!$Q$4:$Q$171,0),MATCH(D$1,'Реестр инцидентов'!$A$3:$Q$3,0)),\"\")","v":""},{"$f":"IFERROR(INDEX('Реестр инцидентов'!$A$4:$P$171,MATCH(INDEX($K$2:$K$24,ROUNDDOWN((ROW(F22)-3)/12,0)+1)&8,'Реестр инцидентов'!$Q$4:$Q$171,0),MATCH(E$1,'Реестр инцидентов'!$A$3:$Q$3,0)),\"\")","v":""},null,null,null,null,21,"Сергей Фокин","Фокин Сергей Дмитриевич",{"$f":"COUNTIF(A:A,K22)","v":1}]
[{"$f":"IFERROR(INDEX('Реестр инцидентов'!$A$4:$P$171,MATCH(INDEX($K$2:$K$24,ROUNDDOWN((ROW(B23)-3)/12,0)+1)&9,'Реестр инцидентов'!$Q$4:$Q$171,0),MATCH(A$1,'Реестр инцидентов'!$A$3:$Q$3,0)),\"\")","v":""},{"$f":"IFERROR(INDEX('Реестр инцидентов'!$A$4:$P$171,MATCH(INDEX($K$2:$K$24,ROUNDDOWN((ROW(C23)-3)/12,0)+1)&9,'Реестр инцидентов'!$Q$4:$Q$171,0),MATCH(B$1,'Реестр инцидентов'!$A$3:$Q$3,0)),\"\")","v":""},{"$f":"IFERROR(INDEX('Реестр инцидентов'!$A$4:$P$171,MATCH(INDEX($K$2:$K$24,ROUNDDOWN((ROW(D23)-3)/12,0)+1)&9,'Реестр инцидентов'!$Q$4:$Q$171,0),MATCH(C$1,'Реестр инцидентов'!$A$3:$Q$3,0)),\"\")","v":""},{"$f":"IFERROR(INDEX('Реестр инцидентов'!$A$4:$P$171,MATCH(INDEX($K$2:$K$24,ROUNDDOWN((ROW(E23)-3)/12,0)+1)&9,'Реестр инцидентов'!$Q$4:$Q$171,0),MATCH(D$1,'Реестр инцидентов'!$A$3:$Q$3,0)),\"\")","v":""},{"$f":"IFERROR(INDEX('Реестр инцидентов'!$A$4:$P$171,MATCH(INDEX($K$2:$K$24,ROUNDDOWN((ROW(F23)-3)/12,0)+1)&9,'Реестр инцидентов'!$Q$4:$Q$171,0),MATCH(E$1,'Реестр инцидентов'!$A$3:$Q$3,0)),\"\")","v":""},null,null,null,null,22,"Дмитрий Шуляк","Шуляк Дмитрий Викторович",{"$f":"COUNTIF(A:A,K23)","v":5}]
[{"$f":"IFERROR(INDEX('Реестр инцидентов'!$A$4:$P$171,MATCH(INDEX($K$2:$K$24,ROUNDDOWN((ROW(B24)-3)/12,0)+1)&10,'Реестр инцидентов'!$Q$4:$Q$171,0),MATCH(A$1,'Реестр инцидентов'!$A$3:$Q$3,0)),\"\")","v":""},{"$f":"IFERROR(INDEX('Реестр инцидентов'!$A$4:$P$171,MATCH(INDEX($K$2:$K$24,ROUNDDOWN((ROW(C24)-3)/12,0)+1)&10,'Реестр инцидентов'!$Q$4:$Q$171,0),MATCH(B$1,'Реестр инцидентов'!$A$3:$Q$3,0)),\"\")","v":""},{"$f":"IFERROR(INDEX('Реестр инцидентов'!$A$4:$P$171,MATCH(INDEX($K$2:$K$24,ROUNDDOWN((ROW(D24)-3)/12,0)+1)&10,'Реестр инцидентов'!$Q$4:$Q$171,0),MATCH(C$1,'Реестр инцидентов'!$A$3:$Q$3,0)),\"\")","v":""},{"$f":"IFERROR(INDEX('Реестр инцидентов'!$A$4:$P$171,MATCH(INDEX($K$2:$K$24,ROUNDDOWN((ROW(E24)-3)/12,0)+1)&10,'Реестр инцидентов'!$Q$4:$Q$171,0),MATCH(D$1,'Реестр инцидентов'!$A$3:$Q$3,0)),\"\")","v":""},{"$f":"IFERROR(INDEX('Реестр инцидентов'!$A$4:$P$171,MATCH(INDEX($K$2:$K$24,ROUNDDOWN((ROW(F24)-3)/12,0)+1)&10,'Реестр инцидентов'!$Q$4:$Q$171,0),MATCH(E$1,'Реестр инцидентов'!$A$3:$Q$3,0)),\"\")","v":""},null,null,null,null,23,0,null,{"$f":"COUNTIF(A:A,K24)","v":0}]
[{"$f":"IFERROR(INDEX('Реестр инцидентов'!$A$4:$P$171,MATCH(INDEX($K$2:$K$24,ROUNDDOWN((ROW(B25)-3)/12,0)+1)&11,'Реестр инцидентов'!$Q$4:$Q$171,0),MATCH(A$1,'Реестр инцидентов'!$A$3:$Q$3,0)),\"\")","v":""},{"$f":"IFERROR(INDEX('Реестр инцидентов'!$A$4:$P$171,MATCH(INDEX($K$2:$K$24,ROUNDDOWN((ROW(C25)-3)/12,0)+1)&11,'Реестр инцидентов'!$Q$4:$Q$171,0),MATCH(B$1,'Реестр инцидентов'!$A$3:$Q$3,0)),\"\")","v":""},{"$f":"IFERROR(INDEX('Реестр инцидентов'!$A$4:$P$171,MATCH(INDEX($K$2:$K$24,ROUNDDOWN((ROW(D25)-3)/12,0)+1)&11,'Реестр инцидентов'!$Q$4:$Q$171,0),MATCH(C$1,'Реестр инцидентов'!$A$3:$Q$3,0)),\"\")","v":""},{"$f":"IFERROR(INDEX('Реестр инцидентов'!$A$4:$P$171,MATCH(INDEX($K$2:$K$24,ROUNDDOWN((ROW(E25)-3)/12,0)+1)&11,'Реестр инцидентов'!$Q$4:$Q$171,0),MATCH(D$1,'Реестр инцидентов'!$A$3:$Q$3,0)),\"\")","v":""},{"$f":"IFERROR(INDEX('Реестр инцидентов'!$A$4:$P$171,MATCH(INDEX($K$2:$K$24,ROUNDDOWN((ROW(F25)-3)/12,0)+1)&11,'Реестр инцидентов'!$Q$4:$Q$171,0),MATCH(E$1,'Реестр инцидентов'!$A$3:$Q$3,0)),\"\")","v":""},null,null,null,null,24,0,null,{"$f":"COUNTIF(A:A,K25)","v":0}]
[{"$f":"IFERROR(INDEX($L$2:$L$23,ROUNDDOWN((ROW(B27)-3)/12,0)+1),\"\")","v":"Балабанов Дмитрий Сергеевич"},null,null,null,null,null,null,null,null,25,0,null,{"$f":"COUNTIF(A:A,K26)","v":0}]
[{"$f":"IFERROR(INDEX('Реестр инцидентов'!$A$4:$P$171,MATCH(INDEX($K$2:$K$24,ROUNDDOWN((ROW(B27)-3)/12,0)+1)&1,'Реестр инцидентов'!$Q$4:$Q$171,0),MATCH(A$1,'Реестр инцидентов'!$A$3:$Q$3,0)),\"\")","v":""},{"$f":"IFERROR(INDEX('Реестр инцидентов'!$A$4:$P$171,MATCH(INDEX($K$2:$K$24,ROUNDDOWN((ROW(C27)-3)/12,0)+1)&1,'Реестр инцидентов'!$Q$4:$Q$171,0),MATCH(B$1,'Реестр инцидентов'!$A$3:$Q$3,0)),\"\")","v":""},{"$f":"IFERROR(INDEX('Реестр инцидентов'!$A$4:$P$171,MATCH(INDEX($K$2:$K$24,ROUNDDOWN((ROW(D27)-3)/12,0)+1)&1,'Реестр инцидентов'!$Q$4:$Q$171,0),MATCH(C$1,'Реестр инцидентов'!$A$3:$Q$3,0)),\"\")","v":""},{"$f":"IFERROR(INDEX('Реестр инцидентов'!$A$4:$P$171,MATCH(INDEX($K$2:$K$24,ROUNDDOWN((ROW(E27)-3)/12,0)+1)&1,'Реестр инцидентов'!$Q$4:$Q$171,0),MATCH(D$1,'Реестр инцидентов'!$A$3:$Q$3,0)),\"\")","v":""},{"$f":"IFERROR(INDEX('Реестр инцидентов'!$A$4:$P$171,MATCH(INDEX($K$2:$K$24,ROUNDDOWN((ROW(F27)-3)/12,0)+1)&1,'Реестр инцидентов'!$Q$4:$Q$171,0),MATCH(E$1,'Реестр инцидентов'!$A$3:$Q$3,0)),\"\")","v":""},null,null,null,null,26,0,null,{"$f":"COUNTIF(A:A,K27)","v":0}]
[{"$f":"IFERROR(INDEX('Реестр инцидентов'!$A$4:$P$171,MATCH(INDEX($K$2:$K$24,ROUNDDOWN((ROW(B28)-3)/12,0)+1)&2,'Реестр инцидентов'!$Q$4:$Q$171,0),MATCH(A$1,'Реестр инцидентов'!$A$3:$Q$3,0)),\"\")","v":""},{"$f":"IFERROR(INDEX('Реестр инцидентов'!$A$4:$P$171,MATCH(INDEX($K$2:$K$24,ROUNDDOWN((ROW(C28)-3)/12,0)+1)&2,'Реестр инцидентов'!$Q$4:$Q$171,0),MATCH(B$1,'Реестр инцидентов'!$A$3:$Q$3,0)),\"\")","v":""},{"$f":"IFERROR(INDEX('Реестр инцидентов'!$A$4:$P$171,MATCH(INDEX($K$2:$K$24,ROUNDDOWN((ROW(D28)-3)/12,0)+1)&2,'Реестр инцидентов'!$Q$4:$Q$171,0),MATCH(C$1,'Реестр инцидентов'!$A$3:$Q$3,0)),\"\")","v":""},{"$f":"IFERROR(INDEX('Реестр инцидентов'!$A$4:$P$171,MATCH(INDEX($K$2:$K$24,ROUNDDOWN((ROW(E28)-3)/12,0)+1)&2,'Реестр инцидентов'!$Q$4:$Q$171,0),MATCH(D$1,'Реестр инцидентов'!$A$3:$Q$3,0)),\"\")","v":""},{"$f":"IFERROR(INDEX('Реестр инцидентов'!$A$4:$P$171,MATCH(INDEX($K$2:$K$24,ROUNDDOWN((ROW(F28)-3)/12,0)+1)&2,'Реестр инцидентов'!$Q$4:$Q$171,0),MATCH(E$1,'Реестр инцидентов'!$A$3:$Q$3,0)),\"\")","v":""},null,null,null,null,27,0,null,{"$f":"COUNTIF(A:A,K28)","v":0}]
[{"$f":"IFERROR(INDEX('Реестр инцидентов'!$A$4:$P$171,MATCH(INDEX($K$2:$K$24,ROUNDDOWN((ROW(B29)-3)/12,0)+1)&3,'Реестр инцидентов'!$Q$4:$Q$171,0),MATCH(A$1,'Реестр инцидентов'!$A$3:$Q$3,0)),\"\")","v":""},{"$f":"IFERROR(INDEX('Реестр инцидентов'!$A$4:$P$171,MATCH(INDEX($K$2:$K$24,ROUNDDOWN((ROW(C29)-3)/12,0)+1)&3,'Реестр инцидентов'!$Q$4:$Q$171,0),MATCH(B$1,'Реестр инцидентов'!$A$3:$Q$3,0)),\"\")","v":""},{"$f":"IFERROR(INDEX('Реестр инцидентов'!$A$4:$P$171,MATCH(INDEX($K$2:$K$24,ROUNDDOWN((ROW(D29)-3)/12,0)+1)&3,'Реестр инцидентов'!$Q$4:$Q$171,0),MATCH(C$1,'Реестр инцидентов'!$A$3:$Q$3,0)),\"\")","v":""},{"$f":"IFERROR(INDEX('Реестр инцидентов'!$A$4:$P$171,MATCH(INDEX($K$2:$K$24,ROUNDDOWN((ROW(E29)-3)/12,0)+1)&3,'Реестр инцидентов'!$Q$4:$Q$171,0),MATCH(D$1,'Реестр инцидентов'!$A$3:$Q$3,0)),\"\")","v":""},{"$f":"IFERROR(INDEX('Реестр инцидентов'!$A$4:$P$171,MATCH(INDEX($K$2:$K$24,ROUNDDOWN((ROW(F29)-3)/12,0)+1)&3,'Реестр инцидентов'!$Q$4:$Q$171,0),MATCH(E$1,'Реестр инцидентов'!$A$3:$Q$3,0)),\"\")","v":""},null,null,null,null,28,0,null,{"$f":"COUNTIF(A:A,K29)","v":0}]
[{"$f":"IFERROR(INDEX('Реестр инцидентов'!$A$4:$P$171,MATCH(INDEX($K$2:$K$24,ROUNDDOWN((ROW(B30)-3)/12,0)+1)&4,'Реестр инцидентов'!$Q$4:$Q$171,0),MATCH(A$1,'Реестр инцидентов'!$A$3:$Q$3,0)),\"\")","v":""},{"$f":"IFERROR(INDEX('Реестр инцидентов'!$A$4:$P$171,MATCH(INDEX($K$2:$K$24,ROUNDDOWN((ROW(C30)-3)/12,0)+1)&4,'Реестр инцидентов'!$Q$4:$Q$171,0),MATCH(B$1,'Реестр инцидентов'!$A$3:$Q$3,0)),\"\")","v":""},{"$f":"IFERROR(INDEX('Реестр инцидентов'!$A$4:$P$171,MATCH(INDEX($K$2:$K$24,ROUNDDOWN((ROW(D30)-3)/12,0)+1)&4,'Реестр инцидентов'!$Q$4:$Q$171,0),MATCH(C$1,'Реестр инцидентов'!$A$3:$Q$3,0)),\"\")","v":""},{"$f":"IFERROR(INDEX('Реестр инцидентов'!$A$4:$P$171,MATCH(INDEX($K$2:$K$24,ROUNDDOWN((ROW(E30)-3)/12,0)+1)&4,'Реестр инцидентов'!$Q$4:$Q$171,0),MATCH(D$1,'Реестр инцидентов'!$A$3:$Q$3,0)),\"\")","v":""},{"$f":"IFERROR(INDEX('Реестр инцидентов'!$A$4:$P$171,MATCH(INDEX($K$2:$K$24,ROUNDDOWN((ROW(F30)-3)/12,0)+1)&4,'Реестр инцидентов'!$Q$4:$Q$171,0),MATCH(E$1,'Реестр инцидентов'!$A$3:$Q$3,0)),\"\")","v":""},null,null,null,null,29,0,null,{"$f":"COUNTIF(A:A,K30)","v":0}]
[{"$f":"IFERROR(INDEX('Реестр инцидентов'!$A$4:$P$171,MATCH(INDEX($K$2:$K$24,ROUNDDOWN((ROW(B31)-3)/12,0)+1)&5,'Реестр инцидентов'!$Q$4:$Q$171,0),MATCH(A$1,'Реестр инцидентов'!$A$3:$Q$3,0)),\"\")","v":""},{"$f":"IFERROR(INDEX('Реестр инцидентов'!$A$4:$P$171,MATCH(INDEX($K$2:$K$24,ROUNDDOWN((ROW(C31)-3)/12,0)+1)&5,'Реестр инцидентов'!$Q$4:$Q$171,0),MATCH(B$1,'Реестр инцидентов'!$A$3:$Q$3,0)),\"\")","v":""},{"$f":"IFERROR(INDEX('Реестр инцидентов'!$A$4:$P$171,MATCH(INDEX($K$2:$K$24,ROUNDDOWN((ROW(D31)-3)/12,0)+1)&5,'Реестр инцидентов'!$Q$4:$Q$171,0),MATCH(C$1,'Реестр инцидентов'!$A$3:$Q$3,0)),\"\")","v":""},{"$f":"IFERROR(INDEX('Реестр инцидентов'!$A$4:$P$171,MATCH(INDEX($K$2:$K$24,ROUNDDOWN((ROW(E31)-3)/12,0)+1)&5,'Реестр инцидентов'!$Q$4:$Q$171,0),MATCH(D$1,'Реестр инцидентов'!$A$3:$Q$3,0)),\"\")","v":""},{"$f":"IFERROR(INDEX('Реестр инцидентов'!$A$4:$P$171,MATCH(INDEX($K$2:$K$24,ROUNDDOWN((ROW(F31)-3)/12,0)+1)&5,'Реестр инцидентов'!$Q$4:$Q$171,0),MATCH(E$1,'Реестр инцидентов'!$A$3:$Q$3,0)),\"\")","v":""},null,null,null,null,30,0,null,{"$f":"COUNTIF(A:A,K31)","v":0}]
[{"$f":"IFERROR(INDEX('Реестр инцидентов'!$A$4:$P$171,MATCH(INDEX($K$2:$K$24,ROUNDDOWN((ROW(B32)-3)/12,0)+1)&6,'Реестр инцидентов'!$Q$4:$Q$171,0),MATCH(A$1,'Реестр инцидентов'!$A$3:$Q$3,0)),\"\")","v":""},{"$f":"IFERROR(INDEX('Реестр инцидентов'!$A$4:$P$171,MATCH(INDEX($K$2:$K$24,ROUNDDOWN((ROW(C32)-3)/12,0)+1)&6,'Реестр инцидентов'!$Q$4:$Q$171,0),MATCH(B$1,'Реестр инцидентов'!$A$3:$Q$3,0)),\"\")","v":""},{"$f":"IFERROR(INDEX('Реестр инцидентов'!$A$4:$P$171,MATCH(INDEX($K$2:$K$24,ROUNDDOWN((ROW(D32)-3)/12,0)+1)&6,'Реестр инцидентов'!$Q$4:$Q$171,0),MATCH(C$1,'Реестр инцидентов'!$A$3:$Q$3,0)),\"\")","v":""},{"$f":"IFERROR(INDEX('Реестр инцидентов'!$A$4:$P$171,MATCH(INDEX($K$2:$K$24,ROUNDDOWN((ROW(E32)-3)/12,0)+1)&6,'Реестр инцидентов'!$Q$4:$Q$171,0),MATCH(D$1,'Реестр инцидентов'!$A$3:$Q$3,0)),\"\")","v":""},{"$f":"IFERROR(INDEX('Реестр инцидентов'!$A$4:$P$171,MATCH(INDEX($K$2:$K$24,ROUNDDOWN((ROW(F32)-3)/12,0)+1)&6,'Реестр инцидентов'!$Q$4:$Q$171,0),MATCH(E$1,'Реестр инцидентов'!$A$3:$Q$3,0)),\"\")","v":""},null,null,null,null,31,0,null,{"$f":"COUNTIF(A:A,K32)","v":0}]
[{"$f":"IFERROR(INDEX('Реестр инцидентов'!$A$4:$P$171,MATCH(INDEX($K$2:$K$24,ROUNDDOWN((ROW(B33)-3)/12,0)+1)&7,'Реестр инцидентов'!$Q$4:$Q$171,0),MATCH(A$1,'Реестр инцидентов'!$A$3:$Q$3,0)),\"\")","v":""},{"$f":"IFERROR(INDEX('Реестр инцидентов'!$A$4:$P$171,MATCH(INDEX($K$2:$K$24,ROUNDDOWN((ROW(C33)-3)/12,0)+1)&7,'Реестр инцидентов'!$Q$4:$Q$171,0),MATCH(B$1,'Реестр инцидентов'!$A$3:$Q$3,0)),\"\")","v":""},{"$f":"IFERROR(INDEX('Реестр инцидентов'!$A$4:$P$171,MATCH(INDEX($K$2:$K$24,ROUNDDOWN((ROW(D33)-3)/12,0)+1)&7,'Реестр инцидентов'!$Q$4:$Q$171,0),MATCH(C$1,'Реестр инцидентов'!$A$3:$Q$3,0)),\"\")","v":""},{"$f":"IFERROR(INDEX('Реестр инцидентов'!$A$4:$P$171,MATCH(INDEX($K$2:$K$24,ROUNDDOWN((ROW(E33)-3)/12,0)+1)&7,'Реестр инцидентов'!$Q$4:$Q$171,0),MATCH(D$1,'Реестр инцидентов'!$A$3:$Q$3,0)),\"\")","v":""},{"$f":"IFERROR(INDEX('Реестр инцидентов'!$A$4:$P$171,MATCH(INDEX($K$2:$K$24,ROUNDDOWN((ROW(F33)-3)/12,0)+1)&7,'Реестр инцидентов'!$Q$4:$Q$171,0),MATCH(E$1,'Реестр инцидентов'!$A$3:$Q$3,0)),\"\")","v":""},null,null,null,null,32,0,null,{"$f":"COUNTIF(A:A,K33)","v":0}]
[{"$f":"IFERROR(INDEX('Реестр инцидентов'!$A$4:$P$171,MATCH(INDEX($K$2:$K$24,ROUNDDOWN((ROW(B34)-3)/12,0)+1)&8,'Реестр инцидентов'!$Q$4:$Q$171,0),MATCH(A$1,'Реестр инцидентов'!$A$3:$Q$3,0)),\"\")","v":""},{"$f":"IFERROR(INDEX('Реестр инцидентов'!$A$4:$P$171,MATCH(INDEX($K$2:$K$24,ROUNDDOWN((ROW(C34)-3)/12,0)+1)&8,'Реестр инцидентов'!$Q$4:$Q$171,0),MATCH(B$1,'Реестр инцидентов'!$A$3:$Q$3,0)),\"\")","v":""},{"$f":"IFERROR(INDEX('Реестр инцидентов'!$A$4:$P$171,MATCH(INDEX($K$2:$K$24,ROUNDDOWN((ROW(D34)-3)/12,0)+1)&8,'Реестр инцидентов'!$Q$4:$Q$171,0),MATCH(C$1,'Реестр инцидентов'!$A$3:$Q$3,0)),\"\")","v":""},{"$f":"IFERROR(INDEX('Реестр инцидентов'!$A$4:$P$171,MATCH(INDEX($K$2:$K$24,ROUNDDOWN((ROW(E34)-3)/12,0)+1)&8,'Реестр инцидентов'!$Q$4:$Q$171,0),MATCH(D$1,'Реестр инцидентов'!$A$3:$Q$3,0)),\"\")","v":""},{"$f":"IFERROR(INDEX('Реестр инцидентов'!$A$4:$P$171,MATCH(INDEX($K$2:$K$24,ROUNDDOWN((ROW(F34)-3)/12,0)+1)&8,'Реестр инцидентов'!$Q$4:$Q$171,0),MATCH(E$1,'Реестр инцидентов'!$A$3:$Q$3,0)),\"\")","v":""},null,null,null,null,33,0,null,{"$f":"COUNTIF(A:A,K34)","v":0}]
[{"$f":"IFERROR(INDEX('Реестр инцидентов'!$A$4:$P$171,MATCH(INDEX($K$2:$K$24,ROUNDDOWN((ROW(B35)-3)/12,0)+1)&9,'Реестр инцидентов'!$Q$4:$Q$171,0),MATCH(A$1,'Реестр инцидентов'!$A$3:$Q$3,0)),\"\")","v":""},{"$f":"IFERROR(INDEX('Реестр инцидентов'!$A$4:$P$171,MATCH(INDEX($K$2:$K$24,ROUNDDOWN((ROW(C35)-3)/12,0)+1)&9,'Реестр инцидентов'!$Q$4:$Q$171,0),MATCH(B$1,'Реестр инцидентов'!$A$3:$Q$3,0)),\"\")","v":""},{"$f":"IFERROR(INDEX('Реестр инцидентов'!$A$4:$P$171,MATCH(INDEX($K$2:$K$24,ROUNDDOWN((ROW(D35)-3)/12,0)+1)&9,'Реестр инцидентов'!$Q$4:$Q$171,0),MATCH(C$1,'Реестр инцидентов'!$A$3:$Q$3,0)),\"\")","v":""},{"$f":"IFERROR(INDEX('Реестр инцидентов'!$A$4:$P$171,MATCH(INDEX($K$2:$K$24,ROUNDDOWN((ROW(E35)-3)/12,0)+1)&9,'Реестр инцидентов'!$Q$4:$Q$171,0),MATCH(D$1,'Реестр инцидентов'!$A$3:$Q$3,0)),\"\")","v":""},{"$f":"IFERROR(INDEX('Реестр инцидентов'!$A$4:$P$171,MATCH(INDEX($K$2:$K$24,ROUNDDOWN((ROW(F35)-3)/12,0)+1)&9,'Реестр инцидентов'!$Q$4:$Q$171,0),MATCH(E$1,'Реестр инцидентов'!$A$3:$Q$3,0)),\"\")","v":""},null,null,null,null,34,0,null,{"$f":"COUNTIF(A:A,K35)","v":0}]
[{"$f":"IFERROR(INDEX('Реестр инцидентов'!$A$4:$P$171,MATCH(INDEX($K$2:$K$24,ROUNDDOWN((ROW(B36)-3)/12,0)+1)&10,'Реестр инцидентов'!$Q$4:$Q$171,0),MATCH(A$1,'Реестр инцидентов'!$A$3:$Q$3,0)),\"\")","v":""},{"$f":"IFERROR(INDEX('Реестр инцидентов'!$A$4:$P$171,MATCH(INDEX($K$2:$K$24,ROUNDDOWN((ROW(C36)-3)/12,0)+1)&10,'Реестр инцидентов'!$Q$4:$Q$171,0),MATCH(B$1,'Реестр инцидентов'!$A$3:$Q$3,0)),\"\")","v":""},{"$f":"IFERROR(INDEX('Реестр инцидентов'!$A$4:$P$171,MATCH(INDEX($K$2:$K$24,ROUNDDOWN((ROW(D36)-3)/12,0)+1)&10,'Реестр инцидентов'!$Q$4:$Q$171,0),MATCH(C$1,'Реестр инцидентов'!$A$3:$Q$3,0)),\"\")","v":""},{"$f":"IFERROR(INDEX('Реестр инцидентов'!$A$4:$P$171,MATCH(INDEX($K$2:$K$24,ROUNDDOWN((ROW(E36)-3)/12,0)+1)&10,'Реестр инцидентов'!$Q$4:$Q$171,0),MATCH(D$1,'Реестр инцидентов'!$A$3:$Q$3,0)),\"\")","v":""},{"$f":"IFERROR(INDEX('Реестр инцидентов'!$A$4:$P$171,MATCH(INDEX($K$2:$K$24,ROUNDDOWN((ROW(F36)-3)/12,0)+1)&10,'Реестр инцидентов'!$Q$4:$Q$171,0),MATCH(E$1,'Реестр инцидентов'!$A$3:$Q$3,0)),\"\")","v":""},null,null,null,null,35,0,null,{"$f":"COUNTIF(A:A,K36)","v":0}]
[{"$f":"IFERROR(INDEX('Реестр инцидентов'!$A$4:$P$171,MATCH(INDEX($K$2:$K$24,ROUNDDOWN((ROW(B37)-3)/12,0)+1)&11,'Реестр инцидентов'!$Q$4:$Q$171,0),MATCH(A$1,'Реестр инцидентов'!$A$3:$Q$3,0)),\"\")","v":""},{"$f":"IFERROR(INDEX('Реестр инцидентов'!$A$4:$P$171,MATCH(INDEX($K$2:$K$24,ROUNDDOWN((ROW(C37)-3)/12,0)+1)&11,'Реестр инцидентов'!$Q$4:$Q$171,0),MATCH(B$1,'Реестр инцидентов'!$A$3:$Q$3,0)),\"\")","v":""},{"$f":"IFERROR(INDEX('Реестр инцидентов'!$A$4:$P$171,MATCH(INDEX($K$2:$K$24,ROUNDDOWN((ROW(D37)-3)/12,0)+1)&11,'Реестр инцидентов'!$Q$4:$Q$171,0),MATCH(C$1,'Реестр инцидентов'!$A$3:$Q$3,0)),\"\")","v":""},{"$f":"IFERROR(INDEX('Реестр инцидентов'!$A$4:$P$171,MATCH(INDEX($K$2:$K$24,ROUNDDOWN((ROW(E37)-3)/12,0)+1)&11,'Реестр инцидентов'!$Q$4:$Q$171,0),MATCH(D$1,'Реестр инцидентов'!$A$3:$Q$3,0)),\"\")","v":""},{"$f":"IFERROR(INDEX('Реестр инцидентов'!$A$4:$P$171,MATCH(INDEX($K$2:$K$24,ROUNDDOWN((ROW(F37)-3)/12,0)+1)&11,'Реестр инцидентов'!$Q$4:$Q$171,0),MATCH(E$1,'Реестр инцидентов'!$A$3:$Q$3,0)),\"\")","v":""},null,null,null,null,36,0,null,{"$f":"COUNTIF(A:A,K37)","v":0}]
[{"$f":"IFERROR(INDEX($L$2:$L$23,ROUNDDOWN((ROW(B39)-3)/12,0)+1),\"\")","v":"Василевский Алексей Вадимович"},null,null,null,null,null,null,null,null,37,0,null,{"$f":"COUNTIF(A:A,K38)","v":0}]
[{"$f":"IFERROR(INDEX('Реестр инцидентов'!$A$4:$P$171,MATCH(INDEX($K$2:$K$24,ROUNDDOWN((ROW(B39)-3)/12,0)+1)&1,'Реестр инцидентов'!$Q$4:$Q$171,0),MATCH(A$1,'Реестр инцидентов'!$A$3:$Q$3,0)),\"\")","v":""},{"$f":"IFERROR(INDEX('Реестр инцидентов'!$A$4:$P$171,MATCH(INDEX($K$2:$K$24,ROUNDDOWN((ROW(C39)-3)/12,0)+1)&1,'Реестр инцидентов'!$Q$4:$Q$171,0),MATCH(B$1,'Реестр инцидентов'!$A$3:$Q$3,0)),\"\")","v":""},{"$f":"IFERROR(INDEX('Реестр инцидентов'!$A$4:$P$171,MATCH(INDEX($K$2:$K$24,ROUNDDOWN((ROW(D39)-3)/12,0)+1)&1,'Реестр инцидентов'!$Q$4:$Q$171,0),MATCH(C$1,'Реестр инцидентов'!$A$3:$Q$3,0)),\"\")","v":""},{"$f":"IFERROR(INDEX('Реестр инцидентов'!$A$4:$P$171,MATCH(INDEX($K$2:$K$24,ROUNDDOWN((ROW(E39)-3)/12,0)+1)&1,'Реестр инцидентов'!$Q$4:$Q$171,0),MATCH(D$1,'Реестр инцидентов'!$A$3:$Q$3,0)),\"\")","v":""},{"$f":"IFERROR(INDEX('Реестр инцидентов'!$A$4:$P$171,MATCH(INDEX($K$2:$K$24,ROUNDDOWN((ROW(F39)-3)/12,0)+1)&1,'Реестр инцидентов'!$Q$4:$Q$171,0),MATCH(E$1,'Реестр инцидентов'!$A$3:$Q$3,0)),\"\")","v":""},null,null,null,null,38,0,null,{"$f":"COUNTIF(A:A,K39)","v":0}]
[{"$f":"IFERROR(INDEX('Реестр инцидентов'!$A$4:$P$171,MATCH(INDEX($K$2:$K$24,ROUNDDOWN((ROW(B40)-3)/12,0)+1)&2,'Реестр инцидентов'!$Q$4:$Q$171,0),MATCH(A$1,'Реестр инцидентов'!$A$3:$Q$3,0)),\"\")","v":""},{"$f":"IFERROR(INDEX('Реестр инцидентов'!$A$4:$P$171,MATCH(INDEX($K$2:$K$24,ROUNDDOWN((ROW(C40)-3)/12,0)+1)&2,'Реестр инцидентов'!$Q$4:$Q$171,0),MATCH(B$1,'Реестр инцидентов'!$A$3:$Q$3,0)),\"\")","v":""},{"$f":"IFERROR(INDEX('Реестр инцидентов'!$A$4:$P$171,MATCH(INDEX($K$2:$K$24,ROUNDDOWN((ROW(D40)-3)/12,0)+1)&2,'Реестр инцидентов'!$Q$4:$Q$171,0),MATCH(C$1,'Реестр инцидентов'!$A$3:$Q$3,0)),\"\")","v":""},{"$f":"IFERROR(INDEX('Реестр инцидентов'!$A$4:$P$171,MATCH(INDEX($K$2:$K$24,ROUNDDOWN((ROW(E40)-3)/12,0)+1)&2,'Реестр инцидентов'!$Q$4:$Q$171,0),MATCH(D$1,'Реестр инцидентов'!$A$3:$Q$3,0)),\"\")","v":""},{"$f":"IFERROR(INDEX('Реестр инцидентов'!$A$4:$P$171,MATCH(INDEX($K$2:$K$24,ROUNDDOWN((ROW(F40)-3)/12,0)+1)&2,'Реестр инцидентов'!$Q$4:$Q$171,0),MATCH(E$1,'Реестр инцидентов'!$A$3:$Q$3,0)),\"\")","v":""},null,null,null,null,39,0,null,{"$f":"COUNTIF(A:A,K40)","v":0}]
[{"$f":"IFERROR(INDEX('Реестр инцидентов'!$A$4:$P$171,MATCH(INDEX($K$2:$K$24,ROUNDDOWN((ROW(B41)-3)/12,0)+1)&3,'Реестр инцидентов'!$Q$4:$Q$171,0),MATCH(A$1,'Реестр инцидентов'!$A$3:$Q$3,0)),\"\")","v":""},{"$f":"IFERROR(INDEX('Реестр инцидентов'!$A$4:$P$171,MATCH(INDEX($K$2:$K$24,ROUNDDOWN((ROW(C41)-3)/12,0)+1)&3,'Реестр инцидентов'!$Q$4:$Q$171,0),MATCH(B$1,'Реестр инцидентов'!$A$3:$Q$3,0)),\"\")","v":""},{"$f":"IFERROR(INDEX('Реестр инцидентов'!$A$4:$P$171,MATCH(INDEX($K$2:$K$24,ROUNDDOWN((ROW(D41)-3)/12,0)+1)&3,'Реестр инцидентов'!$Q$4:$Q$171,0),MATCH(C$1,'Реестр инцидентов'!$A$3:$Q$3,0)),\"\")","v":""},{"$f":"IFERROR(INDEX('Реестр инцидентов'!$A$4:$P$171,MATCH(INDEX($K$2:$K$24,ROUNDDOWN((ROW(E41)-3)/12,0)+1)&3,'Реестр инцидентов'!$Q$4:$Q$171,0),MATCH(D$1,'Реестр инцидентов'!$A$3:$Q$3,0)),\"\")","v":""},{"$f":"IFERROR(INDEX('Реестр инцидентов'!$A$4:$P$171,MATCH(INDEX($K$2:$K$24,ROUNDDOWN((ROW(F41)-3)/12,0)+1)&3,'Реестр инцидентов'!$Q$4:$Q$171,0),MATCH(E$1,'Реестр инцидентов'!$A$3:$Q$3,0)),\"\")","v":""},null,null,null,null,40,0,null,{"$f":"COUNTIF(A:A,K41)","v":0}]
[{"$f":"IFERROR(INDEX('Реестр инцидентов'!$A$4:$P$171,MATCH(INDEX($K$2:$K$24,ROUNDDOWN((ROW(B42)-3)/12,0)+1)&4,'Реестр инцидентов'!$Q$4:$Q$171,0),MATCH(A$1,'Реестр инцидентов'!$A$3:$Q$3,0)),\"\")","v":""},{"$f":"IFERROR(INDEX('Реестр инцидентов'!$A$4:$P$171,MATCH(INDEX($K$2:$K$24,ROUNDDOWN((ROW(C42)-3)/12,0)+1)&4,'Реестр инцидентов'!$Q$4:$Q$171,0),MATCH(B$1,'Реестр инцидентов'!$A$3:$Q$3,0)),\"\")","v":""},{"$f":"IFERROR(INDEX('Реестр инцидентов'!$A$4:$P$171,MATCH(INDEX($K$2:$K$24,ROUNDDOWN((ROW(D42)-3)/12,0)+1)&4,'Реестр инцидентов'!$Q$4:$Q$171,0),MATCH(C$1,'Реестр инцидентов'!$A$3:$Q$3,0)),\"\")","v":""},{"$f":"IFERROR(INDEX('Реестр инцидентов'!$A$4:$P$171,MATCH(INDEX($K$2:$K$24,ROUNDDOWN((ROW(E42)-3)/12,0)+1)&4,'Реестр инцидентов'!$Q$4:$Q$171,0),MATCH(D$1,'Реестр инцидентов'!$A$3:$Q$3,0)),\"\")","v":""},{"$f":"IFERROR(INDEX('Реестр инцидентов'!$A$4:$P$171,MATCH(INDEX($K$2:$K$24,ROUNDDOWN((ROW(F42)-3)/12,0)+1)&4,'Реестр инцидентов'!$Q$4:$Q$171,0),MATCH(E$1,'Реестр инцидентов'!$A$3:$Q$3,0)),\"\")","v":""},null,null,null,null,null,null,"Итого",{"$f":"SUM(M2:M41)","v":18}]
[{"$f":"IFERROR(INDEX('Реестр инцидентов'!$A$4:$P$171,MATCH(INDEX($K$2:$K$24,ROUNDDOWN((ROW(B43)-3)/12,0)+1)&5,'Реестр инцидентов'!$Q$4:$Q$171,0),MATCH(A$1,'Реестр инцидентов'!$A$3:$Q$3,0)),\"\")","v":""},{"$f":"IFERROR(INDEX('Реестр инцидентов'!$A$4:$P$171,MATCH(INDEX($K$2:$K$24,ROUNDDOWN((ROW(C43)-3)/12,0)+1)&5,'Реестр инцидентов'!$Q$4:$Q$171,0),MATCH(B$1,'Реестр инцидентов'!$A$3:$Q$3,0)),\"\")","v":""},{"$f":"IFERROR(INDEX('Реестр инцидентов'!$A$4:$P$171,MATCH(INDEX($K$2:$K$24,ROUNDDOWN((ROW(D43)-3)/12,0)+1)&5,'Реестр инцидентов'!$Q$4:$Q$171,0),MATCH(C$1,'Реестр инцидентов'!$A$3:$Q$3,0)),\"\")","v":""},{"$f":"IFERROR(INDEX('Реестр инцидентов'!$A$4:$P$171,MATCH(INDEX($K$2:$K$24,ROUNDDOWN((ROW(E43)-3)/12,0)+1)&5,'Реестр инцидентов'!$Q$4:$Q$171,0),MATCH(D$1,'Реестр инцидентов'!$A$3:$Q$3,0)),\"\")","v":""},{"$f":"IFERROR(INDEX('Реестр инцидентов'!$A$4:$P$171,MATCH(INDEX($K$2:$K$24,ROUNDDOWN((ROW(F43)-3)/12,0)+1)&5,'Реестр инцидентов'!$Q$4:$Q$171,0),MATCH(E$1,'Реестр инцидентов'!$A$3:$Q$3,0)),\"\")","v":""}]
[{"$f":"IFERROR(INDEX('Реестр инцидентов'!$A$4:$P$171,MATCH(INDEX($K$2:$K$24,ROUNDDOWN((ROW(B44)-3)/12,0)+1)&6,'Реестр инцидентов'!$Q$4:$Q$171,0),MATCH(A$1,'Реестр инцидентов'!$A$3:$Q$3,0)),\"\")","v":""},{"$f":"IFERROR(INDEX('Реестр инцидентов'!$A$4:$P$171,MATCH(INDEX($K$2:$K$24,ROUNDDOWN((ROW(C44)-3)/12,0)+1)&6,'Реестр инцидентов'!$Q$4:$Q$171,0),MATCH(B$1,'Реестр инцидентов'!$A$3:$Q$3,0)),\"\")","v":""},{"$f":"IFERROR(INDEX('Реестр инцидентов'!$A$4:$P$171,MATCH(INDEX($K$2:$K$24,ROUNDDOWN((ROW(D44)-3)/12,0)+1)&6,'Реестр инцидентов'!$Q$4:$Q$171,0),MATCH(C$1,'Реестр инцидентов'!$A$3:$Q$3,0)),\"\")","v":""},{"$f":"IFERROR(INDEX('Реестр инцидентов'!$A$4:$P$171,MATCH(INDEX($K$2:$K$24,ROUNDDOWN((ROW(E44)-3)/12,0)+1)&6,'Реестр инцидентов'!$Q$4:$Q$171,0),MATCH(D$1,'Реестр инцидентов'!$A$3:$Q$3,0)),\"\")","v":""},{"$f":"IFERROR(INDEX('Реестр инцидентов'!$A$4:$P$171,MATCH(INDEX($K$2:$K$24,ROUNDDOWN((ROW(F44)-3)/12,0)+1)&6,'Реестр инцидентов'!$Q$4:$Q$171,0),MATCH(E$1,'Реестр инцидентов'!$A$3:$Q$3,0)),\"\")","v":""}]
[{"$f":"IFERROR(INDEX('Реестр инцидентов'!$A$4:$P$171,MATCH(INDEX($K$2:$K$24,ROUNDDOWN((ROW(B45)-3)/12,0)+1)&7,'Реестр инцидентов'!$Q$4:$Q$171,0),MATCH(A$1,'Реестр инцидентов'!$A$3:$Q$3,0)),\"\")","v":""},{"$f":"IFERROR(INDEX('Реестр инцидентов'!$A$4:$P$171,MATCH(INDEX($K$2:$K$24,ROUNDDOWN((ROW(C45)-3)/12,0)+1)&7,'Реестр инцидентов'!$Q$4:$Q$171,0),MATCH(B$1,'Реестр инцидентов'!$A$3:$Q$3,0)),\"\")","v":""},{"$f":"IFERROR(INDEX('Реестр инцидентов'!$A$4:$P$171,MATCH(INDEX($K$2:$K$24,ROUNDDOWN((ROW(D45)-3)/12,0)+1)&7,'Реестр инцидентов'!$Q$4:$Q$171,0),MATCH(C$1,'Реестр инцидентов'!$A$3:$Q$3,0)),\"\")","v":""},{"$f":"IFERROR(INDEX('Реестр инцидентов'!$A$4:$P$171,MATCH(INDEX($K$2:$K$24,ROUNDDOWN((ROW(E45)-3)/12,0)+1)&7,'Реестр инцидентов'!$Q$4:$Q$171,0),MATCH(D$1,'Реестр инцидентов'!$A$3:$Q$3,0)),\"\")","v":""},{"$f":"IFERROR(INDEX('Реестр инцидентов'!$A$4:$P$171,MATCH(INDEX($K$2:$K$24,ROUNDDOWN((ROW(F45)-3)/12,0)+1)&7,'Реестр инцидентов'!$Q$4:$Q$171,0),MATCH(E$1,'Реестр инцидентов'!$A$3:$Q$3,0)),\"\")","v":""}]
[{"$f":"IFERROR(INDEX('Реестр инцидентов'!$A$4:$P$171,MATCH(INDEX($K$2:$K$24,ROUNDDOWN((ROW(B46)-3)/12,0)+1)&8,'Реестр инцидентов'!$Q$4:$Q$171,0),MATCH(A$1,'Реестр инцидентов'!$A$3:$Q$3,0)),\"\")","v":""},{"$f":"IFERROR(INDEX('Реестр инцидентов'!$A$4:$P$171,MATCH(INDEX($K$2:$K$24,ROUNDDOWN((ROW(C46)-3)/12,0)+1)&8,'Реестр инцидентов'!$Q$4:$Q$171,0),MATCH(B$1,'Реестр инцидентов'!$A$3:$Q$3,0)),\"\")","v":""},{"$f":"IFERROR(INDEX('Реестр инцидентов'!$A$4:$P$171,MATCH(INDEX($K$2:$K$24,ROUNDDOWN((ROW(D46)-3)/12,0)+1)&8,'Реестр инцидентов'!$Q$4:$Q$171,0),MATCH(C$1,'Реестр инцидентов'!$A$3:$Q$3,0)),\"\")","v":""},{"$f":"IFERROR(INDEX('Реестр инцидентов'!$A$4:$P$171,MATCH(INDEX($K$2:$K$24,ROUNDDOWN((ROW(E46)-3)/12,0)+1)&8,'Реестр инцидентов'!$Q$4:$Q$171,0),MATCH(D$1,'Реестр инцидентов'!$A$3:$Q$3,0)),\"\")","v":""},{"$f":"IFERROR(INDEX('Реестр инцидентов'!$A$4:$P$171,MATCH(INDEX($K$2:$K$24,ROUNDDOWN((ROW(F46)-3)/12,0)+1)&8,'Реестр инцидентов'!$Q$4:$Q$171,0),MATCH(E$1,'Реестр инцидентов'!$A$3:$Q$3,0)),\"\")","v":""}]
[{"$f":"IFERROR(INDEX('Реестр инцидентов'!$A$4:$P$171,MATCH(INDEX($K$2:$K$24,ROUNDDOWN((ROW(B47)-3)/12,0)+1)&9,'Реестр инцидентов'!$Q$4:$Q$171,0),MATCH(A$1,'Реестр инцидентов'!$A$3:$Q$3,0)),\"\")","v":""},{"$f":"IFERROR(INDEX('Реестр инцидентов'!$A$4:$P$171,MATCH(INDEX($K$2:$K$24,ROUNDDOWN((ROW(C47)-3)/12,0)+1)&9,'Реестр инцидентов'!$Q$4:$Q$171,0),MATCH(B$1,'Реестр инцидентов'!$A$3:$Q$3,0)),\"\")","v":""},{"$f":"IFERROR(INDEX('Реестр инцидентов'!$A$4:$P$171,MATCH(INDEX($K$2:$K$24,ROUNDDOWN((ROW(D47)-3)/12,0)+1)&9,'Реестр инцидентов'!$Q$4:$Q$171,0),MATCH(C$1,'Реестр инцидентов'!$A$3:$Q$3,0)),\"\")","v":""},{"$f":"IFERROR(INDEX('Реестр инцидентов'!$A$4:$P$171,MATCH(INDEX($K$2:$K$24,ROUNDDOWN((ROW(E47)-3)/12,0)+1)&9,'Реестр инцидентов'!$Q$4:$Q$171,0),MATCH(D$1,'Реестр инцидентов'!$A$3:$Q$3,0)),\"\")","v":""},{"$f":"IFERROR(INDEX('Реестр инцидентов'!$A$4:$P$171,MATCH(INDEX($K$2:$K$24,ROUNDDOWN((ROW(F47)-3)/12,0)+1)&9,'Реестр инцидентов'!$Q$4:$Q$171,0),MATCH(E$1,'Реестр инцидентов'!$A$3:$Q$3,0)),\"\")","v":""}]
[{"$f":"IFERROR(INDEX('Реестр инцидентов'!$A$4:$P$171,MATCH(INDEX($K$2:$K$24,ROUNDDOWN((ROW(B48)-3)/12,0)+1)&10,'Реестр инцидентов'!$Q$4:$Q$171,0),MATCH(A$1,'Реестр инцидентов'!$A$3:$Q$3,0)),\"\")","v":""},{"$f":"IFERROR(INDEX('Реестр инцидентов'!$A$4:$P$171,MATCH(INDEX($K$2:$K$24,ROUNDDOWN((ROW(C48)-3)/12,0)+1)&10,'Реестр инцидентов'!$Q$4:$Q$171,0),MATCH(B$1,'Реестр инцидентов'!$A$3:$Q$3,0)),\"\")","v":""},{"$f":"IFERROR(INDEX('Реестр инцидентов'!$A$4:$P$171,MATCH(INDEX($K$2:$K$24,ROUNDDOWN((ROW(D48)-3)/12,0)+1)&10,'Реестр инцидентов'!$Q$4:$Q$171,0),MATCH(C$1,'Реестр инцидентов'!$A$3:$Q$3,0)),\"\")","v":""},{"$f":"IFERROR(INDEX('Реестр инцидентов'!$A$4:$P$171,MATCH(INDEX($K$2:$K$24,ROUNDDOWN((ROW(E48)-3)/12,0)+1)&10,'Реестр инцидентов'!$Q$4:$Q$171,0),MATCH(D$1,'Реестр инцидентов'!$A$3:$Q$3,0)),\"\")","v":""},{"$f":"IFERROR(INDEX('Реестр инцидентов'!$A$4:$P$171,MATCH(INDEX($K$2:$K$24,ROUNDDOWN((ROW(F48)-3)/12,0)+1)&10,'Реестр инцидентов'!$Q$4:$Q$171,0),MATCH(E$1,'Реестр инцидентов'!$A$3:$Q$3,0)),\"\")","v":""}]
[{"$f":"IFERROR(INDEX('Реестр инцидентов'!$A$4:$P$171,MATCH(INDEX($K$2:$K$24,ROUNDDOWN((ROW(B49)-3)/12,0)+1)&11,'Реестр инцидентов'!$Q$4:$Q$171,0),MATCH(A$1,'Реестр инцидентов'!$A$3:$Q$3,0)),\"\")","v":""},{"$f":"IFERROR(INDEX('Реестр инцидентов'!$A$4:$P$171,MATCH(INDEX($K$2:$K$24,ROUNDDOWN((ROW(C49)-3)/12,0)+1)&11,'Реестр инцидентов'!$Q$4:$Q$171,0),MATCH(B$1,'Реестр инцидентов'!$A$3:$Q$3,0)),\"\")","v":""},{"$f":"IFERROR(INDEX('Реестр инцидентов'!$A$4:$P$171,MATCH(INDEX($K$2:$K$24,ROUNDDOWN((ROW(D49)-3)/12,0)+1)&11,'Реестр инцидентов'!$Q$4:$Q$171,0),MATCH(C$1,'Реестр инцидентов'!$A$3:$Q$3,0)),\"\")","v":""},{"$f":"IFERROR(INDEX('Реестр инцидентов'!$A$4:$P$171,MATCH(INDEX($K$2:$K$24,ROUNDDOWN((ROW(E49)-3)/12,0)+1)&11,'Реестр инцидентов'!$Q$4:$Q$171,0),MATCH(D$1,'Реестр инцидентов'!$A$3:$Q$3,0)),\"\")","v":""},{"$f":"IFERROR(INDEX('Реестр инцидентов'!$A$4:$P$171,MATCH(INDEX($K$2:$K$24,ROUNDDOWN((ROW(F49)-3)/12,0)+1)&11,'Реестр инцидентов'!$Q$4:$Q$171,0),MATCH(E$1,'Реестр инцидентов'!$A$3:$Q$3,0)),\"\")","v":""}]
[{"$f":"IFERROR(INDEX($L$2:$L$23,ROUNDDOWN((ROW(B51)-3)/12,0)+1),\"\")","v":"Галузо Дмитрий Игоревич"}]
[{"$f":"IFERROR(INDEX('Реестр инцидентов'!$A$4:$P$171,MATCH(INDEX($K$2:$K$24,ROUNDDOWN((ROW(B51)-3)/12,0)+1)&1,'Реестр инцидентов'!$Q$4:$Q$171,0),MATCH(A$1,'Реестр инцидентов'!$A$3:$Q$3,0)),\"\")","v":"Дмитрий Галузо"},{"$f":"IFERROR(INDEX('Реестр инцидентов'!$A$4:$P$171,MATCH(INDEX($K$2:$K$24,ROUNDDOWN((ROW(C51)-3)/12,0)+1)&1,'Реестр инцидентов'!$Q$4:$Q$171,0),MATCH(B$1,'Реестр инцидентов'!$A$3:$Q$3,0)),\"\")","v":"150706/1705.1"},{"$f":"IFERROR(INDEX('Реестр инцидентов'!$A$4:$P$171,MATCH(INDEX($K$2:$K$24,ROUNDDOWN((ROW(D51)-3)/12,0)+1)&1,'Реестр инцидентов'!$Q$4:$Q$171,0),MATCH(C$1,'Реестр инцидентов'!$A$3:$Q$3,0)),\"\")","v":"2015-07-06T14:41:15"},{"$f":"IFERROR(INDEX('Реестр инцидентов'!$A$4:$P$171,MATCH(INDEX($K$2:$K$24,ROUNDDOWN((ROW(E51)-3)/12,0)+1)&1,'Реестр инцидентов'!$Q$4:$Q$171,0),MATCH(D$1,'Реестр инцидентов'!$A$3:$Q$3,0)),\"\")","v":"Разрешено"},{"$f":"IFERROR(INDEX('Реестр инцидентов'!$A$4:$P$171,MATCH(INDEX($K$2:$K$24,ROUNDDOWN((ROW(F51)-3)/12,0)+1)&1,'Реестр инцидентов'!$Q$4:$Q$171,0),MATCH(E$1,'Реестр инцидентов'!$A$3:$Q$3,0)),\"\")","v":"Отсутствие файлов"}]
[{"$f":"IFERROR(INDEX('Реестр инцидентов'!$A$4:$P$171,MATCH(INDEX($K$2:$K$24,ROUNDDOWN((ROW(B52)-3)/12,0)+1)&2,'Реестр инцидентов'!$Q$4:$Q$171,0),MATCH(A$1,'Реестр инцидентов'!$A$3:$Q$3,0)),\"\")","v":""},{"$f":"IFERROR(INDEX('Реестр инцидентов'!$A$4:$P$171,MATCH(INDEX($K$2:$K$24,ROUNDDOWN((ROW(C52)-3)/12,0)+1)&2,'Реестр инцидентов'!$Q$4:$Q$171,0),MATCH(B$1,'Реестр инцидентов'!$A$3:$Q$3,0)),\"\")","v":""},{"$f":"IFERROR(INDEX('Реестр инцидентов'!$A$4:$P$171,MATCH(INDEX($K$2:$K$24,ROUNDDOWN((ROW(D52)-3)/12,0)+1)&2,'Реестр инцидентов'!$Q$4:$Q$171,0),MATCH(C$1,'Реестр инцидентов'!$A$3:$Q$3,0)),\"\")","v":""},{"$f":"IFERROR(INDEX('Реестр инцидентов'!$A$4:$P$171,MATCH(INDEX($K$2:$K$24,ROUNDDOWN((ROW(E52)-3)/12,0)+1)&2,'Реестр инцидентов'!$Q$4:$Q$171,0),MATCH(D$1,'Реестр инцидентов'!$A$3:$Q$3,0)),\"\")","v":""},{"$f":"IFERROR(INDEX('Реестр инцидентов'!$A$4:$P$171,MATCH(INDEX($K$2:$K$24,ROUNDDOWN((ROW(F52)-3)/12,0)+1)&2,'Реестр инцидентов'!$Q$4:$Q$171,0),MATCH(E$1,'Реестр инцидентов'!$A$3:$Q$3,0)),\"\")","v":""}]
[{"$f":"IFERROR(INDEX('Реестр инцидентов'!$A$4:$P$171,MATCH(INDEX($K$2:$K$24,ROUNDDOWN((ROW(B53)-3)/12,0)+1)&3,'Реестр инцидентов'!$Q$4:$Q$171,0),MATCH(A$1,'Реестр инцидентов'!$A$3:$Q$3,0)),\"\")","v":""},{"$f":"IFERROR(INDEX('Реестр инцидентов'!$A$4:$P$171,MATCH(INDEX($K$2:$K$24,ROUNDDOWN((ROW(C53)-3)/12,0)+1)&3,'Реестр инцидентов'!$Q$4:$Q$171,0),MATCH(B$1,'Реестр инцидентов'!$A$3:$Q$3,0)),\"\")","v":""},{"$f":"IFERROR(INDEX('Реестр инцидентов'!$A$4:$P$171,MATCH(INDEX($K$2:$K$24,ROUNDDOWN((ROW(D53)-3)/12,0)+1)&3,'Реестр инцидентов'!$Q$4:$Q$171,0),MATCH(C$1,'Реестр инцидентов'!$A$3:$Q$3,0)),\"\")","v":""},{"$f":"IFERROR(INDEX('Реестр инцидентов'!$A$4:$P$171,MATCH(INDEX($K$2:$K$24,ROUNDDOWN((ROW(E53)-3)/12,0)+1)&3,'Реестр инцидентов'!$Q$4:$Q$171,0),MATCH(D$1,'Реестр инцидентов'!$A$3:$Q$3,0)),\"\")","v":""},{"$f":"IFERROR(INDEX('Реестр инцидентов'!$A$4:$P$171,MATCH(INDEX($K$2:$K$24,ROUNDDOWN((ROW(F53)-3)/12,0)+1)&3,'Реестр инцидентов'!$Q$4:$Q$171,0),MATCH(E$1,'Реестр инцидентов'!$A$3:$Q$3,0)),\"\")","v":""}]
[{"$f":"IFERROR(INDEX('Реестр инцидентов'!$A$4:$P$171,MATCH(INDEX($K$2:$K$24,ROUNDDOWN((ROW(B54)-3)/12,0)+1)&4,'Реестр инцидентов'!$Q$4:$Q$171,0),MATCH(A$1,'Реестр инцидентов'!$A$3:$Q$3,0)),\"\")","v":""},{"$f":"IFERROR(INDEX('Реестр инцидентов'!$A$4:$P$171,MATCH(INDEX($K$2:$K$24,ROUNDDOWN((ROW(C54)-3)/12,0)+1)&4,'Реестр инцидентов'!$Q$4:$Q$171,0),MATCH(B$1,'Реестр инцидентов'!$A$3:$Q$3,0)),\"\")","v":""},{"$f":"IFERROR(INDEX('Реестр инцидентов'!$A$4:$P$171,MATCH(INDEX($K$2:$K$24,ROUNDDOWN((ROW(D54)-3)/12,0)+1)&4,'Реестр инцидентов'!$Q$4:$Q$171,0),MATCH(C$1,'Реестр инцидентов'!$A$3:$Q$3,0)),\"\")","v":""},{"$f":"IFERROR(INDEX('Реестр инцидентов'!$A$4:$P$171,MATCH(INDEX($K$2:$K$24,ROUNDDOWN((ROW(E54)-3)/12,0)+1)&4,'Реестр инцидентов'!$Q$4:$Q$171,0),MATCH(D$1,'Реестр инцидентов'!$A$3:$Q$3,0)),\"\")","v":""},{"$f":"IFERROR(INDEX('Реестр инцидентов'!$A$4:$P$171,MATCH(INDEX($K$2:$K$24,ROUNDDOWN((ROW(F54)-3)/12,0)+1)&4,'Реестр инцидентов'!$Q$4:$Q$171,0),MATCH(E$1,'Реестр инцидентов'!$A$3:$Q$3,0)),\"\")","v":""}]
[{"$f":"IFERROR(INDEX('Реестр инцидентов'!$A$4:$P$171,MATCH(INDEX($K$2:$K$24,ROUNDDOWN((ROW(B55)-3)/12,0)+1)&5,'Реестр инцидентов'!$Q$4:$Q$171,0),MATCH(A$1,'Реестр инцидентов'!$A$3:$Q$3,0)),\"\")","v":""},{"$f":"IFERROR(INDEX('Реестр инцидентов'!$A$4:$P$171,MATCH(INDEX($K$2:$K$24,ROUNDDOWN((ROW(C55)-3)/12,0)+1)&5,'Реестр инцидентов'!$Q$4:$Q$171,0),MATCH(B$1,'Реестр инцидентов'!$A$3:$Q$3,0)),\"\")","v":""},{"$f":"IFERROR(INDEX('Реестр инцидентов'!$A$4:$P$171,MATCH(INDEX($K$2:$K$24,ROUNDDOWN((ROW(D55)-3)/12,0)+1)&5,'Реестр инцидентов'!$Q$4:$Q$171,0),MATCH(C$1,'Реестр инцидентов'!$A$3:$Q$3,0)),\"\")","v":""},{"$f":"IFERROR(INDEX('Реестр инцидентов'!$A$4:$P$171,MATCH(INDEX($K$2:$K$24,ROUNDDOWN((ROW(E55)-3)/12,0)+1)&5,'Реестр инцидентов'!$Q$4:$Q$171,0),MATCH(D$1,'Реестр инцидентов'!$A$3:$Q$3,0)),\"\")","v":""},{"$f":"IFERROR(INDEX('Реестр инцидентов'!$A$4:$P$171,MATCH(INDEX($K$2:$K$24,ROUNDDOWN((ROW(F55)-3)/12,0)+1)&5,'Реестр инцидентов'!$Q$4:$Q$171,0),MATCH(E$1,'Реестр инцидентов'!$A$3:$Q$3,0)),\"\")","v":""}]
[{"$f":"IFERROR(INDEX('Реестр инцидентов'!$A$4:$P$171,MATCH(INDEX($K$2:$K$24,ROUNDDOWN((ROW(B56)-3)/12,0)+1)&6,'Реестр инцидентов'!$Q$4:$Q$171,0),MATCH(A$1,'Реестр инцидентов'!$A$3:$Q$3,0)),\"\")","v":""},{"$f":"IFERROR(INDEX('Реестр инцидентов'!$A$4:$P$171,MATCH(INDEX($K$2:$K$24,ROUNDDOWN((ROW(C56)-3)/12,0)+1)&6,'Реестр инцидентов'!$Q$4:$Q$171,0),MATCH(B$1,'Реестр инцидентов'!$A$3:$Q$3,0)),\"\")","v":""},{"$f":"IFERROR(INDEX('Реестр инцидентов'!$A$4:$P$171,MATCH(INDEX($K$2:$K$24,ROUNDDOWN((ROW(D56)-3)/12,0)+1)&6,'Реестр инцидентов'!$Q$4:$Q$171,0),MATCH(C$1,'Реестр инцидентов'!$A$3:$Q$3,0)),\"\")","v":""},{"$f":"IFERROR(INDEX('Реестр инцидентов'!$A$4:$P$171,MATCH(INDEX($K$2:$K$24,ROUNDDOWN((ROW(E56)-3)/12,0)+1)&6,'Реестр инцидентов'!$Q$4:$Q$171,0),MATCH(D$1,'Реестр инцидентов'!$A$3:$Q$3,0)),\"\")","v":""},{"$f":"IFERROR(INDEX('Реестр инцидентов'!$A$4:$P$171,MATCH(INDEX($K$2:$K$24,ROUNDDOWN((ROW(F56)-3)/12,0)+1)&6,'Реестр инцидентов'!$Q$4:$Q$171,0),MATCH(E$1,'Реестр инцидентов'!$A$3:$Q$3,0)),\"\")","v":""}]
[{"$f":"IFERROR(INDEX('Реестр инцидентов'!$A$4:$P$171,MATCH(INDEX($K$2:$K$24,ROUNDDOWN((ROW(B57)-3)/12,0)+1)&7,'Реестр инцидентов'!$Q$4:$Q$171,0),MATCH(A$1,'Реестр инцидентов'!$A$3:$Q$3,0)),\"\")","v":""},{"$f":"IFERROR(INDEX('Реестр инцидентов'!$A$4:$P$171,MATCH(INDEX($K$2:$K$24,ROUNDDOWN((ROW(C57)-3)/12,0)+1)&7,'Реестр инцидентов'!$Q$4:$Q$171,0),MATCH(B$1,'Реестр инцидентов'!$A$3:$Q$3,0)),\"\")","v":""},{"$f":"IFERROR(INDEX('Реестр инцидентов'!$A$4:$P$171,MATCH(INDEX($K$2:$K$24,ROUNDDOWN((ROW(D57)-3)/12,0)+1)&7,'Реестр инцидентов'!$Q$4:$Q$171,0),MATCH(C$1,'Реестр инцидентов'!$A$3:$Q$3,0)),\"\")","v":""},{"$f":"IFERROR(INDEX('Реестр инцидентов'!$A$4:$P$171,MATCH(INDEX($K$2:$K$24,ROUNDDOWN((ROW(E57)-3)/12,0)+1)&7,'Реестр инцидентов'!$Q$4:$Q$171,0),MATCH(D$1,'Реестр инцидентов'!$A$3:$Q$3,0)),\"\")","v":""},{"$f":"IFERROR(INDEX('Реестр инцидентов'!$A$4:$P$171,MATCH(INDEX($K$2:$K$24,ROUNDDOWN((ROW(F57)-3)/12,0)+1)&7,'Реестр инцидентов'!$Q$4:$Q$171,0),MATCH(E$1,'Реестр инцидентов'!$A$3:$Q$3,0)),\"\")","v":""}]
[{"$f":"IFERROR(INDEX('Реестр инцидентов'!$A$4:$P$171,MATCH(INDEX($K$2:$K$24,ROUNDDOWN((ROW(B58)-3)/12,0)+1)&8,'Реестр инцидентов'!$Q$4:$Q$171,0),MATCH(A$1,'Реестр инцидентов'!$A$3:$Q$3,0)),\"\")","v":""},{"$f":"IFERROR(INDEX('Реестр инцидентов'!$A$4:$P$171,MATCH(INDEX($K$2:$K$24,ROUNDDOWN((ROW(C58)-3)/12,0)+1)&8,'Реестр инцидентов'!$Q$4:$Q$171,0),MATCH(B$1,'Реестр инцидентов'!$A$3:$Q$3,0)),\"\")","v":""},{"$f":"IFERROR(INDEX('Реестр инцидентов'!$A$4:$P$171,MATCH(INDEX($K$2:$K$24,ROUNDDOWN((ROW(D58)-3)/12,0)+1)&8,'Реестр инцидентов'!$Q$4:$Q$171,0),MATCH(C$1,'Реестр инцидентов'!$A$3:$Q$3,0)),\"\")","v":""},{"$f":"IFERROR(INDEX('Реестр инцидентов'!$A$4:$P$171,MATCH(INDEX($K$2:$K$24,ROUNDDOWN((ROW(E58)-3)/12,0)+1)&8,'Реестр инцидентов'!$Q$4:$Q$171,0),MATCH(D$1,'Реестр инцидентов'!$A$3:$Q$3,0)),\"\")","v":""},{"$f":"IFERROR(INDEX('Реестр инцидентов'!$A$4:$P$171,MATCH(INDEX($K$2:$K$24,ROUNDDOWN((ROW(F58)-3)/12,0)+1)&8,'Реестр инцидентов'!$Q$4:$Q$171,0),MATCH(E$1,'Реестр инцидентов'!$A$3:$Q$3,0)),\"\")","v":""}]
[{"$f":"IFERROR(INDEX('Реестр инцидентов'!$A$4:$P$171,MATCH(INDEX($K$2:$K$24,ROUNDDOWN((ROW(B59)-3)/12,0)+1)&9,'Реестр инцидентов'!$Q$4:$Q$171,0),MATCH(A$1,'Реестр инцидентов'!$A$3:$Q$3,0)),\"\")","v":""},{"$f":"IFERROR(INDEX('Реестр инцидентов'!$A$4:$P$171,MATCH(INDEX($K$2:$K$24,ROUNDDOWN((ROW(C59)-3)/12,0)+1)&9,'Реестр инцидентов'!$Q$4:$Q$171,0),MATCH(B$1,'Реестр инцидентов'!$A$3:$Q$3,0)),\"\")","v":""},{"$f":"IFERROR(INDEX('Реестр инцидентов'!$A$4:$P$171,MATCH(INDEX($K$2:$K$24,ROUNDDOWN((ROW(D59)-3)/12,0)+1)&9,'Реестр инцидентов'!$Q$4:$Q$171,0),MATCH(C$1,'Реестр инцидентов'!$A$3:$Q$3,0)),\"\")","v":""},{"$f":"IFERROR(INDEX('Реестр инцидентов'!$A$4:$P$171,MATCH(INDEX($K$2:$K$24,ROUNDDOWN((ROW(E59)-3)/12,0)+1)&9,'Реестр инцидентов'!$Q$4:$Q$171,0),MATCH(D$1,'Реестр инцидентов'!$A$3:$Q$3,0)),\"\")","v":""},{"$f":"IFERROR(INDEX('Реестр инцидентов'!$A$4:$P$171,MATCH(INDEX($K$2:$K$24,ROUNDDOWN((ROW(F59)-3)/12,0)+1)&9,'Реестр инцидентов'!$Q$4:$Q$171,0),MATCH(E$1,'Реестр инцидентов'!$A$3:$Q$3,0)),\"\")","v":""}]
[{"$f":"IFERROR(INDEX('Реестр инцидентов'!$A$4:$P$171,MATCH(INDEX($K$2:$K$24,ROUNDDOWN((ROW(B60)-3)/12,0)+1)&10,'Реестр инцидентов'!$Q$4:$Q$171,0),MATCH(A$1,'Реестр инцидентов'!$A$3:$Q$3,0)),\"\")","v":""},{"$f":"IFERROR(INDEX('Реестр инцидентов'!$A$4:$P$171,MATCH(INDEX($K$2:$K$24,ROUNDDOWN((ROW(C60)-3)/12,0)+1)&10,'Реестр инцидентов'!$Q$4:$Q$171,0),MATCH(B$1,'Реестр инцидентов'!$A$3:$Q$3,0)),\"\")","v":""},{"$f":"IFERROR(INDEX('Реестр инцидентов'!$A$4:$P$171,MATCH(INDEX($K$2:$K$24,ROUNDDOWN((ROW(D60)-3)/12,0)+1)&10,'Реестр инцидентов'!$Q$4:$Q$171,0),MATCH(C$1,'Реестр инцидентов'!$A$3:$Q$3,0)),\"\")","v":""},{"$f":"IFERROR(INDEX('Реестр инцидентов'!$A$4:$P$171,MATCH(INDEX($K$2:$K$24,ROUNDDOWN((ROW(E60)-3)/12,0)+1)&10,'Реестр инцидентов'!$Q$4:$Q$171,0),MATCH(D$1,'Реестр инцидентов'!$A$3:$Q$3,0)),\"\")","v":""},{"$f":"IFERROR(INDEX('Реестр инцидентов'!$A$4:$P$171,MATCH(INDEX($K$2:$K$24,ROUNDDOWN((ROW(F60)-3)/12,0)+1)&10,'Реестр инцидентов'!$Q$4:$Q$171,0),MATCH(E$1,'Реестр инцидентов'!$A$3:$Q$3,0)),\"\")","v":""}]
[{"$f":"IFERROR(INDEX('Реестр инцидентов'!$A$4:$P$171,MATCH(INDEX($K$2:$K$24,ROUNDDOWN((ROW(B61)-3)/12,0)+1)&11,'Реестр инцидентов'!$Q$4:$Q$171,0),MATCH(A$1,'Реестр инцидентов'!$A$3:$Q$3,0)),\"\")","v":""},{"$f":"IFERROR(INDEX('Реестр инцидентов'!$A$4:$P$171,MATCH(INDEX($K$2:$K$24,ROUNDDOWN((ROW(C61)-3)/12,0)+1)&11,'Реестр инцидентов'!$Q$4:$Q$171,0),MATCH(B$1,'Реестр инцидентов'!$A$3:$Q$3,0)),\"\")","v":""},{"$f":"IFERROR(INDEX('Реестр инцидентов'!$A$4:$P$171,MATCH(INDEX($K$2:$K$24,ROUNDDOWN((ROW(D61)-3)/12,0)+1)&11,'Реестр инцидентов'!$Q$4:$Q$171,0),MATCH(C$1,'Реестр инцидентов'!$A$3:$Q$3,0)),\"\")","v":""},{"$f":"IFERROR(INDEX('Реестр инцидентов'!$A$4:$P$171,MATCH(INDEX($K$2:$K$24,ROUNDDOWN((ROW(E61)-3)/12,0)+1)&11,'Реестр инцидентов'!$Q$4:$Q$171,0),MATCH(D$1,'Реестр инцидентов'!$A$3:$Q$3,0)),\"\")","v":""},{"$f":"IFERROR(INDEX('Реестр инцидентов'!$A$4:$P$171,MATCH(INDEX($K$2:$K$24,ROUNDDOWN((ROW(F61)-3)/12,0)+1)&11,'Реестр инцидентов'!$Q$4:$Q$171,0),MATCH(E$1,'Реестр инцидентов'!$A$3:$Q$3,0)),\"\")","v":""}]
[{"$f":"IFERROR(INDEX($L$2:$L$23,ROUNDDOWN((ROW(B63)-3)/12,0)+1),\"\")","v":"Гериева Динара Барасбиевна"}]
[{"$f":"IFERROR(INDEX('Реестр инцидентов'!$A$4:$P$171,MATCH(INDEX($K$2:$K$24,ROUNDDOWN((ROW(B63)-3)/12,0)+1)&1,'Реестр инцидентов'!$Q$4:$Q$171,0),MATCH(A$1,'Реестр инцидентов'!$A$3:$Q$3,0)),\"\")","v":""},{"$f":"IFERROR(INDEX('Реестр инцидентов'!$A$4:$P$171,MATCH(INDEX($K$2:$K$24,ROUNDDOWN((ROW(C63)-3)/12,0)+1)&1,'Реестр инцидентов'!$Q$4:$Q$171,0),MATCH(B$1,'Реестр инцидентов'!$A$3:$Q$3,0)),\"\")","v":""},{"$f":"IFERROR(INDEX('Реестр инцидентов'!$A$4:$P$171,MATCH(INDEX($K$2:$K$24,ROUNDDOWN((ROW(D63)-3)/12,0)+1)&1,'Реестр инцидентов'!$Q$4:$Q$171,0),MATCH(C$1,'Реестр инцидентов'!$A$3:$Q$3,0)),\"\")","v":""},{"$f":"IFERROR(INDEX('Реестр инцидентов'!$A$4:$P$171,MATCH(INDEX($K$2:$K$24,ROUNDDOWN((ROW(E63)-3)/12,0)+1)&1,'Реестр инцидентов'!$Q$4:$Q$171,0),MATCH(D$1,'Реестр инцидентов'!$A$3:$Q$3,0)),\"\")","v":""},{"$f":"IFERROR(INDEX('Реестр инцидентов'!$A$4:$P$171,MATCH(INDEX($K$2:$K$24,ROUNDDOWN((ROW(F63)-3)/12,0)+1)&1,'Реестр инцидентов'!$Q$4:$Q$171,0),MATCH(E$1,'Реестр инцидентов'!$A$3:$Q$3,0)),\"\")","v":""}]
[{"$f":"IFERROR(INDEX('Реестр инцидентов'!$A$4:$P$171,MATCH(INDEX($K$2:$K$24,ROUNDDOWN((ROW(B64)-3)/12,0)+1)&2,'Реестр инцидентов'!$Q$4:$Q$171,0),MATCH(A$1,'Реестр инцидентов'!$A$3:$Q$3,0)),\"\")","v":""},{"$f":"IFERROR(INDEX('Реестр инцидентов'!$A$4:$P$171,MATCH(INDEX($K$2:$K$24,ROUNDDOWN((ROW(C64)-3)/12,0)+1)&2,'Реестр инцидентов'!$Q$4:$Q$171,0),MATCH(B$1,'Реестр инцидентов'!$A$3:$Q$3,0)),\"\")","v":""},{"$f":"IFERROR(INDEX('Реестр инцидентов'!$A$4:$P$171,MATCH(INDEX($K$2:$K$24,ROUNDDOWN((ROW(D64)-3)/12,0)+1)&2,'Реестр инцидентов'!$Q$4:$Q$171,0),MATCH(C$1,'Реестр инцидентов'!$A$3:$Q$3,0)),\"\")","v":""},{"$f":"IFERROR(INDEX('Реестр инцидентов'!$A$4:$P$171,MATCH(INDEX($K$2:$K$24,ROUNDDOWN((ROW(E64)-3)/12,0)+1)&2,'Реестр инцидентов'!$Q$4:$Q$171,0),MATCH(D$1,'Реестр инцидентов'!$A$3:$Q$3,0)),\"\")","v":""},{"$f":"IFERROR(INDEX('Реестр инцидентов'!$A$4:$P$171,MATCH(INDEX($K$2:$K$24,ROUNDDOWN((ROW(F64)-3)/12,0)+1)&2,'Реестр инцидентов'!$Q$4:$Q$171,0),MATCH(E$1,'Реестр инцидентов'!$A$3:$Q$3,0)),\"\")","v":""}]
[{"$f":"IFERROR(INDEX('Реестр инцидентов'!$A$4:$P$171,MATCH(INDEX($K$2:$K$24,ROUNDDOWN((ROW(B65)-3)/12,0)+1)&3,'Реестр инцидентов'!$Q$4:$Q$171,0),MATCH(A$1,'Реестр инцидентов'!$A$3:$Q$3,0)),\"\")","v":""},{"$f":"IFERROR(INDEX('Реестр инцидентов'!$A$4:$P$171,MATCH(INDEX($K$2:$K$24,ROUNDDOWN((ROW(C65)-3)/12,0)+1)&3,'Реестр инцидентов'!$Q$4:$Q$171,0),MATCH(B$1,'Реестр инцидентов'!$A$3:$Q$3,0)),\"\")","v":""},{"$f":"IFERROR(INDEX('Реестр инцидентов'!$A$4:$P$171,MATCH(INDEX($K$2:$K$24,ROUNDDOWN((ROW(D65)-3)/12,0)+1)&3,'Реестр инцидентов'!$Q$4:$Q$171,0),MATCH(C$1,'Реестр инцидентов'!$A$3:$Q$3,0)),\"\")","v":""},{"$f":"IFERROR(INDEX('Реестр инцидентов'!$A$4:$P$171,MATCH(INDEX($K$2:$K$24,ROUNDDOWN((ROW(E65)-3)/12,0)+1)&3,'Реестр инцидентов'!$Q$4:$Q$171,0),MATCH(D$1,'Реестр инцидентов'!$A$3:$Q$3,0)),\"\")","v":""},{"$f":"IFERROR(INDEX('Реестр инцидентов'!$A$4:$P$171,MATCH(INDEX($K$2:$K$24,ROUNDDOWN((ROW(F65)-3)/12,0)+1)&3,'Реестр инцидентов'!$Q$4:$Q$171,0),MATCH(E$1,'Реестр инцидентов'!$A$3:$Q$3,0)),\"\")","v":""}]
[{"$f":"IFERROR(INDEX('Реестр инцидентов'!$A$4:$P$171,MATCH(INDEX($K$2:$K$24,ROUNDDOWN((ROW(B66)-3)/12,0)+1)&4,'Реестр инцидентов'!$Q$4:$Q$171,0),MATCH(A$1,'Реестр инцидентов'!$A$3:$Q$3,0)),\"\")","v":""},{"$f":"IFERROR(INDEX('Реестр инцидентов'!$A$4:$P$171,MATCH(INDEX($K$2:$K$24,ROUNDDOWN((ROW(C66)-3)/12,0)+1)&4,'Реестр инцидентов'!$Q$4:$Q$171,0),MATCH(B$1,'Реестр инцидентов'!$A$3:$Q$3,0)),\"\")","v":""},{"$f":"IFERROR(INDEX('Реестр инцидентов'!$A$4:$P$171,MATCH(INDEX($K$2:$K$24,ROUNDDOWN((ROW(D66)-3)/12,0)+1)&4,'Реестр инцидентов'!$Q$4:$Q$171,0),MATCH(C$1,'Реестр инцидентов'!$A$3:$Q$3,0)),\"\")","v":""},{"$f":"IFERROR(INDEX('Реестр инцидентов'!$A$4:$P$171,MATCH(INDEX($K$2:$K$24,ROUNDDOWN((ROW(E66)-3)/12,0)+1)&4,'Реестр инцидентов'!$Q$4:$Q$171,0),MATCH(D$1,'Реестр инцидентов'!$A$3:$Q$3,0)),\"\")","v":""},{"$f":"IFERROR(INDEX('Реестр инцидентов'!$A$4:$P$171,MATCH(INDEX($K$2:$K$24,ROUNDDOWN((ROW(F66)-3)/12,0)+1)&4,'Реестр инцидентов'!$Q$4:$Q$171,0),MATCH(E$1,'Реестр инцидентов'!$A$3:$Q$3,0)),\"\")","v":""}]
[{"$f":"IFERROR(INDEX('Реестр инцидентов'!$A$4:$P$171,MATCH(INDEX($K$2:$K$24,ROUNDDOWN((ROW(B67)-3)/12,0)+1)&5,'Реестр инцидентов'!$Q$4:$Q$171,0),MATCH(A$1,'Реестр инцидентов'!$A$3:$Q$3,0)),\"\")","v":""},{"$f":"IFERROR(INDEX('Реестр инцидентов'!$A$4:$P$171,MATCH(INDEX($K$2:$K$24,ROUNDDOWN((ROW(C67)-3)/12,0)+1)&5,'Реестр инцидентов'!$Q$4:$Q$171,0),MATCH(B$1,'Реестр инцидентов'!$A$3:$Q$3,0)),\"\")","v":""},{"$f":"IFERROR(INDEX('Реестр инцидентов'!$A$4:$P$171,MATCH(INDEX($K$2:$K$24,ROUNDDOWN((ROW(D67)-3)/12,0)+1)&5,'Реестр инцидентов'!$Q$4:$Q$171,0),MATCH(C$1,'Реестр инцидентов'!$A$3:$Q$3,0)),\"\")","v":""},{"$f":"IFERROR(INDEX('Реестр инцидентов'!$A$4:$P$171,MATCH(INDEX($K$2:$K$24,ROUNDDOWN((ROW(E67)-3)/12,0)+1)&5,'Реестр инцидентов'!$Q$4:$Q$171,0),MATCH(D$1,'Реестр инцидентов'!$A$3:$Q$3,0)),\"\")","v":""},{"$f":"IFERROR(INDEX('Реестр инцидентов'!$A$4:$P$171,MATCH(INDEX($K$2:$K$24,ROUNDDOWN((ROW(F67)-3)/12,0)+1)&5,'Реестр инцидентов'!$Q$4:$Q$171,0),MATCH(E$1,'Реестр инцидентов'!$A$3:$Q$3,0)),\"\")","v":""}]
[{"$f":"IFERROR(INDEX('Реестр инцидентов'!$A$4:$P$171,MATCH(INDEX($K$2:$K$24,ROUNDDOWN((ROW(B68)-3)/12,0)+1)&6,'Реестр инцидентов'!$Q$4:$Q$171,0),MATCH(A$1,'Реестр инцидентов'!$A$3:$Q$3,0)),\"\")","v":""},{"$f":"IFERROR(INDEX('Реестр инцидентов'!$A$4:$P$171,MATCH(INDEX($K$2:$K$24,ROUNDDOWN((ROW(C68)-3)/12,0)+1)&6,'Реестр инцидентов'!$Q$4:$Q$171,0),MATCH(B$1,'Реестр инцидентов'!$A$3:$Q$3,0)),\"\")","v":""},{"$f":"IFERROR(INDEX('Реестр инцидентов'!$A$4:$P$171,MATCH(INDEX($K$2:$K$24,ROUNDDOWN((ROW(D68)-3)/12,0)+1)&6,'Реестр инцидентов'!$Q$4:$Q$171,0),MATCH(C$1,'Реестр инцидентов'!$A$3:$Q$3,0)),\"\")","v":""},{"$f":"IFERROR(INDEX('Реестр инцидентов'!$A$4:$P$171,MATCH(INDEX($K$2:$K$24,ROUNDDOWN((ROW(E68)-3)/12,0)+1)&6,'Реестр инцидентов'!$Q$4:$Q$171,0),MATCH(D$1,'Реестр инцидентов'!$A$3:$Q$3,0)),\"\")","v":""},{"$f":"IFERROR(INDEX('Реестр инцидентов'!$A$4:$P$171,MATCH(INDEX($K$2:$K$24,ROUNDDOWN((ROW(F68)-3)/12,0)+1)&6,'Реестр инцидентов'!$Q$4:$Q$171,0),MATCH(E$1,'Реестр инцидентов'!$A$3:$Q$3,0)),\"\")","v":""}]
[{"$f":"IFERROR(INDEX('Реестр инцидентов'!$A$4:$P$171,MATCH(INDEX($K$2:$K$24,ROUNDDOWN((ROW(B69)-3)/12,0)+1)&7,'Реестр инцидентов'!$Q$4:$Q$171,0),MATCH(A$1,'Реестр инцидентов'!$A$3:$Q$3,0)),\"\")","v":""},{"$f":"IFERROR(INDEX('Реестр инцидентов'!$A$4:$P$171,MATCH(INDEX($K$2:$K$24,ROUNDDOWN((ROW(C69)-3)/12,0)+1)&7,'Реестр инцидентов'!$Q$4:$Q$171,0),MATCH(B$1,'Реестр инцидентов'!$A$3:$Q$3,0)),\"\")","v":""},{"$f":"IFERROR(INDEX('Реестр инцидентов'!$A$4:$P$171,MATCH(INDEX($K$2:$K$24,ROUNDDOWN((ROW(D69)-3)/12,0)+1)&7,'Реестр инцидентов'!$Q$4:$Q$171,0),MATCH(C$1,'Реестр инцидентов'!$A$3:$Q$3,0)),\"\")","v":""},{"$f":"IFERROR(INDEX('Реестр инцидентов'!$A$4:$P$171,MATCH(INDEX($K$2:$K$24,ROUNDDOWN((ROW(E69)-3)/12,0)+1)&7,'Реестр инцидентов'!$Q$4:$Q$171,0),MATCH(D$1,'Реестр инцидентов'!$A$3:$Q$3,0)),\"\")","v":""},{"$f":"IFERROR(INDEX('Реестр инцидентов'!$A$4:$P$171,MATCH(INDEX($K$2:$K$24,ROUNDDOWN((ROW(F69)-3)/12,0)+1)&7,'Реестр инцидентов'!$Q$4:$Q$171,0),MATCH(E$1,'Реестр инцидентов'!$A$3:$Q$3,0)),\"\")","v":""}]
[{"$f":"IFERROR(INDEX('Реестр инцидентов'!$A$4:$P$171,MATCH(INDEX($K$2:$K$24,ROUNDDOWN((ROW(B70)-3)/12,0)+1)&8,'Реестр инцидентов'!$Q$4:$Q$171,0),MATCH(A$1,'Реестр инцидентов'!$A$3:$Q$3,0)),\"\")","v":""},{"$f":"IFERROR(INDEX('Реестр инцидентов'!$A$4:$P$171,MATCH(INDEX($K$2:$K$24,ROUNDDOWN((ROW(C70)-3)/12,0)+1)&8,'Реестр инцидентов'!$Q$4:$Q$171,0),MATCH(B$1,'Реестр инцидентов'!$A$3:$Q$3,0)),\"\")","v":""},{"$f":"IFERROR(INDEX('Реестр инцидентов'!$A$4:$P$171,MATCH(INDEX($K$2:$K$24,ROUNDDOWN((ROW(D70)-3)/12,0)+1)&8,'Реестр инцидентов'!$Q$4:$Q$171,0),MATCH(C$1,'Реестр инцидентов'!$A$3:$Q$3,0)),\"\")","v":""},{"$f":"IFERROR(INDEX('Реестр инцидентов'!$A$4:$P$171,MATCH(INDEX($K$2:$K$24,ROUNDDOWN((ROW(E70)-3)/12,0)+1)&8,'Реестр инцидентов'!$Q$4:$Q$171,0),MATCH(D$1,'Реестр инцидентов'!$A$3:$Q$3,0)),\"\")","v":""},{"$f":"IFERROR(INDEX('Реестр инцидентов'!$A$4:$P$171,MATCH(INDEX($K$2:$K$24,ROUNDDOWN((ROW(F70)-3)/12,0)+1)&8,'Реестр инцидентов'!$Q$4:$Q$171,0),MATCH(E$1,'Реестр инцидентов'!$A$3:$Q$3,0)),\"\")","v":""}]
[{"$f":"IFERROR(INDEX('Реестр инцидентов'!$A$4:$P$171,MATCH(INDEX($K$2:$K$24,ROUNDDOWN((ROW(B71)-3)/12,0)+1)&9,'Реестр инцидентов'!$Q$4:$Q$171,0),MATCH(A$1,'Реестр инцидентов'!$A$3:$Q$3,0)),\"\")","v":""},{"$f":"IFERROR(INDEX('Реестр инцидентов'!$A$4:$P$171,MATCH(INDEX($K$2:$K$24,ROUNDDOWN((ROW(C71)-3)/12,0)+1)&9,'Реестр инцидентов'!$Q$4:$Q$171,0),MATCH(B$1,'Реестр инцидентов'!$A$3:$Q$3,0)),\"\")","v":""},{"$f":"IFERROR(INDEX('Реестр инцидентов'!$A$4:$P$171,MATCH(INDEX($K$2:$K$24,ROUNDDOWN((ROW(D71)-3)/12,0)+1)&9,'Реестр инцидентов'!$Q$4:$Q$171,0),MATCH(C$1,'Реестр инцидентов'!$A$3:$Q$3,0)),\"\")","v":""},{"$f":"IFERROR(INDEX('Реестр инцидентов'!$A$4:$P$171,MATCH(INDEX($K$2:$K$24,ROUNDDOWN((ROW(E71)-3)/12,0)+1)&9,'Реестр инцидентов'!$Q$4:$Q$171,0),MATCH(D$1,'Реестр инцидентов'!$A$3:$Q$3,0)),\"\")","v":""},{"$f":"IFERROR(INDEX('Реестр инцидентов'!$A$4:$P$171,MATCH(INDEX($K$2:$K$24,ROUNDDOWN((ROW(F71)-3)/12,0)+1)&9,'Реестр инцидентов'!$Q$4:$Q$171,0),MATCH(E$1,'Реестр инцидентов'!$A$3:$Q$3,0)),\"\")","v":""}]
[{"$f":"IFERROR(INDEX('Реестр инцидентов'!$A$4:$P$171,MATCH(INDEX($K$2:$K$24,ROUNDDOWN((ROW(B72)-3)/12,0)+1)&10,'Реестр инцидентов'!$Q$4:$Q$171,0),MATCH(A$1,'Реестр инцидентов'!$A$3:$Q$3,0)),\"\")","v":""},{"$f":"IFERROR(INDEX('Реестр инцидентов'!$A$4:$P$171,MATCH(INDEX($K$2:$K$24,ROUNDDOWN((ROW(C72)-3)/12,0)+1)&10,'Реестр инцидентов'!$Q$4:$Q$171,0),MATCH(B$1,'Реестр инцидентов'!$A$3:$Q$3,0)),\"\")","v":""},{"$f":"IFERROR(INDEX('Реестр инцидентов'!$A$4:$P$171,MATCH(INDEX($K$2:$K$24,ROUNDDOWN((ROW(D72)-3)/12,0)+1)&10,'Реестр инцидентов'!$Q$4:$Q$171,0),MATCH(C$1,'Реестр инцидентов'!$A$3:$Q$3,0)),\"\")","v":""},{"$f":"IFERROR(INDEX('Реестр инцидентов'!$A$4:$P$171,MATCH(INDEX($K$2:$K$24,ROUNDDOWN((ROW(E72)-3)/12,0)+1)&10,'Реестр инцидентов'!$Q$4:$Q$171,0),MATCH(D$1,'Реестр инцидентов'!$A$3:$Q$3,0)),\"\")","v":""},{"$f":"IFERROR(INDEX('Реестр инцидентов'!$A$4:$P$171,MATCH(INDEX($K$2:$K$24,ROUNDDOWN((ROW(F72)-3)/12,0)+1)&10,'Реестр инцидентов'!$Q$4:$Q$171,0),MATCH(E$1,'Реестр инцидентов'!$A$3:$Q$3,0)),\"\")","v":""}]
[{"$f":"IFERROR(INDEX('Реестр инцидентов'!$A$4:$P$171,MATCH(INDEX($K$2:$K$24,ROUNDDOWN((ROW(B73)-3)/12,0)+1)&11,'Реестр инцидентов'!$Q$4:$Q$171,0),MATCH(A$1,'Реестр инцидентов'!$A$3:$Q$3,0)),\"\")","v":""},{"$f":"IFERROR(INDEX('Реестр инцидентов'!$A$4:$P$171,MATCH(INDEX($K$2:$K$24,ROUNDDOWN((ROW(C73)-3)/12,0)+1)&11,'Реестр инцидентов'!$Q$4:$Q$171,0),MATCH(B$1,'Реестр инцидентов'!$A$3:$Q$3,0)),\"\")","v":""},{"$f":"IFERROR(INDEX('Реестр инцидентов'!$A$4:$P$171,MATCH(INDEX($K$2:$K$24,ROUNDDOWN((ROW(D73)-3)/12,0)+1)&11,'Реестр инцидентов'!$Q$4:$Q$171,0),MATCH(C$1,'Реестр инцидентов'!$A$3:$Q$3,0)),\"\")","v":""},{"$f":"IFERROR(INDEX('Реестр инцидентов'!$A$4:$P$171,MATCH(INDEX($K$2:$K$24,ROUNDDOWN((ROW(E73)-3)/12,0)+1)&11,'Реестр инцидентов'!$Q$4:$Q$171,0),MATCH(D$1,'Реестр инцидентов'!$A$3:$Q$3,0)),\"\")","v":""},{"$f":"IFERROR(INDEX('Реестр инцидентов'!$A$4:$P$171,MATCH(INDEX($K$2:$K$24,ROUNDDOWN((ROW(F73)-3)/12,0)+1)&11,'Реестр инцидентов'!$Q$4:$Q$171,0),MATCH(E$1,'Реестр инцидентов'!$A$3:$Q$3,0)),\"\")","v":""}]
[{"$f":"IFERROR(INDEX($L$2:$L$23,ROUNDDOWN((ROW(B75)-3)/12,0)+1),\"\")","v":"Гериева Зульфия Барасбиевна"}]
[{"$f":"IFERROR(INDEX('Реестр инцидентов'!$A$4:$P$171,MATCH(INDEX($K$2:$K$24,ROUNDDOWN((ROW(B75)-3)/12,0)+1)&1,'Реестр инцидентов'!$Q$4:$Q$171,0),MATCH(A$1,'Реестр инцидентов'!$A$3:$Q$3,0)),\"\")","v":""},{"$f":"IFERROR(INDEX('Реестр инцидентов'!$A$4:$P$171,MATCH(INDEX($K$2:$K$24,ROUNDDOWN((ROW(C75)-3)/12,0)+1)&1,'Реестр инцидентов'!$Q$4:$Q$171,0),MATCH(B$1,'Реестр инцидентов'!$A$3:$Q$3,0)),\"\")","v":""},{"$f":"IFERROR(INDEX('Реестр инцидентов'!$A$4:$P$171,MATCH(INDEX($K$2:$K$24,ROUNDDOWN((ROW(D75)-3)/12,0)+1)&1,'Реестр инцидентов'!$Q$4:$Q$171,0),MATCH(C$1,'Реестр инцидентов'!$A$3:$Q$3,0)),\"\")","v":""},{"$f":"IFERROR(INDEX('Реестр инцидентов'!$A$4:$P$171,MATCH(INDEX($K$2:$K$24,ROUNDDOWN((ROW(E75)-3)/12,0)+1)&1,'Реестр инцидентов'!$Q$4:$Q$171,0),MATCH(D$1,'Реестр инцидентов'!$A$3:$Q$3,0)),\"\")","v":""},{"$f":"IFERROR(INDEX('Реестр инцидентов'!$A$4:$P$171,MATCH(INDEX($K$2:$K$24,ROUNDDOWN((ROW(F75)-3)/12,0)+1)&1,'Реестр инцидентов'!$Q$4:$Q$171,0),MATCH(E$1,'Реестр инцидентов'!$A$3:$Q$3,0)),\"\")","v":""}]
[{"$f":"IFERROR(INDEX('Реестр инцидентов'!$A$4:$P$171,MATCH(INDEX($K$2:$K$24,ROUNDDOWN((ROW(B76)-3)/12,0)+1)&2,'Реестр инцидентов'!$Q$4:$Q$171,0),MATCH(A$1,'Реестр инцидентов'!$A$3:$Q$3,0)),\"\")","v":""},{"$f":"IFERROR(INDEX('Реестр инцидентов'!$A$4:$P$171,MATCH(INDEX($K$2:$K$24,ROUNDDOWN((ROW(C76)-3)/12,0)+1)&2,'Реестр инцидентов'!$Q$4:$Q$171,0),MATCH(B$1,'Реестр инцидентов'!$A$3:$Q$3,0)),\"\")","v":""},{"$f":"IFERROR(INDEX('Реестр инцидентов'!$A$4:$P$171,MATCH(INDEX($K$2:$K$24,ROUNDDOWN((ROW(D76)-3)/12,0)+1)&2,'Реестр инцидентов'!$Q$4:$Q$171,0),MATCH(C$1,'Реестр инцидентов'!$A$3:$Q$3,0)),\"\")","v":""},{"$f":"IFERROR(INDEX('Реестр инцидентов'!$A$4:$P$171,MATCH(INDEX($K$2:$K$24,ROUNDDOWN((ROW(E76)-3)/12,0)+1)&2,'Реестр инцидентов'!$Q$4:$Q$171,0),MATCH(D$1,'Реестр инцидентов'!$A$3:$Q$3,0)),\"\")","v":""},{"$f":"IFERROR(INDEX('Реестр инцидентов'!$A$4:$P$171,MATCH(INDEX($K$2:$K$24,ROUNDDOWN((ROW(F76)-3)/12,0)+1)&2,'Реестр инцидентов'!$Q$4:$Q$171,0),MATCH(E$1,'Реестр инцидентов'!$A$3:$Q$3,0)),\"\")","v":""}]
[{"$f":"IFERROR(INDEX('Реестр инцидентов'!$A$4:$P$171,MATCH(INDEX($K$2:$K$24,ROUNDDOWN((ROW(B77)-3)/12,0)+1)&3,'Реестр инцидентов'!$Q$4:$Q$171,0),MATCH(A$1,'Реестр инцидентов'!$A$3:$Q$3,0)),\"\")","v":""},{"$f":"IFERROR(INDEX('Реестр инцидентов'!$A$4:$P$171,MATCH(INDEX($K$2:$K$24,ROUNDDOWN((ROW(C77)-3)/12,0)+1)&3,'Реестр инцидентов'!$Q$4:$Q$171,0),MATCH(B$1,'Реестр инцидентов'!$A$3:$Q$3,0)),\"\")","v":""},{"$f":"IFERROR(INDEX('Реестр инцидентов'!$A$4:$P$171,MATCH(INDEX($K$2:$K$24,ROUNDDOWN((ROW(D77)-3)/12,0)+1)&3,'Реестр инцидентов'!$Q$4:$Q$171,0),MATCH(C$1,'Реестр инцидентов'!$A$3:$Q$3,0)),\"\")","v":""},{"$f":"IFERROR(INDEX('Реестр инцидентов'!$A$4:$P$171,MATCH(INDEX($K$2:$K$24,ROUNDDOWN((ROW(E77)-3)/12,0)+1)&3,'Реестр инцидентов'!$Q$4:$Q$171,0),MATCH(D$1,'Реестр инцидентов'!$A$3:$Q$3,0)),\"\")","v":""},{"$f":"IFERROR(INDEX('Реестр инцидентов'!$A$4:$P$171,MATCH(INDEX($K$2:$K$24,ROUNDDOWN((ROW(F77)-3)/12,0)+1)&3,'Реестр инцидентов'!$Q$4:$Q$171,0),MATCH(E$1,'Реестр инцидентов'!$A$3:$Q$3,0)),\"\")","v":""}]
[{"$f":"IFERROR(INDEX('Реестр инцидентов'!$A$4:$P$171,MATCH(INDEX($K$2:$K$24,ROUNDDOWN((ROW(B78)-3)/12,0)+1)&4,'Реестр инцидентов'!$Q$4:$Q$171,0),MATCH(A$1,'Реестр инцидентов'!$A$3:$Q$3,0)),\"\")","v":""},{"$f":"IFERROR(INDEX('Реестр инцидентов'!$A$4:$P$171,MATCH(INDEX($K$2:$K$24,ROUNDDOWN((ROW(C78)-3)/12,0)+1)&4,'Реестр инцидентов'!$Q$4:$Q$171,0),MATCH(B$1,'Реестр инцидентов'!$A$3:$Q$3,0)),\"\")","v":""},{"$f":"IFERROR(INDEX('Реестр инцидентов'!$A$4:$P$171,MATCH(INDEX($K$2:$K$24,ROUNDDOWN((ROW(D78)-3)/12,0)+1)&4,'Реестр инцидентов'!$Q$4:$Q$171,0),MATCH(C$1,'Реестр инцидентов'!$A$3:$Q$3,0)),\"\")","v":""},{"$f":"IFERROR(INDEX('Реестр инцидентов'!$A$4:$P$171,MATCH(INDEX($K$2:$K$24,ROUNDDOWN((ROW(E78)-3)/12,0)+1)&4,'Реестр инцидентов'!$Q$4:$Q$171,0),MATCH(D$1,'Реестр инцидентов'!$A$3:$Q$3,0)),\"\")","v":""},{"$f":"IFERROR(INDEX('Реестр инцидентов'!$A$4:$P$171,MATCH(INDEX($K$2:$K$24,ROUNDDOWN((ROW(F78)-3)/12,0)+1)&4,'Реестр инцидентов'!$Q$4:$Q$171,0),MATCH(E$1,'Реестр инцидентов'!$A$3:$Q$3,0)),\"\")","v":""}]
[{"$f":"IFERROR(INDEX('Реестр инцидентов'!$A$4:$P$171,MATCH(INDEX($K$2:$K$24,ROUNDDOWN((ROW(B79)-3)/12,0)+1)&5,'Реестр инцидентов'!$Q$4:$Q$171,0),MATCH(A$1,'Реестр инцидентов'!$A$3:$Q$3,0)),\"\")","v":""},{"$f":"IFERROR(INDEX('Реестр инцидентов'!$A$4:$P$171,MATCH(INDEX($K$2:$K$24,ROUNDDOWN((ROW(C79)-3)/12,0)+1)&5,'Реестр инцидентов'!$Q$4:$Q$171,0),MATCH(B$1,'Реестр инцидентов'!$A$3:$Q$3,0)),\"\")","v":""},{"$f":"IFERROR(INDEX('Реестр инцидентов'!$A$4:$P$171,MATCH(INDEX($K$2:$K$24,ROUNDDOWN((ROW(D79)-3)/12,0)+1)&5,'Реестр инцидентов'!$Q$4:$Q$171,0),MATCH(C$1,'Реестр инцидентов'!$A$3:$Q$3,0)),\"\")","v":""},{"$f":"IFERROR(INDEX('Реестр инцидентов'!$A$4:$P$171,MATCH(INDEX($K$2:$K$24,ROUNDDOWN((ROW(E79)-3)/12,0)+1)&5,'Реестр инцидентов'!$Q$4:$Q$171,0),MATCH(D$1,'Реестр инцидентов'!$A$3:$Q$3,0)),\"\")","v":""},{"$f":"IFERROR(INDEX('Реестр инцидентов'!$A$4:$P$171,MATCH(INDEX($K$2:$K$24,ROUNDDOWN((ROW(F79)-3)/12,0)+1)&5,'Реестр инцидентов'!$Q$4:$Q$171,0),MATCH(E$1,'Реестр инцидентов'!$A$3:$Q$3,0)),\"\")","v":""}]
[{"$f":"IFERROR(INDEX('Реестр инцидентов'!$A$4:$P$171,MATCH(INDEX($K$2:$K$24,ROUNDDOWN((ROW(B80)-3)/12,0)+1)&6,'Реестр инцидентов'!$Q$4:$Q$171,0),MATCH(A$1,'Реестр инцидентов'!$A$3:$Q$3,0)),\"\")","v":""},{"$f":"IFERROR(INDEX('Реестр инцидентов'!$A$4:$P$171,MATCH(INDEX($K$2:$K$24,ROUNDDOWN((ROW(C80)-3)/12,0)+1)&6,'Реестр инцидентов'!$Q$4:$Q$171,0),MATCH(B$1,'Реестр инцидентов'!$A$3:$Q$3,0)),\"\")","v":""},{"$f":"IFERROR(INDEX('Реестр инцидентов'!$A$4:$P$171,MATCH(INDEX($K$2:$K$24,ROUNDDOWN((ROW(D80)-3)/12,0)+1)&6,'Реестр инцидентов'!$Q$4:$Q$171,0),MATCH(C$1,'Реестр инцидентов'!$A$3:$Q$3,0)),\"\")","v":""},{"$f":"IFERROR(INDEX('Реестр инцидентов'!$A$4:$P$171,MATCH(INDEX($K$2:$K$24,ROUNDDOWN((ROW(E80)-3)/12,0)+1)&6,'Реестр инцидентов'!$Q$4:$Q$171,0),MATCH(D$1,'Реестр инцидентов'!$A$3:$Q$3,0)),\"\")","v":""},{"$f":"IFERROR(INDEX('Реестр инцидентов'!$A$4:$P$171,MATCH(INDEX($K$2:$K$24,ROUNDDOWN((ROW(F80)-3)/12,0)+1)&6,'Реестр инцидентов'!$Q$4:$Q$171,0),MATCH(E$1,'Реестр инцидентов'!$A$3:$Q$3,0)),\"\")","v":""}]
[{"$f":"IFERROR(INDEX('Реестр инцидентов'!$A$4:$P$171,MATCH(INDEX($K$2:$K$24,ROUNDDOWN((ROW(B81)-3)/12,0)+1)&7,'Реестр инцидентов'!$Q$4:$Q$171,0),MATCH(A$1,'Реестр инцидентов'!$A$3:$Q$3,0)),\"\")","v":""},{"$f":"IFERROR(INDEX('Реестр инцидентов'!$A$4:$P$171,MATCH(INDEX($K$2:$K$24,ROUNDDOWN((ROW(C81)-3)/12,0)+1)&7,'Реестр инцидентов'!$Q$4:$Q$171,0),MATCH(B$1,'Реестр инцидентов'!$A$3:$Q$3,0)),\"\")","v":""},{"$f":"IFERROR(INDEX('Реестр инцидентов'!$A$4:$P$171,MATCH(INDEX($K$2:$K$24,ROUNDDOWN((ROW(D81)-3)/12,0)+1)&7,'Реестр инцидентов'!$Q$4:$Q$171,0),MATCH(C$1,'Реестр инцидентов'!$A$3:$Q$3,0)),\"\")","v":""},{"$f":"IFERROR(INDEX('Реестр инцидентов'!$A$4:$P$171,MATCH(INDEX($K$2:$K$24,ROUNDDOWN((ROW(E81)-3)/12,0)+1)&7,'Реестр инцидентов'!$Q$4:$Q$171,0),MATCH(D$1,'Реестр инцидентов'!$A$3:$Q$3,0)),\"\")","v":""},{"$f":"IFERROR(INDEX('Реестр инцидентов'!$A$4:$P$171,MATCH(INDEX($K$2:$K$24,ROUNDDOWN((ROW(F81)-3)/12,0)+1)&7,'Реестр инцидентов'!$Q$4:$Q$171,0),MATCH(E$1,'Реестр инцидентов'!$A$3:$Q$3,0)),\"\")","v":""}]
[{"$f":"IFERROR(INDEX('Реестр инцидентов'!$A$4:$P$171,MATCH(INDEX($K$2:$K$24,ROUNDDOWN((ROW(B82)-3)/12,0)+1)&8,'Реестр инцидентов'!$Q$4:$Q$171,0),MATCH(A$1,'Реестр инцидентов'!$A$3:$Q$3,0)),\"\")","v":""},{"$f":"IFERROR(INDEX('Реестр инцидентов'!$A$4:$P$171,MATCH(INDEX($K$2:$K$24,ROUNDDOWN((ROW(C82)-3)/12,0)+1)&8,'Реестр инцидентов'!$Q$4:$Q$171,0),MATCH(B$1,'Реестр инцидентов'!$A$3:$Q$3,0)),\"\")","v":""},{"$f":"IFERROR(INDEX('Реестр инцидентов'!$A$4:$P$171,MATCH(INDEX($K$2:$K$24,ROUNDDOWN((ROW(D82)-3)/12,0)+1)&8,'Реестр инцидентов'!$Q$4:$Q$171,0),MATCH(C$1,'Реестр инцидентов'!$A$3:$Q$3,0)),\"\")","v":""},{"$f":"IFERROR(INDEX('Реестр инцидентов'!$A$4:$P$171,MATCH(INDEX($K$2:$K$24,ROUNDDOWN((ROW(E82)-3)/12,0)+1)&8,'Реестр инцидентов'!$Q$4:$Q$171,0),MATCH(D$1,'Реестр инцидентов'!$A$3:$Q$3,0)),\"\")","v":""},{"$f":"IFERROR(INDEX('Реестр инцидентов'!$A$4:$P$171,MATCH(INDEX($K$2:$K$24,ROUNDDOWN((ROW(F82)-3)/12,0)+1)&8,'Реестр инцидентов'!$Q$4:$Q$171,0),MATCH(E$1,'Реестр инцидентов'!$A$3:$Q$3,0)),\"\")","v":""}]
[{"$f":"IFERROR(INDEX('Реестр инцидентов'!$A$4:$P$171,MATCH(INDEX($K$2:$K$24,ROUNDDOWN((ROW(B83)-3)/12,0)+1)&9,'Реестр инцидентов'!$Q$4:$Q$171,0),MATCH(A$1,'Реестр инцидентов'!$A$3:$Q$3,0)),\"\")","v":""},{"$f":"IFERROR(INDEX('Реестр инцидентов'!$A$4:$P$171,MATCH(INDEX($K$2:$K$24,ROUNDDOWN((ROW(C83)-3)/12,0)+1)&9,'Реестр инцидентов'!$Q$4:$Q$171,0),MATCH(B$1,'Реестр инцидентов'!$A$3:$Q$3,0)),\"\")","v":""},{"$f":"IFERROR(INDEX('Реестр инцидентов'!$A$4:$P$171,MATCH(INDEX($K$2:$K$24,ROUNDDOWN((ROW(D83)-3)/12,0)+1)&9,'Реестр инцидентов'!$Q$4:$Q$171,0),MATCH(C$1,'Реестр инцидентов'!$A$3:$Q$3,0)),\"\")","v":""},{"$f":"IFERROR(INDEX('Реестр инцидентов'!$A$4:$P$171,MATCH(INDEX($K$2:$K$24,ROUNDDOWN((ROW(E83)-3)/12,0)+1)&9,'Реестр инцидентов'!$Q$4:$Q$171,0),MATCH(D$1,'Реестр инцидентов'!$A$3:$Q$3,0)),\"\")","v":""},{"$f":"IFERROR(INDEX('Реестр инцидентов'!$A$4:$P$171,MATCH(INDEX($K$2:$K$24,ROUNDDOWN((ROW(F83)-3)/12,0)+1)&9,'Реестр инцидентов'!$Q$4:$Q$171,0),MATCH(E$1,'Реестр инцидентов'!$A$3:$Q$3,0)),\"\")","v":""}]
[{"$f":"IFERROR(INDEX('Реестр инцидентов'!$A$4:$P$171,MATCH(INDEX($K$2:$K$24,ROUNDDOWN((ROW(B84)-3)/12,0)+1)&10,'Реестр инцидентов'!$Q$4:$Q$171,0),MATCH(A$1,'Реестр инцидентов'!$A$3:$Q$3,0)),\"\")","v":""},{"$f":"IFERROR(INDEX('Реестр инцидентов'!$A$4:$P$171,MATCH(INDEX($K$2:$K$24,ROUNDDOWN((ROW(C84)-3)/12,0)+1)&10,'Реестр инцидентов'!$Q$4:$Q$171,0),MATCH(B$1,'Реестр инцидентов'!$A$3:$Q$3,0)),\"\")","v":""},{"$f":"IFERROR(INDEX('Реестр инцидентов'!$A$4:$P$171,MATCH(INDEX($K$2:$K$24,ROUNDDOWN((ROW(D84)-3)/12,0)+1)&10,'Реестр инцидентов'!$Q$4:$Q$171,0),MATCH(C$1,'Реестр инцидентов'!$A$3:$Q$3,0)),\"\")","v":""},{"$f":"IFERROR(INDEX('Реестр инцидентов'!$A$4:$P$171,MATCH(INDEX($K$2:$K$24,ROUNDDOWN((ROW(E84)-3)/12,0)+1)&10,'Реестр инцидентов'!$Q$4:$Q$171,0),MATCH(D$1,'Реестр инцидентов'!$A$3:$Q$3,0)),\"\")","v":""},{"$f":"IFERROR(INDEX('Реестр инцидентов'!$A$4:$P$171,MATCH(INDEX($K$2:$K$24,ROUNDDOWN((ROW(F84)-3)/12,0)+1)&10,'Реестр инцидентов'!$Q$4:$Q$171,0),MATCH(E$1,'Реестр инцидентов'!$A$3:$Q$3,0)),\"\")","v":""}]
[{"$f":"IFERROR(INDEX('Реестр инцидентов'!$A$4:$P$171,MATCH(INDEX($K$2:$K$24,ROUNDDOWN((ROW(B85)-3)/12,0)+1)&11,'Реестр инцидентов'!$Q$4:$Q$171,0),MATCH(A$1,'Реестр инцидентов'!$A$3:$Q$3,0)),\"\")","v":""},{"$f":"IFERROR(INDEX('Реестр инцидентов'!$A$4:$P$171,MATCH(INDEX($K$2:$K$24,ROUNDDOWN((ROW(C85)-3)/12,0)+1)&11,'Реестр инцидентов'!$Q$4:$Q$171,0),MATCH(B$1,'Реестр инцидентов'!$A$3:$Q$3,0)),\"\")","v":""},{"$f":"IFERROR(INDEX('Реестр инцидентов'!$A$4:$P$171,MATCH(INDEX($K$2:$K$24,ROUNDDOWN((ROW(D85)-3)/12,0)+1)&11,'Реестр инцидентов'!$Q$4:$Q$171,0),MATCH(C$1,'Реестр инцидентов'!$A$3:$Q$3,0)),\"\")","v":""},{"$f":"IFERROR(INDEX('Реестр инцидентов'!$A$4:$P$171,MATCH(INDEX($K$2:$K$24,ROUNDDOWN((ROW(E85)-3)/12,0)+1)&11,'Реестр инцидентов'!$Q$4:$Q$171,0),MATCH(D$1,'Реестр инцидентов'!$A$3:$Q$3,0)),\"\")","v":""},{"$f":"IFERROR(INDEX('Реестр инцидентов'!$A$4:$P$171,MATCH(INDEX($K$2:$K$24,ROUNDDOWN((ROW(F85)-3)/12,0)+1)&11,'Реестр инцидентов'!$Q$4:$Q$171,0),MATCH(E$1,'Реестр инцидентов'!$A$3:$Q$3,0)),\"\")","v":""}]
[{"$f":"IFERROR(INDEX($L$2:$L$23,ROUNDDOWN((ROW(B87)-3)/12,0)+1),\"\")","v":"Гончаров Владислав Андреевич"}]
[{"$f":"IFERROR(INDEX('Реестр инцидентов'!$A$4:$P$171,MATCH(INDEX($K$2:$K$24,ROUNDDOWN((ROW(B87)-3)/12,0)+1)&1,'Реестр инцидентов'!$Q$4:$Q$171,0),MATCH(A$1,'Реестр инцидентов'!$A$3:$Q$3,0)),\"\")","v":"Владислав Гончаров"},{"$f":"IFERROR(INDEX('Реестр инцидентов'!$A$4:$P$171,MATCH(INDEX($K$2:$K$24,ROUNDDOWN((ROW(C87)-3)/12,0)+1)&1,'Реестр инцидентов'!$Q$4:$Q$171,0),MATCH(B$1,'Реестр инцидентов'!$A$3:$Q$3,0)),\"\")","v":"150701/1056.1"},{"$f":"IFERROR(INDEX('Реестр инцидентов'!$A$4:$P$171,MATCH(INDEX($K$2:$K$24,ROUNDDOWN((ROW(D87)-3)/12,0)+1)&1,'Реестр инцидентов'!$Q$4:$Q$171,0),MATCH(C$1,'Реестр инцидентов'!$A$3:$Q$3,0)),\"\")","v":"2015-07-01T13:45:44"},{"$f":"IFERROR(INDEX('Реестр инцидентов'!$A$4:$P$171,MATCH(INDEX($K$2:$K$24,ROUNDDOWN((ROW(E87)-3)/12,0)+1)&1,'Реестр инцидентов'!$Q$4:$Q$171,0),MATCH(D$1,'Реестр инцидентов'!$A$3:$Q$3,0)),\"\")","v":"Разрешено"},{"$f":"IFERROR(INDEX('Реестр инцидентов'!$A$4:$P$171,MATCH(INDEX($K$2:$K$24,ROUNDDOWN((ROW(F87)-3)/12,0)+1)&1,'Реестр инцидентов'!$Q$4:$Q$171,0),MATCH(E$1,'Реестр инцидентов'!$A$3:$Q$3,0)),\"\")","v":"Некорректный контакт"}]
[{"$f":"IFERROR(INDEX('Реестр инцидентов'!$A$4:$P$171,MATCH(INDEX($K$2:$K$24,ROUNDDOWN((ROW(B88)-3)/12,0)+1)&2,'Реестр инцидентов'!$Q$4:$Q$171,0),MATCH(A$1,'Реестр инцидентов'!$A$3:$Q$3,0)),\"\")","v":"Владислав Гончаров"},{"$f":"IFERROR(INDEX('Реестр инцидентов'!$A$4:$P$171,MATCH(INDEX($K$2:$K$24,ROUNDDOWN((ROW(C88)-3)/12,0)+1)&2,'Реестр инцидентов'!$Q$4:$Q$171,0),MATCH(B$1,'Реестр инцидентов'!$A$3:$Q$3,0)),\"\")","v":"150703/1220.1"},{"$f":"IFERROR(INDEX('Реестр инцидентов'!$A$4:$P$171,MATCH(INDEX($K$2:$K$24,ROUNDDOWN((ROW(D88)-3)/12,0)+1)&2,'Реестр инцидентов'!$Q$4:$Q$171,0),MATCH(C$1,'Реестр инцидентов'!$A$3:$Q$3,0)),\"\")","v":"2015-07-03T13:54:09"},{"$f":"IFERROR(INDEX('Реестр инцидентов'!$A$4:$P$171,MATCH(INDEX($K$2:$K$24,ROUNDDOWN((ROW(E88)-3)/12,0)+1)&2,'Реестр инцидентов'!$Q$4:$Q$171,0),MATCH(D$1,'Реестр инцидентов'!$A$3:$Q$3,0)),\"\")","v":"Разрешено"},{"$f":"IFERROR(INDEX('Реестр инцидентов'!$A$4:$P$171,MATCH(INDEX($K$2:$K$24,ROUNDDOWN((ROW(F88)-3)/12,0)+1)&2,'Реестр инцидентов'!$Q$4:$Q$171,0),MATCH(E$1,'Реестр инцидентов'!$A$3:$Q$3,0)),\"\")","v":"Некорректное описание"}]
[{"$f":"IFERROR(INDEX('Реестр инцидентов'!$A$4:$P$171,MATCH(INDEX($K$2:$K$24,ROUNDDOWN((ROW(B89)-3)/12,0)+1)&3,'Реестр инцидентов'!$Q$4:$Q$171,0),MATCH(A$1,'Реестр инцидентов'!$A$3:$Q$3,0)),\"\")","v":"Владислав Гончаров"},{"$f":"IFERROR(INDEX('Реестр инцидентов'!$A$4:$P$171,MATCH(INDEX($K$2:$K$24,ROUNDDOWN((ROW(C89)-3)/12,0)+1)&3,'Реестр инцидентов'!$Q$4:$Q$171,0),MATCH(B$1,'Реестр инцидентов'!$A$3:$Q$3,0)),\"\")","v":"150706/1052.1"},{"$f":"IFERROR(INDEX('Реестр инцидентов'!$A$4:$P$171,MATCH(INDEX($K$2:$K$24,ROUNDDOWN((ROW(D89)-3)/12,0)+1)&3,'Реестр инцидентов'!$Q$4:$Q$171,0),MATCH(C$1,'Реестр инцидентов'!$A$3:$Q$3,0)),\"\")","v":"2015-07-06T13:11:42"},{"$f":"IFERROR(INDEX('Реестр инцидентов'!$A$4:$P$171,MATCH(INDEX($K$2:$K$24,ROUNDDOWN((ROW(E89)-3)/12,0)+1)&3,'Реестр инцидентов'!$Q$4:$Q$171,0),MATCH(D$1,'Реестр инцидентов'!$A$3:$Q$3,0)),\"\")","v":"Разрешено"},{"$f":"IFERROR(INDEX('Реестр инцидентов'!$A$4:$P$171,MATCH(INDEX($K$2:$K$24,ROUNDDOWN((ROW(F89)-3)/12,0)+1)&3,'Реестр инцидентов'!$Q$4:$Q$171,0),MATCH(E$1,'Реестр инцидентов'!$A$3:$Q$3,0)),\"\")","v":"Отсутствие файлов"}]
[{"$f":"IFERROR(INDEX('Реестр инцидентов'!$A$4:$P$171,MATCH(INDEX($K$2:$K$24,ROUNDDOWN((ROW(B90)-3)/12,0)+1)&4,'Реестр инцидентов'!$Q$4:$Q$171,0),MATCH(A$1,'Реестр инцидентов'!$A$3:$Q$3,0)),\"\")","v":""},{"$f":"IFERROR(INDEX('Реестр инцидентов'!$A$4:$P$171,MATCH(INDEX($K$2:$K$24,ROUNDDOWN((ROW(C90)-3)/12,0)+1)&4,'Реестр инцидентов'!$Q$4:$Q$171,0),MATCH(B$1,'Реестр инцидентов'!$A$3:$Q$3,0)),\"\")","v":""},{"$f":"IFERROR(INDEX('Реестр инцидентов'!$A$4:$P$171,MATCH(INDEX($K$2:$K$24,ROUNDDOWN((ROW(D90)-3)/12,0)+1)&4,'Реестр инцидентов'!$Q$4:$Q$171,0),MATCH(C$1,'Реестр инцидентов'!$A$3:$Q$3,0)),\"\")","v":""},{"$f":"IFERROR(INDEX('Реестр инцидентов'!$A$4:$P$171,MATCH(INDEX($K$2:$K$24,ROUNDDOWN((ROW(E90)-3)/12,0)+1)&4,'Реестр инцидентов'!$Q$4:$Q$171,0),MATCH(D$1,'Реестр инцидентов'!$A$3:$Q$3,0)),\"\")","v":""},{"$f":"IFERROR(INDEX('Реестр инцидентов'!$A$4:$P$171,MATCH(INDEX($K$2:$K$24,ROUNDDOWN((ROW(F90)-3)/12,0)+1)&4,'Реестр инцидентов'!$Q$4:$Q$171,0),MATCH(E$1,'Реестр инцидентов'!$A$3:$Q$3,0)),\"\")","v":""}]
[{"$f":"IFERROR(INDEX('Реестр инцидентов'!$A$4:$P$171,MATCH(INDEX($K$2:$K$24,ROUNDDOWN((ROW(B91)-3)/12,0)+1)&5,'Реестр инцидентов'!$Q$4:$Q$171,0),MATCH(A$1,'Реестр инцидентов'!$A$3:$Q$3,0)),\"\")","v":""},{"$f":"IFERROR(INDEX('Реестр инцидентов'!$A$4:$P$171,MATCH(INDEX($K$2:$K$24,ROUNDDOWN((ROW(C91)-3)/12,0)+1)&5,'Реестр инцидентов'!$Q$4:$Q$171,0),MATCH(B$1,'Реестр инцидентов'!$A$3:$Q$3,0)),\"\")","v":""},{"$f":"IFERROR(INDEX('Реестр инцидентов'!$A$4:$P$171,MATCH(INDEX($K$2:$K$24,ROUNDDOWN((ROW(D91)-3)/12,0)+1)&5,'Реестр инцидентов'!$Q$4:$Q$171,0),MATCH(C$1,'Реестр инцидентов'!$A$3:$Q$3,0)),\"\")","v":""},{"$f":"IFERROR(INDEX('Реестр инцидентов'!$A$4:$P$171,MATCH(INDEX($K$2:$K$24,ROUNDDOWN((ROW(E91)-3)/12,0)+1)&5,'Реестр инцидентов'!$Q$4:$Q$171,0),MATCH(D$1,'Реестр инцидентов'!$A$3:$Q$3,0)),\"\")","v":""},{"$f":"IFERROR(INDEX('Реестр инцидентов'!$A$4:$P$171,MATCH(INDEX($K$2:$K$24,ROUNDDOWN((ROW(F91)-3)/12,0)+1)&5,'Реестр инцидентов'!$Q$4:$Q$171,0),MATCH(E$1,'Реестр инцидентов'!$A$3:$Q$3,0)),\"\")","v":""}]
[{"$f":"IFERROR(INDEX('Реестр инцидентов'!$A$4:$P$171,MATCH(INDEX($K$2:$K$24,ROUNDDOWN((ROW(B92)-3)/12,0)+1)&6,'Реестр инцидентов'!$Q$4:$Q$171,0),MATCH(A$1,'Реестр инцидентов'!$A$3:$Q$3,0)),\"\")","v":""},{"$f":"IFERROR(INDEX('Реестр инцидентов'!$A$4:$P$171,MATCH(INDEX($K$2:$K$24,ROUNDDOWN((ROW(C92)-3)/12,0)+1)&6,'Реестр инцидентов'!$Q$4:$Q$171,0),MATCH(B$1,'Реестр инцидентов'!$A$3:$Q$3,0)),\"\")","v":""},{"$f":"IFERROR(INDEX('Реестр инцидентов'!$A$4:$P$171,MATCH(INDEX($K$2:$K$24,ROUNDDOWN((ROW(D92)-3)/12,0)+1)&6,'Реестр инцидентов'!$Q$4:$Q$171,0),MATCH(C$1,'Реестр инцидентов'!$A$3:$Q$3,0)),\"\")","v":""},{"$f":"IFERROR(INDEX('Реестр инцидентов'!$A$4:$P$171,MATCH(INDEX($K$2:$K$24,ROUNDDOWN((ROW(E92)-3)/12,0)+1)&6,'Реестр инцидентов'!$Q$4:$Q$171,0),MATCH(D$1,'Реестр инцидентов'!$A$3:$Q$3,0)),\"\")","v":""},{"$f":"IFERROR(INDEX('Реестр инцидентов'!$A$4:$P$171,MATCH(INDEX($K$2:$K$24,ROUNDDOWN((ROW(F92)-3)/12,0)+1)&6,'Реестр инцидентов'!$Q$4:$Q$171,0),MATCH(E$1,'Реестр инцидентов'!$A$3:$Q$3,0)),\"\")","v":""}]
[{"$f":"IFERROR(INDEX('Реестр инцидентов'!$A$4:$P$171,MATCH(INDEX($K$2:$K$24,ROUNDDOWN((ROW(B93)-3)/12,0)+1)&7,'Реестр инцидентов'!$Q$4:$Q$171,0),MATCH(A$1,'Реестр инцидентов'!$A$3:$Q$3,0)),\"\")","v":""},{"$f":"IFERROR(INDEX('Реестр инцидентов'!$A$4:$P$171,MATCH(INDEX($K$2:$K$24,ROUNDDOWN((ROW(C93)-3)/12,0)+1)&7,'Реестр инцидентов'!$Q$4:$Q$171,0),MATCH(B$1,'Реестр инцидентов'!$A$3:$Q$3,0)),\"\")","v":""},{"$f":"IFERROR(INDEX('Реестр инцидентов'!$A$4:$P$171,MATCH(INDEX($K$2:$K$24,ROUNDDOWN((ROW(D93)-3)/12,0)+1)&7,'Реестр инцидентов'!$Q$4:$Q$171,0),MATCH(C$1,'Реестр инцидентов'!$A$3:$Q$3,0)),\"\")","v":""},{"$f":"IFERROR(INDEX('Реестр инцидентов'!$A$4:$P$171,MATCH(INDEX($K$2:$K$24,ROUNDDOWN((ROW(E93)-3)/12,0)+1)&7,'Реестр инцидентов'!$Q$4:$Q$171,0),MATCH(D$1,'Реестр инцидентов'!$A$3:$Q$3,0)),\"\")","v":""},{"$f":"IFERROR(INDEX('Реестр инцидентов'!$A$4:$P$171,MATCH(INDEX($K$2:$K$24,ROUNDDOWN((ROW(F93)-3)/12,0)+1)&7,'Реестр инцидентов'!$Q$4:$Q$171,0),MATCH(E$1,'Реестр инцидентов'!$A$3:$Q$3,0)),\"\")","v":""}]
[{"$f":"IFERROR(INDEX('Реестр инцидентов'!$A$4:$P$171,MATCH(INDEX($K$2:$K$24,ROUNDDOWN((ROW(B94)-3)/12,0)+1)&8,'Реестр инцидентов'!$Q$4:$Q$171,0),MATCH(A$1,'Реестр инцидентов'!$A$3:$Q$3,0)),\"\")","v":""},{"$f":"IFERROR(INDEX('Реестр инцидентов'!$A$4:$P$171,MATCH(INDEX($K$2:$K$24,ROUNDDOWN((ROW(C94)-3)/12,0)+1)&8,'Реестр инцидентов'!$Q$4:$Q$171,0),MATCH(B$1,'Реестр инцидентов'!$A$3:$Q$3,0)),\"\")","v":""},{"$f":"IFERROR(INDEX('Реестр инцидентов'!$A$4:$P$171,MATCH(INDEX($K$2:$K$24,ROUNDDOWN((ROW(D94)-3)/12,0)+1)&8,'Реестр инцидентов'!$Q$4:$Q$171,0),MATCH(C$1,'Реестр инцидентов'!$A$3:$Q$3,0)),\"\")","v":""},{"$f":"IFERROR(INDEX('Реестр инцидентов'!$A$4:$P$171,MATCH(INDEX($K$2:$K$24,ROUNDDOWN((ROW(E94)-3)/12,0)+1)&8,'Реестр инцидентов'!$Q$4:$Q$171,0),MATCH(D$1,'Реестр инцидентов'!$A$3:$Q$3,0)),\"\")","v":""},{"$f":"IFERROR(INDEX('Реестр инцидентов'!$A$4:$P$171,MATCH(INDEX($K$2:$K$24,ROUNDDOWN((ROW(F94)-3)/12,0)+1)&8,'Реестр инцидентов'!$Q$4:$Q$171,0),MATCH(E$1,'Реестр инцидентов'!$A$3:$Q$3,0)),\"\")","v":""}]
[{"$f":"IFERROR(INDEX('Реестр инцидентов'!$A$4:$P$171,MATCH(INDEX($K$2:$K$24,ROUNDDOWN((ROW(B95)-3)/12,0)+1)&9,'Реестр инцидентов'!$Q$4:$Q$171,0),MATCH(A$1,'Реестр инцидентов'!$A$3:$Q$3,0)),\"\")","v":""},{"$f":"IFERROR(INDEX('Реестр инцидентов'!$A$4:$P$171,MATCH(INDEX($K$2:$K$24,ROUNDDOWN((ROW(C95)-3)/12,0)+1)&9,'Реестр инцидентов'!$Q$4:$Q$171,0),MATCH(B$1,'Реестр инцидентов'!$A$3:$Q$3,0)),\"\")","v":""},{"$f":"IFERROR(INDEX('Реестр инцидентов'!$A$4:$P$171,MATCH(INDEX($K$2:$K$24,ROUNDDOWN((ROW(D95)-3)/12,0)+1)&9,'Реестр инцидентов'!$Q$4:$Q$171,0),MATCH(C$1,'Реестр инцидентов'!$A$3:$Q$3,0)),\"\")","v":""},{"$f":"IFERROR(INDEX('Реестр инцидентов'!$A$4:$P$171,MATCH(INDEX($K$2:$K$24,ROUNDDOWN((ROW(E95)-3)/12,0)+1)&9,'Реестр инцидентов'!$Q$4:$Q$171,0),MATCH(D$1,'Реестр инцидентов'!$A$3:$Q$3,0)),\"\")","v":""},{"$f":"IFERROR(INDEX('Реестр инцидентов'!$A$4:$P$171,MATCH(INDEX($K$2:$K$24,ROUNDDOWN((ROW(F95)-3)/12,0)+1)&9,'Реестр инцидентов'!$Q$4:$Q$171,0),MATCH(E$1,'Реестр инцидентов'!$A$3:$Q$3,0)),\"\")","v":""}]
[{"$f":"IFERROR(INDEX('Реестр инцидентов'!$A$4:$P$171,MATCH(INDEX($K$2:$K$24,ROUNDDOWN((ROW(B96)-3)/12,0)+1)&10,'Реестр инцидентов'!$Q$4:$Q$171,0),MATCH(A$1,'Реестр инцидентов'!$A$3:$Q$3,0)),\"\")","v":""},{"$f":"IFERROR(INDEX('Реестр инцидентов'!$A$4:$P$171,MATCH(INDEX($K$2:$K$24,ROUNDDOWN((ROW(C96)-3)/12,0)+1)&10,'Реестр инцидентов'!$Q$4:$Q$171,0),MATCH(B$1,'Реестр инцидентов'!$A$3:$Q$3,0)),\"\")","v":""},{"$f":"IFERROR(INDEX('Реестр инцидентов'!$A$4:$P$171,MATCH(INDEX($K$2:$K$24,ROUNDDOWN((ROW(D96)-3)/12,0)+1)&10,'Реестр инцидентов'!$Q$4:$Q$171,0),MATCH(C$1,'Реестр инцидентов'!$A$3:$Q$3,0)),\"\")","v":""},{"$f":"IFERROR(INDEX('Реестр инцидентов'!$A$4:$P$171,MATCH(INDEX($K$2:$K$24,ROUNDDOWN((ROW(E96)-3)/12,0)+1)&10,'Реестр инцидентов'!$Q$4:$Q$171,0),MATCH(D$1,'Реестр инцидентов'!$A$3:$Q$3,0)),\"\")","v":""},{"$f":"IFERROR(INDEX('Реестр инцидентов'!$A$4:$P$171,MATCH(INDEX($K$2:$K$24,ROUNDDOWN((ROW(F96)-3)/12,0)+1)&10,'Реестр инцидентов'!$Q$4:$Q$171,0),MATCH(E$1,'Реестр инцидентов'!$A$3:$Q$3,0)),\"\")","v":""}]
[{"$f":"IFERROR(INDEX('Реестр инцидентов'!$A$4:$P$171,MATCH(INDEX($K$2:$K$24,ROUNDDOWN((ROW(B97)-3)/12,0)+1)&11,'Реестр инцидентов'!$Q$4:$Q$171,0),MATCH(A$1,'Реестр инцидентов'!$A$3:$Q$3,0)),\"\")","v":""},{"$f":"IFERROR(INDEX('Реестр инцидентов'!$A$4:$P$171,MATCH(INDEX($K$2:$K$24,ROUNDDOWN((ROW(C97)-3)/12,0)+1)&11,'Реестр инцидентов'!$Q$4:$Q$171,0),MATCH(B$1,'Реестр инцидентов'!$A$3:$Q$3,0)),\"\")","v":""},{"$f":"IFERROR(INDEX('Реестр инцидентов'!$A$4:$P$171,MATCH(INDEX($K$2:$K$24,ROUNDDOWN((ROW(D97)-3)/12,0)+1)&11,'Реестр инцидентов'!$Q$4:$Q$171,0),MATCH(C$1,'Реестр инцидентов'!$A$3:$Q$3,0)),\"\")","v":""},{"$f":"IFERROR(INDEX('Реестр инцидентов'!$A$4:$P$171,MATCH(INDEX($K$2:$K$24,ROUNDDOWN((ROW(E97)-3)/12,0)+1)&11,'Реестр инцидентов'!$Q$4:$Q$171,0),MATCH(D$1,'Реестр инцидентов'!$A$3:$Q$3,0)),\"\")","v":""},{"$f":"IFERROR(INDEX('Реестр инцидентов'!$A$4:$P$171,MATCH(INDEX($K$2:$K$24,ROUNDDOWN((ROW(F97)-3)/12,0)+1)&11,'Реестр инцидентов'!$Q$4:$Q$171,0),MATCH(E$1,'Реестр инцидентов'!$A$3:$Q$3,0)),\"\")","v":""}]
[{"$f":"IFERROR(INDEX($L$2:$L$23,ROUNDDOWN((ROW(B99)-3)/12,0)+1),\"\")","v":"Демченко Андрей Олегович"}]
[{"$f":"IFERROR(INDEX('Реестр инцидентов'!$A$4:$P$171,MATCH(INDEX($K$2:$K$24,ROUNDDOWN((ROW(B99)-3)/12,0)+1)&1,'Реестр инцидентов'!$Q$4:$Q$171,0),MATCH(A$1,'Реестр инцидентов'!$A$3:$Q$3,0)),\"\")","v":""},{"$f":"IFERROR(INDEX('Реестр инцидентов'!$A$4:$P$171,MATCH(INDEX($K$2:$K$24,ROUNDDOWN((ROW(C99)-3)/12,0)+1)&1,'Реестр инцидентов'!$Q$4:$Q$171,0),MATCH(B$1,'Реестр инцидентов'!$A$3:$Q$3,0)),\"\")","v":""},{"$f":"IFERROR(INDEX('Реестр инцидентов'!$A$4:$P$171,MATCH(INDEX($K$2:$K$24,ROUNDDOWN((ROW(D99)-3)/12,0)+1)&1,'Реестр инцидентов'!$Q$4:$Q$171,0),MATCH(C$1,'Реестр инцидентов'!$A$3:$Q$3,0)),\"\")","v":""},{"$f":"IFERROR(INDEX('Реестр инцидентов'!$A$4:$P$171,MATCH(INDEX($K$2:$K$24,ROUNDDOWN((ROW(E99)-3)/12,0)+1)&1,'Реестр инцидентов'!$Q$4:$Q$171,0),MATCH(D$1,'Реестр инцидентов'!$A$3:$Q$3,0)),\"\")","v":""},{"$f":"IFERROR(INDEX('Реестр инцидентов'!$A$4:$P$171,MATCH(INDEX($K$2:$K$24,ROUNDDOWN((ROW(F99)-3)/12,0)+1)&1,'Реестр инцидентов'!$Q$4:$Q$171,0),MATCH(E$1,'Реестр инцидентов'!$A$3:$Q$3,0)),\"\")","v":""}]
[{"$f":"IFERROR(INDEX('Реестр инцидентов'!$A$4:$P$171,MATCH(INDEX($K$2:$K$24,ROUNDDOWN((ROW(B100)-3)/12,0)+1)&2,'Реестр инцидентов'!$Q$4:$Q$171,0),MATCH(A$1,'Реестр инцидентов'!$A$3:$Q$3,0)),\"\")","v":""},{"$f":"IFERROR(INDEX('Реестр инцидентов'!$A$4:$P$171,MATCH(INDEX($K$2:$K$24,ROUNDDOWN((ROW(C100)-3)/12,0)+1)&2,'Реестр инцидентов'!$Q$4:$Q$171,0),MATCH(B$1,'Реестр инцидентов'!$A$3:$Q$3,0)),\"\")","v":""},{"$f":"IFERROR(INDEX('Реестр инцидентов'!$A$4:$P$171,MATCH(INDEX($K$2:$K$24,ROUNDDOWN((ROW(D100)-3)/12,0)+1)&2,'Реестр инцидентов'!$Q$4:$Q$171,0),MATCH(C$1,'Реестр инцидентов'!$A$3:$Q$3,0)),\"\")","v":""},{"$f":"IFERROR(INDEX('Реестр инцидентов'!$A$4:$P$171,MATCH(INDEX($K$2:$K$24,ROUNDDOWN((ROW(E100)-3)/12,0)+1)&2,'Реестр инцидентов'!$Q$4:$Q$171,0),MATCH(D$1,'Реестр инцидентов'!$A$3:$Q$3,0)),\"\")","v":""},{"$f":"IFERROR(INDEX('Реестр инцидентов'!$A$4:$P$171,MATCH(INDEX($K$2:$K$24,ROUNDDOWN((ROW(F100)-3)/12,0)+1)&2,'Реестр инцидентов'!$Q$4:$Q$171,0),MATCH(E$1,'Реестр инцидентов'!$A$3:$Q$3,0)),\"\")","v":""}]
[{"$f":"IFERROR(INDEX('Реестр инцидентов'!$A$4:$P$171,MATCH(INDEX($K$2:$K$24,ROUNDDOWN((ROW(B101)-3)/12,0)+1)&3,'Реестр инцидентов'!$Q$4:$Q$171,0),MATCH(A$1,'Реестр инцидентов'!$A$3:$Q$3,0)),\"\")","v":""},{"$f":"IFERROR(INDEX('Реестр инцидентов'!$A$4:$P$171,MATCH(INDEX($K$2:$K$24,ROUNDDOWN((ROW(C101)-3)/12,0)+1)&3,'Реестр инцидентов'!$Q$4:$Q$171,0),MATCH(B$1,'Реестр инцидентов'!$A$3:$Q$3,0)),\"\")","v":""},{"$f":"IFERROR(INDEX('Реестр инцидентов'!$A$4:$P$171,MATCH(INDEX($K$2:$K$24,ROUNDDOWN((ROW(D101)-3)/12,0)+1)&3,'Реестр инцидентов'!$Q$4:$Q$171,0),MATCH(C$1,'Реестр инцидентов'!$A$3:$Q$3,0)),\"\")","v":""},{"$f":"IFERROR(INDEX('Реестр инцидентов'!$A$4:$P$171,MATCH(INDEX($K$2:$K$24,ROUNDDOWN((ROW(E101)-3)/12,0)+1)&3,'Реестр инцидентов'!$Q$4:$Q$171,0),MATCH(D$1,'Реестр инцидентов'!$A$3:$Q$3,0)),\"\")","v":""},{"$f":"IFERROR(INDEX('Реестр инцидентов'!$A$4:$P$171,MATCH(INDEX($K$2:$K$24,ROUNDDOWN((ROW(F101)-3)/12,0)+1)&3,'Реестр инцидентов'!$Q$4:$Q$171,0),MATCH(E$1,'Реестр инцидентов'!$A$3:$Q$3,0)),\"\")","v":""}]
[{"$f":"IFERROR(INDEX('Реестр инцидентов'!$A$4:$P$171,MATCH(INDEX($K$2:$K$24,ROUNDDOWN((ROW(B102)-3)/12,0)+1)&4,'Реестр инцидентов'!$Q$4:$Q$171,0),MATCH(A$1,'Реестр инцидентов'!$A$3:$Q$3,0)),\"\")","v":""},{"$f":"IFERROR(INDEX('Реестр инцидентов'!$A$4:$P$171,MATCH(INDEX($K$2:$K$24,ROUNDDOWN((ROW(C102)-3)/12,0)+1)&4,'Реестр инцидентов'!$Q$4:$Q$171,0),MATCH(B$1,'Реестр инцидентов'!$A$3:$Q$3,0)),\"\")","v":""},{"$f":"IFERROR(INDEX('Реестр инцидентов'!$A$4:$P$171,MATCH(INDEX($K$2:$K$24,ROUNDDOWN((ROW(D102)-3)/12,0)+1)&4,'Реестр инцидентов'!$Q$4:$Q$171,0),MATCH(C$1,'Реестр инцидентов'!$A$3:$Q$3,0)),\"\")","v":""},{"$f":"IFERROR(INDEX('Реестр инцидентов'!$A$4:$P$171,MATCH(INDEX($K$2:$K$24,ROUNDDOWN((ROW(E102)-3)/12,0)+1)&4,'Реестр инцидентов'!$Q$4:$Q$171,0),MATCH(D$1,'Реестр инцидентов'!$A$3:$Q$3,0)),\"\")","v":""},{"$f":"IFERROR(INDEX('Реестр инцидентов'!$A$4:$P$171,MATCH(INDEX($K$2:$K$24,ROUNDDOWN((ROW(F102)-3)/12,0)+1)&4,'Реестр инцидентов'!$Q$4:$Q$171,0),MATCH(E$1,'Реестр инцидентов'!$A$3:$Q$3,0)),\"\")","v":""}]
[{"$f":"IFERROR(INDEX('Реестр инцидентов'!$A$4:$P$171,MATCH(INDEX($K$2:$K$24,ROUNDDOWN((ROW(B103)-3)/12,0)+1)&5,'Реестр инцидентов'!$Q$4:$Q$171,0),MATCH(A$1,'Реестр инцидентов'!$A$3:$Q$3,0)),\"\")","v":""},{"$f":"IFERROR(INDEX('Реестр инцидентов'!$A$4:$P$171,MATCH(INDEX($K$2:$K$24,ROUNDDOWN((ROW(C103)-3)/12,0)+1)&5,'Реестр инцидентов'!$Q$4:$Q$171,0),MATCH(B$1,'Реестр инцидентов'!$A$3:$Q$3,0)),\"\")","v":""},{"$f":"IFERROR(INDEX('Реестр инцидентов'!$A$4:$P$171,MATCH(INDEX($K$2:$K$24,ROUNDDOWN((ROW(D103)-3)/12,0)+1)&5,'Реестр инцидентов'!$Q$4:$Q$171,0),MATCH(C$1,'Реестр инцидентов'!$A$3:$Q$3,0)),\"\")","v":""},{"$f":"IFERROR(INDEX('Реестр инцидентов'!$A$4:$P$171,MATCH(INDEX($K$2:$K$24,ROUNDDOWN((ROW(E103)-3)/12,0)+1)&5,'Реестр инцидентов'!$Q$4:$Q$171,0),MATCH(D$1,'Реестр инцидентов'!$A$3:$Q$3,0)),\"\")","v":""},{"$f":"IFERROR(INDEX('Реестр инцидентов'!$A$4:$P$171,MATCH(INDEX($K$2:$K$24,ROUNDDOWN((ROW(F103)-3)/12,0)+1)&5,'Реестр инцидентов'!$Q$4:$Q$171,0),MATCH(E$1,'Реестр инцидентов'!$A$3:$Q$3,0)),\"\")","v":""}]
[{"$f":"IFERROR(INDEX('Реестр инцидентов'!$A$4:$P$171,MATCH(INDEX($K$2:$K$24,ROUNDDOWN((ROW(B104)-3)/12,0)+1)&6,'Реестр инцидентов'!$Q$4:$Q$171,0),MATCH(A$1,'Реестр инцидентов'!$A$3:$Q$3,0)),\"\")","v":""},{"$f":"IFERROR(INDEX('Реестр инцидентов'!$A$4:$P$171,MATCH(INDEX($K$2:$K$24,ROUNDDOWN((ROW(C104)-3)/12,0)+1)&6,'Реестр инцидентов'!$Q$4:$Q$171,0),MATCH(B$1,'Реестр инцидентов'!$A$3:$Q$3,0)),\"\")","v":""},{"$f":"IFERROR(INDEX('Реестр инцидентов'!$A$4:$P$171,MATCH(INDEX($K$2:$K$24,ROUNDDOWN((ROW(D104)-3)/12,0)+1)&6,'Реестр инцидентов'!$Q$4:$Q$171,0),MATCH(C$1,'Реестр инцидентов'!$A$3:$Q$3,0)),\"\")","v":""},{"$f":"IFERROR(INDEX('Реестр инцидентов'!$A$4:$P$171,MATCH(INDEX($K$2:$K$24,ROUNDDOWN((ROW(E104)-3)/12,0)+1)&6,'Реестр инцидентов'!$Q$4:$Q$171,0),MATCH(D$1,'Реестр инцидентов'!$A$3:$Q$3,0)),\"\")","v":""},{"$f":"IFERROR(INDEX('Реестр инцидентов'!$A$4:$P$171,MATCH(INDEX($K$2:$K$24,ROUNDDOWN((ROW(F104)-3)/12,0)+1)&6,'Реестр инцидентов'!$Q$4:$Q$171,0),MATCH(E$1,'Реестр инцидентов'!$A$3:$Q$3,0)),\"\")","v":""}]
[{"$f":"IFERROR(INDEX('Реестр инцидентов'!$A$4:$P$171,MATCH(INDEX($K$2:$K$24,ROUNDDOWN((ROW(B105)-3)/12,0)+1)&7,'Реестр инцидентов'!$Q$4:$Q$171,0),MATCH(A$1,'Реестр инцидентов'!$A$3:$Q$3,0)),\"\")","v":""},{"$f":"IFERROR(INDEX('Реестр инцидентов'!$A$4:$P$171,MATCH(INDEX($K$2:$K$24,ROUNDDOWN((ROW(C105)-3)/12,0)+1)&7,'Реестр инцидентов'!$Q$4:$Q$171,0),MATCH(B$1,'Реестр инцидентов'!$A$3:$Q$3,0)),\"\")","v":""},{"$f":"IFERROR(INDEX('Реестр инцидентов'!$A$4:$P$171,MATCH(INDEX($K$2:$K$24,ROUNDDOWN((ROW(D105)-3)/12,0)+1)&7,'Реестр инцидентов'!$Q$4:$Q$171,0),MATCH(C$1,'Реестр инцидентов'!$A$3:$Q$3,0)),\"\")","v":""},{"$f":"IFERROR(INDEX('Реестр инцидентов'!$A$4:$P$171,MATCH(INDEX($K$2:$K$24,ROUNDDOWN((ROW(E105)-3)/12,0)+1)&7,'Реестр инцидентов'!$Q$4:$Q$171,0),MATCH(D$1,'Реестр инцидентов'!$A$3:$Q$3,0)),\"\")","v":""},{"$f":"IFERROR(INDEX('Реестр инцидентов'!$A$4:$P$171,MATCH(INDEX($K$2:$K$24,ROUNDDOWN((ROW(F105)-3)/12,0)+1)&7,'Реестр инцидентов'!$Q$4:$Q$171,0),MATCH(E$1,'Реестр инцидентов'!$A$3:$Q$3,0)),\"\")","v":""}]
[{"$f":"IFERROR(INDEX('Реестр инцидентов'!$A$4:$P$171,MATCH(INDEX($K$2:$K$24,ROUNDDOWN((ROW(B106)-3)/12,0)+1)&8,'Реестр инцидентов'!$Q$4:$Q$171,0),MATCH(A$1,'Реестр инцидентов'!$A$3:$Q$3,0)),\"\")","v":""},{"$f":"IFERROR(INDEX('Реестр инцидентов'!$A$4:$P$171,MATCH(INDEX($K$2:$K$24,ROUNDDOWN((ROW(C106)-3)/12,0)+1)&8,'Реестр инцидентов'!$Q$4:$Q$171,0),MATCH(B$1,'Реестр инцидентов'!$A$3:$Q$3,0)),\"\")","v":""},{"$f":"IFERROR(INDEX('Реестр инцидентов'!$A$4:$P$171,MATCH(INDEX($K$2:$K$24,ROUNDDOWN((ROW(D106)-3)/12,0)+1)&8,'Реестр инцидентов'!$Q$4:$Q$171,0),MATCH(C$1,'Реестр инцидентов'!$A$3:$Q$3,0)),\"\")","v":""},{"$f":"IFERROR(INDEX('Реестр инцидентов'!$A$4:$P$171,MATCH(INDEX($K$2:$K$24,ROUNDDOWN((ROW(E106)-3)/12,0)+1)&8,'Реестр инцидентов'!$Q$4:$Q$171,0),MATCH(D$1,'Реестр инцидентов'!$A$3:$Q$3,0)),\"\")","v":""},{"$f":"IFERROR(INDEX('Реестр инцидентов'!$A$4:$P$171,MATCH(INDEX($K$2:$K$24,ROUNDDOWN((ROW(F106)-3)/12,0)+1)&8,'Реестр инцидентов'!$Q$4:$Q$171,0),MATCH(E$1,'Реестр инцидентов'!$A$3:$Q$3,0)),\"\")","v":""}]
[{"$f":"IFERROR(INDEX('Реестр инцидентов'!$A$4:$P$171,MATCH(INDEX($K$2:$K$24,ROUNDDOWN((ROW(B107)-3)/12,0)+1)&9,'Реестр инцидентов'!$Q$4:$Q$171,0),MATCH(A$1,'Реестр инцидентов'!$A$3:$Q$3,0)),\"\")","v":""},{"$f":"IFERROR(INDEX('Реестр инцидентов'!$A$4:$P$171,MATCH(INDEX($K$2:$K$24,ROUNDDOWN((ROW(C107)-3)/12,0)+1)&9,'Реестр инцидентов'!$Q$4:$Q$171,0),MATCH(B$1,'Реестр инцидентов'!$A$3:$Q$3,0)),\"\")","v":""},{"$f":"IFERROR(INDEX('Реестр инцидентов'!$A$4:$P$171,MATCH(INDEX($K$2:$K$24,ROUNDDOWN((ROW(D107)-3)/12,0)+1)&9,'Реестр инцидентов'!$Q$4:$Q$171,0),MATCH(C$1,'Реестр инцидентов'!$A$3:$Q$3,0)),\"\")","v":""},{"$f":"IFERROR(INDEX('Реестр инцидентов'!$A$4:$P$171,MATCH(INDEX($K$2:$K$24,ROUNDDOWN((ROW(E107)-3)/12,0)+1)&9,'Реестр инцидентов'!$Q$4:$Q$171,0),MATCH(D$1,'Реестр инцидентов'!$A$3:$Q$3,0)),\"\")","v":""},{"$f":"IFERROR(INDEX('Реестр инцидентов'!$A$4:$P$171,MATCH(INDEX($K$2:$K$24,ROUNDDOWN((ROW(F107)-3)/12,0)+1)&9,'Реестр инцидентов'!$Q$4:$Q$171,0),MATCH(E$1,'Реестр инцидентов'!$A$3:$Q$3,0)),\"\")","v":""}]
[{"$f":"IFERROR(INDEX('Реестр инцидентов'!$A$4:$P$171,MATCH(INDEX($K$2:$K$24,ROUNDDOWN((ROW(B108)-3)/12,0)+1)&10,'Реестр инцидентов'!$Q$4:$Q$171,0),MATCH(A$1,'Реестр инцидентов'!$A$3:$Q$3,0)),\"\")","v":""},{"$f":"IFERROR(INDEX('Реестр инцидентов'!$A$4:$P$171,MATCH(INDEX($K$2:$K$24,ROUNDDOWN((ROW(C108)-3)/12,0)+1)&10,'Реестр инцидентов'!$Q$4:$Q$171,0),MATCH(B$1,'Реестр инцидентов'!$A$3:$Q$3,0)),\"\")","v":""},{"$f":"IFERROR(INDEX('Реестр инцидентов'!$A$4:$P$171,MATCH(INDEX($K$2:$K$24,ROUNDDOWN((ROW(D108)-3)/12,0)+1)&10,'Реестр инцидентов'!$Q$4:$Q$171,0),MATCH(C$1,'Реестр инцидентов'!$A$3:$Q$3,0)),\"\")","v":""},{"$f":"IFERROR(INDEX('Реестр инцидентов'!$A$4:$P$171,MATCH(INDEX($K$2:$K$24,ROUNDDOWN((ROW(E108)-3)/12,0)+1)&10,'Реестр инцидентов'!$Q$4:$Q$171,0),MATCH(D$1,'Реестр инцидентов'!$A$3:$Q$3,0)),\"\")","v":""},{"$f":"IFERROR(INDEX('Реестр инцидентов'!$A$4:$P$171,MATCH(INDEX($K$2:$K$24,ROUNDDOWN((ROW(F108)-3)/12,0)+1)&10,'Реестр инцидентов'!$Q$4:$Q$171,0),MATCH(E$1,'Реестр инцидентов'!$A$3:$Q$3,0)),\"\")","v":""}]
[{"$f":"IFERROR(INDEX('Реестр инцидентов'!$A$4:$P$171,MATCH(INDEX($K$2:$K$24,ROUNDDOWN((ROW(B109)-3)/12,0)+1)&11,'Реестр инцидентов'!$Q$4:$Q$171,0),MATCH(A$1,'Реестр инцидентов'!$A$3:$Q$3,0)),\"\")","v":""},{"$f":"IFERROR(INDEX('Реестр инцидентов'!$A$4:$P$171,MATCH(INDEX($K$2:$K$24,ROUNDDOWN((ROW(C109)-3)/12,0)+1)&11,'Реестр инцидентов'!$Q$4:$Q$171,0),MATCH(B$1,'Реестр инцидентов'!$A$3:$Q$3,0)),\"\")","v":""},{"$f":"IFERROR(INDEX('Реестр инцидентов'!$A$4:$P$171,MATCH(INDEX($K$2:$K$24,ROUNDDOWN((ROW(D109)-3)/12,0)+1)&11,'Реестр инцидентов'!$Q$4:$Q$171,0),MATCH(C$1,'Реестр инцидентов'!$A$3:$Q$3,0)),\"\")","v":""},{"$f":"IFERROR(INDEX('Реестр инцидентов'!$A$4:$P$171,MATCH(INDEX($K$2:$K$24,ROUNDDOWN((ROW(E109)-3)/12,0)+1)&11,'Реестр инцидентов'!$Q$4:$Q$171,0),MATCH(D$1,'Реестр инцидентов'!$A$3:$Q$3,0)),\"\")","v":""},{"$f":"IFERROR(INDEX('Реестр инцидентов'!$A$4:$P$171,MATCH(INDEX($K$2:$K$24,ROUNDDOWN((ROW(F109)-3)/12,0)+1)&11,'Реестр инцидентов'!$Q$4:$Q$171,0),MATCH(E$1,'Реестр инцидентов'!$A$3:$Q$3,0)),\"\")","v":""}]
[{"$f":"IFERROR(INDEX($L$2:$L$23,ROUNDDOWN((ROW(B111)-3)/12,0)+1),\"\")","v":"Долгов Иван Андреевич"}]
[{"$f":"IFERROR(INDEX('Реестр инцидентов'!$A$4:$P$171,MATCH(INDEX($K$2:$K$24,ROUNDDOWN((ROW(B111)-3)/12,0)+1)&1,'Реестр инцидентов'!$Q$4:$Q$171,0),MATCH(A$1,'Реестр инцидентов'!$A$3:$Q$3,0)),\"\")","v":"Иван Долгов"},{"$f":"IFERROR(INDEX('Реестр инцидентов'!$A$4:$P$171,MATCH(INDEX($K$2:$K$24,ROUNDDOWN((ROW(C111)-3)/12,0)+1)&1,'Реестр инцидентов'!$Q$4:$Q$171,0),MATCH(B$1,'Реестр инцидентов'!$A$3:$Q$3,0)),\"\")","v":"150707/2081.1"},{"$f":"IFERROR(INDEX('Реестр инцидентов'!$A$4:$P$171,MATCH(INDEX($K$2:$K$24,ROUNDDOWN((ROW(D111)-3)/12,0)+1)&1,'Реестр инцидентов'!$Q$4:$Q$171,0),MATCH(C$1,'Реестр инцидентов'!$A$3:$Q$3,0)),\"\")","v":"2015-07-07T15:29:11"},{"$f":"IFERROR(INDEX('Реестр инцидентов'!$A$4:$P$171,MATCH(INDEX($K$2:$K$24,ROUNDDOWN((ROW(E111)-3)/12,0)+1)&1,'Реестр инцидентов'!$Q$4:$Q$171,0),MATCH(D$1,'Реестр инцидентов'!$A$3:$Q$3,0)),\"\")","v":"Разрешено"},{"$f":"IFERROR(INDEX('Реестр инцидентов'!$A$4:$P$171,MATCH(INDEX($K$2:$K$24,ROUNDDOWN((ROW(F111)-3)/12,0)+1)&1,'Реестр инцидентов'!$Q$4:$Q$171,0),MATCH(E$1,'Реестр инцидентов'!$A$3:$Q$3,0)),\"\")","v":"Есть сценарий"}]
[{"$f":"IFERROR(INDEX('Реестр инцидентов'!$A$4:$P$171,MATCH(INDEX($K$2:$K$24,ROUNDDOWN((ROW(B112)-3)/12,0)+1)&2,'Реестр инцидентов'!$Q$4:$Q$171,0),MATCH(A$1,'Реестр инцидентов'!$A$3:$Q$3,0)),\"\")","v":""},{"$f":"IFERROR(INDEX('Реестр инцидентов'!$A$4:$P$171,MATCH(INDEX($K$2:$K$24,ROUNDDOWN((ROW(C112)-3)/12,0)+1)&2,'Реестр инцидентов'!$Q$4:$Q$171,0),MATCH(B$1,'Реестр инцидентов'!$A$3:$Q$3,0)),\"\")","v":""},{"$f":"IFERROR(INDEX('Реестр инцидентов'!$A$4:$P$171,MATCH(INDEX($K$2:$K$24,ROUNDDOWN((ROW(D112)-3)/12,0)+1)&2,'Реестр инцидентов'!$Q$4:$Q$171,0),MATCH(C$1,'Реестр инцидентов'!$A$3:$Q$3,0)),\"\")","v":""},{"$f":"IFERROR(INDEX('Реестр инцидентов'!$A$4:$P$171,MATCH(INDEX($K$2:$K$24,ROUNDDOWN((ROW(E112)-3)/12,0)+1)&2,'Реестр инцидентов'!$Q$4:$Q$171,0),MATCH(D$1,'Реестр инцидентов'!$A$3:$Q$3,0)),\"\")","v":""},{"$f":"IFERROR(INDEX('Реестр инцидентов'!$A$4:$P$171,MATCH(INDEX($K$2:$K$24,ROUNDDOWN((ROW(F112)-3)/12,0)+1)&2,'Реестр инцидентов'!$Q$4:$Q$171,0),MATCH(E$1,'Реестр инцидентов'!$A$3:$Q$3,0)),\"\")","v":""}]
[{"$f":"IFERROR(INDEX('Реестр инцидентов'!$A$4:$P$171,MATCH(INDEX($K$2:$K$24,ROUNDDOWN((ROW(B113)-3)/12,0)+1)&3,'Реестр инцидентов'!$Q$4:$Q$171,0),MATCH(A$1,'Реестр инцидентов'!$A$3:$Q$3,0)),\"\")","v":""},{"$f":"IFERROR(INDEX('Реестр инцидентов'!$A$4:$P$171,MATCH(INDEX($K$2:$K$24,ROUNDDOWN((ROW(C113)-3)/12,0)+1)&3,'Реестр инцидентов'!$Q$4:$Q$171,0),MATCH(B$1,'Реестр инцидентов'!$A$3:$Q$3,0)),\"\")","v":""},{"$f":"IFERROR(INDEX('Реестр инцидентов'!$A$4:$P$171,MATCH(INDEX($K$2:$K$24,ROUNDDOWN((ROW(D113)-3)/12,0)+1)&3,'Реестр инцидентов'!$Q$4:$Q$171,0),MATCH(C$1,'Реестр инцидентов'!$A$3:$Q$3,0)),\"\")","v":""},{"$f":"IFERROR(INDEX('Реестр инцидентов'!$A$4:$P$171,MATCH(INDEX($K$2:$K$24,ROUNDDOWN((ROW(E113)-3)/12,0)+1)&3,'Реестр инцидентов'!$Q$4:$Q$171,0),MATCH(D$1,'Реестр инцидентов'!$A$3:$Q$3,0)),\"\")","v":""},{"$f":"IFERROR(INDEX('Реестр инцидентов'!$A$4:$P$171,MATCH(INDEX($K$2:$K$24,ROUNDDOWN((ROW(F113)-3)/12,0)+1)&3,'Реестр инцидентов'!$Q$4:$Q$171,0),MATCH(E$1,'Реестр инцидентов'!$A$3:$Q$3,0)),\"\")","v":""}]
[{"$f":"IFERROR(INDEX('Реестр инцидентов'!$A$4:$P$171,MATCH(INDEX($K$2:$K$24,ROUNDDOWN((ROW(B114)-3)/12,0)+1)&4,'Реестр инцидентов'!$Q$4:$Q$171,0),MATCH(A$1,'Реестр инцидентов'!$A$3:$Q$3,0)),\"\")","v":""},{"$f":"IFERROR(INDEX('Реестр инцидентов'!$A$4:$P$171,MATCH(INDEX($K$2:$K$24,ROUNDDOWN((ROW(C114)-3)/12,0)+1)&4,'Реестр инцидентов'!$Q$4:$Q$171,0),MATCH(B$1,'Реестр инцидентов'!$A$3:$Q$3,0)),\"\")","v":""},{"$f":"IFERROR(INDEX('Реестр инцидентов'!$A$4:$P$171,MATCH(INDEX($K$2:$K$24,ROUNDDOWN((ROW(D114)-3)/12,0)+1)&4,'Реестр инцидентов'!$Q$4:$Q$171,0),MATCH(C$1,'Реестр инцидентов'!$A$3:$Q$3,0)),\"\")","v":""},{"$f":"IFERROR(INDEX('Реестр инцидентов'!$A$4:$P$171,MATCH(INDEX($K$2:$K$24,ROUNDDOWN((ROW(E114)-3)/12,0)+1)&4,'Реестр инцидентов'!$Q$4:$Q$171,0),MATCH(D$1,'Реестр инцидентов'!$A$3:$Q$3,0)),\"\")","v":""},{"$f":"IFERROR(INDEX('Реестр инцидентов'!$A$4:$P$171,MATCH(INDEX($K$2:$K$24,ROUNDDOWN((ROW(F114)-3)/12,0)+1)&4,'Реестр инцидентов'!$Q$4:$Q$171,0),MATCH(E$1,'Реестр инцидентов'!$A$3:$Q$3,0)),\"\")","v":""}]
[{"$f":"IFERROR(INDEX('Реестр инцидентов'!$A$4:$P$171,MATCH(INDEX($K$2:$K$24,ROUNDDOWN((ROW(B115)-3)/12,0)+1)&5,'Реестр инцидентов'!$Q$4:$Q$171,0),MATCH(A$1,'Реестр инцидентов'!$A$3:$Q$3,0)),\"\")","v":""},{"$f":"IFERROR(INDEX('Реестр инцидентов'!$A$4:$P$171,MATCH(INDEX($K$2:$K$24,ROUNDDOWN((ROW(C115)-3)/12,0)+1)&5,'Реестр инцидентов'!$Q$4:$Q$171,0),MATCH(B$1,'Реестр инцидентов'!$A$3:$Q$3,0)),\"\")","v":""},{"$f":"IFERROR(INDEX('Реестр инцидентов'!$A$4:$P$171,MATCH(INDEX($K$2:$K$24,ROUNDDOWN((ROW(D115)-3)/12,0)+1)&5,'Реестр инцидентов'!$Q$4:$Q$171,0),MATCH(C$1,'Реестр инцидентов'!$A$3:$Q$3,0)),\"\")","v":""},{"$f":"IFERROR(INDEX('Реестр инцидентов'!$A$4:$P$171,MATCH(INDEX($K$2:$K$24,ROUNDDOWN((ROW(E115)-3)/12,0)+1)&5,'Реестр инцидентов'!$Q$4:$Q$171,0),MATCH(D$1,'Реестр инцидентов'!$A$3:$Q$3,0)),\"\")","v":""},{"$f":"IFERROR(INDEX('Реестр инцидентов'!$A$4:$P$171,MATCH(INDEX($K$2:$K$24,ROUNDDOWN((ROW(F115)-3)/12,0)+1)&5,'Реестр инцидентов'!$Q$4:$Q$171,0),MATCH(E$1,'Реестр инцидентов'!$A$3:$Q$3,0)),\"\")","v":""}]
[{"$f":"IFERROR(INDEX('Реестр инцидентов'!$A$4:$P$171,MATCH(INDEX($K$2:$K$24,ROUNDDOWN((ROW(B116)-3)/12,0)+1)&6,'Реестр инцидентов'!$Q$4:$Q$171,0),MATCH(A$1,'Реестр инцидентов'!$A$3:$Q$3,0)),\"\")","v":""},{"$f":"IFERROR(INDEX('Реестр инцидентов'!$A$4:$P$171,MATCH(INDEX($K$2:$K$24,ROUNDDOWN((ROW(C116)-3)/12,0)+1)&6,'Реестр инцидентов'!$Q$4:$Q$171,0),MATCH(B$1,'Реестр инцидентов'!$A$3:$Q$3,0)),\"\")","v":""},{"$f":"IFERROR(INDEX('Реестр инцидентов'!$A$4:$P$171,MATCH(INDEX($K$2:$K$24,ROUNDDOWN((ROW(D116)-3)/12,0)+1)&6,'Реестр инцидентов'!$Q$4:$Q$171,0),MATCH(C$1,'Реестр инцидентов'!$A$3:$Q$3,0)),\"\")","v":""},{"$f":"IFERROR(INDEX('Реестр инцидентов'!$A$4:$P$171,MATCH(INDEX($K$2:$K$24,ROUNDDOWN((ROW(E116)-3)/12,0)+1)&6,'Реестр инцидентов'!$Q$4:$Q$171,0),MATCH(D$1,'Реестр инцидентов'!$A$3:$Q$3,0)),\"\")","v":""},{"$f":"IFERROR(INDEX('Реестр инцидентов'!$A$4:$P$171,MATCH(INDEX($K$2:$K$24,ROUNDDOWN((ROW(F116)-3)/12,0)+1)&6,'Реестр инцидентов'!$Q$4:$Q$171,0),MATCH(E$1,'Реестр инцидентов'!$A$3:$Q$3,0)),\"\")","v":""}]
[{"$f":"IFERROR(INDEX('Реестр инцидентов'!$A$4:$P$171,MATCH(INDEX($K$2:$K$24,ROUNDDOWN((ROW(B117)-3)/12,0)+1)&7,'Реестр инцидентов'!$Q$4:$Q$171,0),MATCH(A$1,'Реестр инцидентов'!$A$3:$Q$3,0)),\"\")","v":""},{"$f":"IFERROR(INDEX('Реестр инцидентов'!$A$4:$P$171,MATCH(INDEX($K$2:$K$24,ROUNDDOWN((ROW(C117)-3)/12,0)+1)&7,'Реестр инцидентов'!$Q$4:$Q$171,0),MATCH(B$1,'Реестр инцидентов'!$A$3:$Q$3,0)),\"\")","v":""},{"$f":"IFERROR(INDEX('Реестр инцидентов'!$A$4:$P$171,MATCH(INDEX($K$2:$K$24,ROUNDDOWN((ROW(D117)-3)/12,0)+1)&7,'Реестр инцидентов'!$Q$4:$Q$171,0),MATCH(C$1,'Реестр инцидентов'!$A$3:$Q$3,0)),\"\")","v":""},{"$f":"IFERROR(INDEX('Реестр инцидентов'!$A$4:$P$171,MATCH(INDEX($K$2:$K$24,ROUNDDOWN((ROW(E117)-3)/12,0)+1)&7,'Реестр инцидентов'!$Q$4:$Q$171,0),MATCH(D$1,'Реестр инцидентов'!$A$3:$Q$3,0)),\"\")","v":""},{"$f":"IFERROR(INDEX('Реестр инцидентов'!$A$4:$P$171,MATCH(INDEX($K$2:$K$24,ROUNDDOWN((ROW(F117)-3)/12,0)+1)&7,'Реестр инцидентов'!$Q$4:$Q$171,0),MATCH(E$1,'Реестр инцидентов'!$A$3:$Q$3,0)),\"\")","v":""}]
[{"$f":"IFERROR(INDEX('Реестр инцидентов'!$A$4:$P$171,MATCH(INDEX($K$2:$K$24,ROUNDDOWN((ROW(B118)-3)/12,0)+1)&8,'Реестр инцидентов'!$Q$4:$Q$171,0),MATCH(A$1,'Реестр инцидентов'!$A$3:$Q$3,0)),\"\")","v":""},{"$f":"IFERROR(INDEX('Реестр инцидентов'!$A$4:$P$171,MATCH(INDEX($K$2:$K$24,ROUNDDOWN((ROW(C118)-3)/12,0)+1)&8,'Реестр инцидентов'!$Q$4:$Q$171,0),MATCH(B$1,'Реестр инцидентов'!$A$3:$Q$3,0)),\"\")","v":""},{"$f":"IFERROR(INDEX('Реестр инцидентов'!$A$4:$P$171,MATCH(INDEX($K$2:$K$24,ROUNDDOWN((ROW(D118)-3)/12,0)+1)&8,'Реестр инцидентов'!$Q$4:$Q$171,0),MATCH(C$1,'Реестр инцидентов'!$A$3:$Q$3,0)),\"\")","v":""},{"$f":"IFERROR(INDEX('Реестр инцидентов'!$A$4:$P$171,MATCH(INDEX($K$2:$K$24,ROUNDDOWN((ROW(E118)-3)/12,0)+1)&8,'Реестр инцидентов'!$Q$4:$Q$171,0),MATCH(D$1,'Реестр инцидентов'!$A$3:$Q$3,0)),\"\")","v":""},{"$f":"IFERROR(INDEX('Реестр инцидентов'!$A$4:$P$171,MATCH(INDEX($K$2:$K$24,ROUNDDOWN((ROW(F118)-3)/12,0)+1)&8,'Реестр инцидентов'!$Q$4:$Q$171,0),MATCH(E$1,'Реестр инцидентов'!$A$3:$Q$3,0)),\"\")","v":""}]
[{"$f":"IFERROR(INDEX('Реестр инцидентов'!$A$4:$P$171,MATCH(INDEX($K$2:$K$24,ROUNDDOWN((ROW(B119)-3)/12,0)+1)&9,'Реестр инцидентов'!$Q$4:$Q$171,0),MATCH(A$1,'Реестр инцидентов'!$A$3:$Q$3,0)),\"\")","v":""},{"$f":"IFERROR(INDEX('Реестр инцидентов'!$A$4:$P$171,MATCH(INDEX($K$2:$K$24,ROUNDDOWN((ROW(C119)-3)/12,0)+1)&9,'Реестр инцидентов'!$Q$4:$Q$171,0),MATCH(B$1,'Реестр инцидентов'!$A$3:$Q$3,0)),\"\")","v":""},{"$f":"IFERROR(INDEX('Реестр инцидентов'!$A$4:$P$171,MATCH(INDEX($K$2:$K$24,ROUNDDOWN((ROW(D119)-3)/12,0)+1)&9,'Реестр инцидентов'!$Q$4:$Q$171,0),MATCH(C$1,'Реестр инцидентов'!$A$3:$Q$3,0)),\"\")","v":""},{"$f":"IFERROR(INDEX('Реестр инцидентов'!$A$4:$P$171,MATCH(INDEX($K$2:$K$24,ROUNDDOWN((ROW(E119)-3)/12,0)+1)&9,'Реестр инцидентов'!$Q$4:$Q$171,0),MATCH(D$1,'Реестр инцидентов'!$A$3:$Q$3,0)),\"\")","v":""},{"$f":"IFERROR(INDEX('Реестр инцидентов'!$A$4:$P$171,MATCH(INDEX($K$2:$K$24,ROUNDDOWN((ROW(F119)-3)/12,0)+1)&9,'Реестр инцидентов'!$Q$4:$Q$171,0),MATCH(E$1,'Реестр инцидентов'!$A$3:$Q$3,0)),\"\")","v":""}]
[{"$f":"IFERROR(INDEX('Реестр инцидентов'!$A$4:$P$171,MATCH(INDEX($K$2:$K$24,ROUNDDOWN((ROW(B120)-3)/12,0)+1)&10,'Реестр инцидентов'!$Q$4:$Q$171,0),MATCH(A$1,'Реестр инцидентов'!$A$3:$Q$3,0)),\"\")","v":""},{"$f":"IFERROR(INDEX('Реестр инцидентов'!$A$4:$P$171,MATCH(INDEX($K$2:$K$24,ROUNDDOWN((ROW(C120)-3)/12,0)+1)&10,'Реестр инцидентов'!$Q$4:$Q$171,0),MATCH(B$1,'Реестр инцидентов'!$A$3:$Q$3,0)),\"\")","v":""},{"$f":"IFERROR(INDEX('Реестр инцидентов'!$A$4:$P$171,MATCH(INDEX($K$2:$K$24,ROUNDDOWN((ROW(D120)-3)/12,0)+1)&10,'Реестр инцидентов'!$Q$4:$Q$171,0),MATCH(C$1,'Реестр инцидентов'!$A$3:$Q$3,0)),\"\")","v":""},{"$f":"IFERROR(INDEX('Реестр инцидентов'!$A$4:$P$171,MATCH(INDEX($K$2:$K$24,ROUNDDOWN((ROW(E120)-3)/12,0)+1)&10,'Реестр инцидентов'!$Q$4:$Q$171,0),MATCH(D$1,'Реестр инцидентов'!$A$3:$Q$3,0)),\"\")","v":""},{"$f":"IFERROR(INDEX('Реестр инцидентов'!$A$4:$P$171,MATCH(INDEX($K$2:$K$24,ROUNDDOWN((ROW(F120)-3)/12,0)+1)&10,'Реестр инцидентов'!$Q$4:$Q$171,0),MATCH(E$1,'Реестр инцидентов'!$A$3:$Q$3,0)),\"\")","v":""}]
[{"$f":"IFERROR(INDEX('Реестр инцидентов'!$A$4:$P$171,MATCH(INDEX($K$2:$K$24,ROUNDDOWN((ROW(B121)-3)/12,0)+1)&11,'Реестр инцидентов'!$Q$4:$Q$171,0),MATCH(A$1,'Реестр инцидентов'!$A$3:$Q$3,0)),\"\")","v":""},{"$f":"IFERROR(INDEX('Реестр инцидентов'!$A$4:$P$171,MATCH(INDEX($K$2:$K$24,ROUNDDOWN((ROW(C121)-3)/12,0)+1)&11,'Реестр инцидентов'!$Q$4:$Q$171,0),MATCH(B$1,'Реестр инцидентов'!$A$3:$Q$3,0)),\"\")","v":""},{"$f":"IFERROR(INDEX('Реестр инцидентов'!$A$4:$P$171,MATCH(INDEX($K$2:$K$24,ROUNDDOWN((ROW(D121)-3)/12,0)+1)&11,'Реестр инцидентов'!$Q$4:$Q$171,0),MATCH(C$1,'Реестр инцидентов'!$A$3:$Q$3,0)),\"\")","v":""},{"$f":"IFERROR(INDEX('Реестр инцидентов'!$A$4:$P$171,MATCH(INDEX($K$2:$K$24,ROUNDDOWN((ROW(E121)-3)/12,0)+1)&11,'Реестр инцидентов'!$Q$4:$Q$171,0),MATCH(D$1,'Реестр инцидентов'!$A$3:$Q$3,0)),\"\")","v":""},{"$f":"IFERROR(INDEX('Реестр инцидентов'!$A$4:$P$171,MATCH(INDEX($K$2:$K$24,ROUNDDOWN((ROW(F121)-3)/12,0)+1)&11,'Реестр инцидентов'!$Q$4:$Q$171,0),MATCH(E$1,'Реестр инцидентов'!$A$3:$Q$3,0)),\"\")","v":""}]
[{"$f":"IFERROR(INDEX($L$2:$L$23,ROUNDDOWN((ROW(B123)-3)/12,0)+1),\"\")","v":"Иванов Вячеслав Алексеевич"}]
[{"$f":"IFERROR(INDEX('Реестр инцидентов'!$A$4:$P$171,MATCH(INDEX($K$2:$K$24,ROUNDDOWN((ROW(B123)-3)/12,0)+1)&1,'Реестр инцидентов'!$Q$4:$Q$171,0),MATCH(A$1,'Реестр инцидентов'!$A$3:$Q$3,0)),\"\")","v":"Вячеслав Иванов"},{"$f":"IFERROR(INDEX('Реестр инцидентов'!$A$4:$P$171,MATCH(INDEX($K$2:$K$24,ROUNDDOWN((ROW(C123)-3)/12,0)+1)&1,'Реестр инцидентов'!$Q$4:$Q$171,0),MATCH(B$1,'Реестр инцидентов'!$A$3:$Q$3,0)),\"\")","v":"150715/2998.2"},{"$f":"IFERROR(INDEX('Реестр инцидентов'!$A$4:$P$171,MATCH(INDEX($K$2:$K$24,ROUNDDOWN((ROW(D123)-3)/12,0)+1)&1,'Реестр инцидентов'!$Q$4:$Q$171,0),MATCH(C$1,'Реестр инцидентов'!$A$3:$Q$3,0)),\"\")","v":"2015-07-15T16:52:22"},{"$f":"IFERROR(INDEX('Реестр инцидентов'!$A$4:$P$171,MATCH(INDEX($K$2:$K$24,ROUNDDOWN((ROW(E123)-3)/12,0)+1)&1,'Реестр инцидентов'!$Q$4:$Q$171,0),MATCH(D$1,'Реестр инцидентов'!$A$3:$Q$3,0)),\"\")","v":"Разрешено"},{"$f":"IFERROR(INDEX('Реестр инцидентов'!$A$4:$P$171,MATCH(INDEX($K$2:$K$24,ROUNDDOWN((ROW(F123)-3)/12,0)+1)&1,'Реестр инцидентов'!$Q$4:$Q$171,0),MATCH(E$1,'Реестр инцидентов'!$A$3:$Q$3,0)),\"\")","v":"Некорректный контакт"}]
[{"$f":"IFERROR(INDEX('Реестр инцидентов'!$A$4:$P$171,MATCH(INDEX($K$2:$K$24,ROUNDDOWN((ROW(B124)-3)/12,0)+1)&2,'Реестр инцидентов'!$Q$4:$Q$171,0),MATCH(A$1,'Реестр инцидентов'!$A$3:$Q$3,0)),\"\")","v":""},{"$f":"IFERROR(INDEX('Реестр инцидентов'!$A$4:$P$171,MATCH(INDEX($K$2:$K$24,ROUNDDOWN((ROW(C124)-3)/12,0)+1)&2,'Реестр инцидентов'!$Q$4:$Q$171,0),MATCH(B$1,'Реестр инцидентов'!$A$3:$Q$3,0)),\"\")","v":""},{"$f":"IFERROR(INDEX('Реестр инцидентов'!$A$4:$P$171,MATCH(INDEX($K$2:$K$24,ROUNDDOWN((ROW(D124)-3)/12,0)+1)&2,'Реестр инцидентов'!$Q$4:$Q$171,0),MATCH(C$1,'Реестр инцидентов'!$A$3:$Q$3,0)),\"\")","v":""},{"$f":"IFERROR(INDEX('Реестр инцидентов'!$A$4:$P$171,MATCH(INDEX($K$2:$K$24,ROUNDDOWN((ROW(E124)-3)/12,0)+1)&2,'Реестр инцидентов'!$Q$4:$Q$171,0),MATCH(D$1,'Реестр инцидентов'!$A$3:$Q$3,0)),\"\")","v":""},{"$f":"IFERROR(INDEX('Реестр инцидентов'!$A$4:$P$171,MATCH(INDEX($K$2:$K$24,ROUNDDOWN((ROW(F124)-3)/12,0)+1)&2,'Реестр инцидентов'!$Q$4:$Q$171,0),MATCH(E$1,'Реестр инцидентов'!$A$3:$Q$3,0)),\"\")","v":""}]
[{"$f":"IFERROR(INDEX('Реестр инцидентов'!$A$4:$P$171,MATCH(INDEX($K$2:$K$24,ROUNDDOWN((ROW(B125)-3)/12,0)+1)&3,'Реестр инцидентов'!$Q$4:$Q$171,0),MATCH(A$1,'Реестр инцидентов'!$A$3:$Q$3,0)),\"\")","v":""},{"$f":"IFERROR(INDEX('Реестр инцидентов'!$A$4:$P$171,MATCH(INDEX($K$2:$K$24,ROUNDDOWN((ROW(C125)-3)/12,0)+1)&3,'Реестр инцидентов'!$Q$4:$Q$171,0),MATCH(B$1,'Реестр инцидентов'!$A$3:$Q$3,0)),\"\")","v":""},{"$f":"IFERROR(INDEX('Реестр инцидентов'!$A$4:$P$171,MATCH(INDEX($K$2:$K$24,ROUNDDOWN((ROW(D125)-3)/12,0)+1)&3,'Реестр инцидентов'!$Q$4:$Q$171,0),MATCH(C$1,'Реестр инцидентов'!$A$3:$Q$3,0)),\"\")","v":""},{"$f":"IFERROR(INDEX('Реестр инцидентов'!$A$4:$P$171,MATCH(INDEX($K$2:$K$24,ROUNDDOWN((ROW(E125)-3)/12,0)+1)&3,'Реестр инцидентов'!$Q$4:$Q$171,0),MATCH(D$1,'Реестр инцидентов'!$A$3:$Q$3,0)),\"\")","v":""},{"$f":"IFERROR(INDEX('Реестр инцидентов'!$A$4:$P$171,MATCH(INDEX($K$2:$K$24,ROUNDDOWN((ROW(F125)-3)/12,0)+1)&3,'Реестр инцидентов'!$Q$4:$Q$171,0),MATCH(E$1,'Реестр инцидентов'!$A$3:$Q$3,0)),\"\")","v":""}]
[{"$f":"IFERROR(INDEX('Реестр инцидентов'!$A$4:$P$171,MATCH(INDEX($K$2:$K$24,ROUNDDOWN((ROW(B126)-3)/12,0)+1)&4,'Реестр инцидентов'!$Q$4:$Q$171,0),MATCH(A$1,'Реестр инцидентов'!$A$3:$Q$3,0)),\"\")","v":""},{"$f":"IFERROR(INDEX('Реестр инцидентов'!$A$4:$P$171,MATCH(INDEX($K$2:$K$24,ROUNDDOWN((ROW(C126)-3)/12,0)+1)&4,'Реестр инцидентов'!$Q$4:$Q$171,0),MATCH(B$1,'Реестр инцидентов'!$A$3:$Q$3,0)),\"\")","v":""},{"$f":"IFERROR(INDEX('Реестр инцидентов'!$A$4:$P$171,MATCH(INDEX($K$2:$K$24,ROUNDDOWN((ROW(D126)-3)/12,0)+1)&4,'Реестр инцидентов'!$Q$4:$Q$171,0),MATCH(C$1,'Реестр инцидентов'!$A$3:$Q$3,0)),\"\")","v":""},{"$f":"IFERROR(INDEX('Реестр инцидентов'!$A$4:$P$171,MATCH(INDEX($K$2:$K$24,ROUNDDOWN((ROW(E126)-3)/12,0)+1)&4,'Реестр инцидентов'!$Q$4:$Q$171,0),MATCH(D$1,'Реестр инцидентов'!$A$3:$Q$3,0)),\"\")","v":""},{"$f":"IFERROR(INDEX('Реестр инцидентов'!$A$4:$P$171,MATCH(INDEX($K$2:$K$24,ROUNDDOWN((ROW(F126)-3)/12,0)+1)&4,'Реестр инцидентов'!$Q$4:$Q$171,0),MATCH(E$1,'Реестр инцидентов'!$A$3:$Q$3,0)),\"\")","v":""}]
[{"$f":"IFERROR(INDEX('Реестр инцидентов'!$A$4:$P$171,MATCH(INDEX($K$2:$K$24,ROUNDDOWN((ROW(B127)-3)/12,0)+1)&5,'Реестр инцидентов'!$Q$4:$Q$171,0),MATCH(A$1,'Реестр инцидентов'!$A$3:$Q$3,0)),\"\")","v":""},{"$f":"IFERROR(INDEX('Реестр инцидентов'!$A$4:$P$171,MATCH(INDEX($K$2:$K$24,ROUNDDOWN((ROW(C127)-3)/12,0)+1)&5,'Реестр инцидентов'!$Q$4:$Q$171,0),MATCH(B$1,'Реестр инцидентов'!$A$3:$Q$3,0)),\"\")","v":""},{"$f":"IFERROR(INDEX('Реестр инцидентов'!$A$4:$P$171,MATCH(INDEX($K$2:$K$24,ROUNDDOWN((ROW(D127)-3)/12,0)+1)&5,'Реестр инцидентов'!$Q$4:$Q$171,0),MATCH(C$1,'Реестр инцидентов'!$A$3:$Q$3,0)),\"\")","v":""},{"$f":"IFERROR(INDEX('Реестр инцидентов'!$A$4:$P$171,MATCH(INDEX($K$2:$K$24,ROUNDDOWN((ROW(E127)-3)/12,0)+1)&5,'Реестр инцидентов'!$Q$4:$Q$171,0),MATCH(D$1,'Реестр инцидентов'!$A$3:$Q$3,0)),\"\")","v":""},{"$f":"IFERROR(INDEX('Реестр инцидентов'!$A$4:$P$171,MATCH(INDEX($K$2:$K$24,ROUNDDOWN((ROW(F127)-3)/12,0)+1)&5,'Реестр инцидентов'!$Q$4:$Q$171,0),MATCH(E$1,'Реестр инцидентов'!$A$3:$Q$3,0)),\"\")","v":""}]
[{"$f":"IFERROR(INDEX('Реестр инцидентов'!$A$4:$P$171,MATCH(INDEX($K$2:$K$24,ROUNDDOWN((ROW(B128)-3)/12,0)+1)&6,'Реестр инцидентов'!$Q$4:$Q$171,0),MATCH(A$1,'Реестр инцидентов'!$A$3:$Q$3,0)),\"\")","v":""},{"$f":"IFERROR(INDEX('Реестр инцидентов'!$A$4:$P$171,MATCH(INDEX($K$2:$K$24,ROUNDDOWN((ROW(C128)-3)/12,0)+1)&6,'Реестр инцидентов'!$Q$4:$Q$171,0),MATCH(B$1,'Реестр инцидентов'!$A$3:$Q$3,0)),\"\")","v":""},{"$f":"IFERROR(INDEX('Реестр инцидентов'!$A$4:$P$171,MATCH(INDEX($K$2:$K$24,ROUNDDOWN((ROW(D128)-3)/12,0)+1)&6,'Реестр инцидентов'!$Q$4:$Q$171,0),MATCH(C$1,'Реестр инцидентов'!$A$3:$Q$3,0)),\"\")","v":""},{"$f":"IFERROR(INDEX('Реестр инцидентов'!$A$4:$P$171,MATCH(INDEX($K$2:$K$24,ROUNDDOWN((ROW(E128)-3)/12,0)+1)&6,'Реестр инцидентов'!$Q$4:$Q$171,0),MATCH(D$1,'Реестр инцидентов'!$A$3:$Q$3,0)),\"\")","v":""},{"$f":"IFERROR(INDEX('Реестр инцидентов'!$A$4:$P$171,MATCH(INDEX($K$2:$K$24,ROUNDDOWN((ROW(F128)-3)/12,0)+1)&6,'Реестр инцидентов'!$Q$4:$Q$171,0),MATCH(E$1,'Реестр инцидентов'!$A$3:$Q$3,0)),\"\")","v":""}]
[{"$f":"IFERROR(INDEX('Реестр инцидентов'!$A$4:$P$171,MATCH(INDEX($K$2:$K$24,ROUNDDOWN((ROW(B129)-3)/12,0)+1)&7,'Реестр инцидентов'!$Q$4:$Q$171,0),MATCH(A$1,'Реестр инцидентов'!$A$3:$Q$3,0)),\"\")","v":""},{"$f":"IFERROR(INDEX('Реестр инцидентов'!$A$4:$P$171,MATCH(INDEX($K$2:$K$24,ROUNDDOWN((ROW(C129)-3)/12,0)+1)&7,'Реестр инцидентов'!$Q$4:$Q$171,0),MATCH(B$1,'Реестр инцидентов'!$A$3:$Q$3,0)),\"\")","v":""},{"$f":"IFERROR(INDEX('Реестр инцидентов'!$A$4:$P$171,MATCH(INDEX($K$2:$K$24,ROUNDDOWN((ROW(D129)-3)/12,0)+1)&7,'Реестр инцидентов'!$Q$4:$Q$171,0),MATCH(C$1,'Реестр инцидентов'!$A$3:$Q$3,0)),\"\")","v":""},{"$f":"IFERROR(INDEX('Реестр инцидентов'!$A$4:$P$171,MATCH(INDEX($K$2:$K$24,ROUNDDOWN((ROW(E129)-3)/12,0)+1)&7,'Реестр инцидентов'!$Q$4:$Q$171,0),MATCH(D$1,'Реестр инцидентов'!$A$3:$Q$3,0)),\"\")","v":""},{"$f":"IFERROR(INDEX('Реестр инцидентов'!$A$4:$P$171,MATCH(INDEX($K$2:$K$24,ROUNDDOWN((ROW(F129)-3)/12,0)+1)&7,'Реестр инцидентов'!$Q$4:$Q$171,0),MATCH(E$1,'Реестр инцидентов'!$A$3:$Q$3,0)),\"\")","v":""}]
[{"$f":"IFERROR(INDEX('Реестр инцидентов'!$A$4:$P$171,MATCH(INDEX($K$2:$K$24,ROUNDDOWN((ROW(B130)-3)/12,0)+1)&8,'Реестр инцидентов'!$Q$4:$Q$171,0),MATCH(A$1,'Реестр инцидентов'!$A$3:$Q$3,0)),\"\")","v":""},{"$f":"IFERROR(INDEX('Реестр инцидентов'!$A$4:$P$171,MATCH(INDEX($K$2:$K$24,ROUNDDOWN((ROW(C130)-3)/12,0)+1)&8,'Реестр инцидентов'!$Q$4:$Q$171,0),MATCH(B$1,'Реестр инцидентов'!$A$3:$Q$3,0)),\"\")","v":""},{"$f":"IFERROR(INDEX('Реестр инцидентов'!$A$4:$P$171,MATCH(INDEX($K$2:$K$24,ROUNDDOWN((ROW(D130)-3)/12,0)+1)&8,'Реестр инцидентов'!$Q$4:$Q$171,0),MATCH(C$1,'Реестр инцидентов'!$A$3:$Q$3,0)),\"\")","v":""},{"$f":"IFERROR(INDEX('Реестр инцидентов'!$A$4:$P$171,MATCH(INDEX($K$2:$K$24,ROUNDDOWN((ROW(E130)-3)/12,0)+1)&8,'Реестр инцидентов'!$Q$4:$Q$171,0),MATCH(D$1,'Реестр инцидентов'!$A$3:$Q$3,0)),\"\")","v":""},{"$f":"IFERROR(INDEX('Реестр инцидентов'!$A$4:$P$171,MATCH(INDEX($K$2:$K$24,ROUNDDOWN((ROW(F130)-3)/12,0)+1)&8,'Реестр инцидентов'!$Q$4:$Q$171,0),MATCH(E$1,'Реестр инцидентов'!$A$3:$Q$3,0)),\"\")","v":""}]
[{"$f":"IFERROR(INDEX('Реестр инцидентов'!$A$4:$P$171,MATCH(INDEX($K$2:$K$24,ROUNDDOWN((ROW(B131)-3)/12,0)+1)&9,'Реестр инцидентов'!$Q$4:$Q$171,0),MATCH(A$1,'Реестр инцидентов'!$A$3:$Q$3,0)),\"\")","v":""},{"$f":"IFERROR(INDEX('Реестр инцидентов'!$A$4:$P$171,MATCH(INDEX($K$2:$K$24,ROUNDDOWN((ROW(C131)-3)/12,0)+1)&9,'Реестр инцидентов'!$Q$4:$Q$171,0),MATCH(B$1,'Реестр инцидентов'!$A$3:$Q$3,0)),\"\")","v":""},{"$f":"IFERROR(INDEX('Реестр инцидентов'!$A$4:$P$171,MATCH(INDEX($K$2:$K$24,ROUNDDOWN((ROW(D131)-3)/12,0)+1)&9,'Реестр инцидентов'!$Q$4:$Q$171,0),MATCH(C$1,'Реестр инцидентов'!$A$3:$Q$3,0)),\"\")","v":""},{"$f":"IFERROR(INDEX('Реестр инцидентов'!$A$4:$P$171,MATCH(INDEX($K$2:$K$24,ROUNDDOWN((ROW(E131)-3)/12,0)+1)&9,'Реестр инцидентов'!$Q$4:$Q$171,0),MATCH(D$1,'Реестр инцидентов'!$A$3:$Q$3,0)),\"\")","v":""},{"$f":"IFERROR(INDEX('Реестр инцидентов'!$A$4:$P$171,MATCH(INDEX($K$2:$K$24,ROUNDDOWN((ROW(F131)-3)/12,0)+1)&9,'Реестр инцидентов'!$Q$4:$Q$171,0),MATCH(E$1,'Реестр инцидентов'!$A$3:$Q$3,0)),\"\")","v":""}]
[{"$f":"IFERROR(INDEX('Реестр инцидентов'!$A$4:$P$171,MATCH(INDEX($K$2:$K$24,ROUNDDOWN((ROW(B132)-3)/12,0)+1)&10,'Реестр инцидентов'!$Q$4:$Q$171,0),MATCH(A$1,'Реестр инцидентов'!$A$3:$Q$3,0)),\"\")","v":""},{"$f":"IFERROR(INDEX('Реестр инцидентов'!$A$4:$P$171,MATCH(INDEX($K$2:$K$24,ROUNDDOWN((ROW(C132)-3)/12,0)+1)&10,'Реестр инцидентов'!$Q$4:$Q$171,0),MATCH(B$1,'Реестр инцидентов'!$A$3:$Q$3,0)),\"\")","v":""},{"$f":"IFERROR(INDEX('Реестр инцидентов'!$A$4:$P$171,MATCH(INDEX($K$2:$K$24,ROUNDDOWN((ROW(D132)-3)/12,0)+1)&10,'Реестр инцидентов'!$Q$4:$Q$171,0),MATCH(C$1,'Реестр инцидентов'!$A$3:$Q$3,0)),\"\")","v":""},{"$f":"IFERROR(INDEX('Реестр инцидентов'!$A$4:$P$171,MATCH(INDEX($K$2:$K$24,ROUNDDOWN((ROW(E132)-3)/12,0)+1)&10,'Реестр инцидентов'!$Q$4:$Q$171,0),MATCH(D$1,'Реестр инцидентов'!$A$3:$Q$3,0)),\"\")","v":""},{"$f":"IFERROR(INDEX('Реестр инцидентов'!$A$4:$P$171,MATCH(INDEX($K$2:$K$24,ROUNDDOWN((ROW(F132)-3)/12,0)+1)&10,'Реестр инцидентов'!$Q$4:$Q$171,0),MATCH(E$1,'Реестр инцидентов'!$A$3:$Q$3,0)),\"\")","v":""}]
[{"$f":"IFERROR(INDEX('Реестр инцидентов'!$A$4:$P$171,MATCH(INDEX($K$2:$K$24,ROUNDDOWN((ROW(B133)-3)/12,0)+1)&11,'Реестр инцидентов'!$Q$4:$Q$171,0),MATCH(A$1,'Реестр инцидентов'!$A$3:$Q$3,0)),\"\")","v":""},{"$f":"IFERROR(INDEX('Реестр инцидентов'!$A$4:$P$171,MATCH(INDEX($K$2:$K$24,ROUNDDOWN((ROW(C133)-3)/12,0)+1)&11,'Реестр инцидентов'!$Q$4:$Q$171,0),MATCH(B$1,'Реестр инцидентов'!$A$3:$Q$3,0)),\"\")","v":""},{"$f":"IFERROR(INDEX('Реестр инцидентов'!$A$4:$P$171,MATCH(INDEX($K$2:$K$24,ROUNDDOWN((ROW(D133)-3)/12,0)+1)&11,'Реестр инцидентов'!$Q$4:$Q$171,0),MATCH(C$1,'Реестр инцидентов'!$A$3:$Q$3,0)),\"\")","v":""},{"$f":"IFERROR(INDEX('Реестр инцидентов'!$A$4:$P$171,MATCH(INDEX($K$2:$K$24,ROUNDDOWN((ROW(E133)-3)/12,0)+1)&11,'Реестр инцидентов'!$Q$4:$Q$171,0),MATCH(D$1,'Реестр инцидентов'!$A$3:$Q$3,0)),\"\")","v":""},{"$f":"IFERROR(INDEX('Реестр инцидентов'!$A$4:$P$171,MATCH(INDEX($K$2:$K$24,ROUNDDOWN((ROW(F133)-3)/12,0)+1)&11,'Реестр инцидентов'!$Q$4:$Q$171,0),MATCH(E$1,'Реестр инцидентов'!$A$3:$Q$3,0)),\"\")","v":""}]
[{"$f":"IFERROR(INDEX($L$2:$L$23,ROUNDDOWN((ROW(B135)-3)/12,0)+1),\"\")","v":"Иванов Михаил Алексеевич"}]
[{"$f":"IFERROR(INDEX('Реестр инцидентов'!$A$4:$P$171,MATCH(INDEX($K$2:$K$24,ROUNDDOWN((ROW(B135)-3)/12,0)+1)&1,'Реестр инцидентов'!$Q$4:$Q$171,0),MATCH(A$1,'Реестр инцидентов'!$A$3:$Q$3,0)),\"\")","v":""},{"$f":"IFERROR(INDEX('Реестр инцидентов'!$A$4:$P$171,MATCH(INDEX($K$2:$K$24,ROUNDDOWN((ROW(C135)-3)/12,0)+1)&1,'Реестр инцидентов'!$Q$4:$Q$171,0),MATCH(B$1,'Реестр инцидентов'!$A$3:$Q$3,0)),\"\")","v":""},{"$f":"IFERROR(INDEX('Реестр инцидентов'!$A$4:$P$171,MATCH(INDEX($K$2:$K$24,ROUNDDOWN((ROW(D135)-3)/12,0)+1)&1,'Реестр инцидентов'!$Q$4:$Q$171,0),MATCH(C$1,'Реестр инцидентов'!$A$3:$Q$3,0)),\"\")","v":""},{"$f":"IFERROR(INDEX('Реестр инцидентов'!$A$4:$P$171,MATCH(INDEX($K$2:$K$24,ROUNDDOWN((ROW(E135)-3)/12,0)+1)&1,'Реестр инцидентов'!$Q$4:$Q$171,0),MATCH(D$1,'Реестр инцидентов'!$A$3:$Q$3,0)),\"\")","v":""},{"$f":"IFERROR(INDEX('Реестр инцидентов'!$A$4:$P$171,MATCH(INDEX($K$2:$K$24,ROUNDDOWN((ROW(F135)-3)/12,0)+1)&1,'Реестр инцидентов'!$Q$4:$Q$171,0),MATCH(E$1,'Реестр инцидентов'!$A$3:$Q$3,0)),\"\")","v":""}]
[{"$f":"IFERROR(INDEX('Реестр инцидентов'!$A$4:$P$171,MATCH(INDEX($K$2:$K$24,ROUNDDOWN((ROW(B136)-3)/12,0)+1)&2,'Реестр инцидентов'!$Q$4:$Q$171,0),MATCH(A$1,'Реестр инцидентов'!$A$3:$Q$3,0)),\"\")","v":""},{"$f":"IFERROR(INDEX('Реестр инцидентов'!$A$4:$P$171,MATCH(INDEX($K$2:$K$24,ROUNDDOWN((ROW(C136)-3)/12,0)+1)&2,'Реестр инцидентов'!$Q$4:$Q$171,0),MATCH(B$1,'Реестр инцидентов'!$A$3:$Q$3,0)),\"\")","v":""},{"$f":"IFERROR(INDEX('Реестр инцидентов'!$A$4:$P$171,MATCH(INDEX($K$2:$K$24,ROUNDDOWN((ROW(D136)-3)/12,0)+1)&2,'Реестр инцидентов'!$Q$4:$Q$171,0),MATCH(C$1,'Реестр инцидентов'!$A$3:$Q$3,0)),\"\")","v":""},{"$f":"IFERROR(INDEX('Реестр инцидентов'!$A$4:$P$171,MATCH(INDEX($K$2:$K$24,ROUNDDOWN((ROW(E136)-3)/12,0)+1)&2,'Реестр инцидентов'!$Q$4:$Q$171,0),MATCH(D$1,'Реестр инцидентов'!$A$3:$Q$3,0)),\"\")","v":""},{"$f":"IFERROR(INDEX('Реестр инцидентов'!$A$4:$P$171,MATCH(INDEX($K$2:$K$24,ROUNDDOWN((ROW(F136)-3)/12,0)+1)&2,'Реестр инцидентов'!$Q$4:$Q$171,0),MATCH(E$1,'Реестр инцидентов'!$A$3:$Q$3,0)),\"\")","v":""}]
[{"$f":"IFERROR(INDEX('Реестр инцидентов'!$A$4:$P$171,MATCH(INDEX($K$2:$K$24,ROUNDDOWN((ROW(B137)-3)/12,0)+1)&3,'Реестр инцидентов'!$Q$4:$Q$171,0),MATCH(A$1,'Реестр инцидентов'!$A$3:$Q$3,0)),\"\")","v":""},{"$f":"IFERROR(INDEX('Реестр инцидентов'!$A$4:$P$171,MATCH(INDEX($K$2:$K$24,ROUNDDOWN((ROW(C137)-3)/12,0)+1)&3,'Реестр инцидентов'!$Q$4:$Q$171,0),MATCH(B$1,'Реестр инцидентов'!$A$3:$Q$3,0)),\"\")","v":""},{"$f":"IFERROR(INDEX('Реестр инцидентов'!$A$4:$P$171,MATCH(INDEX($K$2:$K$24,ROUNDDOWN((ROW(D137)-3)/12,0)+1)&3,'Реестр инцидентов'!$Q$4:$Q$171,0),MATCH(C$1,'Реестр инцидентов'!$A$3:$Q$3,0)),\"\")","v":""},{"$f":"IFERROR(INDEX('Реестр инцидентов'!$A$4:$P$171,MATCH(INDEX($K$2:$K$24,ROUNDDOWN((ROW(E137)-3)/12,0)+1)&3,'Реестр инцидентов'!$Q$4:$Q$171,0),MATCH(D$1,'Реестр инцидентов'!$A$3:$Q$3,0)),\"\")","v":""},{"$f":"IFERROR(INDEX('Реестр инцидентов'!$A$4:$P$171,MATCH(INDEX($K$2:$K$24,ROUNDDOWN((ROW(F137)-3)/12,0)+1)&3,'Реестр инцидентов'!$Q$4:$Q$171,0),MATCH(E$1,'Реестр инцидентов'!$A$3:$Q$3,0)),\"\")","v":""}]
[{"$f":"IFERROR(INDEX('Реестр инцидентов'!$A$4:$P$171,MATCH(INDEX($K$2:$K$24,ROUNDDOWN((ROW(B138)-3)/12,0)+1)&4,'Реестр инцидентов'!$Q$4:$Q$171,0),MATCH(A$1,'Реестр инцидентов'!$A$3:$Q$3,0)),\"\")","v":""},{"$f":"IFERROR(INDEX('Реестр инцидентов'!$A$4:$P$171,MATCH(INDEX($K$2:$K$24,ROUNDDOWN((ROW(C138)-3)/12,0)+1)&4,'Реестр инцидентов'!$Q$4:$Q$171,0),MATCH(B$1,'Реестр инцидентов'!$A$3:$Q$3,0)),\"\")","v":""},{"$f":"IFERROR(INDEX('Реестр инцидентов'!$A$4:$P$171,MATCH(INDEX($K$2:$K$24,ROUNDDOWN((ROW(D138)-3)/12,0)+1)&4,'Реестр инцидентов'!$Q$4:$Q$171,0),MATCH(C$1,'Реестр инцидентов'!$A$3:$Q$3,0)),\"\")","v":""},{"$f":"IFERROR(INDEX('Реестр инцидентов'!$A$4:$P$171,MATCH(INDEX($K$2:$K$24,ROUNDDOWN((ROW(E138)-3)/12,0)+1)&4,'Реестр инцидентов'!$Q$4:$Q$171,0),MATCH(D$1,'Реестр инцидентов'!$A$3:$Q$3,0)),\"\")","v":""},{"$f":"IFERROR(INDEX('Реестр инцидентов'!$A$4:$P$171,MATCH(INDEX($K$2:$K$24,ROUNDDOWN((ROW(F138)-3)/12,0)+1)&4,'Реестр инцидентов'!$Q$4:$Q$171,0),MATCH(E$1,'Реестр инцидентов'!$A$3:$Q$3,0)),\"\")","v":""}]
[{"$f":"IFERROR(INDEX('Реестр инцидентов'!$A$4:$P$171,MATCH(INDEX($K$2:$K$24,ROUNDDOWN((ROW(B139)-3)/12,0)+1)&5,'Реестр инцидентов'!$Q$4:$Q$171,0),MATCH(A$1,'Реестр инцидентов'!$A$3:$Q$3,0)),\"\")","v":""},{"$f":"IFERROR(INDEX('Реестр инцидентов'!$A$4:$P$171,MATCH(INDEX($K$2:$K$24,ROUNDDOWN((ROW(C139)-3)/12,0)+1)&5,'Реестр инцидентов'!$Q$4:$Q$171,0),MATCH(B$1,'Реестр инцидентов'!$A$3:$Q$3,0)),\"\")","v":""},{"$f":"IFERROR(INDEX('Реестр инцидентов'!$A$4:$P$171,MATCH(INDEX($K$2:$K$24,ROUNDDOWN((ROW(D139)-3)/12,0)+1)&5,'Реестр инцидентов'!$Q$4:$Q$171,0),MATCH(C$1,'Реестр инцидентов'!$A$3:$Q$3,0)),\"\")","v":""},{"$f":"IFERROR(INDEX('Реестр инцидентов'!$A$4:$P$171,MATCH(INDEX($K$2:$K$24,ROUNDDOWN((ROW(E139)-3)/12,0)+1)&5,'Реестр инцидентов'!$Q$4:$Q$171,0),MATCH(D$1,'Реестр инцидентов'!$A$3:$Q$3,0)),\"\")","v":""},{"$f":"IFERROR(INDEX('Реестр инцидентов'!$A$4:$P$171,MATCH(INDEX($K$2:$K$24,ROUNDDOWN((ROW(F139)-3)/12,0)+1)&5,'Реестр инцидентов'!$Q$4:$Q$171,0),MATCH(E$1,'Реестр инцидентов'!$A$3:$Q$3,0)),\"\")","v":""}]
[{"$f":"IFERROR(INDEX('Реестр инцидентов'!$A$4:$P$171,MATCH(INDEX($K$2:$K$24,ROUNDDOWN((ROW(B140)-3)/12,0)+1)&6,'Реестр инцидентов'!$Q$4:$Q$171,0),MATCH(A$1,'Реестр инцидентов'!$A$3:$Q$3,0)),\"\")","v":""},{"$f":"IFERROR(INDEX('Реестр инцидентов'!$A$4:$P$171,MATCH(INDEX($K$2:$K$24,ROUNDDOWN((ROW(C140)-3)/12,0)+1)&6,'Реестр инцидентов'!$Q$4:$Q$171,0),MATCH(B$1,'Реестр инцидентов'!$A$3:$Q$3,0)),\"\")","v":""},{"$f":"IFERROR(INDEX('Реестр инцидентов'!$A$4:$P$171,MATCH(INDEX($K$2:$K$24,ROUNDDOWN((ROW(D140)-3)/12,0)+1)&6,'Реестр инцидентов'!$Q$4:$Q$171,0),MATCH(C$1,'Реестр инцидентов'!$A$3:$Q$3,0)),\"\")","v":""},{"$f":"IFERROR(INDEX('Реестр инцидентов'!$A$4:$P$171,MATCH(INDEX($K$2:$K$24,ROUNDDOWN((ROW(E140)-3)/12,0)+1)&6,'Реестр инцидентов'!$Q$4:$Q$171,0),MATCH(D$1,'Реестр инцидентов'!$A$3:$Q$3,0)),\"\")","v":""},{"$f":"IFERROR(INDEX('Реестр инцидентов'!$A$4:$P$171,MATCH(INDEX($K$2:$K$24,ROUNDDOWN((ROW(F140)-3)/12,0)+1)&6,'Реестр инцидентов'!$Q$4:$Q$171,0),MATCH(E$1,'Реестр инцидентов'!$A$3:$Q$3,0)),\"\")","v":""}]
[{"$f":"IFERROR(INDEX('Реестр инцидентов'!$A$4:$P$171,MATCH(INDEX($K$2:$K$24,ROUNDDOWN((ROW(B141)-3)/12,0)+1)&7,'Реестр инцидентов'!$Q$4:$Q$171,0),MATCH(A$1,'Реестр инцидентов'!$A$3:$Q$3,0)),\"\")","v":""},{"$f":"IFERROR(INDEX('Реестр инцидентов'!$A$4:$P$171,MATCH(INDEX($K$2:$K$24,ROUNDDOWN((ROW(C141)-3)/12,0)+1)&7,'Реестр инцидентов'!$Q$4:$Q$171,0),MATCH(B$1,'Реестр инцидентов'!$A$3:$Q$3,0)),\"\")","v":""},{"$f":"IFERROR(INDEX('Реестр инцидентов'!$A$4:$P$171,MATCH(INDEX($K$2:$K$24,ROUNDDOWN((ROW(D141)-3)/12,0)+1)&7,'Реестр инцидентов'!$Q$4:$Q$171,0),MATCH(C$1,'Реестр инцидентов'!$A$3:$Q$3,0)),\"\")","v":""},{"$f":"IFERROR(INDEX('Реестр инцидентов'!$A$4:$P$171,MATCH(INDEX($K$2:$K$24,ROUNDDOWN((ROW(E141)-3)/12,0)+1)&7,'Реестр инцидентов'!$Q$4:$Q$171,0),MATCH(D$1,'Реестр инцидентов'!$A$3:$Q$3,0)),\"\")","v":""},{"$f":"IFERROR(INDEX('Реестр инцидентов'!$A$4:$P$171,MATCH(INDEX($K$2:$K$24,ROUNDDOWN((ROW(F141)-3)/12,0)+1)&7,'Реестр инцидентов'!$Q$4:$Q$171,0),MATCH(E$1,'Реестр инцидентов'!$A$3:$Q$3,0)),\"\")","v":""}]
[{"$f":"IFERROR(INDEX('Реестр инцидентов'!$A$4:$P$171,MATCH(INDEX($K$2:$K$24,ROUNDDOWN((ROW(B142)-3)/12,0)+1)&8,'Реестр инцидентов'!$Q$4:$Q$171,0),MATCH(A$1,'Реестр инцидентов'!$A$3:$Q$3,0)),\"\")","v":""},{"$f":"IFERROR(INDEX('Реестр инцидентов'!$A$4:$P$171,MATCH(INDEX($K$2:$K$24,ROUNDDOWN((ROW(C142)-3)/12,0)+1)&8,'Реестр инцидентов'!$Q$4:$Q$171,0),MATCH(B$1,'Реестр инцидентов'!$A$3:$Q$3,0)),\"\")","v":""},{"$f":"IFERROR(INDEX('Реестр инцидентов'!$A$4:$P$171,MATCH(INDEX($K$2:$K$24,ROUNDDOWN((ROW(D142)-3)/12,0)+1)&8,'Реестр инцидентов'!$Q$4:$Q$171,0),MATCH(C$1,'Реестр инцидентов'!$A$3:$Q$3,0)),\"\")","v":""},{"$f":"IFERROR(INDEX('Реестр инцидентов'!$A$4:$P$171,MATCH(INDEX($K$2:$K$24,ROUNDDOWN((ROW(E142)-3)/12,0)+1)&8,'Реестр инцидентов'!$Q$4:$Q$171,0),MATCH(D$1,'Реестр инцидентов'!$A$3:$Q$3,0)),\"\")","v":""},{"$f":"IFERROR(INDEX('Реестр инцидентов'!$A$4:$P$171,MATCH(INDEX($K$2:$K$24,ROUNDDOWN((ROW(F142)-3)/12,0)+1)&8,'Реестр инцидентов'!$Q$4:$Q$171,0),MATCH(E$1,'Реестр инцидентов'!$A$3:$Q$3,0)),\"\")","v":""}]
[{"$f":"IFERROR(INDEX('Реестр инцидентов'!$A$4:$P$171,MATCH(INDEX($K$2:$K$24,ROUNDDOWN((ROW(B143)-3)/12,0)+1)&9,'Реестр инцидентов'!$Q$4:$Q$171,0),MATCH(A$1,'Реестр инцидентов'!$A$3:$Q$3,0)),\"\")","v":""},{"$f":"IFERROR(INDEX('Реестр инцидентов'!$A$4:$P$171,MATCH(INDEX($K$2:$K$24,ROUNDDOWN((ROW(C143)-3)/12,0)+1)&9,'Реестр инцидентов'!$Q$4:$Q$171,0),MATCH(B$1,'Реестр инцидентов'!$A$3:$Q$3,0)),\"\")","v":""},{"$f":"IFERROR(INDEX('Реестр инцидентов'!$A$4:$P$171,MATCH(INDEX($K$2:$K$24,ROUNDDOWN((ROW(D143)-3)/12,0)+1)&9,'Реестр инцидентов'!$Q$4:$Q$171,0),MATCH(C$1,'Реестр инцидентов'!$A$3:$Q$3,0)),\"\")","v":""},{"$f":"IFERROR(INDEX('Реестр инцидентов'!$A$4:$P$171,MATCH(INDEX($K$2:$K$24,ROUNDDOWN((ROW(E143)-3)/12,0)+1)&9,'Реестр инцидентов'!$Q$4:$Q$171,0),MATCH(D$1,'Реестр инцидентов'!$A$3:$Q$3,0)),\"\")","v":""},{"$f":"IFERROR(INDEX('Реестр инцидентов'!$A$4:$P$171,MATCH(INDEX($K$2:$K$24,ROUNDDOWN((ROW(F143)-3)/12,0)+1)&9,'Реестр инцидентов'!$Q$4:$Q$171,0),MATCH(E$1,'Реестр инцидентов'!$A$3:$Q$3,0)),\"\")","v":""}]
[{"$f":"IFERROR(INDEX('Реестр инцидентов'!$A$4:$P$171,MATCH(INDEX($K$2:$K$24,ROUNDDOWN((ROW(B144)-3)/12,0)+1)&10,'Реестр инцидентов'!$Q$4:$Q$171,0),MATCH(A$1,'Реестр инцидентов'!$A$3:$Q$3,0)),\"\")","v":""},{"$f":"IFERROR(INDEX('Реестр инцидентов'!$A$4:$P$171,MATCH(INDEX($K$2:$K$24,ROUNDDOWN((ROW(C144)-3)/12,0)+1)&10,'Реестр инцидентов'!$Q$4:$Q$171,0),MATCH(B$1,'Реестр инцидентов'!$A$3:$Q$3,0)),\"\")","v":""},{"$f":"IFERROR(INDEX('Реестр инцидентов'!$A$4:$P$171,MATCH(INDEX($K$2:$K$24,ROUNDDOWN((ROW(D144)-3)/12,0)+1)&10,'Реестр инцидентов'!$Q$4:$Q$171,0),MATCH(C$1,'Реестр инцидентов'!$A$3:$Q$3,0)),\"\")","v":""},{"$f":"IFERROR(INDEX('Реестр инцидентов'!$A$4:$P$171,MATCH(INDEX($K$2:$K$24,ROUNDDOWN((ROW(E144)-3)/12,0)+1)&10,'Реестр инцидентов'!$Q$4:$Q$171,0),MATCH(D$1,'Реестр инцидентов'!$A$3:$Q$3,0)),\"\")","v":""},{"$f":"IFERROR(INDEX('Реестр инцидентов'!$A$4:$P$171,MATCH(INDEX($K$2:$K$24,ROUNDDOWN((ROW(F144)-3)/12,0)+1)&10,'Реестр инцидентов'!$Q$4:$Q$171,0),MATCH(E$1,'Реестр инцидентов'!$A$3:$Q$3,0)),\"\")","v":""}]
[{"$f":"IFERROR(INDEX('Реестр инцидентов'!$A$4:$P$171,MATCH(INDEX($K$2:$K$24,ROUNDDOWN((ROW(B145)-3)/12,0)+1)&11,'Реестр инцидентов'!$Q$4:$Q$171,0),MATCH(A$1,'Реестр инцидентов'!$A$3:$Q$3,0)),\"\")","v":""},{"$f":"IFERROR(INDEX('Реестр инцидентов'!$A$4:$P$171,MATCH(INDEX($K$2:$K$24,ROUNDDOWN((ROW(C145)-3)/12,0)+1)&11,'Реестр инцидентов'!$Q$4:$Q$171,0),MATCH(B$1,'Реестр инцидентов'!$A$3:$Q$3,0)),\"\")","v":""},{"$f":"IFERROR(INDEX('Реестр инцидентов'!$A$4:$P$171,MATCH(INDEX($K$2:$K$24,ROUNDDOWN((ROW(D145)-3)/12,0)+1)&11,'Реестр инцидентов'!$Q$4:$Q$171,0),MATCH(C$1,'Реестр инцидентов'!$A$3:$Q$3,0)),\"\")","v":""},{"$f":"IFERROR(INDEX('Реестр инцидентов'!$A$4:$P$171,MATCH(INDEX($K$2:$K$24,ROUNDDOWN((ROW(E145)-3)/12,0)+1)&11,'Реестр инцидентов'!$Q$4:$Q$171,0),MATCH(D$1,'Реестр инцидентов'!$A$3:$Q$3,0)),\"\")","v":""},{"$f":"IFERROR(INDEX('Реестр инцидентов'!$A$4:$P$171,MATCH(INDEX($K$2:$K$24,ROUNDDOWN((ROW(F145)-3)/12,0)+1)&11,'Реестр инцидентов'!$Q$4:$Q$171,0),MATCH(E$1,'Реестр инцидентов'!$A$3:$Q$3,0)),\"\")","v":""}]
[{"$f":"IFERROR(INDEX($L$2:$L$23,ROUNDDOWN((ROW(B147)-3)/12,0)+1),\"\")","v":"Иванюк Никита Романович"}]
[{"$f":"IFERROR(INDEX('Реестр инцидентов'!$A$4:$P$171,MATCH(INDEX($K$2:$K$24,ROUNDDOWN((ROW(B147)-3)/12,0)+1)&1,'Реестр инцидентов'!$Q$4:$Q$171,0),MATCH(A$1,'Реестр инцидентов'!$A$3:$Q$3,0)),\"\")","v":"Никита Иванюк"},{"$f":"IFERROR(INDEX('Реестр инцидентов'!$A$4:$P$171,MATCH(INDEX($K$2:$K$24,ROUNDDOWN((ROW(C147)-3)/12,0)+1)&1,'Реестр инцидентов'!$Q$4:$Q$171,0),MATCH(B$1,'Реестр инцидентов'!$A$3:$Q$3,0)),\"\")","v":"150702/1103.2"},{"$f":"IFERROR(INDEX('Реестр инцидентов'!$A$4:$P$171,MATCH(INDEX($K$2:$K$24,ROUNDDOWN((ROW(D147)-3)/12,0)+1)&1,'Реестр инцидентов'!$Q$4:$Q$171,0),MATCH(C$1,'Реестр инцидентов'!$A$3:$Q$3,0)),\"\")","v":"2015-07-02T14:10:50"},{"$f":"IFERROR(INDEX('Реестр инцидентов'!$A$4:$P$171,MATCH(INDEX($K$2:$K$24,ROUNDDOWN((ROW(E147)-3)/12,0)+1)&1,'Реестр инцидентов'!$Q$4:$Q$171,0),MATCH(D$1,'Реестр инцидентов'!$A$3:$Q$3,0)),\"\")","v":"Разрешено"},{"$f":"IFERROR(INDEX('Реестр инцидентов'!$A$4:$P$171,MATCH(INDEX($K$2:$K$24,ROUNDDOWN((ROW(F147)-3)/12,0)+1)&1,'Реестр инцидентов'!$Q$4:$Q$171,0),MATCH(E$1,'Реестр инцидентов'!$A$3:$Q$3,0)),\"\")","v":"Отсутствие файлов"}]
[{"$f":"IFERROR(INDEX('Реестр инцидентов'!$A$4:$P$171,MATCH(INDEX($K$2:$K$24,ROUNDDOWN((ROW(B148)-3)/12,0)+1)&2,'Реестр инцидентов'!$Q$4:$Q$171,0),MATCH(A$1,'Реестр инцидентов'!$A$3:$Q$3,0)),\"\")","v":"Никита Иванюк"},{"$f":"IFERROR(INDEX('Реестр инцидентов'!$A$4:$P$171,MATCH(INDEX($K$2:$K$24,ROUNDDOWN((ROW(C148)-3)/12,0)+1)&2,'Реестр инцидентов'!$Q$4:$Q$171,0),MATCH(B$1,'Реестр инцидентов'!$A$3:$Q$3,0)),\"\")","v":"150707/918.1"},{"$f":"IFERROR(INDEX('Реестр инцидентов'!$A$4:$P$171,MATCH(INDEX($K$2:$K$24,ROUNDDOWN((ROW(D148)-3)/12,0)+1)&2,'Реестр инцидентов'!$Q$4:$Q$171,0),MATCH(C$1,'Реестр инцидентов'!$A$3:$Q$3,0)),\"\")","v":"2015-07-07T12:53:15"},{"$f":"IFERROR(INDEX('Реестр инцидентов'!$A$4:$P$171,MATCH(INDEX($K$2:$K$24,ROUNDDOWN((ROW(E148)-3)/12,0)+1)&2,'Реестр инцидентов'!$Q$4:$Q$171,0),MATCH(D$1,'Реестр инцидентов'!$A$3:$Q$3,0)),\"\")","v":"Разрешено"},{"$f":"IFERROR(INDEX('Реестр инцидентов'!$A$4:$P$171,MATCH(INDEX($K$2:$K$24,ROUNDDOWN((ROW(F148)-3)/12,0)+1)&2,'Реестр инцидентов'!$Q$4:$Q$171,0),MATCH(E$1,'Реестр инцидентов'!$A$3:$Q$3,0)),\"\")","v":"Отсутствие файлов"}]
[{"$f":"IFERROR(INDEX('Реестр инцидентов'!$A$4:$P$171,MATCH(INDEX($K$2:$K$24,ROUNDDOWN((ROW(B149)-3)/12,0)+1)&3,'Реестр инцидентов'!$Q$4:$Q$171,0),MATCH(A$1,'Реестр инцидентов'!$A$3:$Q$3,0)),\"\")","v":""},{"$f":"IFERROR(INDEX('Реестр инцидентов'!$A$4:$P$171,MATCH(INDEX($K$2:$K$24,ROUNDDOWN((ROW(C149)-3)/12,0)+1)&3,'Реестр инцидентов'!$Q$4:$Q$171,0),MATCH(B$1,'Реестр инцидентов'!$A$3:$Q$3,0)),\"\")","v":""},{"$f":"IFERROR(INDEX('Реестр инцидентов'!$A$4:$P$171,MATCH(INDEX($K$2:$K$24,ROUNDDOWN((ROW(D149)-3)/12,0)+1)&3,'Реестр инцидентов'!$Q$4:$Q$171,0),MATCH(C$1,'Реестр инцидентов'!$A$3:$Q$3,0)),\"\")","v":""},{"$f":"IFERROR(INDEX('Реестр инцидентов'!$A$4:$P$171,MATCH(INDEX($K$2:$K$24,ROUNDDOWN((ROW(E149)-3)/12,0)+1)&3,'Реестр инцидентов'!$Q$4:$Q$171,0),MATCH(D$1,'Реестр инцидентов'!$A$3:$Q$3,0)),\"\")","v":""},{"$f":"IFERROR(INDEX('Реестр инцидентов'!$A$4:$P$171,MATCH(INDEX($K$2:$K$24,ROUNDDOWN((ROW(F149)-3)/12,0)+1)&3,'Реестр инцидентов'!$Q$4:$Q$171,0),MATCH(E$1,'Реестр инцидентов'!$A$3:$Q$3,0)),\"\")","v":""}]
[{"$f":"IFERROR(INDEX('Реестр инцидентов'!$A$4:$P$171,MATCH(INDEX($K$2:$K$24,ROUNDDOWN((ROW(B150)-3)/12,0)+1)&4,'Реестр инцидентов'!$Q$4:$Q$171,0),MATCH(A$1,'Реестр инцидентов'!$A$3:$Q$3,0)),\"\")","v":""},{"$f":"IFERROR(INDEX('Реестр инцидентов'!$A$4:$P$171,MATCH(INDEX($K$2:$K$24,ROUNDDOWN((ROW(C150)-3)/12,0)+1)&4,'Реестр инцидентов'!$Q$4:$Q$171,0),MATCH(B$1,'Реестр инцидентов'!$A$3:$Q$3,0)),\"\")","v":""},{"$f":"IFERROR(INDEX('Реестр инцидентов'!$A$4:$P$171,MATCH(INDEX($K$2:$K$24,ROUNDDOWN((ROW(D150)-3)/12,0)+1)&4,'Реестр инцидентов'!$Q$4:$Q$171,0),MATCH(C$1,'Реестр инцидентов'!$A$3:$Q$3,0)),\"\")","v":""},{"$f":"IFERROR(INDEX('Реестр инцидентов'!$A$4:$P$171,MATCH(INDEX($K$2:$K$24,ROUNDDOWN((ROW(E150)-3)/12,0)+1)&4,'Реестр инцидентов'!$Q$4:$Q$171,0),MATCH(D$1,'Реестр инцидентов'!$A$3:$Q$3,0)),\"\")","v":""},{"$f":"IFERROR(INDEX('Реестр инцидентов'!$A$4:$P$171,MATCH(INDEX($K$2:$K$24,ROUNDDOWN((ROW(F150)-3)/12,0)+1)&4,'Реестр инцидентов'!$Q$4:$Q$171,0),MATCH(E$1,'Реестр инцидентов'!$A$3:$Q$3,0)),\"\")","v":""}]
[{"$f":"IFERROR(INDEX('Реестр инцидентов'!$A$4:$P$171,MATCH(INDEX($K$2:$K$24,ROUNDDOWN((ROW(B151)-3)/12,0)+1)&5,'Реестр инцидентов'!$Q$4:$Q$171,0),MATCH(A$1,'Реестр инцидентов'!$A$3:$Q$3,0)),\"\")","v":""},{"$f":"IFERROR(INDEX('Реестр инцидентов'!$A$4:$P$171,MATCH(INDEX($K$2:$K$24,ROUNDDOWN((ROW(C151)-3)/12,0)+1)&5,'Реестр инцидентов'!$Q$4:$Q$171,0),MATCH(B$1,'Реестр инцидентов'!$A$3:$Q$3,0)),\"\")","v":""},{"$f":"IFERROR(INDEX('Реестр инцидентов'!$A$4:$P$171,MATCH(INDEX($K$2:$K$24,ROUNDDOWN((ROW(D151)-3)/12,0)+1)&5,'Реестр инцидентов'!$Q$4:$Q$171,0),MATCH(C$1,'Реестр инцидентов'!$A$3:$Q$3,0)),\"\")","v":""},{"$f":"IFERROR(INDEX('Реестр инцидентов'!$A$4:$P$171,MATCH(INDEX($K$2:$K$24,ROUNDDOWN((ROW(E151)-3)/12,0)+1)&5,'Реестр инцидентов'!$Q$4:$Q$171,0),MATCH(D$1,'Реестр инцидентов'!$A$3:$Q$3,0)),\"\")","v":""},{"$f":"IFERROR(INDEX('Реестр инцидентов'!$A$4:$P$171,MATCH(INDEX($K$2:$K$24,ROUNDDOWN((ROW(F151)-3)/12,0)+1)&5,'Реестр инцидентов'!$Q$4:$Q$171,0),MATCH(E$1,'Реестр инцидентов'!$A$3:$Q$3,0)),\"\")","v":""}]
[{"$f":"IFERROR(INDEX('Реестр инцидентов'!$A$4:$P$171,MATCH(INDEX($K$2:$K$24,ROUNDDOWN((ROW(B152)-3)/12,0)+1)&6,'Реестр инцидентов'!$Q$4:$Q$171,0),MATCH(A$1,'Реестр инцидентов'!$A$3:$Q$3,0)),\"\")","v":""},{"$f":"IFERROR(INDEX('Реестр инцидентов'!$A$4:$P$171,MATCH(INDEX($K$2:$K$24,ROUNDDOWN((ROW(C152)-3)/12,0)+1)&6,'Реестр инцидентов'!$Q$4:$Q$171,0),MATCH(B$1,'Реестр инцидентов'!$A$3:$Q$3,0)),\"\")","v":""},{"$f":"IFERROR(INDEX('Реестр инцидентов'!$A$4:$P$171,MATCH(INDEX($K$2:$K$24,ROUNDDOWN((ROW(D152)-3)/12,0)+1)&6,'Реестр инцидентов'!$Q$4:$Q$171,0),MATCH(C$1,'Реестр инцидентов'!$A$3:$Q$3,0)),\"\")","v":""},{"$f":"IFERROR(INDEX('Реестр инцидентов'!$A$4:$P$171,MATCH(INDEX($K$2:$K$24,ROUNDDOWN((ROW(E152)-3)/12,0)+1)&6,'Реестр инцидентов'!$Q$4:$Q$171,0),MATCH(D$1,'Реестр инцидентов'!$A$3:$Q$3,0)),\"\")","v":""},{"$f":"IFERROR(INDEX('Реестр инцидентов'!$A$4:$P$171,MATCH(INDEX($K$2:$K$24,ROUNDDOWN((ROW(F152)-3)/12,0)+1)&6,'Реестр инцидентов'!$Q$4:$Q$171,0),MATCH(E$1,'Реестр инцидентов'!$A$3:$Q$3,0)),\"\")","v":""}]
[{"$f":"IFERROR(INDEX('Реестр инцидентов'!$A$4:$P$171,MATCH(INDEX($K$2:$K$24,ROUNDDOWN((ROW(B153)-3)/12,0)+1)&7,'Реестр инцидентов'!$Q$4:$Q$171,0),MATCH(A$1,'Реестр инцидентов'!$A$3:$Q$3,0)),\"\")","v":""},{"$f":"IFERROR(INDEX('Реестр инцидентов'!$A$4:$P$171,MATCH(INDEX($K$2:$K$24,ROUNDDOWN((ROW(C153)-3)/12,0)+1)&7,'Реестр инцидентов'!$Q$4:$Q$171,0),MATCH(B$1,'Реестр инцидентов'!$A$3:$Q$3,0)),\"\")","v":""},{"$f":"IFERROR(INDEX('Реестр инцидентов'!$A$4:$P$171,MATCH(INDEX($K$2:$K$24,ROUNDDOWN((ROW(D153)-3)/12,0)+1)&7,'Реестр инцидентов'!$Q$4:$Q$171,0),MATCH(C$1,'Реестр инцидентов'!$A$3:$Q$3,0)),\"\")","v":""},{"$f":"IFERROR(INDEX('Реестр инцидентов'!$A$4:$P$171,MATCH(INDEX($K$2:$K$24,ROUNDDOWN((ROW(E153)-3)/12,0)+1)&7,'Реестр инцидентов'!$Q$4:$Q$171,0),MATCH(D$1,'Реестр инцидентов'!$A$3:$Q$3,0)),\"\")","v":""},{"$f":"IFERROR(INDEX('Реестр инцидентов'!$A$4:$P$171,MATCH(INDEX($K$2:$K$24,ROUNDDOWN((ROW(F153)-3)/12,0)+1)&7,'Реестр инцидентов'!$Q$4:$Q$171,0),MATCH(E$1,'Реестр инцидентов'!$A$3:$Q$3,0)),\"\")","v":""}]
[{"$f":"IFERROR(INDEX('Реестр инцидентов'!$A$4:$P$171,MATCH(INDEX($K$2:$K$24,ROUNDDOWN((ROW(B154)-3)/12,0)+1)&8,'Реестр инцидентов'!$Q$4:$Q$171,0),MATCH(A$1,'Реестр инцидентов'!$A$3:$Q$3,0)),\"\")","v":""},{"$f":"IFERROR(INDEX('Реестр инцидентов'!$A$4:$P$171,MATCH(INDEX($K$2:$K$24,ROUNDDOWN((ROW(C154)-3)/12,0)+1)&8,'Реестр инцидентов'!$Q$4:$Q$171,0),MATCH(B$1,'Реестр инцидентов'!$A$3:$Q$3,0)),\"\")","v":""},{"$f":"IFERROR(INDEX('Реестр инцидентов'!$A$4:$P$171,MATCH(INDEX($K$2:$K$24,ROUNDDOWN((ROW(D154)-3)/12,0)+1)&8,'Реестр инцидентов'!$Q$4:$Q$171,0),MATCH(C$1,'Реестр инцидентов'!$A$3:$Q$3,0)),\"\")","v":""},{"$f":"IFERROR(INDEX('Реестр инцидентов'!$A$4:$P$171,MATCH(INDEX($K$2:$K$24,ROUNDDOWN((ROW(E154)-3)/12,0)+1)&8,'Реестр инцидентов'!$Q$4:$Q$171,0),MATCH(D$1,'Реестр инцидентов'!$A$3:$Q$3,0)),\"\")","v":""},{"$f":"IFERROR(INDEX('Реестр инцидентов'!$A$4:$P$171,MATCH(INDEX($K$2:$K$24,ROUNDDOWN((ROW(F154)-3)/12,0)+1)&8,'Реестр инцидентов'!$Q$4:$Q$171,0),MATCH(E$1,'Реестр инцидентов'!$A$3:$Q$3,0)),\"\")","v":""}]
[{"$f":"IFERROR(INDEX('Реестр инцидентов'!$A$4:$P$171,MATCH(INDEX($K$2:$K$24,ROUNDDOWN((ROW(B155)-3)/12,0)+1)&9,'Реестр инцидентов'!$Q$4:$Q$171,0),MATCH(A$1,'Реестр инцидентов'!$A$3:$Q$3,0)),\"\")","v":""},{"$f":"IFERROR(INDEX('Реестр инцидентов'!$A$4:$P$171,MATCH(INDEX($K$2:$K$24,ROUNDDOWN((ROW(C155)-3)/12,0)+1)&9,'Реестр инцидентов'!$Q$4:$Q$171,0),MATCH(B$1,'Реестр инцидентов'!$A$3:$Q$3,0)),\"\")","v":""},{"$f":"IFERROR(INDEX('Реестр инцидентов'!$A$4:$P$171,MATCH(INDEX($K$2:$K$24,ROUNDDOWN((ROW(D155)-3)/12,0)+1)&9,'Реестр инцидентов'!$Q$4:$Q$171,0),MATCH(C$1,'Реестр инцидентов'!$A$3:$Q$3,0)),\"\")","v":""},{"$f":"IFERROR(INDEX('Реестр инцидентов'!$A$4:$P$171,MATCH(INDEX($K$2:$K$24,ROUNDDOWN((ROW(E155)-3)/12,0)+1)&9,'Реестр инцидентов'!$Q$4:$Q$171,0),MATCH(D$1,'Реестр инцидентов'!$A$3:$Q$3,0)),\"\")","v":""},{"$f":"IFERROR(INDEX('Реестр инцидентов'!$A$4:$P$171,MATCH(INDEX($K$2:$K$24,ROUNDDOWN((ROW(F155)-3)/12,0)+1)&9,'Реестр инцидентов'!$Q$4:$Q$171,0),MATCH(E$1,'Реестр инцидентов'!$A$3:$Q$3,0)),\"\")","v":""}]
[{"$f":"IFERROR(INDEX('Реестр инцидентов'!$A$4:$P$171,MATCH(INDEX($K$2:$K$24,ROUNDDOWN((ROW(B156)-3)/12,0)+1)&10,'Реестр инцидентов'!$Q$4:$Q$171,0),MATCH(A$1,'Реестр инцидентов'!$A$3:$Q$3,0)),\"\")","v":""},{"$f":"IFERROR(INDEX('Реестр инцидентов'!$A$4:$P$171,MATCH(INDEX($K$2:$K$24,ROUNDDOWN((ROW(C156)-3)/12,0)+1)&10,'Реестр инцидентов'!$Q$4:$Q$171,0),MATCH(B$1,'Реестр инцидентов'!$A$3:$Q$3,0)),\"\")","v":""},{"$f":"IFERROR(INDEX('Реестр инцидентов'!$A$4:$P$171,MATCH(INDEX($K$2:$K$24,ROUNDDOWN((ROW(D156)-3)/12,0)+1)&10,'Реестр инцидентов'!$Q$4:$Q$171,0),MATCH(C$1,'Реестр инцидентов'!$A$3:$Q$3,0)),\"\")","v":""},{"$f":"IFERROR(INDEX('Реестр инцидентов'!$A$4:$P$171,MATCH(INDEX($K$2:$K$24,ROUNDDOWN((ROW(E156)-3)/12,0)+1)&10,'Реестр инцидентов'!$Q$4:$Q$171,0),MATCH(D$1,'Реестр инцидентов'!$A$3:$Q$3,0)),\"\")","v":""},{"$f":"IFERROR(INDEX('Реестр инцидентов'!$A$4:$P$171,MATCH(INDEX($K$2:$K$24,ROUNDDOWN((ROW(F156)-3)/12,0)+1)&10,'Реестр инцидентов'!$Q$4:$Q$171,0),MATCH(E$1,'Реестр инцидентов'!$A$3:$Q$3,0)),\"\")","v":""}]
[{"$f":"IFERROR(INDEX('Реестр инцидентов'!$A$4:$P$171,MATCH(INDEX($K$2:$K$24,ROUNDDOWN((ROW(B157)-3)/12,0)+1)&11,'Реестр инцидентов'!$Q$4:$Q$171,0),MATCH(A$1,'Реестр инцидентов'!$A$3:$Q$3,0)),\"\")","v":""},{"$f":"IFERROR(INDEX('Реестр инцидентов'!$A$4:$P$171,MATCH(INDEX($K$2:$K$24,ROUNDDOWN((ROW(C157)-3)/12,0)+1)&11,'Реестр инцидентов'!$Q$4:$Q$171,0),MATCH(B$1,'Реестр инцидентов'!$A$3:$Q$3,0)),\"\")","v":""},{"$f":"IFERROR(INDEX('Реестр инцидентов'!$A$4:$P$171,MATCH(INDEX($K$2:$K$24,ROUNDDOWN((ROW(D157)-3)/12,0)+1)&11,'Реестр инцидентов'!$Q$4:$Q$171,0),MATCH(C$1,'Реестр инцидентов'!$A$3:$Q$3,0)),\"\")","v":""},{"$f":"IFERROR(INDEX('Реестр инцидентов'!$A$4:$P$171,MATCH(INDEX($K$2:$K$24,ROUNDDOWN((ROW(E157)-3)/12,0)+1)&11,'Реестр инцидентов'!$Q$4:$Q$171,0),MATCH(D$1,'Реестр инцидентов'!$A$3:$Q$3,0)),\"\")","v":""},{"$f":"IFERROR(INDEX('Реестр инцидентов'!$A$4:$P$171,MATCH(INDEX($K$2:$K$24,ROUNDDOWN((ROW(F157)-3)/12,0)+1)&11,'Реестр инцидентов'!$Q$4:$Q$171,0),MATCH(E$1,'Реестр инцидентов'!$A$3:$Q$3,0)),\"\")","v":""}]
[{"$f":"IFERROR(INDEX($L$2:$L$23,ROUNDDOWN((ROW(B159)-3)/12,0)+1),\"\")","v":"Карев Александр Витальевич"}]
[{"$f":"IFERROR(INDEX('Реестр инцидентов'!$A$4:$P$171,MATCH(INDEX($K$2:$K$24,ROUNDDOWN((ROW(B159)-3)/12,0)+1)&1,'Реестр инцидентов'!$Q$4:$Q$171,0),MATCH(A$1,'Реестр инцидентов'!$A$3:$Q$3,0)),\"\")","v":"Александр Карев"},{"$f":"IFERROR(INDEX('Реестр инцидентов'!$A$4:$P$171,MATCH(INDEX($K$2:$K$24,ROUNDDOWN((ROW(C159)-3)/12,0)+1)&1,'Реестр инцидентов'!$Q$4:$Q$171,0),MATCH(B$1,'Реестр инцидентов'!$A$3:$Q$3,0)),\"\")","v":"150702/2720.1"},{"$f":"IFERROR(INDEX('Реестр инцидентов'!$A$4:$P$171,MATCH(INDEX($K$2:$K$24,ROUNDDOWN((ROW(D159)-3)/12,0)+1)&1,'Реестр инцидентов'!$Q$4:$Q$171,0),MATCH(C$1,'Реестр инцидентов'!$A$3:$Q$3,0)),\"\")","v":"2015-07-02T16:46:53"},{"$f":"IFERROR(INDEX('Реестр инцидентов'!$A$4:$P$171,MATCH(INDEX($K$2:$K$24,ROUNDDOWN((ROW(E159)-3)/12,0)+1)&1,'Реестр инцидентов'!$Q$4:$Q$171,0),MATCH(D$1,'Реестр инцидентов'!$A$3:$Q$3,0)),\"\")","v":"Разрешено"},{"$f":"IFERROR(INDEX('Реестр инцидентов'!$A$4:$P$171,MATCH(INDEX($K$2:$K$24,ROUNDDOWN((ROW(F159)-3)/12,0)+1)&1,'Реестр инцидентов'!$Q$4:$Q$171,0),MATCH(E$1,'Реестр инцидентов'!$A$3:$Q$3,0)),\"\")","v":"Неправомерный перевод"}]
[{"$f":"IFERROR(INDEX('Реестр инцидентов'!$A$4:$P$171,MATCH(INDEX($K$2:$K$24,ROUNDDOWN((ROW(B160)-3)/12,0)+1)&2,'Реестр инцидентов'!$Q$4:$Q$171,0),MATCH(A$1,'Реестр инцидентов'!$A$3:$Q$3,0)),\"\")","v":"Александр Карев"},{"$f":"IFERROR(INDEX('Реестр инцидентов'!$A$4:$P$171,MATCH(INDEX($K$2:$K$24,ROUNDDOWN((ROW(C160)-3)/12,0)+1)&2,'Реестр инцидентов'!$Q$4:$Q$171,0),MATCH(B$1,'Реестр инцидентов'!$A$3:$Q$3,0)),\"\")","v":"150713/1243.2"},{"$f":"IFERROR(INDEX('Реестр инцидентов'!$A$4:$P$171,MATCH(INDEX($K$2:$K$24,ROUNDDOWN((ROW(D160)-3)/12,0)+1)&2,'Реестр инцидентов'!$Q$4:$Q$171,0),MATCH(C$1,'Реестр инцидентов'!$A$3:$Q$3,0)),\"\")","v":"2015-07-13T13:39:56"},{"$f":"IFERROR(INDEX('Реестр инцидентов'!$A$4:$P$171,MATCH(INDEX($K$2:$K$24,ROUNDDOWN((ROW(E160)-3)/12,0)+1)&2,'Реестр инцидентов'!$Q$4:$Q$171,0),MATCH(D$1,'Реестр инцидентов'!$A$3:$Q$3,0)),\"\")","v":"Разрешено"},{"$f":"IFERROR(INDEX('Реестр инцидентов'!$A$4:$P$171,MATCH(INDEX($K$2:$K$24,ROUNDDOWN((ROW(F160)-3)/12,0)+1)&2,'Реестр инцидентов'!$Q$4:$Q$171,0),MATCH(E$1,'Реестр инцидентов'!$A$3:$Q$3,0)),\"\")","v":"Некорректный контакт"}]
[{"$f":"IFERROR(INDEX('Реестр инцидентов'!$A$4:$P$171,MATCH(INDEX($K$2:$K$24,ROUNDDOWN((ROW(B161)-3)/12,0)+1)&3,'Реестр инцидентов'!$Q$4:$Q$171,0),MATCH(A$1,'Реестр инцидентов'!$A$3:$Q$3,0)),\"\")","v":""},{"$f":"IFERROR(INDEX('Реестр инцидентов'!$A$4:$P$171,MATCH(INDEX($K$2:$K$24,ROUNDDOWN((ROW(C161)-3)/12,0)+1)&3,'Реестр инцидентов'!$Q$4:$Q$171,0),MATCH(B$1,'Реестр инцидентов'!$A$3:$Q$3,0)),\"\")","v":""},{"$f":"IFERROR(INDEX('Реестр инцидентов'!$A$4:$P$171,MATCH(INDEX($K$2:$K$24,ROUNDDOWN((ROW(D161)-3)/12,0)+1)&3,'Реестр инцидентов'!$Q$4:$Q$171,0),MATCH(C$1,'Реестр инцидентов'!$A$3:$Q$3,0)),\"\")","v":""},{"$f":"IFERROR(INDEX('Реестр инцидентов'!$A$4:$P$171,MATCH(INDEX($K$2:$K$24,ROUNDDOWN((ROW(E161)-3)/12,0)+1)&3,'Реестр инцидентов'!$Q$4:$Q$171,0),MATCH(D$1,'Реестр инцидентов'!$A$3:$Q$3,0)),\"\")","v":""},{"$f":"IFERROR(INDEX('Реестр инцидентов'!$A$4:$P$171,MATCH(INDEX($K$2:$K$24,ROUNDDOWN((ROW(F161)-3)/12,0)+1)&3,'Реестр инцидентов'!$Q$4:$Q$171,0),MATCH(E$1,'Реестр инцидентов'!$A$3:$Q$3,0)),\"\")","v":""}]
[{"$f":"IFERROR(INDEX('Реестр инцидентов'!$A$4:$P$171,MATCH(INDEX($K$2:$K$24,ROUNDDOWN((ROW(B162)-3)/12,0)+1)&4,'Реестр инцидентов'!$Q$4:$Q$171,0),MATCH(A$1,'Реестр инцидентов'!$A$3:$Q$3,0)),\"\")","v":""},{"$f":"IFERROR(INDEX('Реестр инцидентов'!$A$4:$P$171,MATCH(INDEX($K$2:$K$24,ROUNDDOWN((ROW(C162)-3)/12,0)+1)&4,'Реестр инцидентов'!$Q$4:$Q$171,0),MATCH(B$1,'Реестр инцидентов'!$A$3:$Q$3,0)),\"\")","v":""},{"$f":"IFERROR(INDEX('Реестр инцидентов'!$A$4:$P$171,MATCH(INDEX($K$2:$K$24,ROUNDDOWN((ROW(D162)-3)/12,0)+1)&4,'Реестр инцидентов'!$Q$4:$Q$171,0),MATCH(C$1,'Реестр инцидентов'!$A$3:$Q$3,0)),\"\")","v":""},{"$f":"IFERROR(INDEX('Реестр инцидентов'!$A$4:$P$171,MATCH(INDEX($K$2:$K$24,ROUNDDOWN((ROW(E162)-3)/12,0)+1)&4,'Реестр инцидентов'!$Q$4:$Q$171,0),MATCH(D$1,'Реестр инцидентов'!$A$3:$Q$3,0)),\"\")","v":""},{"$f":"IFERROR(INDEX('Реестр инцидентов'!$A$4:$P$171,MATCH(INDEX($K$2:$K$24,ROUNDDOWN((ROW(F162)-3)/12,0)+1)&4,'Реестр инцидентов'!$Q$4:$Q$171,0),MATCH(E$1,'Реестр инцидентов'!$A$3:$Q$3,0)),\"\")","v":""}]
[{"$f":"IFERROR(INDEX('Реестр инцидентов'!$A$4:$P$171,MATCH(INDEX($K$2:$K$24,ROUNDDOWN((ROW(B163)-3)/12,0)+1)&5,'Реестр инцидентов'!$Q$4:$Q$171,0),MATCH(A$1,'Реестр инцидентов'!$A$3:$Q$3,0)),\"\")","v":""},{"$f":"IFERROR(INDEX('Реестр инцидентов'!$A$4:$P$171,MATCH(INDEX($K$2:$K$24,ROUNDDOWN((ROW(C163)-3)/12,0)+1)&5,'Реестр инцидентов'!$Q$4:$Q$171,0),MATCH(B$1,'Реестр инцидентов'!$A$3:$Q$3,0)),\"\")","v":""},{"$f":"IFERROR(INDEX('Реестр инцидентов'!$A$4:$P$171,MATCH(INDEX($K$2:$K$24,ROUNDDOWN((ROW(D163)-3)/12,0)+1)&5,'Реестр инцидентов'!$Q$4:$Q$171,0),MATCH(C$1,'Реестр инцидентов'!$A$3:$Q$3,0)),\"\")","v":""},{"$f":"IFERROR(INDEX('Реестр инцидентов'!$A$4:$P$171,MATCH(INDEX($K$2:$K$24,ROUNDDOWN((ROW(E163)-3)/12,0)+1)&5,'Реестр инцидентов'!$Q$4:$Q$171,0),MATCH(D$1,'Реестр инцидентов'!$A$3:$Q$3,0)),\"\")","v":""},{"$f":"IFERROR(INDEX('Реестр инцидентов'!$A$4:$P$171,MATCH(INDEX($K$2:$K$24,ROUNDDOWN((ROW(F163)-3)/12,0)+1)&5,'Реестр инцидентов'!$Q$4:$Q$171,0),MATCH(E$1,'Реестр инцидентов'!$A$3:$Q$3,0)),\"\")","v":""}]
[{"$f":"IFERROR(INDEX('Реестр инцидентов'!$A$4:$P$171,MATCH(INDEX($K$2:$K$24,ROUNDDOWN((ROW(B164)-3)/12,0)+1)&6,'Реестр инцидентов'!$Q$4:$Q$171,0),MATCH(A$1,'Реестр инцидентов'!$A$3:$Q$3,0)),\"\")","v":""},{"$f":"IFERROR(INDEX('Реестр инцидентов'!$A$4:$P$171,MATCH(INDEX($K$2:$K$24,ROUNDDOWN((ROW(C164)-3)/12,0)+1)&6,'Реестр инцидентов'!$Q$4:$Q$171,0),MATCH(B$1,'Реестр инцидентов'!$A$3:$Q$3,0)),\"\")","v":""},{"$f":"IFERROR(INDEX('Реестр инцидентов'!$A$4:$P$171,MATCH(INDEX($K$2:$K$24,ROUNDDOWN((ROW(D164)-3)/12,0)+1)&6,'Реестр инцидентов'!$Q$4:$Q$171,0),MATCH(C$1,'Реестр инцидентов'!$A$3:$Q$3,0)),\"\")","v":""},{"$f":"IFERROR(INDEX('Реестр инцидентов'!$A$4:$P$171,MATCH(INDEX($K$2:$K$24,ROUNDDOWN((ROW(E164)-3)/12,0)+1)&6,'Реестр инцидентов'!$Q$4:$Q$171,0),MATCH(D$1,'Реестр инцидентов'!$A$3:$Q$3,0)),\"\")","v":""},{"$f":"IFERROR(INDEX('Реестр инцидентов'!$A$4:$P$171,MATCH(INDEX($K$2:$K$24,ROUNDDOWN((ROW(F164)-3)/12,0)+1)&6,'Реестр инцидентов'!$Q$4:$Q$171,0),MATCH(E$1,'Реестр инцидентов'!$A$3:$Q$3,0)),\"\")","v":""}]
[{"$f":"IFERROR(INDEX('Реестр инцидентов'!$A$4:$P$171,MATCH(INDEX($K$2:$K$24,ROUNDDOWN((ROW(B165)-3)/12,0)+1)&7,'Реестр инцидентов'!$Q$4:$Q$171,0),MATCH(A$1,'Реестр инцидентов'!$A$3:$Q$3,0)),\"\")","v":""},{"$f":"IFERROR(INDEX('Реестр инцидентов'!$A$4:$P$171,MATCH(INDEX($K$2:$K$24,ROUNDDOWN((ROW(C165)-3)/12,0)+1)&7,'Реестр инцидентов'!$Q$4:$Q$171,0),MATCH(B$1,'Реестр инцидентов'!$A$3:$Q$3,0)),\"\")","v":""},{"$f":"IFERROR(INDEX('Реестр инцидентов'!$A$4:$P$171,MATCH(INDEX($K$2:$K$24,ROUNDDOWN((ROW(D165)-3)/12,0)+1)&7,'Реестр инцидентов'!$Q$4:$Q$171,0),MATCH(C$1,'Реестр инцидентов'!$A$3:$Q$3,0)),\"\")","v":""},{"$f":"IFERROR(INDEX('Реестр инцидентов'!$A$4:$P$171,MATCH(INDEX($K$2:$K$24,ROUNDDOWN((ROW(E165)-3)/12,0)+1)&7,'Реестр инцидентов'!$Q$4:$Q$171,0),MATCH(D$1,'Реестр инцидентов'!$A$3:$Q$3,0)),\"\")","v":""},{"$f":"IFERROR(INDEX('Реестр инцидентов'!$A$4:$P$171,MATCH(INDEX($K$2:$K$24,ROUNDDOWN((ROW(F165)-3)/12,0)+1)&7,'Реестр инцидентов'!$Q$4:$Q$171,0),MATCH(E$1,'Реестр инцидентов'!$A$3:$Q$3,0)),\"\")","v":""}]
[{"$f":"IFERROR(INDEX('Реестр инцидентов'!$A$4:$P$171,MATCH(INDEX($K$2:$K$24,ROUNDDOWN((ROW(B166)-3)/12,0)+1)&8,'Реестр инцидентов'!$Q$4:$Q$171,0),MATCH(A$1,'Реестр инцидентов'!$A$3:$Q$3,0)),\"\")","v":""},{"$f":"IFERROR(INDEX('Реестр инцидентов'!$A$4:$P$171,MATCH(INDEX($K$2:$K$24,ROUNDDOWN((ROW(C166)-3)/12,0)+1)&8,'Реестр инцидентов'!$Q$4:$Q$171,0),MATCH(B$1,'Реестр инцидентов'!$A$3:$Q$3,0)),\"\")","v":""},{"$f":"IFERROR(INDEX('Реестр инцидентов'!$A$4:$P$171,MATCH(INDEX($K$2:$K$24,ROUNDDOWN((ROW(D166)-3)/12,0)+1)&8,'Реестр инцидентов'!$Q$4:$Q$171,0),MATCH(C$1,'Реестр инцидентов'!$A$3:$Q$3,0)),\"\")","v":""},{"$f":"IFERROR(INDEX('Реестр инцидентов'!$A$4:$P$171,MATCH(INDEX($K$2:$K$24,ROUNDDOWN((ROW(E166)-3)/12,0)+1)&8,'Реестр инцидентов'!$Q$4:$Q$171,0),MATCH(D$1,'Реестр инцидентов'!$A$3:$Q$3,0)),\"\")","v":""},{"$f":"IFERROR(INDEX('Реестр инцидентов'!$A$4:$P$171,MATCH(INDEX($K$2:$K$24,ROUNDDOWN((ROW(F166)-3)/12,0)+1)&8,'Реестр инцидентов'!$Q$4:$Q$171,0),MATCH(E$1,'Реестр инцидентов'!$A$3:$Q$3,0)),\"\")","v":""}]
[{"$f":"IFERROR(INDEX('Реестр инцидентов'!$A$4:$P$171,MATCH(INDEX($K$2:$K$24,ROUNDDOWN((ROW(B167)-3)/12,0)+1)&9,'Реестр инцидентов'!$Q$4:$Q$171,0),MATCH(A$1,'Реестр инцидентов'!$A$3:$Q$3,0)),\"\")","v":""},{"$f":"IFERROR(INDEX('Реестр инцидентов'!$A$4:$P$171,MATCH(INDEX($K$2:$K$24,ROUNDDOWN((ROW(C167)-3)/12,0)+1)&9,'Реестр инцидентов'!$Q$4:$Q$171,0),MATCH(B$1,'Реестр инцидентов'!$A$3:$Q$3,0)),\"\")","v":""},{"$f":"IFERROR(INDEX('Реестр инцидентов'!$A$4:$P$171,MATCH(INDEX($K$2:$K$24,ROUNDDOWN((ROW(D167)-3)/12,0)+1)&9,'Реестр инцидентов'!$Q$4:$Q$171,0),MATCH(C$1,'Реестр инцидентов'!$A$3:$Q$3,0)),\"\")","v":""},{"$f":"IFERROR(INDEX('Реестр инцидентов'!$A$4:$P$171,MATCH(INDEX($K$2:$K$24,ROUNDDOWN((ROW(E167)-3)/12,0)+1)&9,'Реестр инцидентов'!$Q$4:$Q$171,0),MATCH(D$1,'Реестр инцидентов'!$A$3:$Q$3,0)),\"\")","v":""},{"$f":"IFERROR(INDEX('Реестр инцидентов'!$A$4:$P$171,MATCH(INDEX($K$2:$K$24,ROUNDDOWN((ROW(F167)-3)/12,0)+1)&9,'Реестр инцидентов'!$Q$4:$Q$171,0),MATCH(E$1,'Реестр инцидентов'!$A$3:$Q$3,0)),\"\")","v":""}]
[{"$f":"IFERROR(INDEX('Реестр инцидентов'!$A$4:$P$171,MATCH(INDEX($K$2:$K$24,ROUNDDOWN((ROW(B168)-3)/12,0)+1)&10,'Реестр инцидентов'!$Q$4:$Q$171,0),MATCH(A$1,'Реестр инцидентов'!$A$3:$Q$3,0)),\"\")","v":""},{"$f":"IFERROR(INDEX('Реестр инцидентов'!$A$4:$P$171,MATCH(INDEX($K$2:$K$24,ROUNDDOWN((ROW(C168)-3)/12,0)+1)&10,'Реестр инцидентов'!$Q$4:$Q$171,0),MATCH(B$1,'Реестр инцидентов'!$A$3:$Q$3,0)),\"\")","v":""},{"$f":"IFERROR(INDEX('Реестр инцидентов'!$A$4:$P$171,MATCH(INDEX($K$2:$K$24,ROUNDDOWN((ROW(D168)-3)/12,0)+1)&10,'Реестр инцидентов'!$Q$4:$Q$171,0),MATCH(C$1,'Реестр инцидентов'!$A$3:$Q$3,0)),\"\")","v":""},{"$f":"IFERROR(INDEX('Реестр инцидентов'!$A$4:$P$171,MATCH(INDEX($K$2:$K$24,ROUNDDOWN((ROW(E168)-3)/12,0)+1)&10,'Реестр инцидентов'!$Q$4:$Q$171,0),MATCH(D$1,'Реестр инцидентов'!$A$3:$Q$3,0)),\"\")","v":""},{"$f":"IFERROR(INDEX('Реестр инцидентов'!$A$4:$P$171,MATCH(INDEX($K$2:$K$24,ROUNDDOWN((ROW(F168)-3)/12,0)+1)&10,'Реестр инцидентов'!$Q$4:$Q$171,0),MATCH(E$1,'Реестр инцидентов'!$A$3:$Q$3,0)),\"\")","v":""}]
[{"$f":"IFERROR(INDEX('Реестр инцидентов'!$A$4:$P$171,MATCH(INDEX($K$2:$K$24,ROUNDDOWN((ROW(B169)-3)/12,0)+1)&11,'Реестр инцидентов'!$Q$4:$Q$171,0),MATCH(A$1,'Реестр инцидентов'!$A$3:$Q$3,0)),\"\")","v":""},{"$f":"IFERROR(INDEX('Реестр инцидентов'!$A$4:$P$171,MATCH(INDEX($K$2:$K$24,ROUNDDOWN((ROW(C169)-3)/12,0)+1)&11,'Реестр инцидентов'!$Q$4:$Q$171,0),MATCH(B$1,'Реестр инцидентов'!$A$3:$Q$3,0)),\"\")","v":""},{"$f":"IFERROR(INDEX('Реестр инцидентов'!$A$4:$P$171,MATCH(INDEX($K$2:$K$24,ROUNDDOWN((ROW(D169)-3)/12,0)+1)&11,'Реестр инцидентов'!$Q$4:$Q$171,0),MATCH(C$1,'Реестр инцидентов'!$A$3:$Q$3,0)),\"\")","v":""},{"$f":"IFERROR(INDEX('Реестр инцидентов'!$A$4:$P$171,MATCH(INDEX($K$2:$K$24,ROUNDDOWN((ROW(E169)-3)/12,0)+1)&11,'Реестр инцидентов'!$Q$4:$Q$171,0),MATCH(D$1,'Реестр инцидентов'!$A$3:$Q$3,0)),\"\")","v":""},{"$f":"IFERROR(INDEX('Реестр инцидентов'!$A$4:$P$171,MATCH(INDEX($K$2:$K$24,ROUNDDOWN((ROW(F169)-3)/12,0)+1)&11,'Реестр инцидентов'!$Q$4:$Q$171,0),MATCH(E$1,'Реестр инцидентов'!$A$3:$Q$3,0)),\"\")","v":""}]
[{"$f":"IFERROR(INDEX($L$2:$L$23,ROUNDDOWN((ROW(B171)-3)/12,0)+1),\"\")","v":"Колесниченко Виктор Ильич"}]
[{"$f":"IFERROR(INDEX('Реестр инцидентов'!$A$4:$P$171,MATCH(INDEX($K$2:$K$24,ROUNDDOWN((ROW(B171)-3)/12,0)+1)&1,'Реестр инцидентов'!$Q$4:$Q$171,0),MATCH(A$1,'Реестр инцидентов'!$A$3:$Q$3,0)),\"\")","v":""},{"$f":"IFERROR(INDEX('Реестр инцидентов'!$A$4:$P$171,MATCH(INDEX($K$2:$K$24,ROUNDDOWN((ROW(C171)-3)/12,0)+1)&1,'Реестр инцидентов'!$Q$4:$Q$171,0),MATCH(B$1,'Реестр инцидентов'!$A$3:$Q$3,0)),\"\")","v":""},{"$f":"IFERROR(INDEX('Реестр инцидентов'!$A$4:$P$171,MATCH(INDEX($K$2:$K$24,ROUNDDOWN((ROW(D171)-3)/12,0)+1)&1,'Реестр инцидентов'!$Q$4:$Q$171,0),MATCH(C$1,'Реестр инцидентов'!$A$3:$Q$3,0)),\"\")","v":""},{"$f":"IFERROR(INDEX('Реестр инцидентов'!$A$4:$P$171,MATCH(INDEX($K$2:$K$24,ROUNDDOWN((ROW(E171)-3)/12,0)+1)&1,'Реестр инцидентов'!$Q$4:$Q$171,0),MATCH(D$1,'Реестр инцидентов'!$A$3:$Q$3,0)),\"\")","v":""},{"$f":"IFERROR(INDEX('Реестр инцидентов'!$A$4:$P$171,MATCH(INDEX($K$2:$K$24,ROUNDDOWN((ROW(F171)-3)/12,0)+1)&1,'Реестр инцидентов'!$Q$4:$Q$171,0),MATCH(E$1,'Реестр инцидентов'!$A$3:$Q$3,0)),\"\")","v":""}]
[{"$f":"IFERROR(INDEX('Реестр инцидентов'!$A$4:$P$171,MATCH(INDEX($K$2:$K$24,ROUNDDOWN((ROW(B172)-3)/12,0)+1)&2,'Реестр инцидентов'!$Q$4:$Q$171,0),MATCH(A$1,'Реестр инцидентов'!$A$3:$Q$3,0)),\"\")","v":""},{"$f":"IFERROR(INDEX('Реестр инцидентов'!$A$4:$P$171,MATCH(INDEX($K$2:$K$24,ROUNDDOWN((ROW(C172)-3)/12,0)+1)&2,'Реестр инцидентов'!$Q$4:$Q$171,0),MATCH(B$1,'Реестр инцидентов'!$A$3:$Q$3,0)),\"\")","v":""},{"$f":"IFERROR(INDEX('Реестр инцидентов'!$A$4:$P$171,MATCH(INDEX($K$2:$K$24,ROUNDDOWN((ROW(D172)-3)/12,0)+1)&2,'Реестр инцидентов'!$Q$4:$Q$171,0),MATCH(C$1,'Реестр инцидентов'!$A$3:$Q$3,0)),\"\")","v":""},{"$f":"IFERROR(INDEX('Реестр инцидентов'!$A$4:$P$171,MATCH(INDEX($K$2:$K$24,ROUNDDOWN((ROW(E172)-3)/12,0)+1)&2,'Реестр инцидентов'!$Q$4:$Q$171,0),MATCH(D$1,'Реестр инцидентов'!$A$3:$Q$3,0)),\"\")","v":""},{"$f":"IFERROR(INDEX('Реестр инцидентов'!$A$4:$P$171,MATCH(INDEX($K$2:$K$24,ROUNDDOWN((ROW(F172)-3)/12,0)+1)&2,'Реестр инцидентов'!$Q$4:$Q$171,0),MATCH(E$1,'Реестр инцидентов'!$A$3:$Q$3,0)),\"\")","v":""}]
[{"$f":"IFERROR(INDEX('Реестр инцидентов'!$A$4:$P$171,MATCH(INDEX($K$2:$K$24,ROUNDDOWN((ROW(B173)-3)/12,0)+1)&3,'Реестр инцидентов'!$Q$4:$Q$171,0),MATCH(A$1,'Реестр инцидентов'!$A$3:$Q$3,0)),\"\")","v":""},{"$f":"IFERROR(INDEX('Реестр инцидентов'!$A$4:$P$171,MATCH(INDEX($K$2:$K$24,ROUNDDOWN((ROW(C173)-3)/12,0)+1)&3,'Реестр инцидентов'!$Q$4:$Q$171,0),MATCH(B$1,'Реестр инцидентов'!$A$3:$Q$3,0)),\"\")","v":""},{"$f":"IFERROR(INDEX('Реестр инцидентов'!$A$4:$P$171,MATCH(INDEX($K$2:$K$24,ROUNDDOWN((ROW(D173)-3)/12,0)+1)&3,'Реестр инцидентов'!$Q$4:$Q$171,0),MATCH(C$1,'Реестр инцидентов'!$A$3:$Q$3,0)),\"\")","v":""},{"$f":"IFERROR(INDEX('Реестр инцидентов'!$A$4:$P$171,MATCH(INDEX($K$2:$K$24,ROUNDDOWN((ROW(E173)-3)/12,0)+1)&3,'Реестр инцидентов'!$Q$4:$Q$171,0),MATCH(D$1,'Реестр инцидентов'!$A$3:$Q$3,0)),\"\")","v":""},{"$f":"IFERROR(INDEX('Реестр инцидентов'!$A$4:$P$171,MATCH(INDEX($K$2:$K$24,ROUNDDOWN((ROW(F173)-3)/12,0)+1)&3,'Реестр инцидентов'!$Q$4:$Q$171,0),MATCH(E$1,'Реестр инцидентов'!$A$3:$Q$3,0)),\"\")","v":""}]
[{"$f":"IFERROR(INDEX('Реестр инцидентов'!$A$4:$P$171,MATCH(INDEX($K$2:$K$24,ROUNDDOWN((ROW(B174)-3)/12,0)+1)&4,'Реестр инцидентов'!$Q$4:$Q$171,0),MATCH(A$1,'Реестр инцидентов'!$A$3:$Q$3,0)),\"\")","v":""},{"$f":"IFERROR(INDEX('Реестр инцидентов'!$A$4:$P$171,MATCH(INDEX($K$2:$K$24,ROUNDDOWN((ROW(C174)-3)/12,0)+1)&4,'Реестр инцидентов'!$Q$4:$Q$171,0),MATCH(B$1,'Реестр инцидентов'!$A$3:$Q$3,0)),\"\")","v":""},{"$f":"IFERROR(INDEX('Реестр инцидентов'!$A$4:$P$171,MATCH(INDEX($K$2:$K$24,ROUNDDOWN((ROW(D174)-3)/12,0)+1)&4,'Реестр инцидентов'!$Q$4:$Q$171,0),MATCH(C$1,'Реестр инцидентов'!$A$3:$Q$3,0)),\"\")","v":""},{"$f":"IFERROR(INDEX('Реестр инцидентов'!$A$4:$P$171,MATCH(INDEX($K$2:$K$24,ROUNDDOWN((ROW(E174)-3)/12,0)+1)&4,'Реестр инцидентов'!$Q$4:$Q$171,0),MATCH(D$1,'Реестр инцидентов'!$A$3:$Q$3,0)),\"\")","v":""},{"$f":"IFERROR(INDEX('Реестр инцидентов'!$A$4:$P$171,MATCH(INDEX($K$2:$K$24,ROUNDDOWN((ROW(F174)-3)/12,0)+1)&4,'Реестр инцидентов'!$Q$4:$Q$171,0),MATCH(E$1,'Реестр инцидентов'!$A$3:$Q$3,0)),\"\")","v":""}]
[{"$f":"IFERROR(INDEX('Реестр инцидентов'!$A$4:$P$171,MATCH(INDEX($K$2:$K$24,ROUNDDOWN((ROW(B175)-3)/12,0)+1)&5,'Реестр инцидентов'!$Q$4:$Q$171,0),MATCH(A$1,'Реестр инцидентов'!$A$3:$Q$3,0)),\"\")","v":""},{"$f":"IFERROR(INDEX('Реестр инцидентов'!$A$4:$P$171,MATCH(INDEX($K$2:$K$24,ROUNDDOWN((ROW(C175)-3)/12,0)+1)&5,'Реестр инцидентов'!$Q$4:$Q$171,0),MATCH(B$1,'Реестр инцидентов'!$A$3:$Q$3,0)),\"\")","v":""},{"$f":"IFERROR(INDEX('Реестр инцидентов'!$A$4:$P$171,MATCH(INDEX($K$2:$K$24,ROUNDDOWN((ROW(D175)-3)/12,0)+1)&5,'Реестр инцидентов'!$Q$4:$Q$171,0),MATCH(C$1,'Реестр инцидентов'!$A$3:$Q$3,0)),\"\")","v":""},{"$f":"IFERROR(INDEX('Реестр инцидентов'!$A$4:$P$171,MATCH(INDEX($K$2:$K$24,ROUNDDOWN((ROW(E175)-3)/12,0)+1)&5,'Реестр инцидентов'!$Q$4:$Q$171,0),MATCH(D$1,'Реестр инцидентов'!$A$3:$Q$3,0)),\"\")","v":""},{"$f":"IFERROR(INDEX('Реестр инцидентов'!$A$4:$P$171,MATCH(INDEX($K$2:$K$24,ROUNDDOWN((ROW(F175)-3)/12,0)+1)&5,'Реестр инцидентов'!$Q$4:$Q$171,0),MATCH(E$1,'Реестр инцидентов'!$A$3:$Q$3,0)),\"\")","v":""}]
[{"$f":"IFERROR(INDEX('Реестр инцидентов'!$A$4:$P$171,MATCH(INDEX($K$2:$K$24,ROUNDDOWN((ROW(B176)-3)/12,0)+1)&6,'Реестр инцидентов'!$Q$4:$Q$171,0),MATCH(A$1,'Реестр инцидентов'!$A$3:$Q$3,0)),\"\")","v":""},{"$f":"IFERROR(INDEX('Реестр инцидентов'!$A$4:$P$171,MATCH(INDEX($K$2:$K$24,ROUNDDOWN((ROW(C176)-3)/12,0)+1)&6,'Реестр инцидентов'!$Q$4:$Q$171,0),MATCH(B$1,'Реестр инцидентов'!$A$3:$Q$3,0)),\"\")","v":""},{"$f":"IFERROR(INDEX('Реестр инцидентов'!$A$4:$P$171,MATCH(INDEX($K$2:$K$24,ROUNDDOWN((ROW(D176)-3)/12,0)+1)&6,'Реестр инцидентов'!$Q$4:$Q$171,0),MATCH(C$1,'Реестр инцидентов'!$A$3:$Q$3,0)),\"\")","v":""},{"$f":"IFERROR(INDEX('Реестр инцидентов'!$A$4:$P$171,MATCH(INDEX($K$2:$K$24,ROUNDDOWN((ROW(E176)-3)/12,0)+1)&6,'Реестр инцидентов'!$Q$4:$Q$171,0),MATCH(D$1,'Реестр инцидентов'!$A$3:$Q$3,0)),\"\")","v":""},{"$f":"IFERROR(INDEX('Реестр инцидентов'!$A$4:$P$171,MATCH(INDEX($K$2:$K$24,ROUNDDOWN((ROW(F176)-3)/12,0)+1)&6,'Реестр инцидентов'!$Q$4:$Q$171,0),MATCH(E$1,'Реестр инцидентов'!$A$3:$Q$3,0)),\"\")","v":""}]
[{"$f":"IFERROR(INDEX('Реестр инцидентов'!$A$4:$P$171,MATCH(INDEX($K$2:$K$24,ROUNDDOWN((ROW(B177)-3)/12,0)+1)&7,'Реестр инцидентов'!$Q$4:$Q$171,0),MATCH(A$1,'Реестр инцидентов'!$A$3:$Q$3,0)),\"\")","v":""},{"$f":"IFERROR(INDEX('Реестр инцидентов'!$A$4:$P$171,MATCH(INDEX($K$2:$K$24,ROUNDDOWN((ROW(C177)-3)/12,0)+1)&7,'Реестр инцидентов'!$Q$4:$Q$171,0),MATCH(B$1,'Реестр инцидентов'!$A$3:$Q$3,0)),\"\")","v":""},{"$f":"IFERROR(INDEX('Реестр инцидентов'!$A$4:$P$171,MATCH(INDEX($K$2:$K$24,ROUNDDOWN((ROW(D177)-3)/12,0)+1)&7,'Реестр инцидентов'!$Q$4:$Q$171,0),MATCH(C$1,'Реестр инцидентов'!$A$3:$Q$3,0)),\"\")","v":""},{"$f":"IFERROR(INDEX('Реестр инцидентов'!$A$4:$P$171,MATCH(INDEX($K$2:$K$24,ROUNDDOWN((ROW(E177)-3)/12,0)+1)&7,'Реестр инцидентов'!$Q$4:$Q$171,0),MATCH(D$1,'Реестр инцидентов'!$A$3:$Q$3,0)),\"\")","v":""},{"$f":"IFERROR(INDEX('Реестр инцидентов'!$A$4:$P$171,MATCH(INDEX($K$2:$K$24,ROUNDDOWN((ROW(F177)-3)/12,0)+1)&7,'Реестр инцидентов'!$Q$4:$Q$171,0),MATCH(E$1,'Реестр инцидентов'!$A$3:$Q$3,0)),\"\")","v":""}]
[{"$f":"IFERROR(INDEX('Реестр инцидентов'!$A$4:$P$171,MATCH(INDEX($K$2:$K$24,ROUNDDOWN((ROW(B178)-3)/12,0)+1)&8,'Реестр инцидентов'!$Q$4:$Q$171,0),MATCH(A$1,'Реестр инцидентов'!$A$3:$Q$3,0)),\"\")","v":""},{"$f":"IFERROR(INDEX('Реестр инцидентов'!$A$4:$P$171,MATCH(INDEX($K$2:$K$24,ROUNDDOWN((ROW(C178)-3)/12,0)+1)&8,'Реестр инцидентов'!$Q$4:$Q$171,0),MATCH(B$1,'Реестр инцидентов'!$A$3:$Q$3,0)),\"\")","v":""},{"$f":"IFERROR(INDEX('Реестр инцидентов'!$A$4:$P$171,MATCH(INDEX($K$2:$K$24,ROUNDDOWN((ROW(D178)-3)/12,0)+1)&8,'Реестр инцидентов'!$Q$4:$Q$171,0),MATCH(C$1,'Реестр инцидентов'!$A$3:$Q$3,0)),\"\")","v":""},{"$f":"IFERROR(INDEX('Реестр инцидентов'!$A$4:$P$171,MATCH(INDEX($K$2:$K$24,ROUNDDOWN((ROW(E178)-3)/12,0)+1)&8,'Реестр инцидентов'!$Q$4:$Q$171,0),MATCH(D$1,'Реестр инцидентов'!$A$3:$Q$3,0)),\"\")","v":""},{"$f":"IFERROR(INDEX('Реестр инцидентов'!$A$4:$P$171,MATCH(INDEX($K$2:$K$24,ROUNDDOWN((ROW(F178)-3)/12,0)+1)&8,'Реестр инцидентов'!$Q$4:$Q$171,0),MATCH(E$1,'Реестр инцидентов'!$A$3:$Q$3,0)),\"\")","v":""}]
[{"$f":"IFERROR(INDEX('Реестр инцидентов'!$A$4:$P$171,MATCH(INDEX($K$2:$K$24,ROUNDDOWN((ROW(B179)-3)/12,0)+1)&9,'Реестр инцидентов'!$Q$4:$Q$171,0),MATCH(A$1,'Реестр инцидентов'!$A$3:$Q$3,0)),\"\")","v":""},{"$f":"IFERROR(INDEX('Реестр инцидентов'!$A$4:$P$171,MATCH(INDEX($K$2:$K$24,ROUNDDOWN((ROW(C179)-3)/12,0)+1)&9,'Реестр инцидентов'!$Q$4:$Q$171,0),MATCH(B$1,'Реестр инцидентов'!$A$3:$Q$3,0)),\"\")","v":""},{"$f":"IFERROR(INDEX('Реестр инцидентов'!$A$4:$P$171,MATCH(INDEX($K$2:$K$24,ROUNDDOWN((ROW(D179)-3)/12,0)+1)&9,'Реестр инцидентов'!$Q$4:$Q$171,0),MATCH(C$1,'Реестр инцидентов'!$A$3:$Q$3,0)),\"\")","v":""},{"$f":"IFERROR(INDEX('Реестр инцидентов'!$A$4:$P$171,MATCH(INDEX($K$2:$K$24,ROUNDDOWN((ROW(E179)-3)/12,0)+1)&9,'Реестр инцидентов'!$Q$4:$Q$171,0),MATCH(D$1,'Реестр инцидентов'!$A$3:$Q$3,0)),\"\")","v":""},{"$f":"IFERROR(INDEX('Реестр инцидентов'!$A$4:$P$171,MATCH(INDEX($K$2:$K$24,ROUNDDOWN((ROW(F179)-3)/12,0)+1)&9,'Реестр инцидентов'!$Q$4:$Q$171,0),MATCH(E$1,'Реестр инцидентов'!$A$3:$Q$3,0)),\"\")","v":""}]
[{"$f":"IFERROR(INDEX('Реестр инцидентов'!$A$4:$P$171,MATCH(INDEX($K$2:$K$24,ROUNDDOWN((ROW(B180)-3)/12,0)+1)&10,'Реестр инцидентов'!$Q$4:$Q$171,0),MATCH(A$1,'Реестр инцидентов'!$A$3:$Q$3,0)),\"\")","v":""},{"$f":"IFERROR(INDEX('Реестр инцидентов'!$A$4:$P$171,MATCH(INDEX($K$2:$K$24,ROUNDDOWN((ROW(C180)-3)/12,0)+1)&10,'Реестр инцидентов'!$Q$4:$Q$171,0),MATCH(B$1,'Реестр инцидентов'!$A$3:$Q$3,0)),\"\")","v":""},{"$f":"IFERROR(INDEX('Реестр инцидентов'!$A$4:$P$171,MATCH(INDEX($K$2:$K$24,ROUNDDOWN((ROW(D180)-3)/12,0)+1)&10,'Реестр инцидентов'!$Q$4:$Q$171,0),MATCH(C$1,'Реестр инцидентов'!$A$3:$Q$3,0)),\"\")","v":""},{"$f":"IFERROR(INDEX('Реестр инцидентов'!$A$4:$P$171,MATCH(INDEX($K$2:$K$24,ROUNDDOWN((ROW(E180)-3)/12,0)+1)&10,'Реестр инцидентов'!$Q$4:$Q$171,0),MATCH(D$1,'Реестр инцидентов'!$A$3:$Q$3,0)),\"\")","v":""},{"$f":"IFERROR(INDEX('Реестр инцидентов'!$A$4:$P$171,MATCH(INDEX($K$2:$K$24,ROUNDDOWN((ROW(F180)-3)/12,0)+1)&10,'Реестр инцидентов'!$Q$4:$Q$171,0),MATCH(E$1,'Реестр инцидентов'!$A$3:$Q$3,0)),\"\")","v":""}]
[{"$f":"IFERROR(INDEX('Реестр инцидентов'!$A$4:$P$171,MATCH(INDEX($K$2:$K$24,ROUNDDOWN((ROW(B181)-3)/12,0)+1)&11,'Реестр инцидентов'!$Q$4:$Q$171,0),MATCH(A$1,'Реестр инцидентов'!$A$3:$Q$3,0)),\"\")","v":""},{"$f":"IFERROR(INDEX('Реестр инцидентов'!$A$4:$P$171,MATCH(INDEX($K$2:$K$24,ROUNDDOWN((ROW(C181)-3)/12,0)+1)&11,'Реестр инцидентов'!$Q$4:$Q$171,0),MATCH(B$1,'Реестр инцидентов'!$A$3:$Q$3,0)),\"\")","v":""},{"$f":"IFERROR(INDEX('Реестр инцидентов'!$A$4:$P$171,MATCH(INDEX($K$2:$K$24,ROUNDDOWN((ROW(D181)-3)/12,0)+1)&11,'Реестр инцидентов'!$Q$4:$Q$171,0),MATCH(C$1,'Реестр инцидентов'!$A$3:$Q$3,0)),\"\")","v":""},{"$f":"IFERROR(INDEX('Реестр инцидентов'!$A$4:$P$171,MATCH(INDEX($K$2:$K$24,ROUNDDOWN((ROW(E181)-3)/12,0)+1)&11,'Реестр инцидентов'!$Q$4:$Q$171,0),MATCH(D$1,'Реестр инцидентов'!$A$3:$Q$3,0)),\"\")","v":""},{"$f":"IFERROR(INDEX('Реестр инцидентов'!$A$4:$P$171,MATCH(INDEX($K$2:$K$24,ROUNDDOWN((ROW(F181)-3)/12,0)+1)&11,'Реестр инцидентов'!$Q$4:$Q$171,0),MATCH(E$1,'Реестр инцидентов'!$A$3:$Q$3,0)),\"\")","v":""}]
[{"$f":"IFERROR(INDEX($L$2:$L$23,ROUNDDOWN((ROW(B183)-3)/12,0)+1),\"\")","v":"Леонтьев Вадим Вадимович"}]
[{"$f":"IFERROR(INDEX('Реестр инцидентов'!$A$4:$P$171,MATCH(INDEX($K$2:$K$24,ROUNDDOWN((ROW(B183)-3)/12,0)+1)&1,'Реестр инцидентов'!$Q$4:$Q$171,0),MATCH(A$1,'Реестр инцидентов'!$A$3:$Q$3,0)),\"\")","v":""},{"$f":"IFERROR(INDEX('Реестр инцидентов'!$A$4:$P$171,MATCH(INDEX($K$2:$K$24,ROUNDDOWN((ROW(C183)-3)/12,0)+1)&1,'Реестр инцидентов'!$Q$4:$Q$171,0),MATCH(B$1,'Реестр инцидентов'!$A$3:$Q$3,0)),\"\")","v":""},{"$f":"IFERROR(INDEX('Реестр инцидентов'!$A$4:$P$171,MATCH(INDEX($K$2:$K$24,ROUNDDOWN((ROW(D183)-3)/12,0)+1)&1,'Реестр инцидентов'!$Q$4:$Q$171,0),MATCH(C$1,'Реестр инцидентов'!$A$3:$Q$3,0)),\"\")","v":""},{"$f":"IFERROR(INDEX('Реестр инцидентов'!$A$4:$P$171,MATCH(INDEX($K$2:$K$24,ROUNDDOWN((ROW(E183)-3)/12,0)+1)&1,'Реестр инцидентов'!$Q$4:$Q$171,0),MATCH(D$1,'Реестр инцидентов'!$A$3:$Q$3,0)),\"\")","v":""},{"$f":"IFERROR(INDEX('Реестр инцидентов'!$A$4:$P$171,MATCH(INDEX($K$2:$K$24,ROUNDDOWN((ROW(F183)-3)/12,0)+1)&1,'Реестр инцидентов'!$Q$4:$Q$171,0),MATCH(E$1,'Реестр инцидентов'!$A$3:$Q$3,0)),\"\")","v":""}]
[{"$f":"IFERROR(INDEX('Реестр инцидентов'!$A$4:$P$171,MATCH(INDEX($K$2:$K$24,ROUNDDOWN((ROW(B184)-3)/12,0)+1)&2,'Реестр инцидентов'!$Q$4:$Q$171,0),MATCH(A$1,'Реестр инцидентов'!$A$3:$Q$3,0)),\"\")","v":""},{"$f":"IFERROR(INDEX('Реестр инцидентов'!$A$4:$P$171,MATCH(INDEX($K$2:$K$24,ROUNDDOWN((ROW(C184)-3)/12,0)+1)&2,'Реестр инцидентов'!$Q$4:$Q$171,0),MATCH(B$1,'Реестр инцидентов'!$A$3:$Q$3,0)),\"\")","v":""},{"$f":"IFERROR(INDEX('Реестр инцидентов'!$A$4:$P$171,MATCH(INDEX($K$2:$K$24,ROUNDDOWN((ROW(D184)-3)/12,0)+1)&2,'Реестр инцидентов'!$Q$4:$Q$171,0),MATCH(C$1,'Реестр инцидентов'!$A$3:$Q$3,0)),\"\")","v":""},{"$f":"IFERROR(INDEX('Реестр инцидентов'!$A$4:$P$171,MATCH(INDEX($K$2:$K$24,ROUNDDOWN((ROW(E184)-3)/12,0)+1)&2,'Реестр инцидентов'!$Q$4:$Q$171,0),MATCH(D$1,'Реестр инцидентов'!$A$3:$Q$3,0)),\"\")","v":""},{"$f":"IFERROR(INDEX('Реестр инцидентов'!$A$4:$P$171,MATCH(INDEX($K$2:$K$24,ROUNDDOWN((ROW(F184)-3)/12,0)+1)&2,'Реестр инцидентов'!$Q$4:$Q$171,0),MATCH(E$1,'Реестр инцидентов'!$A$3:$Q$3,0)),\"\")","v":""}]
[{"$f":"IFERROR(INDEX('Реестр инцидентов'!$A$4:$P$171,MATCH(INDEX($K$2:$K$24,ROUNDDOWN((ROW(B185)-3)/12,0)+1)&3,'Реестр инцидентов'!$Q$4:$Q$171,0),MATCH(A$1,'Реестр инцидентов'!$A$3:$Q$3,0)),\"\")","v":""},{"$f":"IFERROR(INDEX('Реестр инцидентов'!$A$4:$P$171,MATCH(INDEX($K$2:$K$24,ROUNDDOWN((ROW(C185)-3)/12,0)+1)&3,'Реестр инцидентов'!$Q$4:$Q$171,0),MATCH(B$1,'Реестр инцидентов'!$A$3:$Q$3,0)),\"\")","v":""},{"$f":"IFERROR(INDEX('Реестр инцидентов'!$A$4:$P$171,MATCH(INDEX($K$2:$K$24,ROUNDDOWN((ROW(D185)-3)/12,0)+1)&3,'Реестр инцидентов'!$Q$4:$Q$171,0),MATCH(C$1,'Реестр инцидентов'!$A$3:$Q$3,0)),\"\")","v":""},{"$f":"IFERROR(INDEX('Реестр инцидентов'!$A$4:$P$171,MATCH(INDEX($K$2:$K$24,ROUNDDOWN((ROW(E185)-3)/12,0)+1)&3,'Реестр инцидентов'!$Q$4:$Q$171,0),MATCH(D$1,'Реестр инцидентов'!$A$3:$Q$3,0)),\"\")","v":""},{"$f":"IFERROR(INDEX('Реестр инцидентов'!$A$4:$P$171,MATCH(INDEX($K$2:$K$24,ROUNDDOWN((ROW(F185)-3)/12,0)+1)&3,'Реестр инцидентов'!$Q$4:$Q$171,0),MATCH(E$1,'Реестр инцидентов'!$A$3:$Q$3,0)),\"\")","v":""}]
[{"$f":"IFERROR(INDEX('Реестр инцидентов'!$A$4:$P$171,MATCH(INDEX($K$2:$K$24,ROUNDDOWN((ROW(B186)-3)/12,0)+1)&4,'Реестр инцидентов'!$Q$4:$Q$171,0),MATCH(A$1,'Реестр инцидентов'!$A$3:$Q$3,0)),\"\")","v":""},{"$f":"IFERROR(INDEX('Реестр инцидентов'!$A$4:$P$171,MATCH(INDEX($K$2:$K$24,ROUNDDOWN((ROW(C186)-3)/12,0)+1)&4,'Реестр инцидентов'!$Q$4:$Q$171,0),MATCH(B$1,'Реестр инцидентов'!$A$3:$Q$3,0)),\"\")","v":""},{"$f":"IFERROR(INDEX('Реестр инцидентов'!$A$4:$P$171,MATCH(INDEX($K$2:$K$24,ROUNDDOWN((ROW(D186)-3)/12,0)+1)&4,'Реестр инцидентов'!$Q$4:$Q$171,0),MATCH(C$1,'Реестр инцидентов'!$A$3:$Q$3,0)),\"\")","v":""},{"$f":"IFERROR(INDEX('Реестр инцидентов'!$A$4:$P$171,MATCH(INDEX($K$2:$K$24,ROUNDDOWN((ROW(E186)-3)/12,0)+1)&4,'Реестр инцидентов'!$Q$4:$Q$171,0),MATCH(D$1,'Реестр инцидентов'!$A$3:$Q$3,0)),\"\")","v":""},{"$f":"IFERROR(INDEX('Реестр инцидентов'!$A$4:$P$171,MATCH(INDEX($K$2:$K$24,ROUNDDOWN((ROW(F186)-3)/12,0)+1)&4,'Реестр инцидентов'!$Q$4:$Q$171,0),MATCH(E$1,'Реестр инцидентов'!$A$3:$Q$3,0)),\"\")","v":""}]
[{"$f":"IFERROR(INDEX('Реестр инцидентов'!$A$4:$P$171,MATCH(INDEX($K$2:$K$24,ROUNDDOWN((ROW(B187)-3)/12,0)+1)&5,'Реестр инцидентов'!$Q$4:$Q$171,0),MATCH(A$1,'Реестр инцидентов'!$A$3:$Q$3,0)),\"\")","v":""},{"$f":"IFERROR(INDEX('Реестр инцидентов'!$A$4:$P$171,MATCH(INDEX($K$2:$K$24,ROUNDDOWN((ROW(C187)-3)/12,0)+1)&5,'Реестр инцидентов'!$Q$4:$Q$171,0),MATCH(B$1,'Реестр инцидентов'!$A$3:$Q$3,0)),\"\")","v":""},{"$f":"IFERROR(INDEX('Реестр инцидентов'!$A$4:$P$171,MATCH(INDEX($K$2:$K$24,ROUNDDOWN((ROW(D187)-3)/12,0)+1)&5,'Реестр инцидентов'!$Q$4:$Q$171,0),MATCH(C$1,'Реестр инцидентов'!$A$3:$Q$3,0)),\"\")","v":""},{"$f":"IFERROR(INDEX('Реестр инцидентов'!$A$4:$P$171,MATCH(INDEX($K$2:$K$24,ROUNDDOWN((ROW(E187)-3)/12,0)+1)&5,'Реестр инцидентов'!$Q$4:$Q$171,0),MATCH(D$1,'Реестр инцидентов'!$A$3:$Q$3,0)),\"\")","v":""},{"$f":"IFERROR(INDEX('Реестр инцидентов'!$A$4:$P$171,MATCH(INDEX($K$2:$K$24,ROUNDDOWN((ROW(F187)-3)/12,0)+1)&5,'Реестр инцидентов'!$Q$4:$Q$171,0),MATCH(E$1,'Реестр инцидентов'!$A$3:$Q$3,0)),\"\")","v":""}]
[{"$f":"IFERROR(INDEX('Реестр инцидентов'!$A$4:$P$171,MATCH(INDEX($K$2:$K$24,ROUNDDOWN((ROW(B188)-3)/12,0)+1)&6,'Реестр инцидентов'!$Q$4:$Q$171,0),MATCH(A$1,'Реестр инцидентов'!$A$3:$Q$3,0)),\"\")","v":""},{"$f":"IFERROR(INDEX('Реестр инцидентов'!$A$4:$P$171,MATCH(INDEX($K$2:$K$24,ROUNDDOWN((ROW(C188)-3)/12,0)+1)&6,'Реестр инцидентов'!$Q$4:$Q$171,0),MATCH(B$1,'Реестр инцидентов'!$A$3:$Q$3,0)),\"\")","v":""},{"$f":"IFERROR(INDEX('Реестр инцидентов'!$A$4:$P$171,MATCH(INDEX($K$2:$K$24,ROUNDDOWN((ROW(D188)-3)/12,0)+1)&6,'Реестр инцидентов'!$Q$4:$Q$171,0),MATCH(C$1,'Реестр инцидентов'!$A$3:$Q$3,0)),\"\")","v":""},{"$f":"IFERROR(INDEX('Реестр инцидентов'!$A$4:$P$171,MATCH(INDEX($K$2:$K$24,ROUNDDOWN((ROW(E188)-3)/12,0)+1)&6,'Реестр инцидентов'!$Q$4:$Q$171,0),MATCH(D$1,'Реестр инцидентов'!$A$3:$Q$3,0)),\"\")","v":""},{"$f":"IFERROR(INDEX('Реестр инцидентов'!$A$4:$P$171,MATCH(INDEX($K$2:$K$24,ROUNDDOWN((ROW(F188)-3)/12,0)+1)&6,'Реестр инцидентов'!$Q$4:$Q$171,0),MATCH(E$1,'Реестр инцидентов'!$A$3:$Q$3,0)),\"\")","v":""}]
[{"$f":"IFERROR(INDEX('Реестр инцидентов'!$A$4:$P$171,MATCH(INDEX($K$2:$K$24,ROUNDDOWN((ROW(B189)-3)/12,0)+1)&7,'Реестр инцидентов'!$Q$4:$Q$171,0),MATCH(A$1,'Реестр инцидентов'!$A$3:$Q$3,0)),\"\")","v":""},{"$f":"IFERROR(INDEX('Реестр инцидентов'!$A$4:$P$171,MATCH(INDEX($K$2:$K$24,ROUNDDOWN((ROW(C189)-3)/12,0)+1)&7,'Реестр инцидентов'!$Q$4:$Q$171,0),MATCH(B$1,'Реестр инцидентов'!$A$3:$Q$3,0)),\"\")","v":""},{"$f":"IFERROR(INDEX('Реестр инцидентов'!$A$4:$P$171,MATCH(INDEX($K$2:$K$24,ROUNDDOWN((ROW(D189)-3)/12,0)+1)&7,'Реестр инцидентов'!$Q$4:$Q$171,0),MATCH(C$1,'Реестр инцидентов'!$A$3:$Q$3,0)),\"\")","v":""},{"$f":"IFERROR(INDEX('Реестр инцидентов'!$A$4:$P$171,MATCH(INDEX($K$2:$K$24,ROUNDDOWN((ROW(E189)-3)/12,0)+1)&7,'Реестр инцидентов'!$Q$4:$Q$171,0),MATCH(D$1,'Реестр инцидентов'!$A$3:$Q$3,0)),\"\")","v":""},{"$f":"IFERROR(INDEX('Реестр инцидентов'!$A$4:$P$171,MATCH(INDEX($K$2:$K$24,ROUNDDOWN((ROW(F189)-3)/12,0)+1)&7,'Реестр инцидентов'!$Q$4:$Q$171,0),MATCH(E$1,'Реестр инцидентов'!$A$3:$Q$3,0)),\"\")","v":""}]
[{"$f":"IFERROR(INDEX('Реестр инцидентов'!$A$4:$P$171,MATCH(INDEX($K$2:$K$24,ROUNDDOWN((ROW(B190)-3)/12,0)+1)&8,'Реестр инцидентов'!$Q$4:$Q$171,0),MATCH(A$1,'Реестр инцидентов'!$A$3:$Q$3,0)),\"\")","v":""},{"$f":"IFERROR(INDEX('Реестр инцидентов'!$A$4:$P$171,MATCH(INDEX($K$2:$K$24,ROUNDDOWN((ROW(C190)-3)/12,0)+1)&8,'Реестр инцидентов'!$Q$4:$Q$171,0),MATCH(B$1,'Реестр инцидентов'!$A$3:$Q$3,0)),\"\")","v":""},{"$f":"IFERROR(INDEX('Реестр инцидентов'!$A$4:$P$171,MATCH(INDEX($K$2:$K$24,ROUNDDOWN((ROW(D190)-3)/12,0)+1)&8,'Реестр инцидентов'!$Q$4:$Q$171,0),MATCH(C$1,'Реестр инцидентов'!$A$3:$Q$3,0)),\"\")","v":""},{"$f":"IFERROR(INDEX('Реестр инцидентов'!$A$4:$P$171,MATCH(INDEX($K$2:$K$24,ROUNDDOWN((ROW(E190)-3)/12,0)+1)&8,'Реестр инцидентов'!$Q$4:$Q$171,0),MATCH(D$1,'Реестр инцидентов'!$A$3:$Q$3,0)),\"\")","v":""},{"$f":"IFERROR(INDEX('Реестр инцидентов'!$A$4:$P$171,MATCH(INDEX($K$2:$K$24,ROUNDDOWN((ROW(F190)-3)/12,0)+1)&8,'Реестр инцидентов'!$Q$4:$Q$171,0),MATCH(E$1,'Реестр инцидентов'!$A$3:$Q$3,0)),\"\")","v":""}]
[{"$f":"IFERROR(INDEX('Реестр инцидентов'!$A$4:$P$171,MATCH(INDEX($K$2:$K$24,ROUNDDOWN((ROW(B191)-3)/12,0)+1)&9,'Реестр инцидентов'!$Q$4:$Q$171,0),MATCH(A$1,'Реестр инцидентов'!$A$3:$Q$3,0)),\"\")","v":""},{"$f":"IFERROR(INDEX('Реестр инцидентов'!$A$4:$P$171,MATCH(INDEX($K$2:$K$24,ROUNDDOWN((ROW(C191)-3)/12,0)+1)&9,'Реестр инцидентов'!$Q$4:$Q$171,0),MATCH(B$1,'Реестр инцидентов'!$A$3:$Q$3,0)),\"\")","v":""},{"$f":"IFERROR(INDEX('Реестр инцидентов'!$A$4:$P$171,MATCH(INDEX($K$2:$K$24,ROUNDDOWN((ROW(D191)-3)/12,0)+1)&9,'Реестр инцидентов'!$Q$4:$Q$171,0),MATCH(C$1,'Реестр инцидентов'!$A$3:$Q$3,0)),\"\")","v":""},{"$f":"IFERROR(INDEX('Реестр инцидентов'!$A$4:$P$171,MATCH(INDEX($K$2:$K$24,ROUNDDOWN((ROW(E191)-3)/12,0)+1)&9,'Реестр инцидентов'!$Q$4:$Q$171,0),MATCH(D$1,'Реестр инцидентов'!$A$3:$Q$3,0)),\"\")","v":""},{"$f":"IFERROR(INDEX('Реестр инцидентов'!$A$4:$P$171,MATCH(INDEX($K$2:$K$24,ROUNDDOWN((ROW(F191)-3)/12,0)+1)&9,'Реестр инцидентов'!$Q$4:$Q$171,0),MATCH(E$1,'Реестр инцидентов'!$A$3:$Q$3,0)),\"\")","v":""}]
[{"$f":"IFERROR(INDEX('Реестр инцидентов'!$A$4:$P$171,MATCH(INDEX($K$2:$K$24,ROUNDDOWN((ROW(B192)-3)/12,0)+1)&10,'Реестр инцидентов'!$Q$4:$Q$171,0),MATCH(A$1,'Реестр инцидентов'!$A$3:$Q$3,0)),\"\")","v":""},{"$f":"IFERROR(INDEX('Реестр инцидентов'!$A$4:$P$171,MATCH(INDEX($K$2:$K$24,ROUNDDOWN((ROW(C192)-3)/12,0)+1)&10,'Реестр инцидентов'!$Q$4:$Q$171,0),MATCH(B$1,'Реестр инцидентов'!$A$3:$Q$3,0)),\"\")","v":""},{"$f":"IFERROR(INDEX('Реестр инцидентов'!$A$4:$P$171,MATCH(INDEX($K$2:$K$24,ROUNDDOWN((ROW(D192)-3)/12,0)+1)&10,'Реестр инцидентов'!$Q$4:$Q$171,0),MATCH(C$1,'Реестр инцидентов'!$A$3:$Q$3,0)),\"\")","v":""},{"$f":"IFERROR(INDEX('Реестр инцидентов'!$A$4:$P$171,MATCH(INDEX($K$2:$K$24,ROUNDDOWN((ROW(E192)-3)/12,0)+1)&10,'Реестр инцидентов'!$Q$4:$Q$171,0),MATCH(D$1,'Реестр инцидентов'!$A$3:$Q$3,0)),\"\")","v":""},{"$f":"IFERROR(INDEX('Реестр инцидентов'!$A$4:$P$171,MATCH(INDEX($K$2:$K$24,ROUNDDOWN((ROW(F192)-3)/12,0)+1)&10,'Реестр инцидентов'!$Q$4:$Q$171,0),MATCH(E$1,'Реестр инцидентов'!$A$3:$Q$3,0)),\"\")","v":""}]
[{"$f":"IFERROR(INDEX('Реестр инцидентов'!$A$4:$P$171,MATCH(INDEX($K$2:$K$24,ROUNDDOWN((ROW(B193)-3)/12,0)+1)&11,'Реестр инцидентов'!$Q$4:$Q$171,0),MATCH(A$1,'Реестр инцидентов'!$A$3:$Q$3,0)),\"\")","v":""},{"$f":"IFERROR(INDEX('Реестр инцидентов'!$A$4:$P$171,MATCH(INDEX($K$2:$K$24,ROUNDDOWN((ROW(C193)-3)/12,0)+1)&11,'Реестр инцидентов'!$Q$4:$Q$171,0),MATCH(B$1,'Реестр инцидентов'!$A$3:$Q$3,0)),\"\")","v":""},{"$f":"IFERROR(INDEX('Реестр инцидентов'!$A$4:$P$171,MATCH(INDEX($K$2:$K$24,ROUNDDOWN((ROW(D193)-3)/12,0)+1)&11,'Реестр инцидентов'!$Q$4:$Q$171,0),MATCH(C$1,'Реестр инцидентов'!$A$3:$Q$3,0)),\"\")","v":""},{"$f":"IFERROR(INDEX('Реестр инцидентов'!$A$4:$P$171,MATCH(INDEX($K$2:$K$24,ROUNDDOWN((ROW(E193)-3)/12,0)+1)&11,'Реестр инцидентов'!$Q$4:$Q$171,0),MATCH(D$1,'Реестр инцидентов'!$A$3:$Q$3,0)),\"\")","v":""},{"$f":"IFERROR(INDEX('Реестр инцидентов'!$A$4:$P$171,MATCH(INDEX($K$2:$K$24,ROUNDDOWN((ROW(F193)-3)/12,0)+1)&11,'Реестр инцидентов'!$Q$4:$Q$171,0),MATCH(E$1,'Реестр инцидентов'!$A$3:$Q$3,0)),\"\")","v":""}]
[{"$f":"IFERROR(INDEX($L$2:$L$23,ROUNDDOWN((ROW(B195)-3)/12,0)+1),\"\")","v":"Маркушова Надежда Юрьевна"}]
[{"$f":"IFERROR(INDEX('Реестр инцидентов'!$A$4:$P$171,MATCH(INDEX($K$2:$K$24,ROUNDDOWN((ROW(B195)-3)/12,0)+1)&1,'Реестр инцидентов'!$Q$4:$Q$171,0),MATCH(A$1,'Реестр инцидентов'!$A$3:$Q$3,0)),\"\")","v":""},{"$f":"IFERROR(INDEX('Реестр инцидентов'!$A$4:$P$171,MATCH(INDEX($K$2:$K$24,ROUNDDOWN((ROW(C195)-3)/12,0)+1)&1,'Реестр инцидентов'!$Q$4:$Q$171,0),MATCH(B$1,'Реестр инцидентов'!$A$3:$Q$3,0)),\"\")","v":""},{"$f":"IFERROR(INDEX('Реестр инцидентов'!$A$4:$P$171,MATCH(INDEX($K$2:$K$24,ROUNDDOWN((ROW(D195)-3)/12,0)+1)&1,'Реестр инцидентов'!$Q$4:$Q$171,0),MATCH(C$1,'Реестр инцидентов'!$A$3:$Q$3,0)),\"\")","v":""},{"$f":"IFERROR(INDEX('Реестр инцидентов'!$A$4:$P$171,MATCH(INDEX($K$2:$K$24,ROUNDDOWN((ROW(E195)-3)/12,0)+1)&1,'Реестр инцидентов'!$Q$4:$Q$171,0),MATCH(D$1,'Реестр инцидентов'!$A$3:$Q$3,0)),\"\")","v":""},{"$f":"IFERROR(INDEX('Реестр инцидентов'!$A$4:$P$171,MATCH(INDEX($K$2:$K$24,ROUNDDOWN((ROW(F195)-3)/12,0)+1)&1,'Реестр инцидентов'!$Q$4:$Q$171,0),MATCH(E$1,'Реестр инцидентов'!$A$3:$Q$3,0)),\"\")","v":""}]
[{"$f":"IFERROR(INDEX('Реестр инцидентов'!$A$4:$P$171,MATCH(INDEX($K$2:$K$24,ROUNDDOWN((ROW(B196)-3)/12,0)+1)&2,'Реестр инцидентов'!$Q$4:$Q$171,0),MATCH(A$1,'Реестр инцидентов'!$A$3:$Q$3,0)),\"\")","v":""},{"$f":"IFERROR(INDEX('Реестр инцидентов'!$A$4:$P$171,MATCH(INDEX($K$2:$K$24,ROUNDDOWN((ROW(C196)-3)/12,0)+1)&2,'Реестр инцидентов'!$Q$4:$Q$171,0),MATCH(B$1,'Реестр инцидентов'!$A$3:$Q$3,0)),\"\")","v":""},{"$f":"IFERROR(INDEX('Реестр инцидентов'!$A$4:$P$171,MATCH(INDEX($K$2:$K$24,ROUNDDOWN((ROW(D196)-3)/12,0)+1)&2,'Реестр инцидентов'!$Q$4:$Q$171,0),MATCH(C$1,'Реестр инцидентов'!$A$3:$Q$3,0)),\"\")","v":""},{"$f":"IFERROR(INDEX('Реестр инцидентов'!$A$4:$P$171,MATCH(INDEX($K$2:$K$24,ROUNDDOWN((ROW(E196)-3)/12,0)+1)&2,'Реестр инцидентов'!$Q$4:$Q$171,0),MATCH(D$1,'Реестр инцидентов'!$A$3:$Q$3,0)),\"\")","v":""},{"$f":"IFERROR(INDEX('Реестр инцидентов'!$A$4:$P$171,MATCH(INDEX($K$2:$K$24,ROUNDDOWN((ROW(F196)-3)/12,0)+1)&2,'Реестр инцидентов'!$Q$4:$Q$171,0),MATCH(E$1,'Реестр инцидентов'!$A$3:$Q$3,0)),\"\")","v":""}]
[{"$f":"IFERROR(INDEX('Реестр инцидентов'!$A$4:$P$171,MATCH(INDEX($K$2:$K$24,ROUNDDOWN((ROW(B197)-3)/12,0)+1)&3,'Реестр инцидентов'!$Q$4:$Q$171,0),MATCH(A$1,'Реестр инцидентов'!$A$3:$Q$3,0)),\"\")","v":""},{"$f":"IFERROR(INDEX('Реестр инцидентов'!$A$4:$P$171,MATCH(INDEX($K$2:$K$24,ROUNDDOWN((ROW(C197)-3)/12,0)+1)&3,'Реестр инцидентов'!$Q$4:$Q$171,0),MATCH(B$1,'Реестр инцидентов'!$A$3:$Q$3,0)),\"\")","v":""},{"$f":"IFERROR(INDEX('Реестр инцидентов'!$A$4:$P$171,MATCH(INDEX($K$2:$K$24,ROUNDDOWN((ROW(D197)-3)/12,0)+1)&3,'Реестр инцидентов'!$Q$4:$Q$171,0),MATCH(C$1,'Реестр инцидентов'!$A$3:$Q$3,0)),\"\")","v":""},{"$f":"IFERROR(INDEX('Реестр инцидентов'!$A$4:$P$171,MATCH(INDEX($K$2:$K$24,ROUNDDOWN((ROW(E197)-3)/12,0)+1)&3,'Реестр инцидентов'!$Q$4:$Q$171,0),MATCH(D$1,'Реестр инцидентов'!$A$3:$Q$3,0)),\"\")","v":""},{"$f":"IFERROR(INDEX('Реестр инцидентов'!$A$4:$P$171,MATCH(INDEX($K$2:$K$24,ROUNDDOWN((ROW(F197)-3)/12,0)+1)&3,'Реестр инцидентов'!$Q$4:$Q$171,0),MATCH(E$1,'Реестр инцидентов'!$A$3:$Q$3,0)),\"\")","v":""}]
[{"$f":"IFERROR(INDEX('Реестр инцидентов'!$A$4:$P$171,MATCH(INDEX($K$2:$K$24,ROUNDDOWN((ROW(B198)-3)/12,0)+1)&4,'Реестр инцидентов'!$Q$4:$Q$171,0),MATCH(A$1,'Реестр инцидентов'!$A$3:$Q$3,0)),\"\")","v":""},{"$f":"IFERROR(INDEX('Реестр инцидентов'!$A$4:$P$171,MATCH(INDEX($K$2:$K$24,ROUNDDOWN((ROW(C198)-3)/12,0)+1)&4,'Реестр инцидентов'!$Q$4:$Q$171,0),MATCH(B$1,'Реестр инцидентов'!$A$3:$Q$3,0)),\"\")","v":""},{"$f":"IFERROR(INDEX('Реестр инцидентов'!$A$4:$P$171,MATCH(INDEX($K$2:$K$24,ROUNDDOWN((ROW(D198)-3)/12,0)+1)&4,'Реестр инцидентов'!$Q$4:$Q$171,0),MATCH(C$1,'Реестр инцидентов'!$A$3:$Q$3,0)),\"\")","v":""},{"$f":"IFERROR(INDEX('Реестр инцидентов'!$A$4:$P$171,MATCH(INDEX($K$2:$K$24,ROUNDDOWN((ROW(E198)-3)/12,0)+1)&4,'Реестр инцидентов'!$Q$4:$Q$171,0),MATCH(D$1,'Реестр инцидентов'!$A$3:$Q$3,0)),\"\")","v":""},{"$f":"IFERROR(INDEX('Реестр инцидентов'!$A$4:$P$171,MATCH(INDEX($K$2:$K$24,ROUNDDOWN((ROW(F198)-3)/12,0)+1)&4,'Реестр инцидентов'!$Q$4:$Q$171,0),MATCH(E$1,'Реестр инцидентов'!$A$3:$Q$3,0)),\"\")","v":""}]
[{"$f":"IFERROR(INDEX('Реестр инцидентов'!$A$4:$P$171,MATCH(INDEX($K$2:$K$24,ROUNDDOWN((ROW(B199)-3)/12,0)+1)&5,'Реестр инцидентов'!$Q$4:$Q$171,0),MATCH(A$1,'Реестр инцидентов'!$A$3:$Q$3,0)),\"\")","v":""},{"$f":"IFERROR(INDEX('Реестр инцидентов'!$A$4:$P$171,MATCH(INDEX($K$2:$K$24,ROUNDDOWN((ROW(C199)-3)/12,0)+1)&5,'Реестр инцидентов'!$Q$4:$Q$171,0),MATCH(B$1,'Реестр инцидентов'!$A$3:$Q$3,0)),\"\")","v":""},{"$f":"IFERROR(INDEX('Реестр инцидентов'!$A$4:$P$171,MATCH(INDEX($K$2:$K$24,ROUNDDOWN((ROW(D199)-3)/12,0)+1)&5,'Реестр инцидентов'!$Q$4:$Q$171,0),MATCH(C$1,'Реестр инцидентов'!$A$3:$Q$3,0)),\"\")","v":""},{"$f":"IFERROR(INDEX('Реестр инцидентов'!$A$4:$P$171,MATCH(INDEX($K$2:$K$24,ROUNDDOWN((ROW(E199)-3)/12,0)+1)&5,'Реестр инцидентов'!$Q$4:$Q$171,0),MATCH(D$1,'Реестр инцидентов'!$A$3:$Q$3,0)),\"\")","v":""},{"$f":"IFERROR(INDEX('Реестр инцидентов'!$A$4:$P$171,MATCH(INDEX($K$2:$K$24,ROUNDDOWN((ROW(F199)-3)/12,0)+1)&5,'Реестр инцидентов'!$Q$4:$Q$171,0),MATCH(E$1,'Реестр инцидентов'!$A$3:$Q$3,0)),\"\")","v":""}]
[{"$f":"IFERROR(INDEX('Реестр инцидентов'!$A$4:$P$171,MATCH(INDEX($K$2:$K$24,ROUNDDOWN((ROW(B200)-3)/12,0)+1)&6,'Реестр инцидентов'!$Q$4:$Q$171,0),MATCH(A$1,'Реестр инцидентов'!$A$3:$Q$3,0)),\"\")","v":""},{"$f":"IFERROR(INDEX('Реестр инцидентов'!$A$4:$P$171,MATCH(INDEX($K$2:$K$24,ROUNDDOWN((ROW(C200)-3)/12,0)+1)&6,'Реестр инцидентов'!$Q$4:$Q$171,0),MATCH(B$1,'Реестр инцидентов'!$A$3:$Q$3,0)),\"\")","v":""},{"$f":"IFERROR(INDEX('Реестр инцидентов'!$A$4:$P$171,MATCH(INDEX($K$2:$K$24,ROUNDDOWN((ROW(D200)-3)/12,0)+1)&6,'Реестр инцидентов'!$Q$4:$Q$171,0),MATCH(C$1,'Реестр инцидентов'!$A$3:$Q$3,0)),\"\")","v":""},{"$f":"IFERROR(INDEX('Реестр инцидентов'!$A$4:$P$171,MATCH(INDEX($K$2:$K$24,ROUNDDOWN((ROW(E200)-3)/12,0)+1)&6,'Реестр инцидентов'!$Q$4:$Q$171,0),MATCH(D$1,'Реестр инцидентов'!$A$3:$Q$3,0)),\"\")","v":""},{"$f":"IFERROR(INDEX('Реестр инцидентов'!$A$4:$P$171,MATCH(INDEX($K$2:$K$24,ROUNDDOWN((ROW(F200)-3)/12,0)+1)&6,'Реестр инцидентов'!$Q$4:$Q$171,0),MATCH(E$1,'Реестр инцидентов'!$A$3:$Q$3,0)),\"\")","v":""}]
[{"$f":"IFERROR(INDEX('Реестр инцидентов'!$A$4:$P$171,MATCH(INDEX($K$2:$K$24,ROUNDDOWN((ROW(B201)-3)/12,0)+1)&7,'Реестр инцидентов'!$Q$4:$Q$171,0),MATCH(A$1,'Реестр инцидентов'!$A$3:$Q$3,0)),\"\")","v":""},{"$f":"IFERROR(INDEX('Реестр инцидентов'!$A$4:$P$171,MATCH(INDEX($K$2:$K$24,ROUNDDOWN((ROW(C201)-3)/12,0)+1)&7,'Реестр инцидентов'!$Q$4:$Q$171,0),MATCH(B$1,'Реестр инцидентов'!$A$3:$Q$3,0)),\"\")","v":""},{"$f":"IFERROR(INDEX('Реестр инцидентов'!$A$4:$P$171,MATCH(INDEX($K$2:$K$24,ROUNDDOWN((ROW(D201)-3)/12,0)+1)&7,'Реестр инцидентов'!$Q$4:$Q$171,0),MATCH(C$1,'Реестр инцидентов'!$A$3:$Q$3,0)),\"\")","v":""},{"$f":"IFERROR(INDEX('Реестр инцидентов'!$A$4:$P$171,MATCH(INDEX($K$2:$K$24,ROUNDDOWN((ROW(E201)-3)/12,0)+1)&7,'Реестр инцидентов'!$Q$4:$Q$171,0),MATCH(D$1,'Реестр инцидентов'!$A$3:$Q$3,0)),\"\")","v":""},{"$f":"IFERROR(INDEX('Реестр инцидентов'!$A$4:$P$171,MATCH(INDEX($K$2:$K$24,ROUNDDOWN((ROW(F201)-3)/12,0)+1)&7,'Реестр инцидентов'!$Q$4:$Q$171,0),MATCH(E$1,'Реестр инцидентов'!$A$3:$Q$3,0)),\"\")","v":""}]
[{"$f":"IFERROR(INDEX('Реестр инцидентов'!$A$4:$P$171,MATCH(INDEX($K$2:$K$24,ROUNDDOWN((ROW(B202)-3)/12,0)+1)&8,'Реестр инцидентов'!$Q$4:$Q$171,0),MATCH(A$1,'Реестр инцидентов'!$A$3:$Q$3,0)),\"\")","v":""},{"$f":"IFERROR(INDEX('Реестр инцидентов'!$A$4:$P$171,MATCH(INDEX($K$2:$K$24,ROUNDDOWN((ROW(C202)-3)/12,0)+1)&8,'Реестр инцидентов'!$Q$4:$Q$171,0),MATCH(B$1,'Реестр инцидентов'!$A$3:$Q$3,0)),\"\")","v":""},{"$f":"IFERROR(INDEX('Реестр инцидентов'!$A$4:$P$171,MATCH(INDEX($K$2:$K$24,ROUNDDOWN((ROW(D202)-3)/12,0)+1)&8,'Реестр инцидентов'!$Q$4:$Q$171,0),MATCH(C$1,'Реестр инцидентов'!$A$3:$Q$3,0)),\"\")","v":""},{"$f":"IFERROR(INDEX('Реестр инцидентов'!$A$4:$P$171,MATCH(INDEX($K$2:$K$24,ROUNDDOWN((ROW(E202)-3)/12,0)+1)&8,'Реестр инцидентов'!$Q$4:$Q$171,0),MATCH(D$1,'Реестр инцидентов'!$A$3:$Q$3,0)),\"\")","v":""},{"$f":"IFERROR(INDEX('Реестр инцидентов'!$A$4:$P$171,MATCH(INDEX($K$2:$K$24,ROUNDDOWN((ROW(F202)-3)/12,0)+1)&8,'Реестр инцидентов'!$Q$4:$Q$171,0),MATCH(E$1,'Реестр инцидентов'!$A$3:$Q$3,0)),\"\")","v":""}]
[{"$f":"IFERROR(INDEX('Реестр инцидентов'!$A$4:$P$171,MATCH(INDEX($K$2:$K$24,ROUNDDOWN((ROW(B203)-3)/12,0)+1)&9,'Реестр инцидентов'!$Q$4:$Q$171,0),MATCH(A$1,'Реестр инцидентов'!$A$3:$Q$3,0)),\"\")","v":""},{"$f":"IFERROR(INDEX('Реестр инцидентов'!$A$4:$P$171,MATCH(INDEX($K$2:$K$24,ROUNDDOWN((ROW(C203)-3)/12,0)+1)&9,'Реестр инцидентов'!$Q$4:$Q$171,0),MATCH(B$1,'Реестр инцидентов'!$A$3:$Q$3,0)),\"\")","v":""},{"$f":"IFERROR(INDEX('Реестр инцидентов'!$A$4:$P$171,MATCH(INDEX($K$2:$K$24,ROUNDDOWN((ROW(D203)-3)/12,0)+1)&9,'Реестр инцидентов'!$Q$4:$Q$171,0),MATCH(C$1,'Реестр инцидентов'!$A$3:$Q$3,0)),\"\")","v":""},{"$f":"IFERROR(INDEX('Реестр инцидентов'!$A$4:$P$171,MATCH(INDEX($K$2:$K$24,ROUNDDOWN((ROW(E203)-3)/12,0)+1)&9,'Реестр инцидентов'!$Q$4:$Q$171,0),MATCH(D$1,'Реестр инцидентов'!$A$3:$Q$3,0)),\"\")","v":""},{"$f":"IFERROR(INDEX('Реестр инцидентов'!$A$4:$P$171,MATCH(INDEX($K$2:$K$24,ROUNDDOWN((ROW(F203)-3)/12,0)+1)&9,'Реестр инцидентов'!$Q$4:$Q$171,0),MATCH(E$1,'Реестр инцидентов'!$A$3:$Q$3,0)),\"\")","v":""}]
[{"$f":"IFERROR(INDEX('Реестр инцидентов'!$A$4:$P$171,MATCH(INDEX($K$2:$K$24,ROUNDDOWN((ROW(B204)-3)/12,0)+1)&10,'Реестр инцидентов'!$Q$4:$Q$171,0),MATCH(A$1,'Реестр инцидентов'!$A$3:$Q$3,0)),\"\")","v":""},{"$f":"IFERROR(INDEX('Реестр инцидентов'!$A$4:$P$171,MATCH(INDEX($K$2:$K$24,ROUNDDOWN((ROW(C204)-3)/12,0)+1)&10,'Реестр инцидентов'!$Q$4:$Q$171,0),MATCH(B$1,'Реестр инцидентов'!$A$3:$Q$3,0)),\"\")","v":""},{"$f":"IFERROR(INDEX('Реестр инцидентов'!$A$4:$P$171,MATCH(INDEX($K$2:$K$24,ROUNDDOWN((ROW(D204)-3)/12,0)+1)&10,'Реестр инцидентов'!$Q$4:$Q$171,0),MATCH(C$1,'Реестр инцидентов'!$A$3:$Q$3,0)),\"\")","v":""},{"$f":"IFERROR(INDEX('Реестр инцидентов'!$A$4:$P$171,MATCH(INDEX($K$2:$K$24,ROUNDDOWN((ROW(E204)-3)/12,0)+1)&10,'Реестр инцидентов'!$Q$4:$Q$171,0),MATCH(D$1,'Реестр инцидентов'!$A$3:$Q$3,0)),\"\")","v":""},{"$f":"IFERROR(INDEX('Реестр инцидентов'!$A$4:$P$171,MATCH(INDEX($K$2:$K$24,ROUNDDOWN((ROW(F204)-3)/12,0)+1)&10,'Реестр инцидентов'!$Q$4:$Q$171,0),MATCH(E$1,'Реестр инцидентов'!$A$3:$Q$3,0)),\"\")","v":""}]
[{"$f":"IFERROR(INDEX('Реестр инцидентов'!$A$4:$P$171,MATCH(INDEX($K$2:$K$24,ROUNDDOWN((ROW(B205)-3)/12,0)+1)&11,'Реестр инцидентов'!$Q$4:$Q$171,0),MATCH(A$1,'Реестр инцидентов'!$A$3:$Q$3,0)),\"\")","v":""},{"$f":"IFERROR(INDEX('Реестр инцидентов'!$A$4:$P$171,MATCH(INDEX($K$2:$K$24,ROUNDDOWN((ROW(C205)-3)/12,0)+1)&11,'Реестр инцидентов'!$Q$4:$Q$171,0),MATCH(B$1,'Реестр инцидентов'!$A$3:$Q$3,0)),\"\")","v":""},{"$f":"IFERROR(INDEX('Реестр инцидентов'!$A$4:$P$171,MATCH(INDEX($K$2:$K$24,ROUNDDOWN((ROW(D205)-3)/12,0)+1)&11,'Реестр инцидентов'!$Q$4:$Q$171,0),MATCH(C$1,'Реестр инцидентов'!$A$3:$Q$3,0)),\"\")","v":""},{"$f":"IFERROR(INDEX('Реестр инцидентов'!$A$4:$P$171,MATCH(INDEX($K$2:$K$24,ROUNDDOWN((ROW(E205)-3)/12,0)+1)&11,'Реестр инцидентов'!$Q$4:$Q$171,0),MATCH(D$1,'Реестр инцидентов'!$A$3:$Q$3,0)),\"\")","v":""},{"$f":"IFERROR(INDEX('Реестр инцидентов'!$A$4:$P$171,MATCH(INDEX($K$2:$K$24,ROUNDDOWN((ROW(F205)-3)/12,0)+1)&11,'Реестр инцидентов'!$Q$4:$Q$171,0),MATCH(E$1,'Реестр инцидентов'!$A$3:$Q$3,0)),\"\")","v":""}]
[{"$f":"IFERROR(INDEX($L$2:$L$23,ROUNDDOWN((ROW(B207)-3)/12,0)+1),\"\")","v":"Метлова Татьяна Анатольевна"}]
[{"$f":"IFERROR(INDEX('Реестр инцидентов'!$A$4:$P$171,MATCH(INDEX($K$2:$K$24,ROUNDDOWN((ROW(B207)-3)/12,0)+1)&1,'Реестр инцидентов'!$Q$4:$Q$171,0),MATCH(A$1,'Реестр инцидентов'!$A$3:$Q$3,0)),\"\")","v":""},{"$f":"IFERROR(INDEX('Реестр инцидентов'!$A$4:$P$171,MATCH(INDEX($K$2:$K$24,ROUNDDOWN((ROW(C207)-3)/12,0)+1)&1,'Реестр инцидентов'!$Q$4:$Q$171,0),MATCH(B$1,'Реестр инцидентов'!$A$3:$Q$3,0)),\"\")","v":""},{"$f":"IFERROR(INDEX('Реестр инцидентов'!$A$4:$P$171,MATCH(INDEX($K$2:$K$24,ROUNDDOWN((ROW(D207)-3)/12,0)+1)&1,'Реестр инцидентов'!$Q$4:$Q$171,0),MATCH(C$1,'Реестр инцидентов'!$A$3:$Q$3,0)),\"\")","v":""},{"$f":"IFERROR(INDEX('Реестр инцидентов'!$A$4:$P$171,MATCH(INDEX($K$2:$K$24,ROUNDDOWN((ROW(E207)-3)/12,0)+1)&1,'Реестр инцидентов'!$Q$4:$Q$171,0),MATCH(D$1,'Реестр инцидентов'!$A$3:$Q$3,0)),\"\")","v":""},{"$f":"IFERROR(INDEX('Реестр инцидентов'!$A$4:$P$171,MATCH(INDEX($K$2:$K$24,ROUNDDOWN((ROW(F207)-3)/12,0)+1)&1,'Реестр инцидентов'!$Q$4:$Q$171,0),MATCH(E$1,'Реестр инцидентов'!$A$3:$Q$3,0)),\"\")","v":""}]
[{"$f":"IFERROR(INDEX('Реестр инцидентов'!$A$4:$P$171,MATCH(INDEX($K$2:$K$24,ROUNDDOWN((ROW(B208)-3)/12,0)+1)&2,'Реестр инцидентов'!$Q$4:$Q$171,0),MATCH(A$1,'Реестр инцидентов'!$A$3:$Q$3,0)),\"\")","v":""},{"$f":"IFERROR(INDEX('Реестр инцидентов'!$A$4:$P$171,MATCH(INDEX($K$2:$K$24,ROUNDDOWN((ROW(C208)-3)/12,0)+1)&2,'Реестр инцидентов'!$Q$4:$Q$171,0),MATCH(B$1,'Реестр инцидентов'!$A$3:$Q$3,0)),\"\")","v":""},{"$f":"IFERROR(INDEX('Реестр инцидентов'!$A$4:$P$171,MATCH(INDEX($K$2:$K$24,ROUNDDOWN((ROW(D208)-3)/12,0)+1)&2,'Реестр инцидентов'!$Q$4:$Q$171,0),MATCH(C$1,'Реестр инцидентов'!$A$3:$Q$3,0)),\"\")","v":""},{"$f":"IFERROR(INDEX('Реестр инцидентов'!$A$4:$P$171,MATCH(INDEX($K$2:$K$24,ROUNDDOWN((ROW(E208)-3)/12,0)+1)&2,'Реестр инцидентов'!$Q$4:$Q$171,0),MATCH(D$1,'Реестр инцидентов'!$A$3:$Q$3,0)),\"\")","v":""},{"$f":"IFERROR(INDEX('Реестр инцидентов'!$A$4:$P$171,MATCH(INDEX($K$2:$K$24,ROUNDDOWN((ROW(F208)-3)/12,0)+1)&2,'Реестр инцидентов'!$Q$4:$Q$171,0),MATCH(E$1,'Реестр инцидентов'!$A$3:$Q$3,0)),\"\")","v":""}]
[{"$f":"IFERROR(INDEX('Реестр инцидентов'!$A$4:$P$171,MATCH(INDEX($K$2:$K$24,ROUNDDOWN((ROW(B209)-3)/12,0)+1)&3,'Реестр инцидентов'!$Q$4:$Q$171,0),MATCH(A$1,'Реестр инцидентов'!$A$3:$Q$3,0)),\"\")","v":""},{"$f":"IFERROR(INDEX('Реестр инцидентов'!$A$4:$P$171,MATCH(INDEX($K$2:$K$24,ROUNDDOWN((ROW(C209)-3)/12,0)+1)&3,'Реестр инцидентов'!$Q$4:$Q$171,0),MATCH(B$1,'Реестр инцидентов'!$A$3:$Q$3,0)),\"\")","v":""},{"$f":"IFERROR(INDEX('Реестр инцидентов'!$A$4:$P$171,MATCH(INDEX($K$2:$K$24,ROUNDDOWN((ROW(D209)-3)/12,0)+1)&3,'Реестр инцидентов'!$Q$4:$Q$171,0),MATCH(C$1,'Реестр инцидентов'!$A$3:$Q$3,0)),\"\")","v":""},{"$f":"IFERROR(INDEX('Реестр инцидентов'!$A$4:$P$171,MATCH(INDEX($K$2:$K$24,ROUNDDOWN((ROW(E209)-3)/12,0)+1)&3,'Реестр инцидентов'!$Q$4:$Q$171,0),MATCH(D$1,'Реестр инцидентов'!$A$3:$Q$3,0)),\"\")","v":""},{"$f":"IFERROR(INDEX('Реестр инцидентов'!$A$4:$P$171,MATCH(INDEX($K$2:$K$24,ROUNDDOWN((ROW(F209)-3)/12,0)+1)&3,'Реестр инцидентов'!$Q$4:$Q$171,0),MATCH(E$1,'Реестр инцидентов'!$A$3:$Q$3,0)),\"\")","v":""}]
[{"$f":"IFERROR(INDEX('Реестр инцидентов'!$A$4:$P$171,MATCH(INDEX($K$2:$K$24,ROUNDDOWN((ROW(B210)-3)/12,0)+1)&4,'Реестр инцидентов'!$Q$4:$Q$171,0),MATCH(A$1,'Реестр инцидентов'!$A$3:$Q$3,0)),\"\")","v":""},{"$f":"IFERROR(INDEX('Реестр инцидентов'!$A$4:$P$171,MATCH(INDEX($K$2:$K$24,ROUNDDOWN((ROW(C210)-3)/12,0)+1)&4,'Реестр инцидентов'!$Q$4:$Q$171,0),MATCH(B$1,'Реестр инцидентов'!$A$3:$Q$3,0)),\"\")","v":""},{"$f":"IFERROR(INDEX('Реестр инцидентов'!$A$4:$P$171,MATCH(INDEX($K$2:$K$24,ROUNDDOWN((ROW(D210)-3)/12,0)+1)&4,'Реестр инцидентов'!$Q$4:$Q$171,0),MATCH(C$1,'Реестр инцидентов'!$A$3:$Q$3,0)),\"\")","v":""},{"$f":"IFERROR(INDEX('Реестр инцидентов'!$A$4:$P$171,MATCH(INDEX($K$2:$K$24,ROUNDDOWN((ROW(E210)-3)/12,0)+1)&4,'Реестр инцидентов'!$Q$4:$Q$171,0),MATCH(D$1,'Реестр инцидентов'!$A$3:$Q$3,0)),\"\")","v":""},{"$f":"IFERROR(INDEX('Реестр инцидентов'!$A$4:$P$171,MATCH(INDEX($K$2:$K$24,ROUNDDOWN((ROW(F210)-3)/12,0)+1)&4,'Реестр инцидентов'!$Q$4:$Q$171,0),MATCH(E$1,'Реестр инцидентов'!$A$3:$Q$3,0)),\"\")","v":""}]
[{"$f":"IFERROR(INDEX('Реестр инцидентов'!$A$4:$P$171,MATCH(INDEX($K$2:$K$24,ROUNDDOWN((ROW(B211)-3)/12,0)+1)&5,'Реестр инцидентов'!$Q$4:$Q$171,0),MATCH(A$1,'Реестр инцидентов'!$A$3:$Q$3,0)),\"\")","v":""},{"$f":"IFERROR(INDEX('Реестр инцидентов'!$A$4:$P$171,MATCH(INDEX($K$2:$K$24,ROUNDDOWN((ROW(C211)-3)/12,0)+1)&5,'Реестр инцидентов'!$Q$4:$Q$171,0),MATCH(B$1,'Реестр инцидентов'!$A$3:$Q$3,0)),\"\")","v":""},{"$f":"IFERROR(INDEX('Реестр инцидентов'!$A$4:$P$171,MATCH(INDEX($K$2:$K$24,ROUNDDOWN((ROW(D211)-3)/12,0)+1)&5,'Реестр инцидентов'!$Q$4:$Q$171,0),MATCH(C$1,'Реестр инцидентов'!$A$3:$Q$3,0)),\"\")","v":""},{"$f":"IFERROR(INDEX('Реестр инцидентов'!$A$4:$P$171,MATCH(INDEX($K$2:$K$24,ROUNDDOWN((ROW(E211)-3)/12,0)+1)&5,'Реестр инцидентов'!$Q$4:$Q$171,0),MATCH(D$1,'Реестр инцидентов'!$A$3:$Q$3,0)),\"\")","v":""},{"$f":"IFERROR(INDEX('Реестр инцидентов'!$A$4:$P$171,MATCH(INDEX($K$2:$K$24,ROUNDDOWN((ROW(F211)-3)/12,0)+1)&5,'Реестр инцидентов'!$Q$4:$Q$171,0),MATCH(E$1,'Реестр инцидентов'!$A$3:$Q$3,0)),\"\")","v":""}]
[{"$f":"IFERROR(INDEX('Реестр инцидентов'!$A$4:$P$171,MATCH(INDEX($K$2:$K$24,ROUNDDOWN((ROW(B212)-3)/12,0)+1)&6,'Реестр инцидентов'!$Q$4:$Q$171,0),MATCH(A$1,'Реестр инцидентов'!$A$3:$Q$3,0)),\"\")","v":""},{"$f":"IFERROR(INDEX('Реестр инцидентов'!$A$4:$P$171,MATCH(INDEX($K$2:$K$24,ROUNDDOWN((ROW(C212)-3)/12,0)+1)&6,'Реестр инцидентов'!$Q$4:$Q$171,0),MATCH(B$1,'Реестр инцидентов'!$A$3:$Q$3,0)),\"\")","v":""},{"$f":"IFERROR(INDEX('Реестр инцидентов'!$A$4:$P$171,MATCH(INDEX($K$2:$K$24,ROUNDDOWN((ROW(D212)-3)/12,0)+1)&6,'Реестр инцидентов'!$Q$4:$Q$171,0),MATCH(C$1,'Реестр инцидентов'!$A$3:$Q$3,0)),\"\")","v":""},{"$f":"IFERROR(INDEX('Реестр инцидентов'!$A$4:$P$171,MATCH(INDEX($K$2:$K$24,ROUNDDOWN((ROW(E212)-3)/12,0)+1)&6,'Реестр инцидентов'!$Q$4:$Q$171,0),MATCH(D$1,'Реестр инцидентов'!$A$3:$Q$3,0)),\"\")","v":""},{"$f":"IFERROR(INDEX('Реестр инцидентов'!$A$4:$P$171,MATCH(INDEX($K$2:$K$24,ROUNDDOWN((ROW(F212)-3)/12,0)+1)&6,'Реестр инцидентов'!$Q$4:$Q$171,0),MATCH(E$1,'Реестр инцидентов'!$A$3:$Q$3,0)),\"\")","v":""}]
[{"$f":"IFERROR(INDEX('Реестр инцидентов'!$A$4:$P$171,MATCH(INDEX($K$2:$K$24,ROUNDDOWN((ROW(B213)-3)/12,0)+1)&7,'Реестр инцидентов'!$Q$4:$Q$171,0),MATCH(A$1,'Реестр инцидентов'!$A$3:$Q$3,0)),\"\")","v":""},{"$f":"IFERROR(INDEX('Реестр инцидентов'!$A$4:$P$171,MATCH(INDEX($K$2:$K$24,ROUNDDOWN((ROW(C213)-3)/12,0)+1)&7,'Реестр инцидентов'!$Q$4:$Q$171,0),MATCH(B$1,'Реестр инцидентов'!$A$3:$Q$3,0)),\"\")","v":""},{"$f":"IFERROR(INDEX('Реестр инцидентов'!$A$4:$P$171,MATCH(INDEX($K$2:$K$24,ROUNDDOWN((ROW(D213)-3)/12,0)+1)&7,'Реестр инцидентов'!$Q$4:$Q$171,0),MATCH(C$1,'Реестр инцидентов'!$A$3:$Q$3,0)),\"\")","v":""},{"$f":"IFERROR(INDEX('Реестр инцидентов'!$A$4:$P$171,MATCH(INDEX($K$2:$K$24,ROUNDDOWN((ROW(E213)-3)/12,0)+1)&7,'Реестр инцидентов'!$Q$4:$Q$171,0),MATCH(D$1,'Реестр инцидентов'!$A$3:$Q$3,0)),\"\")","v":""},{"$f":"IFERROR(INDEX('Реестр инцидентов'!$A$4:$P$171,MATCH(INDEX($K$2:$K$24,ROUNDDOWN((ROW(F213)-3)/12,0)+1)&7,'Реестр инцидентов'!$Q$4:$Q$171,0),MATCH(E$1,'Реестр инцидентов'!$A$3:$Q$3,0)),\"\")","v":""}]
[{"$f":"IFERROR(INDEX('Реестр инцидентов'!$A$4:$P$171,MATCH(INDEX($K$2:$K$24,ROUNDDOWN((ROW(B214)-3)/12,0)+1)&8,'Реестр инцидентов'!$Q$4:$Q$171,0),MATCH(A$1,'Реестр инцидентов'!$A$3:$Q$3,0)),\"\")","v":""},{"$f":"IFERROR(INDEX('Реестр инцидентов'!$A$4:$P$171,MATCH(INDEX($K$2:$K$24,ROUNDDOWN((ROW(C214)-3)/12,0)+1)&8,'Реестр инцидентов'!$Q$4:$Q$171,0),MATCH(B$1,'Реестр инцидентов'!$A$3:$Q$3,0)),\"\")","v":""},{"$f":"IFERROR(INDEX('Реестр инцидентов'!$A$4:$P$171,MATCH(INDEX($K$2:$K$24,ROUNDDOWN((ROW(D214)-3)/12,0)+1)&8,'Реестр инцидентов'!$Q$4:$Q$171,0),MATCH(C$1,'Реестр инцидентов'!$A$3:$Q$3,0)),\"\")","v":""},{"$f":"IFERROR(INDEX('Реестр инцидентов'!$A$4:$P$171,MATCH(INDEX($K$2:$K$24,ROUNDDOWN((ROW(E214)-3)/12,0)+1)&8,'Реестр инцидентов'!$Q$4:$Q$171,0),MATCH(D$1,'Реестр инцидентов'!$A$3:$Q$3,0)),\"\")","v":""},{"$f":"IFERROR(INDEX('Реестр инцидентов'!$A$4:$P$171,MATCH(INDEX($K$2:$K$24,ROUNDDOWN((ROW(F214)-3)/12,0)+1)&8,'Реестр инцидентов'!$Q$4:$Q$171,0),MATCH(E$1,'Реестр инцидентов'!$A$3:$Q$3,0)),\"\")","v":""}]
[{"$f":"IFERROR(INDEX('Реестр инцидентов'!$A$4:$P$171,MATCH(INDEX($K$2:$K$24,ROUNDDOWN((ROW(B215)-3)/12,0)+1)&9,'Реестр инцидентов'!$Q$4:$Q$171,0),MATCH(A$1,'Реестр инцидентов'!$A$3:$Q$3,0)),\"\")","v":""},{"$f":"IFERROR(INDEX('Реестр инцидентов'!$A$4:$P$171,MATCH(INDEX($K$2:$K$24,ROUNDDOWN((ROW(C215)-3)/12,0)+1)&9,'Реестр инцидентов'!$Q$4:$Q$171,0),MATCH(B$1,'Реестр инцидентов'!$A$3:$Q$3,0)),\"\")","v":""},{"$f":"IFERROR(INDEX('Реестр инцидентов'!$A$4:$P$171,MATCH(INDEX($K$2:$K$24,ROUNDDOWN((ROW(D215)-3)/12,0)+1)&9,'Реестр инцидентов'!$Q$4:$Q$171,0),MATCH(C$1,'Реестр инцидентов'!$A$3:$Q$3,0)),\"\")","v":""},{"$f":"IFERROR(INDEX('Реестр инцидентов'!$A$4:$P$171,MATCH(INDEX($K$2:$K$24,ROUNDDOWN((ROW(E215)-3)/12,0)+1)&9,'Реестр инцидентов'!$Q$4:$Q$171,0),MATCH(D$1,'Реестр инцидентов'!$A$3:$Q$3,0)),\"\")","v":""},{"$f":"IFERROR(INDEX('Реестр инцидентов'!$A$4:$P$171,MATCH(INDEX($K$2:$K$24,ROUNDDOWN((ROW(F215)-3)/12,0)+1)&9,'Реестр инцидентов'!$Q$4:$Q$171,0),MATCH(E$1,'Реестр инцидентов'!$A$3:$Q$3,0)),\"\")","v":""}]
[{"$f":"IFERROR(INDEX('Реестр инцидентов'!$A$4:$P$171,MATCH(INDEX($K$2:$K$24,ROUNDDOWN((ROW(B216)-3)/12,0)+1)&10,'Реестр инцидентов'!$Q$4:$Q$171,0),MATCH(A$1,'Реестр инцидентов'!$A$3:$Q$3,0)),\"\")","v":""},{"$f":"IFERROR(INDEX('Реестр инцидентов'!$A$4:$P$171,MATCH(INDEX($K$2:$K$24,ROUNDDOWN((ROW(C216)-3)/12,0)+1)&10,'Реестр инцидентов'!$Q$4:$Q$171,0),MATCH(B$1,'Реестр инцидентов'!$A$3:$Q$3,0)),\"\")","v":""},{"$f":"IFERROR(INDEX('Реестр инцидентов'!$A$4:$P$171,MATCH(INDEX($K$2:$K$24,ROUNDDOWN((ROW(D216)-3)/12,0)+1)&10,'Реестр инцидентов'!$Q$4:$Q$171,0),MATCH(C$1,'Реестр инцидентов'!$A$3:$Q$3,0)),\"\")","v":""},{"$f":"IFERROR(INDEX('Реестр инцидентов'!$A$4:$P$171,MATCH(INDEX($K$2:$K$24,ROUNDDOWN((ROW(E216)-3)/12,0)+1)&10,'Реестр инцидентов'!$Q$4:$Q$171,0),MATCH(D$1,'Реестр инцидентов'!$A$3:$Q$3,0)),\"\")","v":""},{"$f":"IFERROR(INDEX('Реестр инцидентов'!$A$4:$P$171,MATCH(INDEX($K$2:$K$24,ROUNDDOWN((ROW(F216)-3)/12,0)+1)&10,'Реестр инцидентов'!$Q$4:$Q$171,0),MATCH(E$1,'Реестр инцидентов'!$A$3:$Q$3,0)),\"\")","v":""}]
[{"$f":"IFERROR(INDEX('Реестр инцидентов'!$A$4:$P$171,MATCH(INDEX($K$2:$K$24,ROUNDDOWN((ROW(B217)-3)/12,0)+1)&11,'Реестр инцидентов'!$Q$4:$Q$171,0),MATCH(A$1,'Реестр инцидентов'!$A$3:$Q$3,0)),\"\")","v":""},{"$f":"IFERROR(INDEX('Реестр инцидентов'!$A$4:$P$171,MATCH(INDEX($K$2:$K$24,ROUNDDOWN((ROW(C217)-3)/12,0)+1)&11,'Реестр инцидентов'!$Q$4:$Q$171,0),MATCH(B$1,'Реестр инцидентов'!$A$3:$Q$3,0)),\"\")","v":""},{"$f":"IFERROR(INDEX('Реестр инцидентов'!$A$4:$P$171,MATCH(INDEX($K$2:$K$24,ROUNDDOWN((ROW(D217)-3)/12,0)+1)&11,'Реестр инцидентов'!$Q$4:$Q$171,0),MATCH(C$1,'Реестр инцидентов'!$A$3:$Q$3,0)),\"\")","v":""},{"$f":"IFERROR(INDEX('Реестр инцидентов'!$A$4:$P$171,MATCH(INDEX($K$2:$K$24,ROUNDDOWN((ROW(E217)-3)/12,0)+1)&11,'Реестр инцидентов'!$Q$4:$Q$171,0),MATCH(D$1,'Реестр инцидентов'!$A$3:$Q$3,0)),\"\")","v":""},{"$f":"IFERROR(INDEX('Реестр инцидентов'!$A$4:$P$171,MATCH(INDEX($K$2:$K$24,ROUNDDOWN((ROW(F217)-3)/12,0)+1)&11,'Реестр инцидентов'!$Q$4:$Q$171,0),MATCH(E$1,'Реестр инцидентов'!$A$3:$Q$3,0)),\"\")","v":""}]
[{"$f":"IFERROR(INDEX($L$2:$L$23,ROUNDDOWN((ROW(B219)-3)/12,0)+1),\"\")","v":"Скляр Сергей Александрович"}]
[{"$f":"IFERROR(INDEX('Реестр инцидентов'!$A$4:$P$171,MATCH(INDEX($K$2:$K$24,ROUNDDOWN((ROW(B219)-3)/12,0)+1)&1,'Реестр инцидентов'!$Q$4:$Q$171,0),MATCH(A$1,'Реестр инцидентов'!$A$3:$Q$3,0)),\"\")","v":""},{"$f":"IFERROR(INDEX('Реестр инцидентов'!$A$4:$P$171,MATCH(INDEX($K$2:$K$24,ROUNDDOWN((ROW(C219)-3)/12,0)+1)&1,'Реестр инцидентов'!$Q$4:$Q$171,0),MATCH(B$1,'Реестр инцидентов'!$A$3:$Q$3,0)),\"\")","v":""},{"$f":"IFERROR(INDEX('Реестр инцидентов'!$A$4:$P$171,MATCH(INDEX($K$2:$K$24,ROUNDDOWN((ROW(D219)-3)/12,0)+1)&1,'Реестр инцидентов'!$Q$4:$Q$171,0),MATCH(C$1,'Реестр инцидентов'!$A$3:$Q$3,0)),\"\")","v":""},{"$f":"IFERROR(INDEX('Реестр инцидентов'!$A$4:$P$171,MATCH(INDEX($K$2:$K$24,ROUNDDOWN((ROW(E219)-3)/12,0)+1)&1,'Реестр инцидентов'!$Q$4:$Q$171,0),MATCH(D$1,'Реестр инцидентов'!$A$3:$Q$3,0)),\"\")","v":""},{"$f":"IFERROR(INDEX('Реестр инцидентов'!$A$4:$P$171,MATCH(INDEX($K$2:$K$24,ROUNDDOWN((ROW(F219)-3)/12,0)+1)&1,'Реестр инцидентов'!$Q$4:$Q$171,0),MATCH(E$1,'Реестр инцидентов'!$A$3:$Q$3,0)),\"\")","v":""}]
[{"$f":"IFERROR(INDEX('Реестр инцидентов'!$A$4:$P$171,MATCH(INDEX($K$2:$K$24,ROUNDDOWN((ROW(B220)-3)/12,0)+1)&2,'Реестр инцидентов'!$Q$4:$Q$171,0),MATCH(A$1,'Реестр инцидентов'!$A$3:$Q$3,0)),\"\")","v":""},{"$f":"IFERROR(INDEX('Реестр инцидентов'!$A$4:$P$171,MATCH(INDEX($K$2:$K$24,ROUNDDOWN((ROW(C220)-3)/12,0)+1)&2,'Реестр инцидентов'!$Q$4:$Q$171,0),MATCH(B$1,'Реестр инцидентов'!$A$3:$Q$3,0)),\"\")","v":""},{"$f":"IFERROR(INDEX('Реестр инцидентов'!$A$4:$P$171,MATCH(INDEX($K$2:$K$24,ROUNDDOWN((ROW(D220)-3)/12,0)+1)&2,'Реестр инцидентов'!$Q$4:$Q$171,0),MATCH(C$1,'Реестр инцидентов'!$A$3:$Q$3,0)),\"\")","v":""},{"$f":"IFERROR(INDEX('Реестр инцидентов'!$A$4:$P$171,MATCH(INDEX($K$2:$K$24,ROUNDDOWN((ROW(E220)-3)/12,0)+1)&2,'Реестр инцидентов'!$Q$4:$Q$171,0),MATCH(D$1,'Реестр инцидентов'!$A$3:$Q$3,0)),\"\")","v":""},{"$f":"IFERROR(INDEX('Реестр инцидентов'!$A$4:$P$171,MATCH(INDEX($K$2:$K$24,ROUNDDOWN((ROW(F220)-3)/12,0)+1)&2,'Реестр инцидентов'!$Q$4:$Q$171,0),MATCH(E$1,'Реестр инцидентов'!$A$3:$Q$3,0)),\"\")","v":""}]
[{"$f":"IFERROR(INDEX('Реестр инцидентов'!$A$4:$P$171,MATCH(INDEX($K$2:$K$24,ROUNDDOWN((ROW(B221)-3)/12,0)+1)&3,'Реестр инцидентов'!$Q$4:$Q$171,0),MATCH(A$1,'Реестр инцидентов'!$A$3:$Q$3,0)),\"\")","v":""},{"$f":"IFERROR(INDEX('Реестр инцидентов'!$A$4:$P$171,MATCH(INDEX($K$2:$K$24,ROUNDDOWN((ROW(C221)-3)/12,0)+1)&3,'Реестр инцидентов'!$Q$4:$Q$171,0),MATCH(B$1,'Реестр инцидентов'!$A$3:$Q$3,0)),\"\")","v":""},{"$f":"IFERROR(INDEX('Реестр инцидентов'!$A$4:$P$171,MATCH(INDEX($K$2:$K$24,ROUNDDOWN((ROW(D221)-3)/12,0)+1)&3,'Реестр инцидентов'!$Q$4:$Q$171,0),MATCH(C$1,'Реестр инцидентов'!$A$3:$Q$3,0)),\"\")","v":""},{"$f":"IFERROR(INDEX('Реестр инцидентов'!$A$4:$P$171,MATCH(INDEX($K$2:$K$24,ROUNDDOWN((ROW(E221)-3)/12,0)+1)&3,'Реестр инцидентов'!$Q$4:$Q$171,0),MATCH(D$1,'Реестр инцидентов'!$A$3:$Q$3,0)),\"\")","v":""},{"$f":"IFERROR(INDEX('Реестр инцидентов'!$A$4:$P$171,MATCH(INDEX($K$2:$K$24,ROUNDDOWN((ROW(F221)-3)/12,0)+1)&3,'Реестр инцидентов'!$Q$4:$Q$171,0),MATCH(E$1,'Реестр инцидентов'!$A$3:$Q$3,0)),\"\")","v":""}]
[{"$f":"IFERROR(INDEX('Реестр инцидентов'!$A$4:$P$171,MATCH(INDEX($K$2:$K$24,ROUNDDOWN((ROW(B222)-3)/12,0)+1)&4,'Реестр инцидентов'!$Q$4:$Q$171,0),MATCH(A$1,'Реестр инцидентов'!$A$3:$Q$3,0)),\"\")","v":""},{"$f":"IFERROR(INDEX('Реестр инцидентов'!$A$4:$P$171,MATCH(INDEX($K$2:$K$24,ROUNDDOWN((ROW(C222)-3)/12,0)+1)&4,'Реестр инцидентов'!$Q$4:$Q$171,0),MATCH(B$1,'Реестр инцидентов'!$A$3:$Q$3,0)),\"\")","v":""},{"$f":"IFERROR(INDEX('Реестр инцидентов'!$A$4:$P$171,MATCH(INDEX($K$2:$K$24,ROUNDDOWN((ROW(D222)-3)/12,0)+1)&4,'Реестр инцидентов'!$Q$4:$Q$171,0),MATCH(C$1,'Реестр инцидентов'!$A$3:$Q$3,0)),\"\")","v":""},{"$f":"IFERROR(INDEX('Реестр инцидентов'!$A$4:$P$171,MATCH(INDEX($K$2:$K$24,ROUNDDOWN((ROW(E222)-3)/12,0)+1)&4,'Реестр инцидентов'!$Q$4:$Q$171,0),MATCH(D$1,'Реестр инцидентов'!$A$3:$Q$3,0)),\"\")","v":""},{"$f":"IFERROR(INDEX('Реестр инцидентов'!$A$4:$P$171,MATCH(INDEX($K$2:$K$24,ROUNDDOWN((ROW(F222)-3)/12,0)+1)&4,'Реестр инцидентов'!$Q$4:$Q$171,0),MATCH(E$1,'Реестр инцидентов'!$A$3:$Q$3,0)),\"\")","v":""}]
[{"$f":"IFERROR(INDEX('Реестр инцидентов'!$A$4:$P$171,MATCH(INDEX($K$2:$K$24,ROUNDDOWN((ROW(B223)-3)/12,0)+1)&5,'Реестр инцидентов'!$Q$4:$Q$171,0),MATCH(A$1,'Реестр инцидентов'!$A$3:$Q$3,0)),\"\")","v":""},{"$f":"IFERROR(INDEX('Реестр инцидентов'!$A$4:$P$171,MATCH(INDEX($K$2:$K$24,ROUNDDOWN((ROW(C223)-3)/12,0)+1)&5,'Реестр инцидентов'!$Q$4:$Q$171,0),MATCH(B$1,'Реестр инцидентов'!$A$3:$Q$3,0)),\"\")","v":""},{"$f":"IFERROR(INDEX('Реестр инцидентов'!$A$4:$P$171,MATCH(INDEX($K$2:$K$24,ROUNDDOWN((ROW(D223)-3)/12,0)+1)&5,'Реестр инцидентов'!$Q$4:$Q$171,0),MATCH(C$1,'Реестр инцидентов'!$A$3:$Q$3,0)),\"\")","v":""},{"$f":"IFERROR(INDEX('Реестр инцидентов'!$A$4:$P$171,MATCH(INDEX($K$2:$K$24,ROUNDDOWN((ROW(E223)-3)/12,0)+1)&5,'Реестр инцидентов'!$Q$4:$Q$171,0),MATCH(D$1,'Реестр инцидентов'!$A$3:$Q$3,0)),\"\")","v":""},{"$f":"IFERROR(INDEX('Реестр инцидентов'!$A$4:$P$171,MATCH(INDEX($K$2:$K$24,ROUNDDOWN((ROW(F223)-3)/12,0)+1)&5,'Реестр инцидентов'!$Q$4:$Q$171,0),MATCH(E$1,'Реестр инцидентов'!$A$3:$Q$3,0)),\"\")","v":""}]
[{"$f":"IFERROR(INDEX('Реестр инцидентов'!$A$4:$P$171,MATCH(INDEX($K$2:$K$24,ROUNDDOWN((ROW(B224)-3)/12,0)+1)&6,'Реестр инцидентов'!$Q$4:$Q$171,0),MATCH(A$1,'Реестр инцидентов'!$A$3:$Q$3,0)),\"\")","v":""},{"$f":"IFERROR(INDEX('Реестр инцидентов'!$A$4:$P$171,MATCH(INDEX($K$2:$K$24,ROUNDDOWN((ROW(C224)-3)/12,0)+1)&6,'Реестр инцидентов'!$Q$4:$Q$171,0),MATCH(B$1,'Реестр инцидентов'!$A$3:$Q$3,0)),\"\")","v":""},{"$f":"IFERROR(INDEX('Реестр инцидентов'!$A$4:$P$171,MATCH(INDEX($K$2:$K$24,ROUNDDOWN((ROW(D224)-3)/12,0)+1)&6,'Реестр инцидентов'!$Q$4:$Q$171,0),MATCH(C$1,'Реестр инцидентов'!$A$3:$Q$3,0)),\"\")","v":""},{"$f":"IFERROR(INDEX('Реестр инцидентов'!$A$4:$P$171,MATCH(INDEX($K$2:$K$24,ROUNDDOWN((ROW(E224)-3)/12,0)+1)&6,'Реестр инцидентов'!$Q$4:$Q$171,0),MATCH(D$1,'Реестр инцидентов'!$A$3:$Q$3,0)),\"\")","v":""},{"$f":"IFERROR(INDEX('Реестр инцидентов'!$A$4:$P$171,MATCH(INDEX($K$2:$K$24,ROUNDDOWN((ROW(F224)-3)/12,0)+1)&6,'Реестр инцидентов'!$Q$4:$Q$171,0),MATCH(E$1,'Реестр инцидентов'!$A$3:$Q$3,0)),\"\")","v":""}]
[{"$f":"IFERROR(INDEX('Реестр инцидентов'!$A$4:$P$171,MATCH(INDEX($K$2:$K$24,ROUNDDOWN((ROW(B225)-3)/12,0)+1)&7,'Реестр инцидентов'!$Q$4:$Q$171,0),MATCH(A$1,'Реестр инцидентов'!$A$3:$Q$3,0)),\"\")","v":""},{"$f":"IFERROR(INDEX('Реестр инцидентов'!$A$4:$P$171,MATCH(INDEX($K$2:$K$24,ROUNDDOWN((ROW(C225)-3)/12,0)+1)&7,'Реестр инцидентов'!$Q$4:$Q$171,0),MATCH(B$1,'Реестр инцидентов'!$A$3:$Q$3,0)),\"\")","v":""},{"$f":"IFERROR(INDEX('Реестр инцидентов'!$A$4:$P$171,MATCH(INDEX($K$2:$K$24,ROUNDDOWN((ROW(D225)-3)/12,0)+1)&7,'Реестр инцидентов'!$Q$4:$Q$171,0),MATCH(C$1,'Реестр инцидентов'!$A$3:$Q$3,0)),\"\")","v":""},{"$f":"IFERROR(INDEX('Реестр инцидентов'!$A$4:$P$171,MATCH(INDEX($K$2:$K$24,ROUNDDOWN((ROW(E225)-3)/12,0)+1)&7,'Реестр инцидентов'!$Q$4:$Q$171,0),MATCH(D$1,'Реестр инцидентов'!$A$3:$Q$3,0)),\"\")","v":""},{"$f":"IFERROR(INDEX('Реестр инцидентов'!$A$4:$P$171,MATCH(INDEX($K$2:$K$24,ROUNDDOWN((ROW(F225)-3)/12,0)+1)&7,'Реестр инцидентов'!$Q$4:$Q$171,0),MATCH(E$1,'Реестр инцидентов'!$A$3:$Q$3,0)),\"\")","v":""}]
[{"$f":"IFERROR(INDEX('Реестр инцидентов'!$A$4:$P$171,MATCH(INDEX($K$2:$K$24,ROUNDDOWN((ROW(B226)-3)/12,0)+1)&8,'Реестр инцидентов'!$Q$4:$Q$171,0),MATCH(A$1,'Реестр инцидентов'!$A$3:$Q$3,0)),\"\")","v":""},{"$f":"IFERROR(INDEX('Реестр инцидентов'!$A$4:$P$171,MATCH(INDEX($K$2:$K$24,ROUNDDOWN((ROW(C226)-3)/12,0)+1)&8,'Реестр инцидентов'!$Q$4:$Q$171,0),MATCH(B$1,'Реестр инцидентов'!$A$3:$Q$3,0)),\"\")","v":""},{"$f":"IFERROR(INDEX('Реестр инцидентов'!$A$4:$P$171,MATCH(INDEX($K$2:$K$24,ROUNDDOWN((ROW(D226)-3)/12,0)+1)&8,'Реестр инцидентов'!$Q$4:$Q$171,0),MATCH(C$1,'Реестр инцидентов'!$A$3:$Q$3,0)),\"\")","v":""},{"$f":"IFERROR(INDEX('Реестр инцидентов'!$A$4:$P$171,MATCH(INDEX($K$2:$K$24,ROUNDDOWN((ROW(E226)-3)/12,0)+1)&8,'Реестр инцидентов'!$Q$4:$Q$171,0),MATCH(D$1,'Реестр инцидентов'!$A$3:$Q$3,0)),\"\")","v":""},{"$f":"IFERROR(INDEX('Реестр инцидентов'!$A$4:$P$171,MATCH(INDEX($K$2:$K$24,ROUNDDOWN((ROW(F226)-3)/12,0)+1)&8,'Реестр инцидентов'!$Q$4:$Q$171,0),MATCH(E$1,'Реестр инцидентов'!$A$3:$Q$3,0)),\"\")","v":""}]
[{"$f":"IFERROR(INDEX('Реестр инцидентов'!$A$4:$P$171,MATCH(INDEX($K$2:$K$24,ROUNDDOWN((ROW(B227)-3)/12,0)+1)&9,'Реестр инцидентов'!$Q$4:$Q$171,0),MATCH(A$1,'Реестр инцидентов'!$A$3:$Q$3,0)),\"\")","v":""},{"$f":"IFERROR(INDEX('Реестр инцидентов'!$A$4:$P$171,MATCH(INDEX($K$2:$K$24,ROUNDDOWN((ROW(C227)-3)/12,0)+1)&9,'Реестр инцидентов'!$Q$4:$Q$171,0),MATCH(B$1,'Реестр инцидентов'!$A$3:$Q$3,0)),\"\")","v":""},{"$f":"IFERROR(INDEX('Реестр инцидентов'!$A$4:$P$171,MATCH(INDEX($K$2:$K$24,ROUNDDOWN((ROW(D227)-3)/12,0)+1)&9,'Реестр инцидентов'!$Q$4:$Q$171,0),MATCH(C$1,'Реестр инцидентов'!$A$3:$Q$3,0)),\"\")","v":""},{"$f":"IFERROR(INDEX('Реестр инцидентов'!$A$4:$P$171,MATCH(INDEX($K$2:$K$24,ROUNDDOWN((ROW(E227)-3)/12,0)+1)&9,'Реестр инцидентов'!$Q$4:$Q$171,0),MATCH(D$1,'Реестр инцидентов'!$A$3:$Q$3,0)),\"\")","v":""},{"$f":"IFERROR(INDEX('Реестр инцидентов'!$A$4:$P$171,MATCH(INDEX($K$2:$K$24,ROUNDDOWN((ROW(F227)-3)/12,0)+1)&9,'Реестр инцидентов'!$Q$4:$Q$171,0),MATCH(E$1,'Реестр инцидентов'!$A$3:$Q$3,0)),\"\")","v":""}]
[{"$f":"IFERROR(INDEX('Реестр инцидентов'!$A$4:$P$171,MATCH(INDEX($K$2:$K$24,ROUNDDOWN((ROW(B228)-3)/12,0)+1)&10,'Реестр инцидентов'!$Q$4:$Q$171,0),MATCH(A$1,'Реестр инцидентов'!$A$3:$Q$3,0)),\"\")","v":""},{"$f":"IFERROR(INDEX('Реестр инцидентов'!$A$4:$P$171,MATCH(INDEX($K$2:$K$24,ROUNDDOWN((ROW(C228)-3)/12,0)+1)&10,'Реестр инцидентов'!$Q$4:$Q$171,0),MATCH(B$1,'Реестр инцидентов'!$A$3:$Q$3,0)),\"\")","v":""},{"$f":"IFERROR(INDEX('Реестр инцидентов'!$A$4:$P$171,MATCH(INDEX($K$2:$K$24,ROUNDDOWN((ROW(D228)-3)/12,0)+1)&10,'Реестр инцидентов'!$Q$4:$Q$171,0),MATCH(C$1,'Реестр инцидентов'!$A$3:$Q$3,0)),\"\")","v":""},{"$f":"IFERROR(INDEX('Реестр инцидентов'!$A$4:$P$171,MATCH(INDEX($K$2:$K$24,ROUNDDOWN((ROW(E228)-3)/12,0)+1)&10,'Реестр инцидентов'!$Q$4:$Q$171,0),MATCH(D$1,'Реестр инцидентов'!$A$3:$Q$3,0)),\"\")","v":""},{"$f":"IFERROR(INDEX('Реестр инцидентов'!$A$4:$P$171,MATCH(INDEX($K$2:$K$24,ROUNDDOWN((ROW(F228)-3)/12,0)+1)&10,'Реестр инцидентов'!$Q$4:$Q$171,0),MATCH(E$1,'Реестр инцидентов'!$A$3:$Q$3,0)),\"\")","v":""}]
[{"$f":"IFERROR(INDEX('Реестр инцидентов'!$A$4:$P$171,MATCH(INDEX($K$2:$K$24,ROUNDDOWN((ROW(B229)-3)/12,0)+1)&11,'Реестр инцидентов'!$Q$4:$Q$171,0),MATCH(A$1,'Реестр инцидентов'!$A$3:$Q$3,0)),\"\")","v":""},{"$f":"IFERROR(INDEX('Реестр инцидентов'!$A$4:$P$171,MATCH(INDEX($K$2:$K$24,ROUNDDOWN((ROW(C229)-3)/12,0)+1)&11,'Реестр инцидентов'!$Q$4:$Q$171,0),MATCH(B$1,'Реестр инцидентов'!$A$3:$Q$3,0)),\"\")","v":""},{"$f":"IFERROR(INDEX('Реестр инцидентов'!$A$4:$P$171,MATCH(INDEX($K$2:$K$24,ROUNDDOWN((ROW(D229)-3)/12,0)+1)&11,'Реестр инцидентов'!$Q$4:$Q$171,0),MATCH(C$1,'Реестр инцидентов'!$A$3:$Q$3,0)),\"\")","v":""},{"$f":"IFERROR(INDEX('Реестр инцидентов'!$A$4:$P$171,MATCH(INDEX($K$2:$K$24,ROUNDDOWN((ROW(E229)-3)/12,0)+1)&11,'Реестр инцидентов'!$Q$4:$Q$171,0),MATCH(D$1,'Реестр инцидентов'!$A$3:$Q$3,0)),\"\")","v":""},{"$f":"IFERROR(INDEX('Реестр инцидентов'!$A$4:$P$171,MATCH(INDEX($K$2:$K$24,ROUNDDOWN((ROW(F229)-3)/12,0)+1)&11,'Реестр инцидентов'!$Q$4:$Q$171,0),MATCH(E$1,'Реестр инцидентов'!$A$3:$Q$3,0)),\"\")","v":""}]
[{"$f":"IFERROR(INDEX($L$2:$L$23,ROUNDDOWN((ROW(B231)-3)/12,0)+1),\"\")","v":"Смирнов Алексей Дмитриевич"}]
[{"$f":"IFERROR(INDEX('Реестр инцидентов'!$A$4:$P$171,MATCH(INDEX($K$2:$K$24,ROUNDDOWN((ROW(B231)-3)/12,0)+1)&1,'Реестр инцидентов'!$Q$4:$Q$171,0),MATCH(A$1,'Реестр инцидентов'!$A$3:$Q$3,0)),\"\")","v":""},{"$f":"IFERROR(INDEX('Реестр инцидентов'!$A$4:$P$171,MATCH(INDEX($K$2:$K$24,ROUNDDOWN((ROW(C231)-3)/12,0)+1)&1,'Реестр инцидентов'!$Q$4:$Q$171,0),MATCH(B$1,'Реестр инцидентов'!$A$3:$Q$3,0)),\"\")","v":""},{"$f":"IFERROR(INDEX('Реестр инцидентов'!$A$4:$P$171,MATCH(INDEX($K$2:$K$24,ROUNDDOWN((ROW(D231)-3)/12,0)+1)&1,'Реестр инцидентов'!$Q$4:$Q$171,0),MATCH(C$1,'Реестр инцидентов'!$A$3:$Q$3,0)),\"\")","v":""},{"$f":"IFERROR(INDEX('Реестр инцидентов'!$A$4:$P$171,MATCH(INDEX($K$2:$K$24,ROUNDDOWN((ROW(E231)-3)/12,0)+1)&1,'Реестр инцидентов'!$Q$4:$Q$171,0),MATCH(D$1,'Реестр инцидентов'!$A$3:$Q$3,0)),\"\")","v":""},{"$f":"IFERROR(INDEX('Реестр инцидентов'!$A$4:$P$171,MATCH(INDEX($K$2:$K$24,ROUNDDOWN((ROW(F231)-3)/12,0)+1)&1,'Реестр инцидентов'!$Q$4:$Q$171,0),MATCH(E$1,'Реестр инцидентов'!$A$3:$Q$3,0)),\"\")","v":""}]
[{"$f":"IFERROR(INDEX('Реестр инцидентов'!$A$4:$P$171,MATCH(INDEX($K$2:$K$24,ROUNDDOWN((ROW(B232)-3)/12,0)+1)&2,'Реестр инцидентов'!$Q$4:$Q$171,0),MATCH(A$1,'Реестр инцидентов'!$A$3:$Q$3,0)),\"\")","v":""},{"$f":"IFERROR(INDEX('Реестр инцидентов'!$A$4:$P$171,MATCH(INDEX($K$2:$K$24,ROUNDDOWN((ROW(C232)-3)/12,0)+1)&2,'Реестр инцидентов'!$Q$4:$Q$171,0),MATCH(B$1,'Реестр инцидентов'!$A$3:$Q$3,0)),\"\")","v":""},{"$f":"IFERROR(INDEX('Реестр инцидентов'!$A$4:$P$171,MATCH(INDEX($K$2:$K$24,ROUNDDOWN((ROW(D232)-3)/12,0)+1)&2,'Реестр инцидентов'!$Q$4:$Q$171,0),MATCH(C$1,'Реестр инцидентов'!$A$3:$Q$3,0)),\"\")","v":""},{"$f":"IFERROR(INDEX('Реестр инцидентов'!$A$4:$P$171,MATCH(INDEX($K$2:$K$24,ROUNDDOWN((ROW(E232)-3)/12,0)+1)&2,'Реестр инцидентов'!$Q$4:$Q$171,0),MATCH(D$1,'Реестр инцидентов'!$A$3:$Q$3,0)),\"\")","v":""},{"$f":"IFERROR(INDEX('Реестр инцидентов'!$A$4:$P$171,MATCH(INDEX($K$2:$K$24,ROUNDDOWN((ROW(F232)-3)/12,0)+1)&2,'Реестр инцидентов'!$Q$4:$Q$171,0),MATCH(E$1,'Реестр инцидентов'!$A$3:$Q$3,0)),\"\")","v":""}]
[{"$f":"IFERROR(INDEX('Реестр инцидентов'!$A$4:$P$171,MATCH(INDEX($K$2:$K$24,ROUNDDOWN((ROW(B233)-3)/12,0)+1)&3,'Реестр инцидентов'!$Q$4:$Q$171,0),MATCH(A$1,'Реестр инцидентов'!$A$3:$Q$3,0)),\"\")","v":""},{"$f":"IFERROR(INDEX('Реестр инцидентов'!$A$4:$P$171,MATCH(INDEX($K$2:$K$24,ROUNDDOWN((ROW(C233)-3)/12,0)+1)&3,'Реестр инцидентов'!$Q$4:$Q$171,0),MATCH(B$1,'Реестр инцидентов'!$A$3:$Q$3,0)),\"\")","v":""},{"$f":"IFERROR(INDEX('Реестр инцидентов'!$A$4:$P$171,MATCH(INDEX($K$2:$K$24,ROUNDDOWN((ROW(D233)-3)/12,0)+1)&3,'Реестр инцидентов'!$Q$4:$Q$171,0),MATCH(C$1,'Реестр инцидентов'!$A$3:$Q$3,0)),\"\")","v":""},{"$f":"IFERROR(INDEX('Реестр инцидентов'!$A$4:$P$171,MATCH(INDEX($K$2:$K$24,ROUNDDOWN((ROW(E233)-3)/12,0)+1)&3,'Реестр инцидентов'!$Q$4:$Q$171,0),MATCH(D$1,'Реестр инцидентов'!$A$3:$Q$3,0)),\"\")","v":""},{"$f":"IFERROR(INDEX('Реестр инцидентов'!$A$4:$P$171,MATCH(INDEX($K$2:$K$24,ROUNDDOWN((ROW(F233)-3)/12,0)+1)&3,'Реестр инцидентов'!$Q$4:$Q$171,0),MATCH(E$1,'Реестр инцидентов'!$A$3:$Q$3,0)),\"\")","v":""}]
[{"$f":"IFERROR(INDEX('Реестр инцидентов'!$A$4:$P$171,MATCH(INDEX($K$2:$K$24,ROUNDDOWN((ROW(B234)-3)/12,0)+1)&4,'Реестр инцидентов'!$Q$4:$Q$171,0),MATCH(A$1,'Реестр инцидентов'!$A$3:$Q$3,0)),\"\")","v":""},{"$f":"IFERROR(INDEX('Реестр инцидентов'!$A$4:$P$171,MATCH(INDEX($K$2:$K$24,ROUNDDOWN((ROW(C234)-3)/12,0)+1)&4,'Реестр инцидентов'!$Q$4:$Q$171,0),MATCH(B$1,'Реестр инцидентов'!$A$3:$Q$3,0)),\"\")","v":""},{"$f":"IFERROR(INDEX('Реестр инцидентов'!$A$4:$P$171,MATCH(INDEX($K$2:$K$24,ROUNDDOWN((ROW(D234)-3)/12,0)+1)&4,'Реестр инцидентов'!$Q$4:$Q$171,0),MATCH(C$1,'Реестр инцидентов'!$A$3:$Q$3,0)),\"\")","v":""},{"$f":"IFERROR(INDEX('Реестр инцидентов'!$A$4:$P$171,MATCH(INDEX($K$2:$K$24,ROUNDDOWN((ROW(E234)-3)/12,0)+1)&4,'Реестр инцидентов'!$Q$4:$Q$171,0),MATCH(D$1,'Реестр инцидентов'!$A$3:$Q$3,0)),\"\")","v":""},{"$f":"IFERROR(INDEX('Реестр инцидентов'!$A$4:$P$171,MATCH(INDEX($K$2:$K$24,ROUNDDOWN((ROW(F234)-3)/12,0)+1)&4,'Реестр инцидентов'!$Q$4:$Q$171,0),MATCH(E$1,'Реестр инцидентов'!$A$3:$Q$3,0)),\"\")","v":""}]
[{"$f":"IFERROR(INDEX('Реестр инцидентов'!$A$4:$P$171,MATCH(INDEX($K$2:$K$24,ROUNDDOWN((ROW(B235)-3)/12,0)+1)&5,'Реестр инцидентов'!$Q$4:$Q$171,0),MATCH(A$1,'Реестр инцидентов'!$A$3:$Q$3,0)),\"\")","v":""},{"$f":"IFERROR(INDEX('Реестр инцидентов'!$A$4:$P$171,MATCH(INDEX($K$2:$K$24,ROUNDDOWN((ROW(C235)-3)/12,0)+1)&5,'Реестр инцидентов'!$Q$4:$Q$171,0),MATCH(B$1,'Реестр инцидентов'!$A$3:$Q$3,0)),\"\")","v":""},{"$f":"IFERROR(INDEX('Реестр инцидентов'!$A$4:$P$171,MATCH(INDEX($K$2:$K$24,ROUNDDOWN((ROW(D235)-3)/12,0)+1)&5,'Реестр инцидентов'!$Q$4:$Q$171,0),MATCH(C$1,'Реестр инцидентов'!$A$3:$Q$3,0)),\"\")","v":""},{"$f":"IFERROR(INDEX('Реестр инцидентов'!$A$4:$P$171,MATCH(INDEX($K$2:$K$24,ROUNDDOWN((ROW(E235)-3)/12,0)+1)&5,'Реестр инцидентов'!$Q$4:$Q$171,0),MATCH(D$1,'Реестр инцидентов'!$A$3:$Q$3,0)),\"\")","v":""},{"$f":"IFERROR(INDEX('Реестр инцидентов'!$A$4:$P$171,MATCH(INDEX($K$2:$K$24,ROUNDDOWN((ROW(F235)-3)/12,0)+1)&5,'Реестр инцидентов'!$Q$4:$Q$171,0),MATCH(E$1,'Реестр инцидентов'!$A$3:$Q$3,0)),\"\")","v":""}]
[{"$f":"IFERROR(INDEX('Реестр инцидентов'!$A$4:$P$171,MATCH(INDEX($K$2:$K$24,ROUNDDOWN((ROW(B236)-3)/12,0)+1)&6,'Реестр инцидентов'!$Q$4:$Q$171,0),MATCH(A$1,'Реестр инцидентов'!$A$3:$Q$3,0)),\"\")","v":""},{"$f":"IFERROR(INDEX('Реестр инцидентов'!$A$4:$P$171,MATCH(INDEX($K$2:$K$24,ROUNDDOWN((ROW(C236)-3)/12,0)+1)&6,'Реестр инцидентов'!$Q$4:$Q$171,0),MATCH(B$1,'Реестр инцидентов'!$A$3:$Q$3,0)),\"\")","v":""},{"$f":"IFERROR(INDEX('Реестр инцидентов'!$A$4:$P$171,MATCH(INDEX($K$2:$K$24,ROUNDDOWN((ROW(D236)-3)/12,0)+1)&6,'Реестр инцидентов'!$Q$4:$Q$171,0),MATCH(C$1,'Реестр инцидентов'!$A$3:$Q$3,0)),\"\")","v":""},{"$f":"IFERROR(INDEX('Реестр инцидентов'!$A$4:$P$171,MATCH(INDEX($K$2:$K$24,ROUNDDOWN((ROW(E236)-3)/12,0)+1)&6,'Реестр инцидентов'!$Q$4:$Q$171,0),MATCH(D$1,'Реестр инцидентов'!$A$3:$Q$3,0)),\"\")","v":""},{"$f":"IFERROR(INDEX('Реестр инцидентов'!$A$4:$P$171,MATCH(INDEX($K$2:$K$24,ROUNDDOWN((ROW(F236)-3)/12,0)+1)&6,'Реестр инцидентов'!$Q$4:$Q$171,0),MATCH(E$1,'Реестр инцидентов'!$A$3:$Q$3,0)),\"\")","v":""}]
[{"$f":"IFERROR(INDEX('Реестр инцидентов'!$A$4:$P$171,MATCH(INDEX($K$2:$K$24,ROUNDDOWN((ROW(B237)-3)/12,0)+1)&7,'Реестр инцидентов'!$Q$4:$Q$171,0),MATCH(A$1,'Реестр инцидентов'!$A$3:$Q$3,0)),\"\")","v":""},{"$f":"IFERROR(INDEX('Реестр инцидентов'!$A$4:$P$171,MATCH(INDEX($K$2:$K$24,ROUNDDOWN((ROW(C237)-3)/12,0)+1)&7,'Реестр инцидентов'!$Q$4:$Q$171,0),MATCH(B$1,'Реестр инцидентов'!$A$3:$Q$3,0)),\"\")","v":""},{"$f":"IFERROR(INDEX('Реестр инцидентов'!$A$4:$P$171,MATCH(INDEX($K$2:$K$24,ROUNDDOWN((ROW(D237)-3)/12,0)+1)&7,'Реестр инцидентов'!$Q$4:$Q$171,0),MATCH(C$1,'Реестр инцидентов'!$A$3:$Q$3,0)),\"\")","v":""},{"$f":"IFERROR(INDEX('Реестр инцидентов'!$A$4:$P$171,MATCH(INDEX($K$2:$K$24,ROUNDDOWN((ROW(E237)-3)/12,0)+1)&7,'Реестр инцидентов'!$Q$4:$Q$171,0),MATCH(D$1,'Реестр инцидентов'!$A$3:$Q$3,0)),\"\")","v":""},{"$f":"IFERROR(INDEX('Реестр инцидентов'!$A$4:$P$171,MATCH(INDEX($K$2:$K$24,ROUNDDOWN((ROW(F237)-3)/12,0)+1)&7,'Реестр инцидентов'!$Q$4:$Q$171,0),MATCH(E$1,'Реестр инцидентов'!$A$3:$Q$3,0)),\"\")","v":""}]
[{"$f":"IFERROR(INDEX('Реестр инцидентов'!$A$4:$P$171,MATCH(INDEX($K$2:$K$24,ROUNDDOWN((ROW(B238)-3)/12,0)+1)&8,'Реестр инцидентов'!$Q$4:$Q$171,0),MATCH(A$1,'Реестр инцидентов'!$A$3:$Q$3,0)),\"\")","v":""},{"$f":"IFERROR(INDEX('Реестр инцидентов'!$A$4:$P$171,MATCH(INDEX($K$2:$K$24,ROUNDDOWN((ROW(C238)-3)/12,0)+1)&8,'Реестр инцидентов'!$Q$4:$Q$171,0),MATCH(B$1,'Реестр инцидентов'!$A$3:$Q$3,0)),\"\")","v":""},{"$f":"IFERROR(INDEX('Реестр инцидентов'!$A$4:$P$171,MATCH(INDEX($K$2:$K$24,ROUNDDOWN((ROW(D238)-3)/12,0)+1)&8,'Реестр инцидентов'!$Q$4:$Q$171,0),MATCH(C$1,'Реестр инцидентов'!$A$3:$Q$3,0)),\"\")","v":""},{"$f":"IFERROR(INDEX('Реестр инцидентов'!$A$4:$P$171,MATCH(INDEX($K$2:$K$24,ROUNDDOWN((ROW(E238)-3)/12,0)+1)&8,'Реестр инцидентов'!$Q$4:$Q$171,0),MATCH(D$1,'Реестр инцидентов'!$A$3:$Q$3,0)),\"\")","v":""},{"$f":"IFERROR(INDEX('Реестр инцидентов'!$A$4:$P$171,MATCH(INDEX($K$2:$K$24,ROUNDDOWN((ROW(F238)-3)/12,0)+1)&8,'Реестр инцидентов'!$Q$4:$Q$171,0),MATCH(E$1,'Реестр инцидентов'!$A$3:$Q$3,0)),\"\")","v":""}]
[{"$f":"IFERROR(INDEX('Реестр инцидентов'!$A$4:$P$171,MATCH(INDEX($K$2:$K$24,ROUNDDOWN((ROW(B239)-3)/12,0)+1)&9,'Реестр инцидентов'!$Q$4:$Q$171,0),MATCH(A$1,'Реестр инцидентов'!$A$3:$Q$3,0)),\"\")","v":""},{"$f":"IFERROR(INDEX('Реестр инцидентов'!$A$4:$P$171,MATCH(INDEX($K$2:$K$24,ROUNDDOWN((ROW(C239)-3)/12,0)+1)&9,'Реестр инцидентов'!$Q$4:$Q$171,0),MATCH(B$1,'Реестр инцидентов'!$A$3:$Q$3,0)),\"\")","v":""},{"$f":"IFERROR(INDEX('Реестр инцидентов'!$A$4:$P$171,MATCH(INDEX($K$2:$K$24,ROUNDDOWN((ROW(D239)-3)/12,0)+1)&9,'Реестр инцидентов'!$Q$4:$Q$171,0),MATCH(C$1,'Реестр инцидентов'!$A$3:$Q$3,0)),\"\")","v":""},{"$f":"IFERROR(INDEX('Реестр инцидентов'!$A$4:$P$171,MATCH(INDEX($K$2:$K$24,ROUNDDOWN((ROW(E239)-3)/12,0)+1)&9,'Реестр инцидентов'!$Q$4:$Q$171,0),MATCH(D$1,'Реестр инцидентов'!$A$3:$Q$3,0)),\"\")","v":""},{"$f":"IFERROR(INDEX('Реестр инцидентов'!$A$4:$P$171,MATCH(INDEX($K$2:$K$24,ROUNDDOWN((ROW(F239)-3)/12,0)+1)&9,'Реестр инцидентов'!$Q$4:$Q$171,0),MATCH(E$1,'Реестр инцидентов'!$A$3:$Q$3,0)),\"\")","v":""}]
[{"$f":"IFERROR(INDEX('Реестр инцидентов'!$A$4:$P$171,MATCH(INDEX($K$2:$K$24,ROUNDDOWN((ROW(B240)-3)/12,0)+1)&10,'Реестр инцидентов'!$Q$4:$Q$171,0),MATCH(A$1,'Реестр инцидентов'!$A$3:$Q$3,0)),\"\")","v":""},{"$f":"IFERROR(INDEX('Реестр инцидентов'!$A$4:$P$171,MATCH(INDEX($K$2:$K$24,ROUNDDOWN((ROW(C240)-3)/12,0)+1)&10,'Реестр инцидентов'!$Q$4:$Q$171,0),MATCH(B$1,'Реестр инцидентов'!$A$3:$Q$3,0)),\"\")","v":""},{"$f":"IFERROR(INDEX('Реестр инцидентов'!$A$4:$P$171,MATCH(INDEX($K$2:$K$24,ROUNDDOWN((ROW(D240)-3)/12,0)+1)&10,'Реестр инцидентов'!$Q$4:$Q$171,0),MATCH(C$1,'Реестр инцидентов'!$A$3:$Q$3,0)),\"\")","v":""},{"$f":"IFERROR(INDEX('Реестр инцидентов'!$A$4:$P$171,MATCH(INDEX($K$2:$K$24,ROUNDDOWN((ROW(E240)-3)/12,0)+1)&10,'Реестр инцидентов'!$Q$4:$Q$171,0),MATCH(D$1,'Реестр инцидентов'!$A$3:$Q$3,0)),\"\")","v":""},{"$f":"IFERROR(INDEX('Реестр инцидентов'!$A$4:$P$171,MATCH(INDEX($K$2:$K$24,ROUNDDOWN((ROW(F240)-3)/12,0)+1)&10,'Реестр инцидентов'!$Q$4:$Q$171,0),MATCH(E$1,'Реестр инцидентов'!$A$3:$Q$3,0)),\"\")","v":""}]
[{"$f":"IFERROR(INDEX('Реестр инцидентов'!$A$4:$P$171,MATCH(INDEX($K$2:$K$24,ROUNDDOWN((ROW(B241)-3)/12,0)+1)&11,'Реестр инцидентов'!$Q$4:$Q$171,0),MATCH(A$1,'Реестр инцидентов'!$A$3:$Q$3,0)),\"\")","v":""},{"$f":"IFERROR(INDEX('Реестр инцидентов'!$A$4:$P$171,MATCH(INDEX($K$2:$K$24,ROUNDDOWN((ROW(C241)-3)/12,0)+1)&11,'Реестр инцидентов'!$Q$4:$Q$171,0),MATCH(B$1,'Реестр инцидентов'!$A$3:$Q$3,0)),\"\")","v":""},{"$f":"IFERROR(INDEX('Реестр инцидентов'!$A$4:$P$171,MATCH(INDEX($K$2:$K$24,ROUNDDOWN((ROW(D241)-3)/12,0)+1)&11,'Реестр инцидентов'!$Q$4:$Q$171,0),MATCH(C$1,'Реестр инцидентов'!$A$3:$Q$3,0)),\"\")","v":""},{"$f":"IFERROR(INDEX('Реестр инцидентов'!$A$4:$P$171,MATCH(INDEX($K$2:$K$24,ROUNDDOWN((ROW(E241)-3)/12,0)+1)&11,'Реестр инцидентов'!$Q$4:$Q$171,0),MATCH(D$1,'Реестр инцидентов'!$A$3:$Q$3,0)),\"\")","v":""},{"$f":"IFERROR(INDEX('Реестр инцидентов'!$A$4:$P$171,MATCH(INDEX($K$2:$K$24,ROUNDDOWN((ROW(F241)-3)/12,0)+1)&11,'Реестр инцидентов'!$Q$4:$Q$171,0),MATCH(E$1,'Реестр инцидентов'!$A$3:$Q$3,0)),\"\")","v":""}]
[{"$f":"IFERROR(INDEX($L$2:$L$23,ROUNDDOWN((ROW(B243)-3)/12,0)+1),\"\")","v":"Фокин Сергей Дмитриевич"}]
[{"$f":"IFERROR(INDEX('Реестр инцидентов'!$A$4:$P$171,MATCH(INDEX($K$2:$K$24,ROUNDDOWN((ROW(B243)-3)/12,0)+1)&1,'Реестр инцидентов'!$Q$4:$Q$171,0),MATCH(A$1,'Реестр инцидентов'!$A$3:$Q$3,0)),\"\")","v":"Сергей Фокин"},{"$f":"IFERROR(INDEX('Реестр инцидентов'!$A$4:$P$171,MATCH(INDEX($K$2:$K$24,ROUNDDOWN((ROW(C243)-3)/12,0)+1)&1,'Реестр инцидентов'!$Q$4:$Q$171,0),MATCH(B$1,'Реестр инцидентов'!$A$3:$Q$3,0)),\"\")","v":"150715/2130.1"},{"$f":"IFERROR(INDEX('Реестр инцидентов'!$A$4:$P$171,MATCH(INDEX($K$2:$K$24,ROUNDDOWN((ROW(D243)-3)/12,0)+1)&1,'Реестр инцидентов'!$Q$4:$Q$171,0),MATCH(C$1,'Реестр инцидентов'!$A$3:$Q$3,0)),\"\")","v":"2015-07-15T15:06:49"},{"$f":"IFERROR(INDEX('Реестр инцидентов'!$A$4:$P$171,MATCH(INDEX($K$2:$K$24,ROUNDDOWN((ROW(E243)-3)/12,0)+1)&1,'Реестр инцидентов'!$Q$4:$Q$171,0),MATCH(D$1,'Реестр инцидентов'!$A$3:$Q$3,0)),\"\")","v":"Разрешено"},{"$f":"IFERROR(INDEX('Реестр инцидентов'!$A$4:$P$171,MATCH(INDEX($K$2:$K$24,ROUNDDOWN((ROW(F243)-3)/12,0)+1)&1,'Реестр инцидентов'!$Q$4:$Q$171,0),MATCH(E$1,'Реестр инцидентов'!$A$3:$Q$3,0)),\"\")","v":"Некорректное описание"}]
[{"$f":"IFERROR(INDEX('Реестр инцидентов'!$A$4:$P$171,MATCH(INDEX($K$2:$K$24,ROUNDDOWN((ROW(B244)-3)/12,0)+1)&2,'Реестр инцидентов'!$Q$4:$Q$171,0),MATCH(A$1,'Реестр инцидентов'!$A$3:$Q$3,0)),\"\")","v":""},{"$f":"IFERROR(INDEX('Реестр инцидентов'!$A$4:$P$171,MATCH(INDEX($K$2:$K$24,ROUNDDOWN((ROW(C244)-3)/12,0)+1)&2,'Реестр инцидентов'!$Q$4:$Q$171,0),MATCH(B$1,'Реестр инцидентов'!$A$3:$Q$3,0)),\"\")","v":""},{"$f":"IFERROR(INDEX('Реестр инцидентов'!$A$4:$P$171,MATCH(INDEX($K$2:$K$24,ROUNDDOWN((ROW(D244)-3)/12,0)+1)&2,'Реестр инцидентов'!$Q$4:$Q$171,0),MATCH(C$1,'Реестр инцидентов'!$A$3:$Q$3,0)),\"\")","v":""},{"$f":"IFERROR(INDEX('Реестр инцидентов'!$A$4:$P$171,MATCH(INDEX($K$2:$K$24,ROUNDDOWN((ROW(E244)-3)/12,0)+1)&2,'Реестр инцидентов'!$Q$4:$Q$171,0),MATCH(D$1,'Реестр инцидентов'!$A$3:$Q$3,0)),\"\")","v":""},{"$f":"IFERROR(INDEX('Реестр инцидентов'!$A$4:$P$171,MATCH(INDEX($K$2:$K$24,ROUNDDOWN((ROW(F244)-3)/12,0)+1)&2,'Реестр инцидентов'!$Q$4:$Q$171,0),MATCH(E$1,'Реестр инцидентов'!$A$3:$Q$3,0)),\"\")","v":""}]
[{"$f":"IFERROR(INDEX('Реестр инцидентов'!$A$4:$P$171,MATCH(INDEX($K$2:$K$24,ROUNDDOWN((ROW(B245)-3)/12,0)+1)&3,'Реестр инцидентов'!$Q$4:$Q$171,0),MATCH(A$1,'Реестр инцидентов'!$A$3:$Q$3,0)),\"\")","v":""},{"$f":"IFERROR(INDEX('Реестр инцидентов'!$A$4:$P$171,MATCH(INDEX($K$2:$K$24,ROUNDDOWN((ROW(C245)-3)/12,0)+1)&3,'Реестр инцидентов'!$Q$4:$Q$171,0),MATCH(B$1,'Реестр инцидентов'!$A$3:$Q$3,0)),\"\")","v":""},{"$f":"IFERROR(INDEX('Реестр инцидентов'!$A$4:$P$171,MATCH(INDEX($K$2:$K$24,ROUNDDOWN((ROW(D245)-3)/12,0)+1)&3,'Реестр инцидентов'!$Q$4:$Q$171,0),MATCH(C$1,'Реестр инцидентов'!$A$3:$Q$3,0)),\"\")","v":""},{"$f":"IFERROR(INDEX('Реестр инцидентов'!$A$4:$P$171,MATCH(INDEX($K$2:$K$24,ROUNDDOWN((ROW(E245)-3)/12,0)+1)&3,'Реестр инцидентов'!$Q$4:$Q$171,0),MATCH(D$1,'Реестр инцидентов'!$A$3:$Q$3,0)),\"\")","v":""},{"$f":"IFERROR(INDEX('Реестр инцидентов'!$A$4:$P$171,MATCH(INDEX($K$2:$K$24,ROUNDDOWN((ROW(F245)-3)/12,0)+1)&3,'Реестр инцидентов'!$Q$4:$Q$171,0),MATCH(E$1,'Реестр инцидентов'!$A$3:$Q$3,0)),\"\")","v":""}]
[{"$f":"IFERROR(INDEX('Реестр инцидентов'!$A$4:$P$171,MATCH(INDEX($K$2:$K$24,ROUNDDOWN((ROW(B246)-3)/12,0)+1)&4,'Реестр инцидентов'!$Q$4:$Q$171,0),MATCH(A$1,'Реестр инцидентов'!$A$3:$Q$3,0)),\"\")","v":""},{"$f":"IFERROR(INDEX('Реестр инцидентов'!$A$4:$P$171,MATCH(INDEX($K$2:$K$24,ROUNDDOWN((ROW(C246)-3)/12,0)+1)&4,'Реестр инцидентов'!$Q$4:$Q$171,0),MATCH(B$1,'Реестр инцидентов'!$A$3:$Q$3,0)),\"\")","v":""},{"$f":"IFERROR(INDEX('Реестр инцидентов'!$A$4:$P$171,MATCH(INDEX($K$2:$K$24,ROUNDDOWN((ROW(D246)-3)/12,0)+1)&4,'Реестр инцидентов'!$Q$4:$Q$171,0),MATCH(C$1,'Реестр инцидентов'!$A$3:$Q$3,0)),\"\")","v":""},{"$f":"IFERROR(INDEX('Реестр инцидентов'!$A$4:$P$171,MATCH(INDEX($K$2:$K$24,ROUNDDOWN((ROW(E246)-3)/12,0)+1)&4,'Реестр инцидентов'!$Q$4:$Q$171,0),MATCH(D$1,'Реестр инцидентов'!$A$3:$Q$3,0)),\"\")","v":""},{"$f":"IFERROR(INDEX('Реестр инцидентов'!$A$4:$P$171,MATCH(INDEX($K$2:$K$24,ROUNDDOWN((ROW(F246)-3)/12,0)+1)&4,'Реестр инцидентов'!$Q$4:$Q$171,0),MATCH(E$1,'Реестр инцидентов'!$A$3:$Q$3,0)),\"\")","v":""}]
[{"$f":"IFERROR(INDEX('Реестр инцидентов'!$A$4:$P$171,MATCH(INDEX($K$2:$K$24,ROUNDDOWN((ROW(B247)-3)/12,0)+1)&5,'Реестр инцидентов'!$Q$4:$Q$171,0),MATCH(A$1,'Реестр инцидентов'!$A$3:$Q$3,0)),\"\")","v":""},{"$f":"IFERROR(INDEX('Реестр инцидентов'!$A$4:$P$171,MATCH(INDEX($K$2:$K$24,ROUNDDOWN((ROW(C247)-3)/12,0)+1)&5,'Реестр инцидентов'!$Q$4:$Q$171,0),MATCH(B$1,'Реестр инцидентов'!$A$3:$Q$3,0)),\"\")","v":""},{"$f":"IFERROR(INDEX('Реестр инцидентов'!$A$4:$P$171,MATCH(INDEX($K$2:$K$24,ROUNDDOWN((ROW(D247)-3)/12,0)+1)&5,'Реестр инцидентов'!$Q$4:$Q$171,0),MATCH(C$1,'Реестр инцидентов'!$A$3:$Q$3,0)),\"\")","v":""},{"$f":"IFERROR(INDEX('Реестр инцидентов'!$A$4:$P$171,MATCH(INDEX($K$2:$K$24,ROUNDDOWN((ROW(E247)-3)/12,0)+1)&5,'Реестр инцидентов'!$Q$4:$Q$171,0),MATCH(D$1,'Реестр инцидентов'!$A$3:$Q$3,0)),\"\")","v":""},{"$f":"IFERROR(INDEX('Реестр инцидентов'!$A$4:$P$171,MATCH(INDEX($K$2:$K$24,ROUNDDOWN((ROW(F247)-3)/12,0)+1)&5,'Реестр инцидентов'!$Q$4:$Q$171,0),MATCH(E$1,'Реестр инцидентов'!$A$3:$Q$3,0)),\"\")","v":""}]
[{"$f":"IFERROR(INDEX('Реестр инцидентов'!$A$4:$P$171,MATCH(INDEX($K$2:$K$24,ROUNDDOWN((ROW(B248)-3)/12,0)+1)&6,'Реестр инцидентов'!$Q$4:$Q$171,0),MATCH(A$1,'Реестр инцидентов'!$A$3:$Q$3,0)),\"\")","v":""},{"$f":"IFERROR(INDEX('Реестр инцидентов'!$A$4:$P$171,MATCH(INDEX($K$2:$K$24,ROUNDDOWN((ROW(C248)-3)/12,0)+1)&6,'Реестр инцидентов'!$Q$4:$Q$171,0),MATCH(B$1,'Реестр инцидентов'!$A$3:$Q$3,0)),\"\")","v":""},{"$f":"IFERROR(INDEX('Реестр инцидентов'!$A$4:$P$171,MATCH(INDEX($K$2:$K$24,ROUNDDOWN((ROW(D248)-3)/12,0)+1)&6,'Реестр инцидентов'!$Q$4:$Q$171,0),MATCH(C$1,'Реестр инцидентов'!$A$3:$Q$3,0)),\"\")","v":""},{"$f":"IFERROR(INDEX('Реестр инцидентов'!$A$4:$P$171,MATCH(INDEX($K$2:$K$24,ROUNDDOWN((ROW(E248)-3)/12,0)+1)&6,'Реестр инцидентов'!$Q$4:$Q$171,0),MATCH(D$1,'Реестр инцидентов'!$A$3:$Q$3,0)),\"\")","v":""},{"$f":"IFERROR(INDEX('Реестр инцидентов'!$A$4:$P$171,MATCH(INDEX($K$2:$K$24,ROUNDDOWN((ROW(F248)-3)/12,0)+1)&6,'Реестр инцидентов'!$Q$4:$Q$171,0),MATCH(E$1,'Реестр инцидентов'!$A$3:$Q$3,0)),\"\")","v":""}]
[{"$f":"IFERROR(INDEX('Реестр инцидентов'!$A$4:$P$171,MATCH(INDEX($K$2:$K$24,ROUNDDOWN((ROW(B249)-3)/12,0)+1)&7,'Реестр инцидентов'!$Q$4:$Q$171,0),MATCH(A$1,'Реестр инцидентов'!$A$3:$Q$3,0)),\"\")","v":""},{"$f":"IFERROR(INDEX('Реестр инцидентов'!$A$4:$P$171,MATCH(INDEX($K$2:$K$24,ROUNDDOWN((ROW(C249)-3)/12,0)+1)&7,'Реестр инцидентов'!$Q$4:$Q$171,0),MATCH(B$1,'Реестр инцидентов'!$A$3:$Q$3,0)),\"\")","v":""},{"$f":"IFERROR(INDEX('Реестр инцидентов'!$A$4:$P$171,MATCH(INDEX($K$2:$K$24,ROUNDDOWN((ROW(D249)-3)/12,0)+1)&7,'Реестр инцидентов'!$Q$4:$Q$171,0),MATCH(C$1,'Реестр инцидентов'!$A$3:$Q$3,0)),\"\")","v":""},{"$f":"IFERROR(INDEX('Реестр инцидентов'!$A$4:$P$171,MATCH(INDEX($K$2:$K$24,ROUNDDOWN((ROW(E249)-3)/12,0)+1)&7,'Реестр инцидентов'!$Q$4:$Q$171,0),MATCH(D$1,'Реестр инцидентов'!$A$3:$Q$3,0)),\"\")","v":""},{"$f":"IFERROR(INDEX('Реестр инцидентов'!$A$4:$P$171,MATCH(INDEX($K$2:$K$24,ROUNDDOWN((ROW(F249)-3)/12,0)+1)&7,'Реестр инцидентов'!$Q$4:$Q$171,0),MATCH(E$1,'Реестр инцидентов'!$A$3:$Q$3,0)),\"\")","v":""}]
[{"$f":"IFERROR(INDEX('Реестр инцидентов'!$A$4:$P$171,MATCH(INDEX($K$2:$K$24,ROUNDDOWN((ROW(B250)-3)/12,0)+1)&8,'Реестр инцидентов'!$Q$4:$Q$171,0),MATCH(A$1,'Реестр инцидентов'!$A$3:$Q$3,0)),\"\")","v":""},{"$f":"IFERROR(INDEX('Реестр инцидентов'!$A$4:$P$171,MATCH(INDEX($K$2:$K$24,ROUNDDOWN((ROW(C250)-3)/12,0)+1)&8,'Реестр инцидентов'!$Q$4:$Q$171,0),MATCH(B$1,'Реестр инцидентов'!$A$3:$Q$3,0)),\"\")","v":""},{"$f":"IFERROR(INDEX('Реестр инцидентов'!$A$4:$P$171,MATCH(INDEX($K$2:$K$24,ROUNDDOWN((ROW(D250)-3)/12,0)+1)&8,'Реестр инцидентов'!$Q$4:$Q$171,0),MATCH(C$1,'Реестр инцидентов'!$A$3:$Q$3,0)),\"\")","v":""},{"$f":"IFERROR(INDEX('Реестр инцидентов'!$A$4:$P$171,MATCH(INDEX($K$2:$K$24,ROUNDDOWN((ROW(E250)-3)/12,0)+1)&8,'Реестр инцидентов'!$Q$4:$Q$171,0),MATCH(D$1,'Реестр инцидентов'!$A$3:$Q$3,0)),\"\")","v":""},{"$f":"IFERROR(INDEX('Реестр инцидентов'!$A$4:$P$171,MATCH(INDEX($K$2:$K$24,ROUNDDOWN((ROW(F250)-3)/12,0)+1)&8,'Реестр инцидентов'!$Q$4:$Q$171,0),MATCH(E$1,'Реестр инцидентов'!$A$3:$Q$3,0)),\"\")","v":""}]
[{"$f":"IFERROR(INDEX('Реестр инцидентов'!$A$4:$P$171,MATCH(INDEX($K$2:$K$24,ROUNDDOWN((ROW(B251)-3)/12,0)+1)&9,'Реестр инцидентов'!$Q$4:$Q$171,0),MATCH(A$1,'Реестр инцидентов'!$A$3:$Q$3,0)),\"\")","v":""},{"$f":"IFERROR(INDEX('Реестр инцидентов'!$A$4:$P$171,MATCH(INDEX($K$2:$K$24,ROUNDDOWN((ROW(C251)-3)/12,0)+1)&9,'Реестр инцидентов'!$Q$4:$Q$171,0),MATCH(B$1,'Реестр инцидентов'!$A$3:$Q$3,0)),\"\")","v":""},{"$f":"IFERROR(INDEX('Реестр инцидентов'!$A$4:$P$171,MATCH(INDEX($K$2:$K$24,ROUNDDOWN((ROW(D251)-3)/12,0)+1)&9,'Реестр инцидентов'!$Q$4:$Q$171,0),MATCH(C$1,'Реестр инцидентов'!$A$3:$Q$3,0)),\"\")","v":""},{"$f":"IFERROR(INDEX('Реестр инцидентов'!$A$4:$P$171,MATCH(INDEX($K$2:$K$24,ROUNDDOWN((ROW(E251)-3)/12,0)+1)&9,'Реестр инцидентов'!$Q$4:$Q$171,0),MATCH(D$1,'Реестр инцидентов'!$A$3:$Q$3,0)),\"\")","v":""},{"$f":"IFERROR(INDEX('Реестр инцидентов'!$A$4:$P$171,MATCH(INDEX($K$2:$K$24,ROUNDDOWN((ROW(F251)-3)/12,0)+1)&9,'Реестр инцидентов'!$Q$4:$Q$171,0),MATCH(E$1,'Реестр инцидентов'!$A$3:$Q$3,0)),\"\")","v":""}]
[{"$f":"IFERROR(INDEX('Реестр инцидентов'!$A$4:$P$171,MATCH(INDEX($K$2:$K$24,ROUNDDOWN((ROW(B252)-3)/12,0)+1)&10,'Реестр инцидентов'!$Q$4:$Q$171,0),MATCH(A$1,'Реестр инцидентов'!$A$3:$Q$3,0)),\"\")","v":""},{"$f":"IFERROR(INDEX('Реестр инцидентов'!$A$4:$P$171,MATCH(INDEX($K$2:$K$24,ROUNDDOWN((ROW(C252)-3)/12,0)+1)&10,'Реестр инцидентов'!$Q$4:$Q$171,0),MATCH(B$1,'Реестр инцидентов'!$A$3:$Q$3,0)),\"\")","v":""},{"$f":"IFERROR(INDEX('Реестр инцидентов'!$A$4:$P$171,MATCH(INDEX($K$2:$K$24,ROUNDDOWN((ROW(D252)-3)/12,0)+1)&10,'Реестр инцидентов'!$Q$4:$Q$171,0),MATCH(C$1,'Реестр инцидентов'!$A$3:$Q$3,0)),\"\")","v":""},{"$f":"IFERROR(INDEX('Реестр инцидентов'!$A$4:$P$171,MATCH(INDEX($K$2:$K$24,ROUNDDOWN((ROW(E252)-3)/12,0)+1)&10,'Реестр инцидентов'!$Q$4:$Q$171,0),MATCH(D$1,'Реестр инцидентов'!$A$3:$Q$3,0)),\"\")","v":""},{"$f":"IFERROR(INDEX('Реестр инцидентов'!$A$4:$P$171,MATCH(INDEX($K$2:$K$24,ROUNDDOWN((ROW(F252)-3)/12,0)+1)&10,'Реестр инцидентов'!$Q$4:$Q$171,0),MATCH(E$1,'Реестр инцидентов'!$A$3:$Q$3,0)),\"\")","v":""}]
[{"$f":"IFERROR(INDEX('Реестр инцидентов'!$A$4:$P$171,MATCH(INDEX($K$2:$K$24,ROUNDDOWN((ROW(B253)-3)/12,0)+1)&11,'Реестр инцидентов'!$Q$4:$Q$171,0),MATCH(A$1,'Реестр инцидентов'!$A$3:$Q$3,0)),\"\")","v":""},{"$f":"IFERROR(INDEX('Реестр инцидентов'!$A$4:$P$171,MATCH(INDEX($K$2:$K$24,ROUNDDOWN((ROW(C253)-3)/12,0)+1)&11,'Реестр инцидентов'!$Q$4:$Q$171,0),MATCH(B$1,'Реестр инцидентов'!$A$3:$Q$3,0)),\"\")","v":""},{"$f":"IFERROR(INDEX('Реестр инцидентов'!$A$4:$P$171,MATCH(INDEX($K$2:$K$24,ROUNDDOWN((ROW(D253)-3)/12,0)+1)&11,'Реестр инцидентов'!$Q$4:$Q$171,0),MATCH(C$1,'Реестр инцидентов'!$A$3:$Q$3,0)),\"\")","v":""},{"$f":"IFERROR(INDEX('Реестр инцидентов'!$A$4:$P$171,MATCH(INDEX($K$2:$K$24,ROUNDDOWN((ROW(E253)-3)/12,0)+1)&11,'Реестр инцидентов'!$Q$4:$Q$171,0),MATCH(D$1,'Реестр инцидентов'!$A$3:$Q$3,0)),\"\")","v":""},{"$f":"IFERROR(INDEX('Реестр инцидентов'!$A$4:$P$171,MATCH(INDEX($K$2:$K$24,ROUNDDOWN((ROW(F253)-3)/12,0)+1)&11,'Реестр инцидентов'!$Q$4:$Q$171,0),MATCH(E$1,'Реестр инцидентов'!$A$3:$Q$3,0)),\"\")","v":""}]
[{"$f":"IFERROR(INDEX($L$2:$L$23,ROUNDDOWN((ROW(B255)-3)/12,0)+1),\"\")","v":"Шуляк Дмитрий Викторович"}]
[{"$f":"IFERROR(INDEX('Реестр инцидентов'!$A$4:$P$171,MATCH(INDEX($K$2:$K$24,ROUNDDOWN((ROW(B255)-3)/12,0)+1)&1,'Реестр инцидентов'!$Q$4:$Q$171,0),MATCH(A$1,'Реестр инцидентов'!$A$3:$Q$3,0)),\"\")","v":"Дмитрий Шуляк"},{"$f":"IFERROR(INDEX('Реестр инцидентов'!$A$4:$P$171,MATCH(INDEX($K$2:$K$24,ROUNDDOWN((ROW(C255)-3)/12,0)+1)&1,'Реестр инцидентов'!$Q$4:$Q$171,0),MATCH(B$1,'Реестр инцидентов'!$A$3:$Q$3,0)),\"\")","v":"150713/2818.1"},{"$f":"IFERROR(INDEX('Реестр инцидентов'!$A$4:$P$171,MATCH(INDEX($K$2:$K$24,ROUNDDOWN((ROW(D255)-3)/12,0)+1)&1,'Реестр инцидентов'!$Q$4:$Q$171,0),MATCH(C$1,'Реестр инцидентов'!$A$3:$Q$3,0)),\"\")","v":"2015-07-13T16:40:59"},{"$f":"IFERROR(INDEX('Реестр инцидентов'!$A$4:$P$171,MATCH(INDEX($K$2:$K$24,ROUNDDOWN((ROW(E255)-3)/12,0)+1)&1,'Реестр инцидентов'!$Q$4:$Q$171,0),MATCH(D$1,'Реестр инцидентов'!$A$3:$Q$3,0)),\"\")","v":"Разрешено"},{"$f":"IFERROR(INDEX('Реестр инцидентов'!$A$4:$P$171,MATCH(INDEX($K$2:$K$24,ROUNDDOWN((ROW(F255)-3)/12,0)+1)&1,'Реестр инцидентов'!$Q$4:$Q$171,0),MATCH(E$1,'Реестр инцидентов'!$A$3:$Q$3,0)),\"\")","v":"Есть сценарий"}]
[{"$f":"IFERROR(INDEX('Реестр инцидентов'!$A$4:$P$171,MATCH(INDEX($K$2:$K$24,ROUNDDOWN((ROW(B256)-3)/12,0)+1)&2,'Реестр инцидентов'!$Q$4:$Q$171,0),MATCH(A$1,'Реестр инцидентов'!$A$3:$Q$3,0)),\"\")","v":"Дмитрий Шуляк"},{"$f":"IFERROR(INDEX('Реестр инцидентов'!$A$4:$P$171,MATCH(INDEX($K$2:$K$24,ROUNDDOWN((ROW(C256)-3)/12,0)+1)&2,'Реестр инцидентов'!$Q$4:$Q$171,0),MATCH(B$1,'Реестр инцидентов'!$A$3:$Q$3,0)),\"\")","v":"150714/2794.1"},{"$f":"IFERROR(INDEX('Реестр инцидентов'!$A$4:$P$171,MATCH(INDEX($K$2:$K$24,ROUNDDOWN((ROW(D256)-3)/12,0)+1)&2,'Реестр инцидентов'!$Q$4:$Q$171,0),MATCH(C$1,'Реестр инцидентов'!$A$3:$Q$3,0)),\"\")","v":"2015-07-14T17:03:41"},{"$f":"IFERROR(INDEX('Реестр инцидентов'!$A$4:$P$171,MATCH(INDEX($K$2:$K$24,ROUNDDOWN((ROW(E256)-3)/12,0)+1)&2,'Реестр инцидентов'!$Q$4:$Q$171,0),MATCH(D$1,'Реестр инцидентов'!$A$3:$Q$3,0)),\"\")","v":"Разрешено"},{"$f":"IFERROR(INDEX('Реестр инцидентов'!$A$4:$P$171,MATCH(INDEX($K$2:$K$24,ROUNDDOWN((ROW(F256)-3)/12,0)+1)&2,'Реестр инцидентов'!$Q$4:$Q$171,0),MATCH(E$1,'Реестр инцидентов'!$A$3:$Q$3,0)),\"\")","v":"Есть сценарий"}]
[{"$f":"IFERROR(INDEX('Реестр инцидентов'!$A$4:$P$171,MATCH(INDEX($K$2:$K$24,ROUNDDOWN((ROW(B257)-3)/12,0)+1)&3,'Реестр инцидентов'!$Q$4:$Q$171,0),MATCH(A$1,'Реестр инцидентов'!$A$3:$Q$3,0)),\"\")","v":"Дмитрий Шуляк"},{"$f":"IFERROR(INDEX('Реестр инцидентов'!$A$4:$P$171,MATCH(INDEX($K$2:$K$24,ROUNDDOWN((ROW(C257)-3)/12,0)+1)&3,'Реестр инцидентов'!$Q$4:$Q$171,0),MATCH(B$1,'Реестр инцидентов'!$A$3:$Q$3,0)),\"\")","v":"150714/3259.1"},{"$f":"IFERROR(INDEX('Реестр инцидентов'!$A$4:$P$171,MATCH(INDEX($K$2:$K$24,ROUNDDOWN((ROW(D257)-3)/12,0)+1)&3,'Реестр инцидентов'!$Q$4:$Q$171,0),MATCH(C$1,'Реестр инцидентов'!$A$3:$Q$3,0)),\"\")","v":"2015-07-14T18:00:33"},{"$f":"IFERROR(INDEX('Реестр инцидентов'!$A$4:$P$171,MATCH(INDEX($K$2:$K$24,ROUNDDOWN((ROW(E257)-3)/12,0)+1)&3,'Реестр инцидентов'!$Q$4:$Q$171,0),MATCH(D$1,'Реестр инцидентов'!$A$3:$Q$3,0)),\"\")","v":"Разрешено"},{"$f":"IFERROR(INDEX('Реестр инцидентов'!$A$4:$P$171,MATCH(INDEX($K$2:$K$24,ROUNDDOWN((ROW(F257)-3)/12,0)+1)&3,'Реестр инцидентов'!$Q$4:$Q$171,0),MATCH(E$1,'Реестр инцидентов'!$A$3:$Q$3,0)),\"\")","v":"Отсутствие файлов"}]
[{"$f":"IFERROR(INDEX('Реестр инцидентов'!$A$4:$P$171,MATCH(INDEX($K$2:$K$24,ROUNDDOWN((ROW(B258)-3)/12,0)+1)&4,'Реестр инцидентов'!$Q$4:$Q$171,0),MATCH(A$1,'Реестр инцидентов'!$A$3:$Q$3,0)),\"\")","v":"Дмитрий Шуляк"},{"$f":"IFERROR(INDEX('Реестр инцидентов'!$A$4:$P$171,MATCH(INDEX($K$2:$K$24,ROUNDDOWN((ROW(C258)-3)/12,0)+1)&4,'Реестр инцидентов'!$Q$4:$Q$171,0),MATCH(B$1,'Реестр инцидентов'!$A$3:$Q$3,0)),\"\")","v":"150715/1949.1"},{"$f":"IFERROR(INDEX('Реестр инцидентов'!$A$4:$P$171,MATCH(INDEX($K$2:$K$24,ROUNDDOWN((ROW(D258)-3)/12,0)+1)&4,'Реестр инцидентов'!$Q$4:$Q$171,0),MATCH(C$1,'Реестр инцидентов'!$A$3:$Q$3,0)),\"\")","v":"2015-07-15T14:47:36"},{"$f":"IFERROR(INDEX('Реестр инцидентов'!$A$4:$P$171,MATCH(INDEX($K$2:$K$24,ROUNDDOWN((ROW(E258)-3)/12,0)+1)&4,'Реестр инцидентов'!$Q$4:$Q$171,0),MATCH(D$1,'Реестр инцидентов'!$A$3:$Q$3,0)),\"\")","v":"Активный"},{"$f":"IFERROR(INDEX('Реестр инцидентов'!$A$4:$P$171,MATCH(INDEX($K$2:$K$24,ROUNDDOWN((ROW(F258)-3)/12,0)+1)&4,'Реестр инцидентов'!$Q$4:$Q$171,0),MATCH(E$1,'Реестр инцидентов'!$A$3:$Q$3,0)),\"\")","v":"Некорректный контакт"}]
[{"$f":"IFERROR(INDEX('Реестр инцидентов'!$A$4:$P$171,MATCH(INDEX($K$2:$K$24,ROUNDDOWN((ROW(B259)-3)/12,0)+1)&5,'Реестр инцидентов'!$Q$4:$Q$171,0),MATCH(A$1,'Реестр инцидентов'!$A$3:$Q$3,0)),\"\")","v":"Дмитрий Шуляк"},{"$f":"IFERROR(INDEX('Реестр инцидентов'!$A$4:$P$171,MATCH(INDEX($K$2:$K$24,ROUNDDOWN((ROW(C259)-3)/12,0)+1)&5,'Реестр инцидентов'!$Q$4:$Q$171,0),MATCH(B$1,'Реестр инцидентов'!$A$3:$Q$3,0)),\"\")","v":"150715/1949.2"},{"$f":"IFERROR(INDEX('Реестр инцидентов'!$A$4:$P$171,MATCH(INDEX($K$2:$K$24,ROUNDDOWN((ROW(D259)-3)/12,0)+1)&5,'Реестр инцидентов'!$Q$4:$Q$171,0),MATCH(C$1,'Реестр инцидентов'!$A$3:$Q$3,0)),\"\")","v":"2015-07-15T14:54:41"},{"$f":"IFERROR(INDEX('Реестр инцидентов'!$A$4:$P$171,MATCH(INDEX($K$2:$K$24,ROUNDDOWN((ROW(E259)-3)/12,0)+1)&5,'Реестр инцидентов'!$Q$4:$Q$171,0),MATCH(D$1,'Реестр инцидентов'!$A$3:$Q$3,0)),\"\")","v":"Активный"},{"$f":"IFERROR(INDEX('Реестр инцидентов'!$A$4:$P$171,MATCH(INDEX($K$2:$K$24,ROUNDDOWN((ROW(F259)-3)/12,0)+1)&5,'Реестр инцидентов'!$Q$4:$Q$171,0),MATCH(E$1,'Реестр инцидентов'!$A$3:$Q$3,0)),\"\")","v":"Некорректное описание"}]
[{"$f":"IFERROR(INDEX('Реестр инцидентов'!$A$4:$P$171,MATCH(INDEX($K$2:$K$24,ROUNDDOWN((ROW(B260)-3)/12,0)+1)&6,'Реестр инцидентов'!$Q$4:$Q$171,0),MATCH(A$1,'Реестр инцидентов'!$A$3:$Q$3,0)),\"\")","v":""},{"$f":"IFERROR(INDEX('Реестр инцидентов'!$A$4:$P$171,MATCH(INDEX($K$2:$K$24,ROUNDDOWN((ROW(C260)-3)/12,0)+1)&6,'Реестр инцидентов'!$Q$4:$Q$171,0),MATCH(B$1,'Реестр инцидентов'!$A$3:$Q$3,0)),\"\")","v":""},{"$f":"IFERROR(INDEX('Реестр инцидентов'!$A$4:$P$171,MATCH(INDEX($K$2:$K$24,ROUNDDOWN((ROW(D260)-3)/12,0)+1)&6,'Реестр инцидентов'!$Q$4:$Q$171,0),MATCH(C$1,'Реестр инцидентов'!$A$3:$Q$3,0)),\"\")","v":""},{"$f":"IFERROR(INDEX('Реестр инцидентов'!$A$4:$P$171,MATCH(INDEX($K$2:$K$24,ROUNDDOWN((ROW(E260)-3)/12,0)+1)&6,'Реестр инцидентов'!$Q$4:$Q$171,0),MATCH(D$1,'Реестр инцидентов'!$A$3:$Q$3,0)),\"\")","v":""},{"$f":"IFERROR(INDEX('Реестр инцидентов'!$A$4:$P$171,MATCH(INDEX($K$2:$K$24,ROUNDDOWN((ROW(F260)-3)/12,0)+1)&6,'Реестр инцидентов'!$Q$4:$Q$171,0),MATCH(E$1,'Реестр инцидентов'!$A$3:$Q$3,0)),\"\")","v":""}]
[{"$f":"IFERROR(INDEX('Реестр инцидентов'!$A$4:$P$171,MATCH(INDEX($K$2:$K$24,ROUNDDOWN((ROW(B261)-3)/12,0)+1)&7,'Реестр инцидентов'!$Q$4:$Q$171,0),MATCH(A$1,'Реестр инцидентов'!$A$3:$Q$3,0)),\"\")","v":""},{"$f":"IFERROR(INDEX('Реестр инцидентов'!$A$4:$P$171,MATCH(INDEX($K$2:$K$24,ROUNDDOWN((ROW(C261)-3)/12,0)+1)&7,'Реестр инцидентов'!$Q$4:$Q$171,0),MATCH(B$1,'Реестр инцидентов'!$A$3:$Q$3,0)),\"\")","v":""},{"$f":"IFERROR(INDEX('Реестр инцидентов'!$A$4:$P$171,MATCH(INDEX($K$2:$K$24,ROUNDDOWN((ROW(D261)-3)/12,0)+1)&7,'Реестр инцидентов'!$Q$4:$Q$171,0),MATCH(C$1,'Реестр инцидентов'!$A$3:$Q$3,0)),\"\")","v":""},{"$f":"IFERROR(INDEX('Реестр инцидентов'!$A$4:$P$171,MATCH(INDEX($K$2:$K$24,ROUNDDOWN((ROW(E261)-3)/12,0)+1)&7,'Реестр инцидентов'!$Q$4:$Q$171,0),MATCH(D$1,'Реестр инцидентов'!$A$3:$Q$3,0)),\"\")","v":""},{"$f":"IFERROR(INDEX('Реестр инцидентов'!$A$4:$P$171,MATCH(INDEX($K$2:$K$24,ROUNDDOWN((ROW(F261)-3)/12,0)+1)&7,'Реестр инцидентов'!$Q$4:$Q$171,0),MATCH(E$1,'Реестр инцидентов'!$A$3:$Q$3,0)),\"\")","v":""}]
[{"$f":"IFERROR(INDEX('Реестр инцидентов'!$A$4:$P$171,MATCH(INDEX($K$2:$K$24,ROUNDDOWN((ROW(B262)-3)/12,0)+1)&8,'Реестр инцидентов'!$Q$4:$Q$171,0),MATCH(A$1,'Реестр инцидентов'!$A$3:$Q$3,0)),\"\")","v":""},{"$f":"IFERROR(INDEX('Реестр инцидентов'!$A$4:$P$171,MATCH(INDEX($K$2:$K$24,ROUNDDOWN((ROW(C262)-3)/12,0)+1)&8,'Реестр инцидентов'!$Q$4:$Q$171,0),MATCH(B$1,'Реестр инцидентов'!$A$3:$Q$3,0)),\"\")","v":""},{"$f":"IFERROR(INDEX('Реестр инцидентов'!$A$4:$P$171,MATCH(INDEX($K$2:$K$24,ROUNDDOWN((ROW(D262)-3)/12,0)+1)&8,'Реестр инцидентов'!$Q$4:$Q$171,0),MATCH(C$1,'Реестр инцидентов'!$A$3:$Q$3,0)),\"\")","v":""},{"$f":"IFERROR(INDEX('Реестр инцидентов'!$A$4:$P$171,MATCH(INDEX($K$2:$K$24,ROUNDDOWN((ROW(E262)-3)/12,0)+1)&8,'Реестр инцидентов'!$Q$4:$Q$171,0),MATCH(D$1,'Реестр инцидентов'!$A$3:$Q$3,0)),\"\")","v":""},{"$f":"IFERROR(INDEX('Реестр инцидентов'!$A$4:$P$171,MATCH(INDEX($K$2:$K$24,ROUNDDOWN((ROW(F262)-3)/12,0)+1)&8,'Реестр инцидентов'!$Q$4:$Q$171,0),MATCH(E$1,'Реестр инцидентов'!$A$3:$Q$3,0)),\"\")","v":""}]
[{"$f":"IFERROR(INDEX('Реестр инцидентов'!$A$4:$P$171,MATCH(INDEX($K$2:$K$24,ROUNDDOWN((ROW(B263)-3)/12,0)+1)&9,'Реестр инцидентов'!$Q$4:$Q$171,0),MATCH(A$1,'Реестр инцидентов'!$A$3:$Q$3,0)),\"\")","v":""},{"$f":"IFERROR(INDEX('Реестр инцидентов'!$A$4:$P$171,MATCH(INDEX($K$2:$K$24,ROUNDDOWN((ROW(C263)-3)/12,0)+1)&9,'Реестр инцидентов'!$Q$4:$Q$171,0),MATCH(B$1,'Реестр инцидентов'!$A$3:$Q$3,0)),\"\")","v":""},{"$f":"IFERROR(INDEX('Реестр инцидентов'!$A$4:$P$171,MATCH(INDEX($K$2:$K$24,ROUNDDOWN((ROW(D263)-3)/12,0)+1)&9,'Реестр инцидентов'!$Q$4:$Q$171,0),MATCH(C$1,'Реестр инцидентов'!$A$3:$Q$3,0)),\"\")","v":""},{"$f":"IFERROR(INDEX('Реестр инцидентов'!$A$4:$P$171,MATCH(INDEX($K$2:$K$24,ROUNDDOWN((ROW(E263)-3)/12,0)+1)&9,'Реестр инцидентов'!$Q$4:$Q$171,0),MATCH(D$1,'Реестр инцидентов'!$A$3:$Q$3,0)),\"\")","v":""},{"$f":"IFERROR(INDEX('Реестр инцидентов'!$A$4:$P$171,MATCH(INDEX($K$2:$K$24,ROUNDDOWN((ROW(F263)-3)/12,0)+1)&9,'Реестр инцидентов'!$Q$4:$Q$171,0),MATCH(E$1,'Реестр инцидентов'!$A$3:$Q$3,0)),\"\")","v":""}]
[{"$f":"IFERROR(INDEX('Реестр инцидентов'!$A$4:$P$171,MATCH(INDEX($K$2:$K$24,ROUNDDOWN((ROW(B264)-3)/12,0)+1)&10,'Реестр инцидентов'!$Q$4:$Q$171,0),MATCH(A$1,'Реестр инцидентов'!$A$3:$Q$3,0)),\"\")","v":""},{"$f":"IFERROR(INDEX('Реестр инцидентов'!$A$4:$P$171,MATCH(INDEX($K$2:$K$24,ROUNDDOWN((ROW(C264)-3)/12,0)+1)&10,'Реестр инцидентов'!$Q$4:$Q$171,0),MATCH(B$1,'Реестр инцидентов'!$A$3:$Q$3,0)),\"\")","v":""},{"$f":"IFERROR(INDEX('Реестр инцидентов'!$A$4:$P$171,MATCH(INDEX($K$2:$K$24,ROUNDDOWN((ROW(D264)-3)/12,0)+1)&10,'Реестр инцидентов'!$Q$4:$Q$171,0),MATCH(C$1,'Реестр инцидентов'!$A$3:$Q$3,0)),\"\")","v":""},{"$f":"IFERROR(INDEX('Реестр инцидентов'!$A$4:$P$171,MATCH(INDEX($K$2:$K$24,ROUNDDOWN((ROW(E264)-3)/12,0)+1)&10,'Реестр инцидентов'!$Q$4:$Q$171,0),MATCH(D$1,'Реестр инцидентов'!$A$3:$Q$3,0)),\"\")","v":""},{"$f":"IFERROR(INDEX('Реестр инцидентов'!$A$4:$P$171,MATCH(INDEX($K$2:$K$24,ROUNDDOWN((ROW(F264)-3)/12,0)+1)&10,'Реестр инцидентов'!$Q$4:$Q$171,0),MATCH(E$1,'Реестр инцидентов'!$A$3:$Q$3,0)),\"\")","v":""}]
[{"$f":"IFERROR(INDEX('Реестр инцидентов'!$A$4:$P$171,MATCH(INDEX($K$2:$K$24,ROUNDDOWN((ROW(B265)-3)/12,0)+1)&11,'Реестр инцидентов'!$Q$4:$Q$171,0),MATCH(A$1,'Реестр инцидентов'!$A$3:$Q$3,0)),\"\")","v":""},{"$f":"IFERROR(INDEX('Реестр инцидентов'!$A$4:$P$171,MATCH(INDEX($K$2:$K$24,ROUNDDOWN((ROW(C265)-3)/12,0)+1)&11,'Реестр инцидентов'!$Q$4:$Q$171,0),MATCH(B$1,'Реестр инцидентов'!$A$3:$Q$3,0)),\"\")","v":""},{"$f":"IFERROR(INDEX('Реестр инцидентов'!$A$4:$P$171,MATCH(INDEX($K$2:$K$24,ROUNDDOWN((ROW(D265)-3)/12,0)+1)&11,'Реестр инцидентов'!$Q$4:$Q$171,0),MATCH(C$1,'Реестр инцидентов'!$A$3:$Q$3,0)),\"\")","v":""},{"$f":"IFERROR(INDEX('Реестр инцидентов'!$A$4:$P$171,MATCH(INDEX($K$2:$K$24,ROUNDDOWN((ROW(E265)-3)/12,0)+1)&11,'Реестр инцидентов'!$Q$4:$Q$171,0),MATCH(D$1,'Реестр инцидентов'!$A$3:$Q$3,0)),\"\")","v":""},{"$f":"IFERROR(INDEX('Реестр инцидентов'!$A$4:$P$171,MATCH(INDEX($K$2:$K$24,ROUNDDOWN((ROW(F265)-3)/12,0)+1)&11,'Реестр инцидентов'!$Q$4:$Q$171,0),MATCH(E$1,'Реестр инцидентов'!$A$3:$Q$3,0)),\"\")","v":""}]

{"sheet":"Реестр инцидентов","index":2,"n_rows":171,"n_cols":17,"rows_kept":171,"cut":false,"hidden":false,"merged":[]}
[]
["Реестр некорректно зарегистрированных инцидентов"]
["Номер инцидента",null,null,"Дата создания",null,"Состояние",null,"Создатель",null,null,null,"Отдел создавшего",null,null,null,"Ошибка регистрации"]
["150701/3.1",null,null,"2015-07-01T01:11:36",null,"Разрешено",null,"Анастасия Баженова",null,null,null,"Отдел поддержки клиентов",null,null,null,"Некорректный контакт",{"$f":"H4&COUNTIF($H$4:H4,H4)","v":"Анастасия Баженова1"}]
["150701/254.1",null,null,"2015-07-01T11:18:16",null,"Разрешено",null,"Александр Захаров",null,null,null,"Отдел поддержки клиентов",null,null,null,"Отсутствие файлов",{"$f":"H5&COUNTIF($H$4:H5,H5)","v":"Александр Захаров1"}]
["150701/272.2",null,null,"2015-07-01T11:23:39",null,"Разрешено",null,"Дарья Ревина",null,null,null,"Отдел поддержки клиентов",null,null,null,"Отсутствие файлов",{"$f":"H6&COUNTIF($H$4:H6,H6)","v":"Дарья Ревина1"}]
["150701/444.1",null,null,"2015-07-01T11:54:49",null,"Разрешено",null,"Александр Захаров",null,null,null,"Отдел поддержки клиентов",null,null,null,"Отсутствие файлов",{"$f":"H7&COUNTIF($H$4:H7,H7)","v":"Александр Захаров2"}]
["150701/479.1",null,null,"2015-07-01T11:59:26",null,"Разрешено",null,"Александр Захаров",null,null,null,"Отдел поддержки клиентов",null,null,null,"Неправомерный перевод",{"$f":"H8&COUNTIF($H$4:H8,H8)","v":"Александр Захаров3"}]
["150701/513.1",null,null,"2015-07-01T12:05:12",null,"Разрешено",null,"Александр Захаров",null,null,null,"Отдел поддержки клиентов",null,null,null,"Отсутствие файлов",{"$f":"H9&COUNTIF($H$4:H9,H9)","v":"Александр Захаров4"}]
["150701/549.1",null,null,"2015-07-01T12:11:48",null,"Разрешено",null,"Игорь Рысенков",null,null,null,"Отдел поддержки клиентов",null,null,null,"Некорректный контакт",{"$f":"H10&COUNTIF($H$4:H10,H10)","v":"Игорь Рысенков1"}]
["150701/600.1",null,null,"2015-07-01T12:21:47",null,"Разрешено",null,"Кирилл Червяков",null,null,null,"Отдел поддержки клиентов",null,null,null,"Некорректный контакт",{"$f":"H11&COUNTIF($H$4:H11,H11)","v":"Кирилл Червяков1"}]
["150701/659.1",null,null,"2015-07-01T12:32:11",null,"Разрешено",null,"Денис Аманов",null,null,null,"Отдел поддержки клиентов",null,null,null,"Есть сценарий",{"$f":"H12&COUNTIF($H$4:H12,H12)","v":"Денис Аманов1"}]
["150701/764.1",null,null,"2015-07-01T12:51:20",null,"Разрешено",null,"Михаил Карпухин",null,null,null,"Отдел поддержки клиентов",null,null,null,"Отсутствие файлов",{"$f":"H13&COUNTIF($H$4:H13,H13)","v":"Михаил Карпухин1"}]
["150701/835.2",null,null,"2015-07-01T13:07:48",null,"Разрешено",null,"Кирилл Оськин",null,null,null,"Отдел поддержки клиентов",null,null,null,"Некорректный контакт",{"$f":"H14&COUNTIF($H$4:H14,H14)","v":"Кирилл Оськин1"}]
["150701/1056.1",null,null,"2015-07-01T13:45:44",null,"Разрешено",null,"Владислав Гончаров",null,null,null,"Отдел поддержки клиентов",null,null,null,"Некорректный контакт",{"$f":"H15&COUNTIF($H$4:H15,H15)","v":"Владислав Гончаров1"}]
["150701/1184.1",null,null,"2015-07-01T14:08:43",null,"Разрешено",null,"Никита Макаров",null,null,null,"Отдел поддержки клиентов",null,null,null,"Отсутствие файлов",{"$f":"H16&COUNTIF($H$4:H16,H16)","v":"Никита Макаров1"}]
["150701/1403.1",null,null,"2015-07-01T14:51:05",null,"Разрешено",null,"Андрей Симаков",null,null,null,"Отдел поддержки клиентов",null,null,null,"Отсутствие файлов",{"$f":"H17&COUNTIF($H$4:H17,H17)","v":"Андрей Симаков1"}]
["150701/1906.1",null,null,"2015-07-01T16:10:20",null,"Разрешено",null,"Кирилл Червяков",null,null,null,"Отдел поддержки клиентов",null,null,null,"Некорректный контакт",{"$f":"H18&COUNTIF($H$4:H18,H18)","v":"Кирилл Червяков2"}]
["150701/1871.2",null,null,"2015-07-01T16:23:03",null,"Разрешено",null,"Максим Касьянов",null,null,null,"Отдел поддержки клиентов",null,null,null,"Есть сценарий",{"$f":"H19&COUNTIF($H$4:H19,H19)","v":"Максим Касьянов1"}]
["150701/2100.1",null,null,"2015-07-01T16:39:58",null,"Разрешено",null,"Игорь Рысенков",null,null,null,"Отдел поддержки клиентов",null,null,null,"Некорректный контакт",{"$f":"H20&COUNTIF($H$4:H20,H20)","v":"Игорь Рысенков2"}]
["150701/2215.1",null,null,"2015-07-01T16:58:25",null,"Разрешено",null,"Александр Платонов",null,null,null,"Отдел поддержки клиентов",null,null,null,"Некорректный контакт",{"$f":"H21&COUNTIF($H$4:H21,H21)","v":"Александр Платонов1"}]
["150701/2657.1",null,null,"2015-07-01T18:03:09",null,"Разрешено",null,"Алексей Лукоянов",null,null,null,"Отдел поддержки клиентов",null,null,null,"Отсутствие файлов",{"$f":"H22&COUNTIF($H$4:H22,H22)","v":"Алексей Лукоянов1"}]
["150701/2756.1",null,null,"2015-07-01T18:17:53",null,"Разрешено",null,"Анна Добросердова",null,null,null,"Отдел поддержки клиентов",null,null,null,"Неправомерный перевод",{"$f":"H23&COUNTIF($H$4:H23,H23)","v":"Анна Добросердова1"}]
["150701/3124.1",null,null,"2015-07-01T21:48:36",null,"Разрешено",null,"Камиль Зарипов",null,null,null,"Отдел поддержки клиентов",null,null,null,"Отсутствие файлов",{"$f":"H24&COUNTIF($H$4:H24,H24)","v":"Камиль Зарипов1"}]
["150702/732.2",null,null,"2015-07-02T12:24:54",null,"Разрешено",null,"Юрий Алексеев",null,null,null,"Отдел поддержки клиентов",null,null,null,"Некорректный контакт",{"$f":"H25&COUNTIF($H$4:H25,H25)","v":"Юрий Алексеев1"}]
["150702/890.1",null,null,"2015-07-02T12:38:08",null,"Разрешено",null,"Сергей Моногаров",null,null,null,"Отдел поддержки клиентов",null,null,null,"Есть сценарий",{"$f":"H26&COUNTIF($H$4:H26,H26)","v":"Сергей Моногаров1"}]
["150702/1242.1",null,null,"2015-07-02T13:27:16",null,"Разрешено",null,"Александра Орешина",null,null,null,"Отдел поддержки клиентов",null,null,null,"Некорректный контакт",{"$f":"H27&COUNTIF($H$4:H27,H27)","v":"Александра Орешина1"}]
["150702/1103.2",null,null,"2015-07-02T14:10:50",null,"Разрешено",null,"Никита Иванюк",null,null,null,"Отдел поддержки клиентов",null,null,null,"Отсутствие файлов",{"$f":"H28&COUNTIF($H$4:H28,H28)","v":"Никита Иванюк1"}]
["150702/2237.1",null,null,"2015-07-02T15:42:18",null,"Разрешено",null,"Амил Гусеинов",null,null,null,"Отдел поддержки клиентов",null,null,null,"Отсутствие файлов",{"$f":"H29&COUNTIF($H$4:H29,H29)","v":"Амил Гусеинов1"}]
["150702/2237.1",null,null,"2015-07-02T15:42:18",null,"Разрешено",null,"Амил Гусеинов",null,null,null,"Отдел поддержки клиентов",null,null,null,"Отсутствие файлов",{"$f":"H30&COUNTIF($H$4:H30,H30)","v":"Амил Гусеинов2"}]
["150702/2720.1",null,null,"2015-07-02T16:46:53",null,"Разрешено",null,"Александр Карев",null,null,null,"Отдел поддержки клиентов",null,null,null,"Неправомерный перевод",{"$f":"H31&COUNTIF($H$4:H31,H31)","v":"Александр Карев1"}]
["150702/2855.1",null,null,"2015-07-02T17:11:44",null,"Разрешено",null,"Юрий Алексеев",null,null,null,"Отдел поддержки клиентов",null,null,null,"Некорректное описание",{"$f":"H32&COUNTIF($H$4:H32,H32)","v":"Юрий Алексеев2"}]
["150702/3215.1",null,null,"2015-07-02T17:52:18",null,"Разрешено",null,"Илья Болотских",null,null,null,"Отдел поддержки клиентов",null,null,null,"Отсутствие файлов",{"$f":"H33&COUNTIF($H$4:H33,H33)","v":"Илья Болотских1"}]
["150702/3667.1",null,null,"2015-07-02T19:31:33",null,"Разрешено",null,"Иван Кондрашов",null,null,null,"Отдел поддержки клиентов",null,null,null,"Некорректный контакт",{"$f":"H34&COUNTIF($H$4:H34,H34)","v":"Иван Кондрашов1"}]
["150702/3770.1",null,null,"2015-07-02T22:29:17",null,"Разрешено",null,"Андрей Федотов",null,null,null,"Отдел поддержки клиентов",null,null,null,"Отсутствие файлов",{"$f":"H35&COUNTIF($H$4:H35,H35)","v":"Андрей Федотов1"}]
["150703/248.1",null,null,"2015-07-03T11:12:47",null,"Разрешено",null,"Иван Кондрашов",null,null,null,"Отдел поддержки клиентов",null,null,null,"Отсутствие файлов",{"$f":"H36&COUNTIF($H$4:H36,H36)","v":"Иван Кондрашов2"}]
["150703/434.1",null,null,"2015-07-03T11:49:11",null,"Разрешено",null,"Дмитрий Казаков",null,null,null,"Отдел поддержки клиентов",null,null,null,"Отсутствие файлов",{"$f":"H37&COUNTIF($H$4:H37,H37)","v":"Дмитрий Казаков1"}]
["150703/582.1",null,null,"2015-07-03T12:11:15",null,"Разрешено",null,"Олег Руднев",null,null,null,"Отдел поддержки клиентов",null,null,null,"Отсутствие файлов",{"$f":"H38&COUNTIF($H$4:H38,H38)","v":"Олег Руднев1"}]
["150703/689.1",null,null,"2015-07-03T12:27:51",null,"Разрешено",null,"Александр Александров",null,null,null,"Отдел поддержки клиентов",null,null,null,"Отсутствие файлов",{"$f":"H39&COUNTIF($H$4:H39,H39)","v":"Александр Александров1"}]
["150703/1037.1",null,null,"2015-07-03T13:31:23",null,"Разрешено",null,"Николай Пурик",null,null,null,"Отдел поддержки клиентов",null,null,null,"Отсутствие файлов",{"$f":"H40&COUNTIF($H$4:H40,H40)","v":"Николай Пурик1"}]
["150703/1220.1",null,null,"2015-07-03T13:54:09",null,"Разрешено",null,"Владислав Гончаров",null,null,null,"Отдел поддержки клиентов",null,null,null,"Некорректное описание",{"$f":"H41&COUNTIF($H$4:H41,H41)","v":"Владислав Гончаров2"}]
["150703/1784.1",null,null,"2015-07-03T15:18:46",null,"Разрешено",null,"Юрий Алексеев",null,null,null,"Отдел поддержки клиентов",null,null,null,"Некорректное описание",{"$f":"H42&COUNTIF($H$4:H42,H42)","v":"Юрий Алексеев3"}]
["150703/1916.1",null,null,"2015-07-03T15:37:42",null,"Разрешено",null,"Павел Гайдай",null,null,null,"Отдел поддержки клиентов",null,null,null,"Некорректный контакт",{"$f":"H43&COUNTIF($H$4:H43,H43)","v":"Павел Гайдай1"}]
["150703/2257.1",null,null,"2015-07-03T16:32:45",null,"Разрешено",null,"Станислав Беляев",null,null,null,"Отдел поддержки клиентов",null,null,null,"Отсутствие файлов",{"$f":"H44&COUNTIF($H$4:H44,H44)","v":"Станислав Беляев1"}]
["150703/2668.1",null,null,"2015-07-03T17:25:14",null,"Разрешено",null,"Иван Михалев",null,null,null,"Отдел поддержки клиентов",null,null,null,"Отсутствие файлов",{"$f":"H45&COUNTIF($H$4:H45,H45)","v":"Иван Михалев1"}]
["150703/2829.2",null,null,"2015-07-03T17:53:19",null,"Разрешено",null,"Данияр Карабалинов",null,null,null,"Отдел поддержки клиентов",null,null,null,"Есть сценарий",{"$f":"H46&COUNTIF($H$4:H46,H46)","v":"Данияр Карабалинов1"}]
["150704/87.1",null,null,"2015-07-04T18:23:23",null,"Разрешено",null,"Павел Звездин",null,null,null,"Отдел поддержки клиентов",null,null,null,"Неправомерный перевод",{"$f":"H47&COUNTIF($H$4:H47,H47)","v":"Павел Звездин1"}]
["150705/22.1",null,null,"2015-07-05T13:00:46",null,"Разрешено",null,"Александр Захаров",null,null,null,"Отдел поддержки клиентов",null,null,null,"Отсутствие файлов",{"$f":"H48&COUNTIF($H$4:H48,H48)","v":"Александр Захаров5"}]
["150706/9.2",null,null,"2015-07-06T06:49:54",null,"Разрешено",null,"Данил Французов",null,null,null,"Отдел поддержки клиентов",null,null,null,"Отсутствие файлов",{"$f":"H49&COUNTIF($H$4:H49,H49)","v":"Данил Французов1"}]
["150706/336.1",null,null,"2015-07-06T11:23:58",null,"Разрешено",null,"Дарья Ревина",null,null,null,"Отдел поддержки клиентов",null,null,null,"Отсутствие файлов",{"$f":"H50&COUNTIF($H$4:H50,H50)","v":"Дарья Ревина2"}]
["150706/432.1",null,null,"2015-07-06T11:39:25",null,"Разрешено",null,"Антон Гуркин",null,null,null,"Отдел поддержки клиентов",null,null,null,"Отсутствие файлов",{"$f":"H51&COUNTIF($H$4:H51,H51)","v":"Антон Гуркин1"}]
["150706/638.2",null,null,"2015-07-06T12:11:21",null,"Разрешено",null,"Евгений Пикунов",null,null,null,"Отдел поддержки клиентов",null,null,null,"Неправомерный перевод",{"$f":"H52&COUNTIF($H$4:H52,H52)","v":"Евгений Пикунов1"}]
["150706/859.1",null,null,"2015-07-06T12:39:29",null,"Разрешено",null,"Александр Захаров",null,null,null,"Отдел поддержки клиентов",null,null,null,"Отсутствие файлов",{"$f":"H53&COUNTIF($H$4:H53,H53)","v":"Александр Захаров6"}]
["150706/1052.1",null,null,"2015-07-06T13:11:42",null,"Разрешено",null,"Владислав Гончаров",null,null,null,"Отдел поддержки клиентов",null,null,null,"Отсутствие файлов",{"$f":"H54&COUNTIF($H$4:H54,H54)","v":"Владислав Гончаров3"}]
["150706/1350.1",null,null,"2015-07-06T13:53:48",null,"Разрешено",null,"Начын Монгуш",null,null,null,"Отдел поддержки клиентов",null,null,null,"Отсутствие файлов",{"$f":"H55&COUNTIF($H$4:H55,H55)","v":"Начын Монгуш1"}]
["150706/1366.2",null,null,"2015-07-06T13:56:52",null,"Разрешено",null,"Камиль Зарипов",null,null,null,"Отдел поддержки клиентов",null,null,null,"Отсутствие файлов",{"$f":"H56&COUNTIF($H$4:H56,H56)","v":"Камиль Зарипов2"}]
["150706/1597.1",null,null,"2015-07-06T14:25:25",null,"Разрешено",null,"Дарья Ревина",null,null,null,"Отдел поддержки клиентов",null,null,null,"Некорректный контакт",{"$f":"H57&COUNTIF($H$4:H57,H57)","v":"Дарья Ревина3"}]
["150706/1685.1",null,null,"2015-07-06T14:38:03",null,"Разрешено",null,"Кирилл Червяков",null,null,null,"Отдел поддержки клиентов",null,null,null,"Отсутствие файлов",{"$f":"H58&COUNTIF($H$4:H58,H58)","v":"Кирилл Червяков3"}]
["150706/1705.1",null,null,"2015-07-06T14:41:15",null,"Разрешено",null,"Дмитрий Галузо",null,null,null,"Отдел поддержки клиентов",null,null,null,"Отсутствие файлов",{"$f":"H59&COUNTIF($H$4:H59,H59)","v":"Дмитрий Галузо1"}]
["150706/1853.1",null,null,"2015-07-06T14:58:30",null,"Разрешено",null,"Александр Федосеев",null,null,null,"Отдел поддержки клиентов",null,null,null,"Неправомерный перевод",{"$f":"H60&COUNTIF($H$4:H60,H60)","v":"Александр Федосеев1"}]
["150706/1890.1",null,null,"2015-07-06T15:04:57",null,"Разрешено",null,"Игорь Ройзман",null,null,null,"Отдел поддержки клиентов",null,null,null,"Некорректный контакт",{"$f":"H61&COUNTIF($H$4:H61,H61)","v":"Игорь Ройзман1"}]
["150706/2007.2",null,null,"2015-07-06T15:25:14",null,"Разрешено",null,"Александра Зимина",null,null,null,"Отдел поддержки клиентов",null,null,null,"Отсутствие файлов",{"$f":"H62&COUNTIF($H$4:H62,H62)","v":"Александра Зимина1"}]
["150706/2779.1",null,null,"2015-07-06T17:01:23",null,"Разрешено",null,"Чингис Дженгуров",null,null,null,"Отдел поддержки клиентов",null,null,null,"Неправомерный перевод",{"$f":"H63&COUNTIF($H$4:H63,H63)","v":"Чингис Дженгуров1"}]
["150706/3704.2",null,null,"2015-07-06T19:08:21",null,"Разрешено",null,"Лия Заяц",null,null,null,"Отдел поддержки клиентов",null,null,null,"Отсутствие файлов",{"$f":"H64&COUNTIF($H$4:H64,H64)","v":"Лия Заяц1"}]
["150706/3947.1",null,null,"2015-07-06T23:25:22",null,"Разрешено",null,"Иван Михалев",null,null,null,"Отдел поддержки клиентов",null,null,null,"Неправомерный перевод",{"$f":"H65&COUNTIF($H$4:H65,H65)","v":"Иван Михалев2"}]
["150707/402.1",null,null,"2015-07-07T11:34:19",null,"Разрешено",null,"Арсений Карпусенко",null,null,null,"Отдел поддержки клиентов",null,null,null,"Некорректный контакт",{"$f":"H66&COUNTIF($H$4:H66,H66)","v":"Арсений Карпусенко1"}]
["150707/698.1",null,null,"2015-07-07T12:22:06",null,"Разрешено",null,"Юрий Алексеев",null,null,null,"Отдел поддержки клиентов",null,null,null,"Неправомерный перевод",{"$f":"H67&COUNTIF($H$4:H67,H67)","v":"Юрий Алексеев4"}]
["150707/918.1",null,null,"2015-07-07T12:53:15",null,"Разрешено",null,"Никита Иванюк",null,null,null,"Отдел поддержки клиентов",null,null,null,"Отсутствие файлов",{"$f":"H68&COUNTIF($H$4:H68,H68)","v":"Никита Иванюк2"}]
["150707/909.2",null,null,"2015-07-07T12:58:17",null,"Разрешено",null,"Андрей Федотов",null,null,null,"Отдел поддержки клиентов",null,null,null,"Отсутствие файлов",{"$f":"H69&COUNTIF($H$4:H69,H69)","v":"Андрей Федотов2"}]
["150707/1026.1",null,null,"2015-07-07T13:07:32",null,"Разрешено",null,"Евгений Макаров",null,null,null,"Отдел поддержки клиентов",null,null,null,"Неправомерный перевод",{"$f":"H70&COUNTIF($H$4:H70,H70)","v":"Евгений Макаров1"}]
["150707/1131.1",null,null,"2015-07-07T13:20:41",null,"Разрешено",null,"Камиль Зарипов",null,null,null,"Отдел поддержки клиентов",null,null,null,"Отсутствие файлов",{"$f":"H71&COUNTIF($H$4:H71,H71)","v":"Камиль Зарипов3"}]
["150707/1523.1",null,null,"2015-07-07T14:11:40",null,"Разрешено",null,"Артем Шишкин",null,null,null,"Отдел персональной поддержки клиентов",null,null,null,"Некорректный контакт",{"$f":"H72&COUNTIF($H$4:H72,H72)","v":"Артем Шишкин1"}]
["150707/1556.1",null,null,"2015-07-07T14:17:13",null,"Разрешено",null,"Алексей Лукоянов",null,null,null,"Отдел поддержки клиентов",null,null,null,"Отсутствие файлов",{"$f":"H73&COUNTIF($H$4:H73,H73)","v":"Алексей Лукоянов2"}]
["150707/1589.1",null,null,"2015-07-07T14:21:48",null,"Разрешено",null,"Дмитрий Исаев",null,null,null,"Отдел поддержки клиентов",null,null,null,"Отсутствие файлов",{"$f":"H74&COUNTIF($H$4:H74,H74)","v":"Дмитрий Исаев1"}]
["150707/1822.1",null,null,"2015-07-07T14:54:04",null,"Разрешено",null,"Игорь Рысенков",null,null,null,"Отдел поддержки клиентов",null,null,null,"Есть сценарий",{"$f":"H75&COUNTIF($H$4:H75,H75)","v":"Игорь Рысенков3"}]
["150707/2081.1",null,null,"2015-07-07T15:29:11",null,"Разрешено",null,"Иван Долгов",null,null,null,"Отдел поддержки клиентов",null,null,null,"Есть сценарий",{"$f":"H76&COUNTIF($H$4:H76,H76)","v":"Иван Долгов1"}]
["150707/2399.1",null,null,"2015-07-07T16:09:54",null,"Разрешено",null,"Максим Зонтов",null,null,null,"Отдел поддержки клиентов",null,null,null,"Отсутствие файлов",{"$f":"H77&COUNTIF($H$4:H77,H77)","v":"Максим Зонтов1"}]
["150707/2725.1",null,null,"2015-07-07T16:53:56",null,"Разрешено",null,"Дмитрий Лысак",null,null,null,"Отдел поддержки клиентов",null,null,null,"Некорректное описание",{"$f":"H78&COUNTIF($H$4:H78,H78)","v":"Дмитрий Лысак1"}]
["150707/3022.1",null,null,"2015-07-07T17:28:50",null,"Разрешено",null,"Арсений Карпусенко",null,null,null,"Отдел поддержки клиентов",null,null,null,"Некорректный контакт",{"$f":"H79&COUNTIF($H$4:H79,H79)","v":"Арсений Карпусенко2"}]
["150707/3354.1",null,null,"2015-07-07T18:15:59",null,"Разрешено",null,"Александра Орешина",null,null,null,"Отдел поддержки клиентов",null,null,null,"Отсутствие файлов",{"$f":"H80&COUNTIF($H$4:H80,H80)","v":"Александра Орешина2"}]
["150707/3578.1",null,null,"2015-07-07T19:14:14",null,"Разрешено",null,"Руслан Сильманович",null,null,null,"Отдел поддержки клиентов",null,null,null,"Отсутствие файлов",{"$f":"H81&COUNTIF($H$4:H81,H81)","v":"Руслан Сильманович1"}]
["150708/581.1",null,null,"2015-07-08T12:00:30",null,"Разрешено",null,"Михаил Карпухин",null,null,null,"Отдел поддержки клиентов",null,null,null,"Отсутствие файлов",{"$f":"H82&COUNTIF($H$4:H82,H82)","v":"Михаил Карпухин2"}]
["150708/603.1",null,null,"2015-07-08T12:03:11",null,"Разрешено",null,"Дмитрий Казаков",null,null,null,"Отдел поддержки клиентов",null,null,null,"Некорректный контакт",{"$f":"H83&COUNTIF($H$4:H83,H83)","v":"Дмитрий Казаков2"}]
["150708/920.2",null,null,"2015-07-08T12:49:05",null,"Разрешено",null,"Алексей Лукоянов",null,null,null,"Отдел поддержки клиентов",null,null,null,"Отсутствие файлов",{"$f":"H84&COUNTIF($H$4:H84,H84)","v":"Алексей Лукоянов3"}]
["150708/1478.1",null,null,"2015-07-08T14:02:09",null,"Разрешено",null,"Игорь Рысенков",null,null,null,"Отдел поддержки клиентов",null,null,null,"Отсутствие файлов",{"$f":"H85&COUNTIF($H$4:H85,H85)","v":"Игорь Рысенков4"}]
["150708/1916.1",null,null,"2015-07-08T15:09:05",null,"Разрешено",null,"Михаил Козырин",null,null,null,"Отдел поддержки клиентов",null,null,null,"Неправомерный перевод",{"$f":"H86&COUNTIF($H$4:H86,H86)","v":"Михаил Козырин1"}]
["150708/2178.1",null,null,"2015-07-08T15:42:14",null,"Разрешено",null,"Дмитрий Казаков",null,null,null,"Отдел поддержки клиентов",null,null,null,"Есть сценарий",{"$f":"H87&COUNTIF($H$4:H87,H87)","v":"Дмитрий Казаков3"}]
["150708/3244.1",null,null,"2015-07-08T17:59:39",null,"Разрешено",null,"Максим Зонтов",null,null,null,"Отдел поддержки клиентов",null,null,null,"Некорректный контакт",{"$f":"H88&COUNTIF($H$4:H88,H88)","v":"Максим Зонтов2"}]
["150708/3318.1",null,null,"2015-07-08T18:10:06",null,"Разрешено",null,"Александра Орешина",null,null,null,"Отдел поддержки клиентов",null,null,null,"Отсутствие файлов",{"$f":"H89&COUNTIF($H$4:H89,H89)","v":"Александра Орешина3"}]
["150708/3381.1",null,null,"2015-07-08T18:18:31",null,"Разрешено",null,"Юрий Алексеев",null,null,null,"Отдел поддержки клиентов",null,null,null,"Отсутствие файлов",{"$f":"H90&COUNTIF($H$4:H90,H90)","v":"Юрий Алексеев5"}]
["150708/1313.2",null,null,"2015-07-08T19:23:29",null,"Разрешено",null,"Арсений Карпусенко",null,null,null,"Отдел поддержки клиентов",null,null,null,"Отсутствие файлов",{"$f":"H91&COUNTIF($H$4:H91,H91)","v":"Арсений Карпусенко3"}]
["150708/3758.1",null,null,"2015-07-08T22:05:19",null,"Разрешено",null,"Камиль Зарипов",null,null,null,"Отдел поддержки клиентов",null,null,null,"Есть сценарий",{"$f":"H92&COUNTIF($H$4:H92,H92)","v":"Камиль Зарипов4"}]
["150708/3771.2",null,null,"2015-07-08T22:31:17",null,"Разрешено",null,"Дмитрий Коваленко",null,null,null,"Отдел поддержки клиентов",null,null,null,"Неправомерный перевод",{"$f":"H93&COUNTIF($H$4:H93,H93)","v":"Дмитрий Коваленко1"}]
["150709/330.1",null,null,"2015-07-09T11:19:53",null,"Разрешено",null,"Павел Пасынков",null,null,null,"Отдел персональной поддержки клиентов",null,null,null,"Отсутствие файлов",{"$f":"H94&COUNTIF($H$4:H94,H94)","v":"Павел Пасынков1"}]
["150709/549.2",null,null,"2015-07-09T11:56:11",null,"Разрешено",null,"Александра Орешина",null,null,null,"Отдел поддержки клиентов",null,null,null,"Неправомерный перевод",{"$f":"H95&COUNTIF($H$4:H95,H95)","v":"Александра Орешина4"}]
["150709/772.1",null,null,"2015-07-09T12:28:14",null,"Разрешено",null,"Александра Орешина",null,null,null,"Отдел поддержки клиентов",null,null,null,"Отсутствие файлов",{"$f":"H96&COUNTIF($H$4:H96,H96)","v":"Александра Орешина5"}]
["150709/1028.2",null,null,"2015-07-09T13:23:28",null,"Разрешено",null,"Михаил Пужаев",null,null,null,"Отдел поддержки клиентов",null,null,null,"Отсутствие файлов",{"$f":"H97&COUNTIF($H$4:H97,H97)","v":"Михаил Пужаев1"}]
["150709/1203.1",null,null,"2015-07-09T13:32:30",null,"Разрешено",null,"Михаил Карпухин",null,null,null,"Отдел поддержки клиентов",null,null,null,"Отсутствие файлов",{"$f":"H98&COUNTIF($H$4:H98,H98)","v":"Михаил Карпухин3"}]
["150709/1260.1",null,null,"2015-07-09T13:39:26",null,"Разрешено",null,"Алексей Горлов",null,null,null,"Отдел поддержки клиентов",null,null,null,"Некорректный контакт",{"$f":"H99&COUNTIF($H$4:H99,H99)","v":"Алексей Горлов1"}]
["150709/1292.1",null,null,"2015-07-09T13:43:11",null,"Разрешено",null,"Павел Гайдай",null,null,null,"Отдел поддержки клиентов",null,null,null,"Некорректный контакт",{"$f":"H100&COUNTIF($H$4:H100,H100)","v":"Павел Гайдай2"}]
["150709/1508.1",null,null,"2015-07-09T14:12:07",null,"Разрешено",null,"Юрий Алексеев",null,null,null,"Отдел поддержки клиентов",null,null,null,"Отсутствие файлов",{"$f":"H101&COUNTIF($H$4:H101,H101)","v":"Юрий Алексеев6"}]
["150709/1799.1",null,null,"2015-07-09T14:50:46",null,"Разрешено",null,"Виктор Петренко",null,null,null,"Отдел поддержки клиентов",null,null,null,"Отсутствие файлов",{"$f":"H102&COUNTIF($H$4:H102,H102)","v":"Виктор Петренко1"}]
["150709/1844.1",null,null,"2015-07-09T14:56:20",null,"Разрешено",null,"Евгений Бурчаков",null,null,null,"Отдел поддержки клиентов",null,null,null,"Отсутствие файлов",{"$f":"H103&COUNTIF($H$4:H103,H103)","v":"Евгений Бурчаков1"}]
["150709/2015.1",null,null,"2015-07-09T15:17:40",null,"Разрешено",null,"Сергей Моногаров",null,null,null,"Отдел поддержки клиентов",null,null,null,"Есть сценарий",{"$f":"H104&COUNTIF($H$4:H104,H104)","v":"Сергей Моногаров2"}]
["150709/2146.3",null,null,"2015-07-09T15:37:32",null,"Разрешено",null,"Камиль Зарипов",null,null,null,"Отдел поддержки клиентов",null,null,null,"Некорректное описание",{"$f":"H105&COUNTIF($H$4:H105,H105)","v":"Камиль Зарипов5"}]
["150709/2708.1",null,null,"2015-07-09T16:45:34",null,"Разрешено",null,"Илья Болотских",null,null,null,"Отдел поддержки клиентов",null,null,null,"Отсутствие файлов",{"$f":"H106&COUNTIF($H$4:H106,H106)","v":"Илья Болотских2"}]
["150709/3288.1",null,null,"2015-07-09T18:03:23",null,"Разрешено",null,"Арсений Карпусенко",null,null,null,"Отдел поддержки клиентов",null,null,null,"Некорректный контакт",{"$f":"H107&COUNTIF($H$4:H107,H107)","v":"Арсений Карпусенко4"}]
["150709/3335.1",null,null,"2015-07-09T18:09:02",null,"Разрешено",null,"Александр Захаров",null,null,null,"Отдел поддержки клиентов",null,null,null,"Отсутствие файлов",{"$f":"H108&COUNTIF($H$4:H108,H108)","v":"Александр Захаров7"}]
["150709/3635.1",null,null,"2015-07-09T19:38:11",null,"Разрешено",null,"Виктор Кошелев",null,null,null,"Отдел поддержки клиентов",null,null,null,"Отсутствие файлов",{"$f":"H109&COUNTIF($H$4:H109,H109)","v":"Виктор Кошелев1"}]
["150709/3723.1",null,null,"2015-07-09T22:47:49",null,"Разрешено",null,"Виктор Кошелев",null,null,null,"Отдел поддержки клиентов",null,null,null,"Отсутствие файлов",{"$f":"H110&COUNTIF($H$4:H110,H110)","v":"Виктор Кошелев2"}]
["150709/3729.3",null,null,"2015-07-09T23:35:59",null,"Разрешено",null,"Анна Добросердова",null,null,null,"Отдел поддержки клиентов",null,null,null,"Некорректный контакт",{"$f":"H111&COUNTIF($H$4:H111,H111)","v":"Анна Добросердова2"}]
["150710/616.2",null,null,"2015-07-10T12:21:29",null,"Разрешено",null,"Дмитрий Каламбет",null,null,null,"Отдел поддержки клиентов",null,null,null,"Отсутствие файлов",{"$f":"H112&COUNTIF($H$4:H112,H112)","v":"Дмитрий Каламбет1"}]
["150710/869.1",null,null,"2015-07-10T12:56:11",null,"Разрешено",null,"Михаил Пужаев",null,null,null,"Отдел поддержки клиентов",null,null,null,"Некорректный контакт",{"$f":"H113&COUNTIF($H$4:H113,H113)","v":"Михаил Пужаев2"}]
["150710/1091.1",null,null,"2015-07-10T13:30:00",null,"Разрешено",null,"Дмитрий Каламбет",null,null,null,"Отдел поддержки клиентов",null,null,null,"Некорректный контакт",{"$f":"H114&COUNTIF($H$4:H114,H114)","v":"Дмитрий Каламбет2"}]
["150710/1207.1",null,null,"2015-07-10T13:48:42",null,"Разрешено",null,"Максим Зонтов",null,null,null,"Отдел поддержки клиентов",null,null,null,"Некорректный контакт",{"$f":"H115&COUNTIF($H$4:H115,H115)","v":"Максим Зонтов3"}]
["150710/1470.1",null,null,"2015-07-10T14:27:52",null,"Активный",null,"Александр Матыс",null,null,null,"Отдел Развития Сервиса",null,null,null,"Отсутствие файлов",{"$f":"H116&COUNTIF($H$4:H116,H116)","v":"Александр Матыс1"}]
["150710/2635.1",null,null,"2015-07-10T17:28:02",null,"Разрешено",null,"Леонид Фомичев",null,null,null,"Отдел персональной поддержки клиентов",null,null,null,"Некорректный контакт",{"$f":"H117&COUNTIF($H$4:H117,H117)","v":"Леонид Фомичев1"}]
["150710/3057.1",null,null,"2015-07-10T18:50:07",null,"Разрешено",null,"Начын Монгуш",null,null,null,"Отдел поддержки клиентов",null,null,null,"Отсутствие файлов",{"$f":"H118&COUNTIF($H$4:H118,H118)","v":"Начын Монгуш2"}]
["150713/403.1",null,null,"2015-07-13T11:33:15",null,"Разрешено",null,"Руслан Сильманович",null,null,null,"Отдел поддержки клиентов",null,null,null,"Неправомерный перевод",{"$f":"H119&COUNTIF($H$4:H119,H119)","v":"Руслан Сильманович2"}]
["150713/1119.1",null,null,"2015-07-13T13:10:42",null,"Разрешено",null,"Евгений Бурчаков",null,null,null,"Отдел поддержки клиентов",null,null,null,"Отсутствие файлов",{"$f":"H120&COUNTIF($H$4:H120,H120)","v":"Евгений Бурчаков2"}]
["150713/1243.2",null,null,"2015-07-13T13:39:56",null,"Разрешено",null,"Александр Карев",null,null,null,"Отдел поддержки клиентов",null,null,null,"Некорректный контакт",{"$f":"H121&COUNTIF($H$4:H121,H121)","v":"Александр Карев2"}]
["150713/645.3",null,null,"2015-07-13T14:47:42",null,"Разрешено",null,"Евгений Храмов",null,null,null,"Отдел поддержки клиентов",null,null,null,"Отсутствие файлов",{"$f":"H122&COUNTIF($H$4:H122,H122)","v":"Евгений Храмов1"}]
["150713/2305.1",null,null,"2015-07-13T15:44:59",null,"Разрешено",null,"Роман Куранов",null,null,null,"Отдел поддержки клиентов",null,null,null,"Отсутствие файлов",{"$f":"H123&COUNTIF($H$4:H123,H123)","v":"Роман Куранов1"}]
["150713/2465.1",null,null,"2015-07-13T16:02:36",null,"Активный",null,"Дмитрий Исаев",null,null,null,"Отдел поддержки клиентов",null,null,null,"Отсутствие файлов",{"$f":"H124&COUNTIF($H$4:H124,H124)","v":"Дмитрий Исаев2"}]
["150713/2818.1",null,null,"2015-07-13T16:40:59",null,"Разрешено",null,"Дмитрий Шуляк",null,null,null,"Отдел поддержки клиентов",null,null,null,"Есть сценарий",{"$f":"H125&COUNTIF($H$4:H125,H125)","v":"Дмитрий Шуляк1"}]
["150713/2922.1",null,null,"2015-07-13T16:52:19",null,"Разрешено",null,"Игорь Рысенков",null,null,null,"Отдел поддержки клиентов",null,null,null,"Некорректный контакт",{"$f":"H126&COUNTIF($H$4:H126,H126)","v":"Игорь Рысенков5"}]
["150713/2995.1",null,null,"2015-07-13T17:00:17",null,"Разрешено",null,"Никита Молоканкин",null,null,null,"Отдел поддержки клиентов",null,null,null,"Некорректное описание",{"$f":"H127&COUNTIF($H$4:H127,H127)","v":"Никита Молоканкин1"}]
["150713/4026.1",null,null,"2015-07-13T19:45:52",null,"Разрешено",null,"Андрей Фадеев",null,null,null,"Отдел поддержки клиентов",null,null,null,"Есть сценарий",{"$f":"H128&COUNTIF($H$4:H128,H128)","v":"Андрей Фадеев1"}]
["150713/4002.2",null,null,"2015-07-13T20:11:17",null,"Разрешено",null,"Дарья Ревина",null,null,null,"Отдел поддержки клиентов",null,null,null,"Некорректное описание",{"$f":"H129&COUNTIF($H$4:H129,H129)","v":"Дарья Ревина4"}]
["150713/4132.1",null,null,"2015-07-13T21:58:52",null,"Разрешено",null,"Михаил Гончаров",null,null,null,"Отдел поддержки клиентов",null,null,null,"Некорректное описание",{"$f":"H130&COUNTIF($H$4:H130,H130)","v":"Михаил Гончаров1"}]
["150713/4141.1",null,null,"2015-07-13T22:16:31",null,"Разрешено",null,"Светлана Убушаева",null,null,null,"Отдел поддержки клиентов",null,null,null,"Есть сценарий",{"$f":"H131&COUNTIF($H$4:H131,H131)","v":"Светлана Убушаева1"}]
["150714/924.1",null,null,"2015-07-14T12:51:10",null,"Разрешено",null,"Никита Егоров",null,null,null,"Отдел поддержки клиентов",null,null,null,"Отсутствие файлов",{"$f":"H132&COUNTIF($H$4:H132,H132)","v":"Никита Егоров1"}]
["150714/1902.1",null,null,"2015-07-14T15:02:36",null,"Разрешено",null,"Алексей Горлов",null,null,null,"Отдел поддержки клиентов",null,null,null,"Некорректный контакт",{"$f":"H133&COUNTIF($H$4:H133,H133)","v":"Алексей Горлов2"}]
["150714/2517.1",null,null,"2015-07-14T16:25:52",null,"Разрешено",null,"Кирилл Червяков",null,null,null,"Отдел поддержки клиентов",null,null,null,"Некорректный контакт",{"$f":"H134&COUNTIF($H$4:H134,H134)","v":"Кирилл Червяков4"}]
["150714/2554.1",null,null,"2015-07-14T16:31:36",null,"Активный",null,"Варвара Садчихина",null,null,null,"Отдел поддержки клиентов",null,null,null,"Отсутствие файлов",{"$f":"H135&COUNTIF($H$4:H135,H135)","v":"Варвара Садчихина1"}]
["150714/2794.1",null,null,"2015-07-14T17:03:41",null,"Разрешено",null,"Дмитрий Шуляк",null,null,null,"Отдел поддержки клиентов",null,null,null,"Есть сценарий",{"$f":"H136&COUNTIF($H$4:H136,H136)","v":"Дмитрий Шуляк2"}]
["150714/3259.1",null,null,"2015-07-14T18:00:33",null,"Разрешено",null,"Дмитрий Шуляк",null,null,null,"Отдел поддержки клиентов",null,null,null,"Отсутствие файлов",{"$f":"H137&COUNTIF($H$4:H137,H137)","v":"Дмитрий Шуляк3"}]
["150714/3571.1",null,null,"2015-07-14T18:54:31",null,"Разрешено",null,"Кирилл Червяков",null,null,null,"Отдел поддержки клиентов",null,null,null,"Отсутствие файлов",{"$f":"H138&COUNTIF($H$4:H138,H138)","v":"Кирилл Червяков5"}]
["150714/3829.1",null,null,"2015-07-14T22:49:07",null,"Активный",null,"Станислав Беляев",null,null,null,"Отдел поддержки клиентов",null,null,null,"Есть сценарий",{"$f":"H139&COUNTIF($H$4:H139,H139)","v":"Станислав Беляев2"}]
["150715/829.4",null,null,"2015-07-15T13:16:24",null,"Разрешено",null,"Максим Шепелев",null,null,null,"Отдел поддержки клиентов",null,null,null,"Некорректный контакт",{"$f":"H140&COUNTIF($H$4:H140,H140)","v":"Максим Шепелев1"}]
["150715/1181.1",null,null,"2015-07-15T13:19:18",null,"Разрешено",null,"Владимир Капустин",null,null,null,"Отдел поддержки клиентов",null,null,null,"Есть сценарий",{"$f":"H141&COUNTIF($H$4:H141,H141)","v":"Владимир Капустин1"}]
["150715/1203.1",null,null,"2015-07-15T13:22:38",null,"Активный",null,"Дмитрий Исаев",null,null,null,"Отдел поддержки клиентов",null,null,null,"Отсутствие файлов",{"$f":"H142&COUNTIF($H$4:H142,H142)","v":"Дмитрий Исаев3"}]
["150715/1298.1",null,null,"2015-07-15T13:32:21",null,"Разрешено",null,"Дарья Ревина",null,null,null,"Отдел поддержки клиентов",null,null,null,"Есть сценарий",{"$f":"H143&COUNTIF($H$4:H143,H143)","v":"Дарья Ревина5"}]
["150715/1446.1",null,null,"2015-07-15T13:49:16",null,"Активный",null,"Дмитрий Исаев",null,null,null,"Отдел поддержки клиентов",null,null,null,"Отсутствие файлов",{"$f":"H144&COUNTIF($H$4:H144,H144)","v":"Дмитрий Исаев4"}]
["150715/1466.1",null,null,"2015-07-15T13:51:20",null,"Активный",null,"Александр Платонов",null,null,null,"Отдел поддержки клиентов",null,null,null,"Некорректное описание",{"$f":"H145&COUNTIF($H$4:H145,H145)","v":"Александр Платонов2"}]
["150715/1820.1",null,null,"2015-07-15T14:31:29",null,"Активный",null,"Александр Платонов",null,null,null,"Отдел поддержки клиентов",null,null,null,"Некорректное описание",{"$f":"H146&COUNTIF($H$4:H146,H146)","v":"Александр Платонов3"}]
["150715/1906.1",null,null,"2015-07-15T14:42:52",null,"Разрешено",null,"Алексей Лукоянов",null,null,null,"Отдел поддержки клиентов",null,null,null,"Некорректное описание",{"$f":"H147&COUNTIF($H$4:H147,H147)","v":"Алексей Лукоянов4"}]
["150715/1949.1",null,null,"2015-07-15T14:47:36",null,"Активный",null,"Дмитрий Шуляк",null,null,null,"Отдел поддержки клиентов",null,null,null,"Некорректный контакт",{"$f":"H148&COUNTIF($H$4:H148,H148)","v":"Дмитрий Шуляк4"}]
["150715/1949.2",null,null,"2015-07-15T14:54:41",null,"Активный",null,"Дмитрий Шуляк",null,null,null,"Отдел поддержки клиентов",null,null,null,"Некорректное описание",{"$f":"H149&COUNTIF($H$4:H149,H149)","v":"Дмитрий Шуляк5"}]
["150715/2033.1",null,null,"2015-07-15T14:56:49",null,"Разрешено",null,"Андрей Симаков",null,null,null,"Отдел поддержки клиентов",null,null,null,"Есть сценарий",{"$f":"H150&COUNTIF($H$4:H150,H150)","v":"Андрей Симаков2"}]
["150715/2130.1",null,null,"2015-07-15T15:06:49",null,"Разрешено",null,"Сергей Фокин",null,null,null,"Отдел поддержки клиентов",null,null,null,"Некорректное описание",{"$f":"H151&COUNTIF($H$4:H151,H151)","v":"Сергей Фокин1"}]
["150715/2127.2",null,null,"2015-07-15T15:11:10",null,"Активный",null,"Евгений Житарь",null,null,null,"Отдел поддержки клиентов",null,null,null,"Есть сценарий",{"$f":"H152&COUNTIF($H$4:H152,H152)","v":"Евгений Житарь1"}]
["150715/2127.2",null,null,"2015-07-15T15:11:10",null,"Активный",null,"Евгений Житарь",null,null,null,"Отдел поддержки клиентов",null,null,null,"Есть сценарий",{"$f":"H153&COUNTIF($H$4:H153,H153)","v":"Евгений Житарь2"}]
["150715/2169.1",null,null,"2015-07-15T15:11:34",null,"Активный",null,"Кирилл Червяков",null,null,null,"Отдел поддержки клиентов",null,null,null,"Некорректное описание",{"$f":"H154&COUNTIF($H$4:H154,H154)","v":"Кирилл Червяков6"}]
["150715/2270.1",null,null,"2015-07-15T15:23:03",null,"Разрешено",null,"Павел Пасынков",null,null,null,"Отдел персональной поддержки клиентов",null,null,null,"Некорректное описание",{"$f":"H155&COUNTIF($H$4:H155,H155)","v":"Павел Пасынков2"}]
["150715/2332.1",null,null,"2015-07-15T15:30:01",null,"Активный",null,"Ильдар Муллагалиев",null,null,null,"Отдел поддержки клиентов",null,null,null,"Некорректное описание",{"$f":"H156&COUNTIF($H$4:H156,H156)","v":"Ильдар Муллагалиев1"}]
["150715/2628.2",null,null,"2015-07-15T16:02:03",null,"Разрешено",null,"Иван Кондрашов",null,null,null,"Отдел поддержки клиентов",null,null,null,"Некорректное описание",{"$f":"H157&COUNTIF($H$4:H157,H157)","v":"Иван Кондрашов3"}]
["150715/2971.1",null,null,"2015-07-15T16:37:57",null,"Разрешено",null,"Евгений Храмов",null,null,null,"Отдел поддержки клиентов",null,null,null,"Отсутствие файлов",{"$f":"H158&COUNTIF($H$4:H158,H158)","v":"Евгений Храмов2"}]
["150715/3023.1",null,null,"2015-07-15T16:42:27",null,"Активный",null,"Юрий Земков",null,null,null,"Отдел поддержки клиентов",null,null,null,"Отсутствие файлов",{"$f":"H159&COUNTIF($H$4:H159,H159)","v":"Юрий Земков1"}]
["150715/3023.1",null,null,"2015-07-15T16:42:27",null,"Активный",null,"Юрий Земков",null,null,null,"Отдел поддержки клиентов",null,null,null,"Отсутствие файлов",{"$f":"H160&COUNTIF($H$4:H160,H160)","v":"Юрий Земков2"}]
["150715/2998.2",null,null,"2015-07-15T16:52:22",null,"Разрешено",null,"Вячеслав Иванов",null,null,null,"Отдел поддержки клиентов",null,null,null,"Некорректный контакт",{"$f":"H161&COUNTIF($H$4:H161,H161)","v":"Вячеслав Иванов1"}]
["150715/3168.3",null,null,"2015-07-15T17:46:55",null,"Разрешено",null,"Евгений Пикунов",null,null,null,"Отдел поддержки клиентов",null,null,null,"Есть сценарий",{"$f":"H162&COUNTIF($H$4:H162,H162)","v":"Евгений Пикунов2"}]
["150715/3643.1",null,null,"2015-07-15T17:50:42",null,"Разрешено",null,"Павел Звездин",null,null,null,"Отдел поддержки клиентов",null,null,null,"Неправомерный перевод",{"$f":"H163&COUNTIF($H$4:H163,H163)","v":"Павел Звездин2"}]
["150715/3752.1",null,null,"2015-07-15T18:06:31",null,"Разрешено",null,"Александр Балабанов",null,null,null,"Отдел поддержки клиентов",null,null,null,"Некорректное описание",{"$f":"H164&COUNTIF($H$4:H164,H164)","v":"Александр Балабанов1"}]
["150715/3893.1",null,null,"2015-07-15T18:21:03",null,"Активный",null,"Наталья Белкина",null,null,null,"Отдел поддержки клиентов",null,null,null,"Некорректное описание",{"$f":"H165&COUNTIF($H$4:H165,H165)","v":"Наталья Белкина1"}]
["150715/3894.1",null,null,"2015-07-15T18:21:09",null,"Активный",null,"Игорь Рысенков",null,null,null,"Отдел поддержки клиентов",null,null,null,"Есть сценарий",{"$f":"H166&COUNTIF($H$4:H166,H166)","v":"Игорь Рысенков6"}]
["150715/4156.1",null,null,"2015-07-15T19:08:38",null,"Разрешено",null,"Андрей Федотов",null,null,null,"Отдел поддержки клиентов",null,null,null,"Отсутствие файлов",{"$f":"H167&COUNTIF($H$4:H167,H167)","v":"Андрей Федотов3"}]
["150715/4207.1",null,null,"2015-07-15T19:35:50",null,"Активный",null,"Иван Михалев",null,null,null,"Отдел поддержки клиентов",null,null,null,"Некорректное описание",{"$f":"H168&COUNTIF($H$4:H168,H168)","v":"Иван Михалев3"}]
["150715/4219.1",null,null,"2015-07-15T19:43:37",null,"Разрешено",null,"Тарас Андросенко",null,null,null,"Отдел поддержки клиентов",null,null,null,"Есть сценарий",{"$f":"H169&COUNTIF($H$4:H169,H169)","v":"Тарас Андросенко1"}]
["150715/4355.1",null,null,"2015-07-15T21:57:15",null,"Разрешено",null,"Тарас Андросенко",null,null,null,"Отдел поддержки клиентов",null,null,null,"Есть сценарий",{"$f":"H170&COUNTIF($H$4:H170,H170)","v":"Тарас Андросенко2"}]
["150715/4403.1",null,null,"2015-07-15T23:30:30",null,"Активный",null,"Магомет Гасанов",null,null,null,"Отдел поддержки клиентов",null,null,null,"Отсутствие файлов",{"$f":"H171&COUNTIF($H$4:H171,H171)","v":"Магомет Гасанов1"}]